Workbook

Sheet Introduction
C4: Joint Monitoring Programme for Water Supply, Sanitation and Hygiene
C6: Estimates on household water, sanitation and hygiene by wealth quintile and sub-national region in
C7: =+Water!B5 -> Eswatini
C9: Updated May 2021
C11: Follow the links below to find the following information:
C13: JMP Estimates
C14: WASH status and trends by wealth quintile (customized quintiles made without water and sanitation assets)
C15: Water
C16: Sanitation
C17: Hygiene
C19: Data inputs
C20: customized wealth quintiles and subnational data:
C21: =IF(INDIRECT(CONCATENATE("Water","!B105"))=0,"",INDIRECT(CONCATENATE("Water","!B105"))) -> MICS00
C22: =IF(INDIRECT(CONCATENATE("Water","!B106"))=0,"",INDIRECT(CONCATENATE("Water","!B106"))) -> DHS07
C23: =IF(INDIRECT(CONCATENATE("Water","!B107"))=0,"",INDIRECT(CONCATENATE("Water","!B107"))) -> MICS10
C24: =IF(INDIRECT(CONCATENATE("Water","!B108"))=0,"",INDIRECT(CONCATENATE("Water","!B108"))) -> MICS14
C25: =IF(INDIRECT(CONCATENATE("Water","!B109"))=0,"",INDIRECT(CONCATENATE("Water","!B109"))) -> 
C26: =IF(INDIRECT(CONCATENATE("Water","!B110"))=0,"",INDIRECT(CONCATENATE("Water","!B110"))) -> 
C27: =IF(INDIRECT(CONCATENATE("Water","!B111"))=0,"",INDIRECT(CONCATENATE("Water","!B111"))) -> 
C28: =IF(INDIRECT(CONCATENATE("Water","!B112"))=0,"",INDIRECT(CONCATENATE("Water","!B112"))) -> 
C29: =IF(INDIRECT(CONCATENATE("Water","!B113"))=0,"",INDIRECT(CONCATENATE("Water","!B113"))) -> 
C30: =IF(INDIRECT(CONCATENATE("Water","!B114"))=0,"",INDIRECT(CONCATENATE("Water","!B114"))) -> 
C31: =IF(INDIRECT(CONCATENATE("Water","!B115"))=0,"",INDIRECT(CONCATENATE("Water","!B115"))) -> 
C32: =IF(INDIRECT(CONCATENATE("Water","!B116"))=0,"",INDIRECT(CONCATENATE("Water","!B116"))) -> 
L55: =+IF(ISNUMBER(M48), "", "Insufficient data to estimate safely managed sanitation services at national level") -> Insufficient data to estimate safely managed sanitation services at national level

Sheet Water
A1: BGD
B4: Summary of trends in use of drinking water by wealth quintile (%)
B5: =IF(ISERROR(INDIRECT(CONCATENATE($B105,"!A2"))),"",INDIRECT(CONCATENATE($B105,"!A2"))) -> Eswatini
B7: =B118 -> National use of drinking water sources, 2000–2020 | J7: =B218 -> Urban use of drinking water sources, 2000–2020 | R7: =B318 -> Rural use of drinking water sources, 2000–2020
B31: =IF(ISERROR(INDIRECT(CONCATENATE($B105,"!A2"))),"",INDIRECT(CONCATENATE($B105,"!A2"))) -> Eswatini | F31: Poorest | J31: Poor | N31: Middle | R31: Rich | V31: Richest
F32: Basic | G32: Limited | H32: Unimproved | I32: Surface water | J32: Basic | K32: Limited | L32: Unimproved | M32: Surface water | N32: Basic | O32: Limited | P32: Unimproved | Q32: Surface water | R32: Basic | S32: Limited | T32: Unimproved | U32: Surface water | V32: Basic | W32: Limited | X32: Unimproved | Y32: Surface water
B33: NATIONAL | D33: Estimate | E33: =C99 -> 2000 | F33: =E99 -> 23.28459644 | G33: =F99 -> 6.050328208 | H33: 19.17085201 | I33: 51.49422335 | J33: =J99 -> 34.8751505 | K33: =K99 -> 4.54293427 | L33: 18.76671452 | M33: 41.81520071 | N33: =O99 -> 44.68413085 | O33: =P99 -> 4.365409052 | P33: 18.88955805 | Q33: 32.06090204 | R33: =T99 -> 58.44655972 | S33: =U99 -> 2.963011827 | T33: 16.7850566 | U33: 21.80537186 | V33: =Y99 -> 85.47134561 | W33: =Z99 -> 1.367715208 | X33: 5.774018014 | Y33: 7.386921166
E34: =C100 -> 2020 | F34: =E100 -> 45.45864527 | G34: 11.81208893 | H34: 17.11400065 | I34: 25.61526515 | J34: =J100 -> 59.72294681 | K34: 7.779677445 | L34: 12.20794458 | M34: 20.28943117 | N34: =O100 -> 69.76258305 | O34: 6.815444447 | P34: 8.082727378 | Q34: 15.33924512 | R34: =T100 -> 87.6882273 | S34: 4.445449926 | T34: 2.634607924 | U34: 5.231714849 | V34: =Y100 -> 97.87258611 | W34: 1.566160255 | X34: 0 | Y34: 0.5612536361
B36: URBAN | D36: Estimate | E36: =C199 -> 2000 | F36: =E199 -> 79.63401495 | G36: =F199 -> 2.10477381 | H36: 9.288772338 | I36: 8.972438907 | J36: =J199 -> 80.3933513 | K36: =K199 -> 1.203554358 | L36: 7.714019508 | M36: 10.68907484 | N36: =O199 -> 92.97481409 | O36: =P199 -> 0.844372681 | P36: 5.239953554 | Q36: 0.9408596725 | R36: =T199 -> 94.7825894 | S36: =U199 -> 0.3567726075 | T36: 2.878270557 | U36: 1.982367433 | V36: =Y199 -> 95.32512896 | W36: =Z199 -> 0.02383724155 | X36: 2.156058136 | Y36: 2.494975659
E37: =C200 -> 2020 | F37: =E200 -> 80.56326964 | G37: 2.129334558 | H37: 6.870528762 | I37: 10.43686704 | J37: =J200 -> 97.76093105 | K37: 1.463561262 | L37: 0.7755076897 | M37: 0 | N37: =O200 -> 97.06176969 | O37: 0.8814893312 | P37: 0 | Q37: 2.056740982 | R37: =T200 -> 98.31149933 | S37: 0.3700558318 | T37: 0 | U37: 1.318444842 | V37: =Y200 -> 99.975 | W37: 0.025 | X37: 0 | Y37: 0
B39: RURAL | D39: Estimate | E39: =C299 -> 2000 | F39: =E299 -> 21.57659401 | G39: =F299 -> 6.282145835 | H39: 21.12619063 | I39: 51.01506953 | J39: =J299 -> 30.47865031 | K39: =K299 -> 4.705938792 | L39: 16.69329629 | M39: 48.12211462 | N39: =O299 -> 37.19699034 | O39: =P299 -> 4.656163348 | P39: 20.26875681 | Q39: 37.8780895 | R39: =T299 -> 40.64540396 | S39: =U299 -> 4.391054722 | T39: 20.50673733 | U39: 34.45680398 | V39: =Y299 -> 65.61358727 | W39: =Z299 -> 3.199823606 | X39: 14.12624254 | Y39: 17.06034659
E40: =C300 -> 2020 | F40: =E300 -> 41.88999366 | G40: 12.19650558 | H40: 17.16288515 | I40: 28.75061562 | J40: =J300 -> 59.24409691 | K40: 9.147356955 | L40: 14.71445247 | M40: 16.89409367 | N40: =O300 -> 58.66920136 | O40: 7.343964727 | P40: 10.91437032 | Q40: 23.0724636 | R40: =T300 -> 70.4328387 | S40: 7.609087837 | T40: 7.285374128 | U40: 14.67269934 | V40: =Y300 -> 89.85028219 | W40: 4.381791423 | X40: 2.217168377 | Y40: 3.550758005
A97: NATIONAL | D97: Poorest | I97: Poor | N97: Middle | S97: Rich | X97: Richest
D98: Improved | E98: Basic | F98: Limited | G98: Unimproved | H98: Surface water | I98: Improved | J98: Basic | K98: Limited | L98: Unimproved | M98: Surface water | N98: Improved | O98: Basic | P98: Limited | Q98: Unimproved | R98: Surface water | S98: Improved | T98: Basic | U98: Limited | V98: Unimproved | W98: Surface water | X98: Improved | Y98: Basic | Z98: Limited | AA98: Unimproved | AB98: Surface water
A99: Forecast period: | C99: 2000 | D99: =IF((D101+H101)>100,D101*100/(D101+H101),D101) -> 29.33492464 | E99: =D99*AVERAGEIF(E105:E116,">0")/100 -> 23.28459644 | F99: =D99*(100-AVERAGEIF(E105:E116,">0"))/100 -> 6.050328208 | G99: =100-(E99+F99+H99) -> 19.17085201 | H99: =IF((D101+H101)>100,H101*100/(D101+H101),H101) -> 51.49422335 | I99: =IF((I101+M101)>100,I101*100/(I101+M101),I101) -> 39.41808477 | J99: =I99*AVERAGEIF(J105:J116,">0")/100 -> 34.8751505 | K99: =I99*(100-AVERAGEIF(J105:J116,">0"))/100 -> 4.54293427 | L99: =100-(J99+K99+M99) -> 18.76671452 | M99: =IF((I101+M101)>100,M101*100/(I101+M101),M101) -> 41.81520071 | N99: =IF((N101+R101)>100,N101*100/(N101+R101),N101) -> 49.0495399 | O99: =N99*AVERAGEIF(O105:O116,">0")/100 -> 44.68413085 | P99: =N99*(100-AVERAGEIF(O105:O116,">0"))/100 -> 4.365409052 | Q99: =100-(O99+P99+R99) -> 18.88955805 | R99: =IF((N101+R101)>100,R101*100/(N101+R101),R101) -> 32.06090204 | S99: =IF((S101+W101)>100,S101*100/(S101+W101),S101) -> 61.40957154 | T99: =S99*AVERAGEIF(T105:T116,">0")/100 -> 58.44655972 | U99: =S99*(100-AVERAGEIF(T105:T116,">0"))/100 -> 2.963011827 | V99: =100-(T99+U99+W99) -> 16.7850566 | W99: =IF((S101+W101)>100,W101*100/(S101+W101),W101) -> 21.80537186 | X99: =IF((X101+AB101)>100,X101*100/(X101+AB101),X101) -> 86.83906082 | Y99: =X99*AVERAGEIF(Y105:Y116,">0")/100 -> 85.47134561 | Z99: =X99*(100-AVERAGEIF(Y105:Y116,">0"))/100 -> 1.367715208 | AA99: =100-(Y99+Z99+AB99) -> 5.774018014 | AB99: =IF((X101+AB101)>100,AB101*100/(X101+AB101),AB101) -> 7.386921166
C100: 2020 | D100: =IF((D102+H102)>100,D102*100/(D102+H102),D102) -> 57.2707342 | E100: =D100*AVERAGEIF(E105:E116,">0")/100 -> 45.45864527 | F100: =D100*(100-AVERAGEIF(E105:E116,">0"))/100 -> 11.81208893 | G100: =100-(E100+F100+H100) -> 17.11400065 | H100: =IF((D102+H102)>100,H102*100/(D102+H102),H102) -> 25.61526515 | I100: =IF((I102+M102)>100,I102*100/(I102+M102),I102) -> 67.50262425 | J100: =I100*AVERAGEIF(J105:J116,">0")/100 -> 59.72294681 | K100: =I100*(100-AVERAGEIF(J105:J116,">0"))/100 -> 7.779677445 | L100: =100-(J100+K100+M100) -> 12.20794458 | M100: =IF((I102+M102)>100,M102*100/(I102+M102),M102) -> 20.28943117 | N100: =IF((N102+R102)>100,N102*100/(N102+R102),N102) -> 76.5780275 | O100: =N100*AVERAGEIF(O105:O116,">0")/100 -> 69.76258305 | P100: =N100*(100-AVERAGEIF(O105:O116,">0"))/100 -> 6.815444447 | Q100: =100-(O100+P100+R100) -> 8.082727378 | R100: =IF((N102+R102)>100,R102*100/(N102+R102),R102) -> 15.33924512 | S100: =IF((S102+W102)>100,S102*100/(S102+W102),S102) -> 92.13367723 | T100: =S100*AVERAGEIF(T105:T116,">0")/100 -> 87.6882273 | U100: =S100*(100-AVERAGEIF(T105:T116,">0"))/100 -> 4.445449926 | V100: =100-(T100+U100+W100) -> 2.634607924 | W100: =IF((S102+W102)>100,W102*100/(S102+W102),W102) -> 5.231714849 | X100: =IF((X102+AB102)>100,X102*100/(X102+AB102),X102) -> 99.43874636 | Y100: =X100*AVERAGEIF(Y105:Y116,">0")/100 -> 97.87258611 | Z100: =X100*(100-AVERAGEIF(Y105:Y116,">0"))/100 -> 1.566160255 | AA100: =100-(Y100+Z100+AB100) -> 0 | AB100: =IF((X102+AB102)>100,AB102*100/(X102+AB102),AB102) -> 0.5612536361
A101: Regression period: | C101: =MinRegYear(C99,C105:C116) -> 2000 | D101: =IF(MAX(C105:C116)-MIN(C105:C116)<5,AVERAGEIF(C105:C116,">0",D105:D116), IF(FORECAST($C101,D$105:D$116,$C$105:$C$116)<0,0, IF(FORECAST($C101,D$105:D$116,$C$105:$C$116)>100,100, FORECAST($C101,D$105:D$116,$C$105:$C$116)))) -> 29.33492464 | H101: =IF(MAX(C105:C116)-MIN(C105:C116)<5,AVERAGEIF(C105:C116,">0",H105:H116), IF(FORECAST($C101,H$105:H$116,$C$105:$C$116)<0,0, IF(FORECAST($C101,H$105:H$116,$C$105:$C$116)>100,100, FORECAST($C101,H$105:H$116,$C$105:$C$116)))) -> 51.49422335 | I101: =IF(MAX(C105:C116)-MIN(C105:C116)<5,AVERAGEIF(C105:C116,">0",I105:I116), IF(FORECAST($C101,I$105:I$116,$C$105:$C$116)<0,0, IF(FORECAST($C101,I$105:I$116,$C$105:$C$116)>100,100, FORECAST($C101,I$105:I$116,$C$105:$C$116)))) -> 39.41808477 | M101: =IF(MAX(C105:C116)-MIN(C105:C116)<5,AVERAGEIF(C105:C116,">0",M105:M116), IF(FORECAST($C101,M$105:M$116,$C$105:$C$116)<0,0, IF(FORECAST($C101,M$105:M$116,$C$105:$C$116)>100,100, FORECAST($C101,M$105:M$116,$C$105:$C$116)))) -> 41.81520071 | N101: =IF(MAX(C105:C116)-MIN(C105:C116)<5,AVERAGEIF(C105:C116,">0",N105:N116), IF(FORECAST($C101,N$105:N$116,$C$105:$C$116)<0,0, IF(FORECAST($C101,N$105:N$116,$C$105:$C$116)>100,100, FORECAST($C101,N$105:N$116,$C$105:$C$116)))) -> 49.0495399 | R101: =IF(MAX(C105:C116)-MIN(C105:C116)<5,AVERAGEIF(C105:C116,">0",R105:R116), IF(FORECAST($C101,R$105:R$116,$C$105:$C$116)<0,0, IF(FORECAST($C101,R$105:R$116,$C$105:$C$116)>100,100, FORECAST($C101,R$105:R$116,$C$105:$C$116)))) -> 32.06090204 | S101: =IF(MAX(C105:C116)-MIN(C105:C116)<5,AVERAGEIF(C105:C116,">0",S105:S116), IF(FORECAST($C101,S$105:S$116,$C$105:$C$116)<0,0, IF(FORECAST($C101,S$105:S$116,$C$105:$C$116)>100,100, FORECAST($C101,S$105:S$116,$C$105:$C$116)))) -> 61.40957154 | W101: =IF(MAX(C105:C116)-MIN(C105:C116)<5,AVERAGEIF(C105:C116,">0",W105:W116), IF(FORECAST($C101,W$105:W$116,$C$105:$C$116)<0,0, IF(FORECAST($C101,W$105:W$116,$C$105:$C$116)>100,100, FORECAST($C101,W$105:W$116,$C$105:$C$116)))) -> 21.80537186 | X101: =IF(MAX(C105:C116)-MIN(C105:C116)<5,AVERAGEIF(C105:C116,">0",X105:X116), IF(FORECAST($C101,X$105:X$116,$C$105:$C$116)<0,0, IF(FORECAST($C101,X$105:X$116,$C$105:$C$116)>100,100, FORECAST($C101,X$105:X$116,$C$105:$C$116)))) -> 86.83906082 | AB101: =IF(MAX(C105:C116)-MIN(C105:C116)<5,AVERAGEIF(C105:C116,">0",AB105:AB116), IF(FORECAST($C101,AB$105:AB$116,$C$105:$C$116)<0,0, IF(FORECAST($C101,AB$105:AB$116,$C$105:$C$116)>100,100, FORECAST($C101,AB$105:AB$116,$C$105:$C$116)))) -> 7.386921166
C102: =MaxRegYear(C100,C105:C116) -> 2016 | D102: =IF(MAX(C105:C116)-MIN(C105:C116)<5,AVERAGEIF(C105:C116,">0",D105:D116), IF(FORECAST($C102,D$105:D$116,$C$105:$C$116)<0,0, IF(FORECAST($C102,D$105:D$116,$C$105:$C$116)>100,100, FORECAST($C102,D$105:D$116,$C$105:$C$116)))) -> 57.2707342 | H102: =IF(MAX(C105:C116)-MIN(C105:C116)<5,AVERAGEIF(C105:C116,">0",H105:H116), IF(FORECAST($C102,H$105:H$116,$C$105:$C$116)<0,0, IF(FORECAST($C102,H$105:H$116,$C$105:$C$116)>100,100, FORECAST($C102,H$105:H$116,$C$105:$C$116)))) -> 25.61526515 | I102: =IF(MAX(C105:C116)-MIN(C105:C116)<5,AVERAGEIF(C105:C116,">0",I105:I116), IF(FORECAST($C102,I$105:I$116,$C$105:$C$116)<0,0, IF(FORECAST($C102,I$105:I$116,$C$105:$C$116)>100,100, FORECAST($C102,I$105:I$116,$C$105:$C$116)))) -> 67.50262425 | M102: =IF(MAX(C105:C116)-MIN(C105:C116)<5,AVERAGEIF(C105:C116,">0",M105:M116), IF(FORECAST($C102,M$105:M$116,$C$105:$C$116)<0,0, IF(FORECAST($C102,M$105:M$116,$C$105:$C$116)>100,100, FORECAST($C102,M$105:M$116,$C$105:$C$116)))) -> 20.28943117 | N102: =IF(MAX(C105:C116)-MIN(C105:C116)<5,AVERAGEIF(C105:C116,">0",N105:N116), IF(FORECAST($C102,N$105:N$116,$C$105:$C$116)<0,0, IF(FORECAST($C102,N$105:N$116,$C$105:$C$116)>100,100, FORECAST($C102,N$105:N$116,$C$105:$C$116)))) -> 76.5780275 | R102: =IF(MAX(C105:C116)-MIN(C105:C116)<5,AVERAGEIF(C105:C116,">0",R105:R116), IF(FORECAST($C102,R$105:R$116,$C$105:$C$116)<0,0, IF(FORECAST($C102,R$105:R$116,$C$105:$C$116)>100,100, FORECAST($C102,R$105:R$116,$C$105:$C$116)))) -> 15.33924512 | S102: =IF(MAX(C105:C116)-MIN(C105:C116)<5,AVERAGEIF(C105:C116,">0",S105:S116), IF(FORECAST($C102,S$105:S$116,$C$105:$C$116)<0,0, IF(FORECAST($C102,S$105:S$116,$C$105:$C$116)>100,100, FORECAST($C102,S$105:S$116,$C$105:$C$116)))) -> 92.13367723 | W102: =IF(MAX(C105:C116)-MIN(C105:C116)<5,AVERAGEIF(C105:C116,">0",W105:W116), IF(FORECAST($C102,W$105:W$116,$C$105:$C$116)<0,0, IF(FORECAST($C102,W$105:W$116,$C$105:$C$116)>100,100, FORECAST($C102,W$105:W$116,$C$105:$C$116)))) -> 5.231714849 | X102: =IF(MAX(C105:C116)-MIN(C105:C116)<5,AVERAGEIF(C105:C116,">0",X105:X116), IF(FORECAST($C102,X$105:X$116,$C$105:$C$116)<0,0, IF(FORECAST($C102,X$105:X$116,$C$105:$C$116)>100,100, FORECAST($C102,X$105:X$116,$C$105:$C$116)))) -> 100 | AB102: =IF(MAX(C105:C116)-MIN(C105:C116)<5,AVERAGEIF(C105:C116,">0",AB105:AB116), IF(FORECAST($C102,AB$105:AB$116,$C$105:$C$116)<0,0, IF(FORECAST($C102,AB$105:AB$116,$C$105:$C$116)>100,100, FORECAST($C102,AB$105:AB$116,$C$105:$C$116)))) -> 0.5644214721
B104: Survey | C104: Year | D104: Improved | E104: % Improved < = 30min | H104: Surface water | I104: Improved | J104: % Improved < = 30min | M104: Surface water | N104: Improved | O104: % Improved < = 30min | R104: Surface water | S104: Improved | T104: % Improved < = 30min | W104: Surface water | X104: Improved | Y104: % Improved < = 30min | AB104: Surface water
B105: MICS00 | C105: 2000 | D105: =IF(ISERROR(INDIRECT(CONCATENATE($B105,"!C16"))),"",INDIRECT(CONCATENATE($B105,"!C16"))) -> 29.04906644 | E105: =IF(ISERROR(INDIRECT(CONCATENATE($B105,"!C23"))),"",INDIRECT(CONCATENATE($B105,"!C23"))) -> 80.9 | H105: =IF(ISERROR(INDIRECT(CONCATENATE($B105,"!C21"))),"",INDIRECT(CONCATENATE($B105,"!C21"))) -> 53.56281517 | I105: =IF(ISERROR(INDIRECT(CONCATENATE($B105,"!D16"))),"",INDIRECT(CONCATENATE($B105,"!D16"))) -> 37.44847038 | J105: =IF(ISERROR(INDIRECT(CONCATENATE($B105,"!D23"))),"",INDIRECT(CONCATENATE($B105,"!D23"))) -> 87.5 | M105: =IF(ISERROR(INDIRECT(CONCATENATE($B105,"!D21"))),"",INDIRECT(CONCATENATE($B105,"!D21"))) -> 45.10739857 | N105: =IF(ISERROR(INDIRECT(CONCATENATE($B105,"!E16"))),"",INDIRECT(CONCATENATE($B105,"!E16"))) -> 46.56372336 | O105: =IF(ISERROR(INDIRECT(CONCATENATE($B105,"!E23"))),"",INDIRECT(CONCATENATE($B105,"!E23"))) -> 88.9 | R105: =IF(ISERROR(INDIRECT(CONCATENATE($B105,"!E21"))),"",INDIRECT(CONCATENATE($B105,"!E21"))) -> 34.89435853 | S105: =IF(ISERROR(INDIRECT(CONCATENATE($B105,"!F16"))),"",INDIRECT(CONCATENATE($B105,"!F16"))) -> 62.63592866 | T105: =IF(ISERROR(INDIRECT(CONCATENATE($B105,"!F23"))),"",INDIRECT(CONCATENATE($B105,"!F23"))) -> 92.7 | W105: =IF(ISERROR(INDIRECT(CONCATENATE($B105,"!F21"))),"",INDIRECT(CONCATENATE($B105,"!F21"))) -> 21.68306011 | X105: =IF(ISERROR(INDIRECT(CONCATENATE($B105,"!G16"))),"",INDIRECT(CONCATENATE($B105,"!G16"))) -> 86.88097307 | Y105: =IF(ISERROR(INDIRECT(CONCATENATE($B105,"!G23"))),"",INDIRECT(CONCATENATE($B105,"!G23"))) -> 97.8 | AB105: =IF(ISERROR(INDIRECT(CONCATENATE($B105,"!G221"))),"",INDIRECT(CONCATENATE($B105,"!G21"))) -> 7.240704501
B106: DHS07 | C106: 2007 | D106: 41.08481244 | E106: 78.2 | H106: 35.21404799 | I106: 52.05141655 | J106: 89.7 | M106: 25.88375936 | N106: 65.46537155 | O106: 91.9 | R106: 18.16700191 | S106: 74.72701357 | T106: 96 | W106: 11.45033616 | X106: 92.78256382 | Y106: 97.7 | AB106: 4.45099124
B107: MICS10 | C107: 2010 | D107: 48.62135991 | E107: 81.1 | H107: 36.75653259 | I107: 63.25846723 | J107: 84.5 | M107: 28.2382573 | N107: 67.30399549 | O107: 90.5 | R107: 23.20457543 | S107: 76.53750754 | T107: 93 | W107: 17.30703366 | X107: 94.60991018 | Y107: 98.9 | AB107: 3.549018225
B108: MICS14 | C108: 2014 | D108: 52.71009082 | E108: 77.3 | H108: 30.30301612 | I108: 59.32778016 | J108: 92.2 | M108: 26.32520913 | N108: 70.20151393 | O108: 93.1 | R108: 19.57946203 | S108: 91.26579116 | T108: 99 | W108: 4.669597042 | X108: 98.60544101 | Y108: 99.3 | AB108: 1.08837754
D111: =IF(ISERROR(INDIRECT(CONCATENATE($B111,"!C16"))),"",INDIRECT(CONCATENATE($B111,"!C16"))) ->  | E111: =IF(ISERROR(INDIRECT(CONCATENATE($B111,"!C23"))),"",INDIRECT(CONCATENATE($B111,"!C23"))) ->  | H111: =IF(ISERROR(INDIRECT(CONCATENATE($B111,"!C21"))),"",INDIRECT(CONCATENATE($B111,"!C21"))) ->  | I111: =IF(ISERROR(INDIRECT(CONCATENATE($B111,"!D16"))),"",INDIRECT(CONCATENATE($B111,"!D16"))) ->  | J111: =IF(ISERROR(INDIRECT(CONCATENATE($B111,"!D23"))),"",INDIRECT(CONCATENATE($B111,"!D23"))) ->  | M111: =IF(ISERROR(INDIRECT(CONCATENATE($B111,"!D21"))),"",INDIRECT(CONCATENATE($B111,"!D21"))) ->  | N111: =IF(ISERROR(INDIRECT(CONCATENATE($B111,"!E16"))),"",INDIRECT(CONCATENATE($B111,"!E16"))) ->  | O111: =IF(ISERROR(INDIRECT(CONCATENATE($B111,"!E23"))),"",INDIRECT(CONCATENATE($B111,"!E23"))) ->  | R111: =IF(ISERROR(INDIRECT(CONCATENATE($B111,"!E21"))),"",INDIRECT(CONCATENATE($B111,"!E21"))) ->  | S111: =IF(ISERROR(INDIRECT(CONCATENATE($B111,"!F16"))),"",INDIRECT(CONCATENATE($B111,"!F16"))) ->  | T111: =IF(ISERROR(INDIRECT(CONCATENATE($B111,"!F23"))),"",INDIRECT(CONCATENATE($B111,"!F23"))) ->  | W111: =IF(ISERROR(INDIRECT(CONCATENATE($B111,"!F21"))),"",INDIRECT(CONCATENATE($B111,"!F21"))) ->  | X111: =IF(ISERROR(INDIRECT(CONCATENATE($B111,"!G16"))),"",INDIRECT(CONCATENATE($B111,"!G16"))) ->  | Y111: =IF(ISERROR(INDIRECT(CONCATENATE($B111,"!G23"))),"",INDIRECT(CONCATENATE($B111,"!G23"))) ->  | AB111: =IF(ISERROR(INDIRECT(CONCATENATE($B111,"!G221"))),"",INDIRECT(CONCATENATE($B111,"!G21"))) -> 
D112: =IF(ISERROR(INDIRECT(CONCATENATE($B112,"!C16"))),"",INDIRECT(CONCATENATE($B112,"!C16"))) ->  | E112: =IF(ISERROR(INDIRECT(CONCATENATE($B112,"!C23"))),"",INDIRECT(CONCATENATE($B112,"!C23"))) ->  | H112: =IF(ISERROR(INDIRECT(CONCATENATE($B112,"!C21"))),"",INDIRECT(CONCATENATE($B112,"!C21"))) ->  | I112: =IF(ISERROR(INDIRECT(CONCATENATE($B112,"!D16"))),"",INDIRECT(CONCATENATE($B112,"!D16"))) ->  | J112: =IF(ISERROR(INDIRECT(CONCATENATE($B112,"!D23"))),"",INDIRECT(CONCATENATE($B112,"!D23"))) ->  | M112: =IF(ISERROR(INDIRECT(CONCATENATE($B112,"!D21"))),"",INDIRECT(CONCATENATE($B112,"!D21"))) ->  | N112: =IF(ISERROR(INDIRECT(CONCATENATE($B112,"!E16"))),"",INDIRECT(CONCATENATE($B112,"!E16"))) ->  | O112: =IF(ISERROR(INDIRECT(CONCATENATE($B112,"!E23"))),"",INDIRECT(CONCATENATE($B112,"!E23"))) ->  | R112: =IF(ISERROR(INDIRECT(CONCATENATE($B112,"!E21"))),"",INDIRECT(CONCATENATE($B112,"!E21"))) ->  | S112: =IF(ISERROR(INDIRECT(CONCATENATE($B112,"!F16"))),"",INDIRECT(CONCATENATE($B112,"!F16"))) ->  | T112: =IF(ISERROR(INDIRECT(CONCATENATE($B112,"!F23"))),"",INDIRECT(CONCATENATE($B112,"!F23"))) ->  | W112: =IF(ISERROR(INDIRECT(CONCATENATE($B112,"!F21"))),"",INDIRECT(CONCATENATE($B112,"!F21"))) ->  | X112: =IF(ISERROR(INDIRECT(CONCATENATE($B112,"!G16"))),"",INDIRECT(CONCATENATE($B112,"!G16"))) ->  | Y112: =IF(ISERROR(INDIRECT(CONCATENATE($B112,"!G23"))),"",INDIRECT(CONCATENATE($B112,"!G23"))) ->  | AB112: =IF(ISERROR(INDIRECT(CONCATENATE($B112,"!G221"))),"",INDIRECT(CONCATENATE($B112,"!G21"))) -> 
B118: =CONCATENATE("National use of drinking water sources, ",C99,"–",C100) -> National use of drinking water sources, 2000–2020 | S118: Data points used for regression
E153: =IF(ISERROR(INDIRECT(CONCATENATE($B153,"!M18"))),"",INDIRECT(CONCATENATE($B153,"!M18"))) ->  | F153: =IF(ISERROR(INDIRECT(CONCATENATE($B153,"!M19"))),"",INDIRECT(CONCATENATE($B153,"!M19"))) ->  | G153: =IF(ISERROR(INDIRECT(CONCATENATE($B153,"!M20"))),"",INDIRECT(CONCATENATE($B153,"!M20"))) ->  | H153: =IF(ISERROR(INDIRECT(CONCATENATE($B153,"!M21"))),"",INDIRECT(CONCATENATE($B153,"!M21"))) ->  | J153: =IF(ISERROR(INDIRECT(CONCATENATE($B153,"!N18"))),"",INDIRECT(CONCATENATE($B153,"!N18"))) ->  | K153: =IF(ISERROR(INDIRECT(CONCATENATE($B153,"!N19"))),"",INDIRECT(CONCATENATE($B153,"!N19"))) ->  | L153: =IF(ISERROR(INDIRECT(CONCATENATE($B153,"!N20"))),"",INDIRECT(CONCATENATE($B153,"!N20"))) ->  | M153: =IF(ISERROR(INDIRECT(CONCATENATE($B153,"!N21"))),"",INDIRECT(CONCATENATE($B153,"!N21"))) ->  | O153: =IF(ISERROR(INDIRECT(CONCATENATE($B153,"!O18"))),"",INDIRECT(CONCATENATE($B153,"!O18"))) ->  | P153: =IF(ISERROR(INDIRECT(CONCATENATE($B153,"!O19"))),"",INDIRECT(CONCATENATE($B153,"!O19"))) ->  | Q153: =IF(ISERROR(INDIRECT(CONCATENATE($B153,"!O20"))),"",INDIRECT(CONCATENATE($B153,"!O20"))) ->  | R153: =IF(ISERROR(INDIRECT(CONCATENATE($B153,"!O21"))),"",INDIRECT(CONCATENATE($B153,"!O21"))) ->  | T153: =IF(ISERROR(INDIRECT(CONCATENATE($B153,"!P18"))),"",INDIRECT(CONCATENATE($B153,"!P18"))) ->  | U153: =IF(ISERROR(INDIRECT(CONCATENATE($B153,"!P19"))),"",INDIRECT(CONCATENATE($B153,"!P19"))) ->  | V153: =IF(ISERROR(INDIRECT(CONCATENATE($B153,"!P20"))),"",INDIRECT(CONCATENATE($B153,"!P20"))) ->  | W153: =IF(ISERROR(INDIRECT(CONCATENATE($B153,"!P21"))),"",INDIRECT(CONCATENATE($B153,"!P21"))) ->  | Y153: =IF(ISERROR(INDIRECT(CONCATENATE($B153,"!Q18"))),"",INDIRECT(CONCATENATE($B153,"!Q18"))) ->  | Z153: =IF(ISERROR(INDIRECT(CONCATENATE($B153,"!Q19"))),"",INDIRECT(CONCATENATE($B153,"!Q19"))) ->  | AA153: =IF(ISERROR(INDIRECT(CONCATENATE($B153,"!Q20"))),"",INDIRECT(CONCATENATE($B153,"!Q20"))) ->  | AB153: =IF(ISERROR(INDIRECT(CONCATENATE($B153,"!Q21"))),"",INDIRECT(CONCATENATE($B153,"!Q1"))) -> 
A197: URBAN | D197: Poorest | I197: Poor | N197: Middle | S197: Rich | X197: Richest
D198: Improved | E198: Basic | F198: Limited | G198: Unimproved | H198: Surface water | I198: Improved | J198: Basic | K198: Limited | L198: Unimproved | M198: Surface water | N198: Improved | O198: Basic | P198: Limited | Q198: Unimproved | R198: Surface water | S198: Improved | T198: Basic | U198: Limited | V198: Unimproved | W198: Surface water | X198: Improved | Y198: Basic | Z198: Limited | AA198: Unimproved | AB198: Surface water
A199: Forecast period: | C199: 2000 | D199: =IF((D201+H201)>100,D201*100/(D201+H201),D201) -> 81.73878876 | E199: =D199*AVERAGEIF(E205:E216,">0")/100 -> 79.63401495 | F199: =D199*(100-AVERAGEIF(E205:E216,">0"))/100 -> 2.10477381 | G199: =100-(E199+F199+H199) -> 9.288772338 | H199: =IF((D201+H201)>100,H201*100/(D201+H201),H201) -> 8.972438907 | I199: =IF((I201+M201)>100,I201*100/(I201+M201),I201) -> 81.59690565 | J199: =I199*AVERAGEIF(J205:J216,">0")/100 -> 80.3933513 | K199: =I199*(100-AVERAGEIF(J205:J216,">0"))/100 -> 1.203554358 | L199: =100-(J199+K199+M199) -> 7.714019508 | M199: =IF((I201+M201)>100,M201*100/(I201+M201),M201) -> 10.68907484 | N199: =IF((N201+R201)>100,N201*100/(N201+R201),N201) -> 93.81918677 | O199: =N199*AVERAGEIF(O205:O216,">0")/100 -> 92.97481409 | P199: =N199*(100-AVERAGEIF(O205:O216,">0"))/100 -> 0.844372681 | Q199: =100-(O199+P199+R199) -> 5.239953554 | R199: =IF((N201+R201)>100,R201*100/(N201+R201),R201) -> 0.9408596725 | S199: =IF((S201+W201)>100,S201*100/(S201+W201),S201) -> 95.13936201 | T199: =S199*AVERAGEIF(T205:T216,">0")/100 -> 94.7825894 | U199: =S199*(100-AVERAGEIF(T205:T216,">0"))/100 -> 0.3567726075 | V199: =100-(T199+U199+W199) -> 2.878270557 | W199: =IF((S201+W201)>100,W201*100/(S201+W201),W201) -> 1.982367433 | X199: =IF((X201+AB201)>100,X201*100/(X201+AB201),X201) -> 95.34896621 | Y199: =X199*AVERAGEIF(Y205:Y216,">0")/100 -> 95.32512896 | Z199: =X199*(100-AVERAGEIF(Y205:Y216,">0"))/100 -> 0.02383724155 | AA199: =100-(Y199+Z199+AB199) -> 2.156058136 | AB199: =IF((X201+AB201)>100,AB201*100/(X201+AB201),AB201) -> 2.494975659
C200: 2020 | D200: =IF((D202+H202)>100,D202*100/(D202+H202),D202) -> 82.6926042 | E200: =D200*AVERAGEIF(E205:E216,">0")/100 -> 80.56326964 | F200: =D200*(100-AVERAGEIF(E205:E216,">0"))/100 -> 2.129334558 | G200: =100-(E200+F200+H200) -> 6.870528762 | H200: =IF((D202+H202)>100,H202*100/(D202+H202),H202) -> 10.43686704 | I200: =IF((I202+M202)>100,I202*100/(I202+M202),I202) -> 99.22449231 | J200: =I200*AVERAGEIF(J205:J216,">0")/100 -> 97.76093105 | K200: =I200*(100-AVERAGEIF(J205:J216,">0"))/100 -> 1.463561262 | L200: =100-(J200+K200+M200) -> 0.7755076897 | M200: =IF((I202+M202)>100,M202*100/(I202+M202),M202) -> 0 | N200: =IF((N202+R202)>100,N202*100/(N202+R202),N202) -> 97.94325902 | O200: =N200*AVERAGEIF(O205:O216,">0")/100 -> 97.06176969 | P200: =N200*(100-AVERAGEIF(O205:O216,">0"))/100 -> 0.8814893312 | Q200: =100-(O200+P200+R200) -> 0 | R200: =IF((N202+R202)>100,R202*100/(N202+R202),R202) -> 2.056740982 | S200: =IF((S202+W202)>100,S202*100/(S202+W202),S202) -> 98.68155516 | T200: =S200*AVERAGEIF(T205:T216,">0")/100 -> 98.31149933 | U200: =S200*(100-AVERAGEIF(T205:T216,">0"))/100 -> 0.3700558318 | V200: =100-(T200+U200+W200) -> 0 | W200: =IF((S202+W202)>100,W202*100/(S202+W202),W202) -> 1.318444842 | X200: =IF((X202+AB202)>100,X202*100/(X202+AB202),X202) -> 100 | Y200: =X200*AVERAGEIF(Y205:Y216,">0")/100 -> 99.975 | Z200: =X200*(100-AVERAGEIF(Y205:Y216,">0"))/100 -> 0.025 | AA200: =100-(Y200+Z200+AB200) -> 0 | AB200: =IF((X202+AB202)>100,AB202*100/(X202+AB202),AB202) -> 0
A201: Regression period: | C201: =MinRegYear(C199,C205:C216) -> 2000 | D201: =IF(MAX(C205:C216)-MIN(C205:C216)<5,AVERAGEIF(C205:C216,">0",D205:D216), IF(FORECAST($C201,D$205:D$216,$C$205:$C$216)<0,0, IF(FORECAST($C201,D$205:D$216,$C$205:$C$216)>100,100, FORECAST($C201,D$205:D$216,$C$205:$C$216)))) -> 81.73878876 | H201: =IF(MAX(C205:C216)-MIN(C205:C216)<5,AVERAGEIF(C205:C216,">0",H205:H216), IF(FORECAST($C201,H$205:H$216,$C$205:$C$216)<0,0, IF(FORECAST($C201,H$205:H$216,$C$205:$C$216)>100,100, FORECAST($C201,H$205:H$216,$C$205:$C$216)))) -> 8.972438907 | I201: =IF(MAX(C205:C216)-MIN(C205:C216)<5,AVERAGEIF(C205:C216,">0",I205:I216), IF(FORECAST($C201,I$205:I$216,$C$205:$C$216)<0,0, IF(FORECAST($C201,I$205:I$216,$C$205:$C$216)>100,100, FORECAST($C201,I$205:I$216,$C$205:$C$216)))) -> 81.59690565 | M201: =IF(MAX(C205:C216)-MIN(C205:C216)<5,AVERAGEIF(C205:C216,">0",M205:M216), IF(FORECAST($C201,M$205:M$216,$C$205:$C$216)<0,0, IF(FORECAST($C201,M$205:M$216,$C$205:$C$216)>100,100, FORECAST($C201,M$205:M$216,$C$205:$C$216)))) -> 10.68907484 | N201: =IF(MAX(C205:C216)-MIN(C205:C216)<5,AVERAGEIF(C205:C216,">0",N205:N216), IF(FORECAST($C201,N$205:N$216,$C$205:$C$216)<0,0, IF(FORECAST($C201,N$205:N$216,$C$205:$C$216)>100,100, FORECAST($C201,N$205:N$216,$C$205:$C$216)))) -> 93.81918677 | R201: =IF(MAX(C205:C216)-MIN(C205:C216)<5,AVERAGEIF(C205:C216,">0",R205:R216), IF(FORECAST($C201,R$205:R$216,$C$205:$C$216)<0,0, IF(FORECAST($C201,R$205:R$216,$C$205:$C$216)>100,100, FORECAST($C201,R$205:R$216,$C$205:$C$216)))) -> 0.9408596725 | S201: =IF(MAX(C205:C216)-MIN(C205:C216)<5,AVERAGEIF(C205:C216,">0",S205:S216), IF(FORECAST($C201,S$205:S$216,$C$205:$C$216)<0,0, IF(FORECAST($C201,S$205:S$216,$C$205:$C$216)>100,100, FORECAST($C201,S$205:S$216,$C$205:$C$216)))) -> 95.13936201 | W201: =IF(MAX(C205:C216)-MIN(C205:C216)<5,AVERAGEIF(C205:C216,">0",W205:W216), IF(FORECAST($C201,W$205:W$216,$C$205:$C$216)<0,0, IF(FORECAST($C201,W$205:W$216,$C$205:$C$216)>100,100, FORECAST($C201,W$205:W$216,$C$205:$C$216)))) -> 1.982367433 | X201: =IF(MAX(C205:C216)-MIN(C205:C216)<5,AVERAGEIF(C205:C216,">0",X205:X216), IF(FORECAST($C201,X$205:X$216,$C$205:$C$216)<0,0, IF(FORECAST($C201,X$205:X$216,$C$205:$C$216)>100,100, FORECAST($C201,X$205:X$216,$C$205:$C$216)))) -> 95.34896621 | AB201: =IF(MAX(C205:C216)-MIN(C205:C216)<5,AVERAGEIF(C205:C216,">0",AB205:AB216), IF(FORECAST($C201,AB$205:AB$216,$C$205:$C$216)<0,0, IF(FORECAST($C201,AB$205:AB$216,$C$205:$C$216)>100,100, FORECAST($C201,AB$205:AB$216,$C$205:$C$216)))) -> 2.494975659
C202: =MaxRegYear(C200,C205:C216) -> 2016 | D202: =IF(MAX(C205:C216)-MIN(C205:C216)<5,AVERAGEIF(C205:C216,">0",D205:D216), IF(FORECAST($C202,D$205:D$216,$C$205:$C$216)<0,0, IF(FORECAST($C202,D$205:D$216,$C$205:$C$216)>100,100, FORECAST($C202,D$205:D$216,$C$205:$C$216)))) -> 82.6926042 | H202: =IF(MAX(C205:C216)-MIN(C205:C216)<5,AVERAGEIF(C205:C216,">0",H205:H216), IF(FORECAST($C202,H$205:H$216,$C$205:$C$216)<0,0, IF(FORECAST($C202,H$205:H$216,$C$205:$C$216)>100,100, FORECAST($C202,H$205:H$216,$C$205:$C$216)))) -> 10.43686704 | I202: =IF(MAX(C205:C216)-MIN(C205:C216)<5,AVERAGEIF(C205:C216,">0",I205:I216), IF(FORECAST($C202,I$205:I$216,$C$205:$C$216)<0,0, IF(FORECAST($C202,I$205:I$216,$C$205:$C$216)>100,100, FORECAST($C202,I$205:I$216,$C$205:$C$216)))) -> 99.22449231 | M202: =IF(MAX(C205:C216)-MIN(C205:C216)<5,AVERAGEIF(C205:C216,">0",M205:M216), IF(FORECAST($C202,M$205:M$216,$C$205:$C$216)<0,0, IF(FORECAST($C202,M$205:M$216,$C$205:$C$216)>100,100, FORECAST($C202,M$205:M$216,$C$205:$C$216)))) -> 0 | N202: =IF(MAX(C205:C216)-MIN(C205:C216)<5,AVERAGEIF(C205:C216,">0",N205:N216), IF(FORECAST($C202,N$205:N$216,$C$205:$C$216)<0,0, IF(FORECAST($C202,N$205:N$216,$C$205:$C$216)>100,100, FORECAST($C202,N$205:N$216,$C$205:$C$216)))) -> 99.22927213 | R202: =IF(MAX(C205:C216)-MIN(C205:C216)<5,AVERAGEIF(C205:C216,">0",R205:R216), IF(FORECAST($C202,R$205:R$216,$C$205:$C$216)<0,0, IF(FORECAST($C202,R$205:R$216,$C$205:$C$216)>100,100, FORECAST($C202,R$205:R$216,$C$205:$C$216)))) -> 2.083746372 | S202: =IF(MAX(C205:C216)-MIN(C205:C216)<5,AVERAGEIF(C205:C216,">0",S205:S216), IF(FORECAST($C202,S$205:S$216,$C$205:$C$216)<0,0, IF(FORECAST($C202,S$205:S$216,$C$205:$C$216)>100,100, FORECAST($C202,S$205:S$216,$C$205:$C$216)))) -> 99.6932805 | W202: =IF(MAX(C205:C216)-MIN(C205:C216)<5,AVERAGEIF(C205:C216,">0",W205:W216), IF(FORECAST($C202,W$205:W$216,$C$205:$C$216)<0,0, IF(FORECAST($C202,W$205:W$216,$C$205:$C$216)>100,100, FORECAST($C202,W$205:W$216,$C$205:$C$216)))) -> 1.3319621 | X202: =IF(MAX(C205:C216)-MIN(C205:C216)<5,AVERAGEIF(C205:C216,">0",X205:X216), IF(FORECAST($C202,X$205:X$216,$C$205:$C$216)<0,0, IF(FORECAST($C202,X$205:X$216,$C$205:$C$216)>100,100, FORECAST($C202,X$205:X$216,$C$205:$C$216)))) -> 100 | AB202: =IF(MAX(C205:C216)-MIN(C205:C216)<5,AVERAGEIF(C205:C216,">0",AB205:AB216), IF(FORECAST($C202,AB$205:AB$216,$C$205:$C$216)<0,0, IF(FORECAST($C202,AB$205:AB$216,$C$205:$C$216)>100,100, FORECAST($C202,AB$205:AB$216,$C$205:$C$216)))) -> 0
B204: Survey | C204: Year | D204: Improved | E204: % Improved < = 30min | H204: Surface water | I204: Improved | J204: % Improved < = 30min | M204: Surface water | N204: Improved | O204: % Improved < = 30min | R204: Surface water | S204: Improved | T204: % Improved < = 30min | W204: Surface water | X204: Improved | Y204: % Improved < = 30min | AB204: Surface water
B205: MICS00 | C205: 2000 | D205: =IF(ISERROR(INDIRECT(CONCATENATE($B205,"!H16"))),"",INDIRECT(CONCATENATE($B205,"!H16"))) -> 83.75893769 | E205: =IF(ISERROR(INDIRECT(CONCATENATE($B205,"!H23"))),"",INDIRECT(CONCATENATE($B205,"!H23"))) -> 94.9 | H205: =IF(ISERROR(INDIRECT(CONCATENATE($B205,"!H21"))),"",INDIRECT(CONCATENATE($B205,"!H21"))) -> 8.102564103 | I205: =IF(ISERROR(INDIRECT(CONCATENATE($B205,"!I16"))),"",INDIRECT(CONCATENATE($B205,"!I16"))) -> 82.05912334 | J205: =IF(ISERROR(INDIRECT(CONCATENATE($B205,"!I23"))),"",INDIRECT(CONCATENATE($B205,"!I23"))) -> 98 | M205: =IF(ISERROR(INDIRECT(CONCATENATE($B205,"!I21"))),"",INDIRECT(CONCATENATE($B205,"!I21"))) -> 11.6255144 | N205: =IF(ISERROR(INDIRECT(CONCATENATE($B205,"!J16"))),"",INDIRECT(CONCATENATE($B205,"!J16"))) -> 92.90060852 | O205: =IF(ISERROR(INDIRECT(CONCATENATE($B205,"!J23"))),"",INDIRECT(CONCATENATE($B205,"!J23"))) -> 97.9 | R205: =IF(ISERROR(INDIRECT(CONCATENATE($B205,"!J21"))),"",INDIRECT(CONCATENATE($B205,"!J21"))) -> 1.121304791 | S205: =IF(ISERROR(INDIRECT(CONCATENATE($B205,"!K16"))),"",INDIRECT(CONCATENATE($B205,"!K16"))) -> 94.69928644 | T205: =IF(ISERROR(INDIRECT(CONCATENATE($B205,"!K23"))),"",INDIRECT(CONCATENATE($B205,"!K23"))) -> 100 | W205: =IF(ISERROR(INDIRECT(CONCATENATE($B205,"!K21"))),"",INDIRECT(CONCATENATE($B205,"!K21"))) -> 2.038735984 | X205: =IF(ISERROR(INDIRECT(CONCATENATE($B205,"!L16"))),"",INDIRECT(CONCATENATE($B205,"!L16"))) -> 94.59734964 | Y205: =IF(ISERROR(INDIRECT(CONCATENATE($B205,"!L23"))),"",INDIRECT(CONCATENATE($B205,"!L23"))) -> 100 | AB205: =IF(ISERROR(INDIRECT(CONCATENATE($B205,"!L221"))),"",INDIRECT(CONCATENATE($B205,"!L21"))) -> 2.956167176
B206: DHS07 | C206: 2007 | D206: 79.69214593 | E206: 98.4 | H206: 7.001661542 | I206: 90.13014622 | J206: 98.4 | M206: 2.618891274 | N206: 98.54063701 | O206: 99.8 | R206: 0.4932495501 | S206: 98.21701944 | T206: 99.7 | W206: 1.241460508 | X206: 100 | Y206: 100 | AB206: 0
B207: MICS10 | C207: 2010 | D207: 79.57629203 | E207: 96.5 | H207: 17.50233148 | I207: 89.55933545 | J207: 97.7 | M207: 6.330769199 | N207: 96.2950727 | O207: 100 | R207: 2.681946287 | S207: 97.62651889 | T207: 99.7 | W207: 2.177194708 | X207: 97.57517752 | Y207: 99.9 | AB207: 0.7290607199
B208: MICS14 | C208: 2014 | D208: 85.7757968 | E208: 99.9 | H208: 6.120528008 | I208: 98.79246675 | J208: 100 | M208: 0.9985968202 | N208: 98.02246924 | O208: 98.7 | R208: 1.681281041 | S208: 98.83784034 | T208: 99.1 | W208: 1.2119182 | X208: 100 | Y208: 100 | AB208: 0
B218: =CONCATENATE("Urban use of drinking water sources, ",C199,"–",C200) -> Urban use of drinking water sources, 2000–2020 | S218: Data points used for regression
E253: =IF(ISERROR(INDIRECT(CONCATENATE($B253,"!M18"))),"",INDIRECT(CONCATENATE($B253,"!M18"))) ->  | F253: =IF(ISERROR(INDIRECT(CONCATENATE($B253,"!M19"))),"",INDIRECT(CONCATENATE($B253,"!M19"))) ->  | G253: =IF(ISERROR(INDIRECT(CONCATENATE($B253,"!M20"))),"",INDIRECT(CONCATENATE($B253,"!M20"))) ->  | H253: =IF(ISERROR(INDIRECT(CONCATENATE($B253,"!M21"))),"",INDIRECT(CONCATENATE($B253,"!M21"))) ->  | J253: =IF(ISERROR(INDIRECT(CONCATENATE($B253,"!N18"))),"",INDIRECT(CONCATENATE($B253,"!N18"))) ->  | K253: =IF(ISERROR(INDIRECT(CONCATENATE($B253,"!N19"))),"",INDIRECT(CONCATENATE($B253,"!N19"))) ->  | L253: =IF(ISERROR(INDIRECT(CONCATENATE($B253,"!N20"))),"",INDIRECT(CONCATENATE($B253,"!N20"))) ->  | M253: =IF(ISERROR(INDIRECT(CONCATENATE($B253,"!N21"))),"",INDIRECT(CONCATENATE($B253,"!N21"))) ->  | O253: =IF(ISERROR(INDIRECT(CONCATENATE($B253,"!O18"))),"",INDIRECT(CONCATENATE($B253,"!O18"))) ->  | P253: =IF(ISERROR(INDIRECT(CONCATENATE($B253,"!O19"))),"",INDIRECT(CONCATENATE($B253,"!O19"))) ->  | Q253: =IF(ISERROR(INDIRECT(CONCATENATE($B253,"!O20"))),"",INDIRECT(CONCATENATE($B253,"!O20"))) ->  | R253: =IF(ISERROR(INDIRECT(CONCATENATE($B253,"!O21"))),"",INDIRECT(CONCATENATE($B253,"!O21"))) ->  | T253: =IF(ISERROR(INDIRECT(CONCATENATE($B253,"!P18"))),"",INDIRECT(CONCATENATE($B253,"!P18"))) ->  | U253: =IF(ISERROR(INDIRECT(CONCATENATE($B253,"!P19"))),"",INDIRECT(CONCATENATE($B253,"!P19"))) ->  | V253: =IF(ISERROR(INDIRECT(CONCATENATE($B253,"!P20"))),"",INDIRECT(CONCATENATE($B253,"!P20"))) ->  | W253: =IF(ISERROR(INDIRECT(CONCATENATE($B253,"!P21"))),"",INDIRECT(CONCATENATE($B253,"!P21"))) ->  | Y253: =IF(ISERROR(INDIRECT(CONCATENATE($B253,"!Q18"))),"",INDIRECT(CONCATENATE($B253,"!Q18"))) ->  | Z253: =IF(ISERROR(INDIRECT(CONCATENATE($B253,"!Q19"))),"",INDIRECT(CONCATENATE($B253,"!Q19"))) ->  | AA253: =IF(ISERROR(INDIRECT(CONCATENATE($B253,"!Q20"))),"",INDIRECT(CONCATENATE($B253,"!Q20"))) ->  | AB253: =IF(ISERROR(INDIRECT(CONCATENATE($B253,"!Q21"))),"",INDIRECT(CONCATENATE($B253,"!Q1"))) -> 
E254: =IF(ISERROR(INDIRECT(CONCATENATE($B254,"!M18"))),"",INDIRECT(CONCATENATE($B254,"!M18"))) ->  | F254: =IF(ISERROR(INDIRECT(CONCATENATE($B254,"!M19"))),"",INDIRECT(CONCATENATE($B254,"!M19"))) ->  | G254: =IF(ISERROR(INDIRECT(CONCATENATE($B254,"!M20"))),"",INDIRECT(CONCATENATE($B254,"!M20"))) ->  | H254: =IF(ISERROR(INDIRECT(CONCATENATE($B254,"!M21"))),"",INDIRECT(CONCATENATE($B254,"!M21"))) ->  | J254: =IF(ISERROR(INDIRECT(CONCATENATE($B254,"!N18"))),"",INDIRECT(CONCATENATE($B254,"!N18"))) ->  | K254: =IF(ISERROR(INDIRECT(CONCATENATE($B254,"!N19"))),"",INDIRECT(CONCATENATE($B254,"!N19"))) ->  | L254: =IF(ISERROR(INDIRECT(CONCATENATE($B254,"!N20"))),"",INDIRECT(CONCATENATE($B254,"!N20"))) ->  | M254: =IF(ISERROR(INDIRECT(CONCATENATE($B254,"!N21"))),"",INDIRECT(CONCATENATE($B254,"!N21"))) ->  | O254: =IF(ISERROR(INDIRECT(CONCATENATE($B254,"!O18"))),"",INDIRECT(CONCATENATE($B254,"!O18"))) ->  | P254: =IF(ISERROR(INDIRECT(CONCATENATE($B254,"!O19"))),"",INDIRECT(CONCATENATE($B254,"!O19"))) ->  | Q254: =IF(ISERROR(INDIRECT(CONCATENATE($B254,"!O20"))),"",INDIRECT(CONCATENATE($B254,"!O20"))) ->  | R254: =IF(ISERROR(INDIRECT(CONCATENATE($B254,"!O21"))),"",INDIRECT(CONCATENATE($B254,"!O21"))) ->  | T254: =IF(ISERROR(INDIRECT(CONCATENATE($B254,"!P18"))),"",INDIRECT(CONCATENATE($B254,"!P18"))) ->  | U254: =IF(ISERROR(INDIRECT(CONCATENATE($B254,"!P19"))),"",INDIRECT(CONCATENATE($B254,"!P19"))) ->  | V254: =IF(ISERROR(INDIRECT(CONCATENATE($B254,"!P20"))),"",INDIRECT(CONCATENATE($B254,"!P20"))) ->  | W254: =IF(ISERROR(INDIRECT(CONCATENATE($B254,"!P21"))),"",INDIRECT(CONCATENATE($B254,"!P21"))) ->  | Y254: =IF(ISERROR(INDIRECT(CONCATENATE($B254,"!Q18"))),"",INDIRECT(CONCATENATE($B254,"!Q18"))) ->  | Z254: =IF(ISERROR(INDIRECT(CONCATENATE($B254,"!Q19"))),"",INDIRECT(CONCATENATE($B254,"!Q19"))) ->  | AA254: =IF(ISERROR(INDIRECT(CONCATENATE($B254,"!Q20"))),"",INDIRECT(CONCATENATE($B254,"!Q20"))) ->  | AB254: =IF(ISERROR(INDIRECT(CONCATENATE($B254,"!Q21"))),"",INDIRECT(CONCATENATE($B254,"!Q1"))) -> 
E255: =IF(ISERROR(INDIRECT(CONCATENATE($B255,"!M18"))),"",INDIRECT(CONCATENATE($B255,"!M18"))) ->  | F255: =IF(ISERROR(INDIRECT(CONCATENATE($B255,"!M19"))),"",INDIRECT(CONCATENATE($B255,"!M19"))) ->  | G255: =IF(ISERROR(INDIRECT(CONCATENATE($B255,"!M20"))),"",INDIRECT(CONCATENATE($B255,"!M20"))) ->  | H255: =IF(ISERROR(INDIRECT(CONCATENATE($B255,"!M21"))),"",INDIRECT(CONCATENATE($B255,"!M21"))) ->  | J255: =IF(ISERROR(INDIRECT(CONCATENATE($B255,"!N18"))),"",INDIRECT(CONCATENATE($B255,"!N18"))) ->  | K255: =IF(ISERROR(INDIRECT(CONCATENATE($B255,"!N19"))),"",INDIRECT(CONCATENATE($B255,"!N19"))) ->  | L255: =IF(ISERROR(INDIRECT(CONCATENATE($B255,"!N20"))),"",INDIRECT(CONCATENATE($B255,"!N20"))) ->  | M255: =IF(ISERROR(INDIRECT(CONCATENATE($B255,"!N21"))),"",INDIRECT(CONCATENATE($B255,"!N21"))) ->  | O255: =IF(ISERROR(INDIRECT(CONCATENATE($B255,"!O18"))),"",INDIRECT(CONCATENATE($B255,"!O18"))) ->  | P255: =IF(ISERROR(INDIRECT(CONCATENATE($B255,"!O19"))),"",INDIRECT(CONCATENATE($B255,"!O19"))) ->  | Q255: =IF(ISERROR(INDIRECT(CONCATENATE($B255,"!O20"))),"",INDIRECT(CONCATENATE($B255,"!O20"))) ->  | R255: =IF(ISERROR(INDIRECT(CONCATENATE($B255,"!O21"))),"",INDIRECT(CONCATENATE($B255,"!O21"))) ->  | T255: =IF(ISERROR(INDIRECT(CONCATENATE($B255,"!P18"))),"",INDIRECT(CONCATENATE($B255,"!P18"))) ->  | U255: =IF(ISERROR(INDIRECT(CONCATENATE($B255,"!P19"))),"",INDIRECT(CONCATENATE($B255,"!P19"))) ->  | V255: =IF(ISERROR(INDIRECT(CONCATENATE($B255,"!P20"))),"",INDIRECT(CONCATENATE($B255,"!P20"))) ->  | W255: =IF(ISERROR(INDIRECT(CONCATENATE($B255,"!P21"))),"",INDIRECT(CONCATENATE($B255,"!P21"))) ->  | Y255: =IF(ISERROR(INDIRECT(CONCATENATE($B255,"!Q18"))),"",INDIRECT(CONCATENATE($B255,"!Q18"))) ->  | Z255: =IF(ISERROR(INDIRECT(CONCATENATE($B255,"!Q19"))),"",INDIRECT(CONCATENATE($B255,"!Q19"))) ->  | AA255: =IF(ISERROR(INDIRECT(CONCATENATE($B255,"!Q20"))),"",INDIRECT(CONCATENATE($B255,"!Q20"))) ->  | AB255: =IF(ISERROR(INDIRECT(CONCATENATE($B255,"!Q21"))),"",INDIRECT(CONCATENATE($B255,"!Q1"))) -> 
E256: =IF(ISERROR(INDIRECT(CONCATENATE($B256,"!M18"))),"",INDIRECT(CONCATENATE($B256,"!M18"))) ->  | F256: =IF(ISERROR(INDIRECT(CONCATENATE($B256,"!M19"))),"",INDIRECT(CONCATENATE($B256,"!M19"))) ->  | G256: =IF(ISERROR(INDIRECT(CONCATENATE($B256,"!M20"))),"",INDIRECT(CONCATENATE($B256,"!M20"))) ->  | H256: =IF(ISERROR(INDIRECT(CONCATENATE($B256,"!M21"))),"",INDIRECT(CONCATENATE($B256,"!M21"))) ->  | J256: =IF(ISERROR(INDIRECT(CONCATENATE($B256,"!N18"))),"",INDIRECT(CONCATENATE($B256,"!N18"))) ->  | K256: =IF(ISERROR(INDIRECT(CONCATENATE($B256,"!N19"))),"",INDIRECT(CONCATENATE($B256,"!N19"))) ->  | L256: =IF(ISERROR(INDIRECT(CONCATENATE($B256,"!N20"))),"",INDIRECT(CONCATENATE($B256,"!N20"))) ->  | M256: =IF(ISERROR(INDIRECT(CONCATENATE($B256,"!N21"))),"",INDIRECT(CONCATENATE($B256,"!N21"))) ->  | O256: =IF(ISERROR(INDIRECT(CONCATENATE($B256,"!O18"))),"",INDIRECT(CONCATENATE($B256,"!O18"))) ->  | P256: =IF(ISERROR(INDIRECT(CONCATENATE($B256,"!O19"))),"",INDIRECT(CONCATENATE($B256,"!O19"))) ->  | Q256: =IF(ISERROR(INDIRECT(CONCATENATE($B256,"!O20"))),"",INDIRECT(CONCATENATE($B256,"!O20"))) ->  | R256: =IF(ISERROR(INDIRECT(CONCATENATE($B256,"!O21"))),"",INDIRECT(CONCATENATE($B256,"!O21"))) ->  | T256: =IF(ISERROR(INDIRECT(CONCATENATE($B256,"!P18"))),"",INDIRECT(CONCATENATE($B256,"!P18"))) ->  | U256: =IF(ISERROR(INDIRECT(CONCATENATE($B256,"!P19"))),"",INDIRECT(CONCATENATE($B256,"!P19"))) ->  | V256: =IF(ISERROR(INDIRECT(CONCATENATE($B256,"!P20"))),"",INDIRECT(CONCATENATE($B256,"!P20"))) ->  | W256: =IF(ISERROR(INDIRECT(CONCATENATE($B256,"!P21"))),"",INDIRECT(CONCATENATE($B256,"!P21"))) ->  | Y256: =IF(ISERROR(INDIRECT(CONCATENATE($B256,"!Q18"))),"",INDIRECT(CONCATENATE($B256,"!Q18"))) ->  | Z256: =IF(ISERROR(INDIRECT(CONCATENATE($B256,"!Q19"))),"",INDIRECT(CONCATENATE($B256,"!Q19"))) ->  | AA256: =IF(ISERROR(INDIRECT(CONCATENATE($B256,"!Q20"))),"",INDIRECT(CONCATENATE($B256,"!Q20"))) ->  | AB256: =IF(ISERROR(INDIRECT(CONCATENATE($B256,"!Q21"))),"",INDIRECT(CONCATENATE($B256,"!Q1"))) -> 
E257: =IF(ISERROR(INDIRECT(CONCATENATE($B257,"!M18"))),"",INDIRECT(CONCATENATE($B257,"!M18"))) ->  | F257: =IF(ISERROR(INDIRECT(CONCATENATE($B257,"!M19"))),"",INDIRECT(CONCATENATE($B257,"!M19"))) ->  | G257: =IF(ISERROR(INDIRECT(CONCATENATE($B257,"!M20"))),"",INDIRECT(CONCATENATE($B257,"!M20"))) ->  | H257: =IF(ISERROR(INDIRECT(CONCATENATE($B257,"!M21"))),"",INDIRECT(CONCATENATE($B257,"!M21"))) ->  | J257: =IF(ISERROR(INDIRECT(CONCATENATE($B257,"!N18"))),"",INDIRECT(CONCATENATE($B257,"!N18"))) ->  | K257: =IF(ISERROR(INDIRECT(CONCATENATE($B257,"!N19"))),"",INDIRECT(CONCATENATE($B257,"!N19"))) ->  | L257: =IF(ISERROR(INDIRECT(CONCATENATE($B257,"!N20"))),"",INDIRECT(CONCATENATE($B257,"!N20"))) ->  | M257: =IF(ISERROR(INDIRECT(CONCATENATE($B257,"!N21"))),"",INDIRECT(CONCATENATE($B257,"!N21"))) ->  | O257: =IF(ISERROR(INDIRECT(CONCATENATE($B257,"!O18"))),"",INDIRECT(CONCATENATE($B257,"!O18"))) ->  | P257: =IF(ISERROR(INDIRECT(CONCATENATE($B257,"!O19"))),"",INDIRECT(CONCATENATE($B257,"!O19"))) ->  | Q257: =IF(ISERROR(INDIRECT(CONCATENATE($B257,"!O20"))),"",INDIRECT(CONCATENATE($B257,"!O20"))) ->  | R257: =IF(ISERROR(INDIRECT(CONCATENATE($B257,"!O21"))),"",INDIRECT(CONCATENATE($B257,"!O21"))) ->  | T257: =IF(ISERROR(INDIRECT(CONCATENATE($B257,"!P18"))),"",INDIRECT(CONCATENATE($B257,"!P18"))) ->  | U257: =IF(ISERROR(INDIRECT(CONCATENATE($B257,"!P19"))),"",INDIRECT(CONCATENATE($B257,"!P19"))) ->  | V257: =IF(ISERROR(INDIRECT(CONCATENATE($B257,"!P20"))),"",INDIRECT(CONCATENATE($B257,"!P20"))) ->  | W257: =IF(ISERROR(INDIRECT(CONCATENATE($B257,"!P21"))),"",INDIRECT(CONCATENATE($B257,"!P21"))) ->  | Y257: =IF(ISERROR(INDIRECT(CONCATENATE($B257,"!Q18"))),"",INDIRECT(CONCATENATE($B257,"!Q18"))) ->  | Z257: =IF(ISERROR(INDIRECT(CONCATENATE($B257,"!Q19"))),"",INDIRECT(CONCATENATE($B257,"!Q19"))) ->  | AA257: =IF(ISERROR(INDIRECT(CONCATENATE($B257,"!Q20"))),"",INDIRECT(CONCATENATE($B257,"!Q20"))) ->  | AB257: =IF(ISERROR(INDIRECT(CONCATENATE($B257,"!Q21"))),"",INDIRECT(CONCATENATE($B257,"!Q1"))) -> 
A297: RURAL | D297: Poorest | I297: Poor | N297: Middle | S297: Rich | X297: Richest
D298: Improved | E298: Basic | F298: Limited | G298: Unimproved | H298: Surface water | I298: Improved | J298: Basic | K298: Limited | L298: Unimproved | M298: Surface water | N298: Improved | O298: Basic | P298: Limited | Q298: Unimproved | R298: Surface water | S298: Improved | T298: Basic | U298: Limited | V298: Unimproved | W298: Surface water | X298: Improved | Y298: Basic | Z298: Limited | AA298: Unimproved | AB298: Surface water
A299: Forecast period: | C299: 2000 | D299: =IF((D301+H301)>100,D301*100/(D301+H301),D301) -> 27.85873984 | E299: =D299*AVERAGEIF(E305:E316,">0")/100 -> 21.57659401 | F299: =D299*(100-AVERAGEIF(E305:E316,">0"))/100 -> 6.282145835 | G299: =100-(E299+F299+H299) -> 21.12619063 | H299: =IF((D301+H301)>100,H301*100/(D301+H301),H301) -> 51.01506953 | I299: =IF((I301+M301)>100,I301*100/(I301+M301),I301) -> 35.1845891 | J299: =I299*AVERAGEIF(J305:J316,">0")/100 -> 30.47865031 | K299: =I299*(100-AVERAGEIF(J305:J316,">0"))/100 -> 4.705938792 | L299: =100-(J299+K299+M299) -> 16.69329629 | M299: =IF((I301+M301)>100,M301*100/(I301+M301),M301) -> 48.12211462 | N299: =IF((N301+R301)>100,N301*100/(N301+R301),N301) -> 41.85315369 | O299: =N299*AVERAGEIF(O305:O316,">0")/100 -> 37.19699034 | P299: =N299*(100-AVERAGEIF(O305:O316,">0"))/100 -> 4.656163348 | Q299: =100-(O299+P299+R299) -> 20.26875681 | R299: =IF((N301+R301)>100,R301*100/(N301+R301),R301) -> 37.8780895 | S299: =IF((S301+W301)>100,S301*100/(S301+W301),S301) -> 45.03645869 | T299: =S299*AVERAGEIF(T305:T316,">0")/100 -> 40.64540396 | U299: =S299*(100-AVERAGEIF(T305:T316,">0"))/100 -> 4.391054722 | V299: =100-(T299+U299+W299) -> 20.50673733 | W299: =IF((S301+W301)>100,W301*100/(S301+W301),W301) -> 34.45680398 | X299: =IF((X301+AB301)>100,X301*100/(X301+AB301),X301) -> 68.81341088 | Y299: =X299*AVERAGEIF(Y305:Y316,">0")/100 -> 65.61358727 | Z299: =X299*(100-AVERAGEIF(Y305:Y316,">0"))/100 -> 3.199823606 | AA299: =100-(Y299+Z299+AB299) -> 14.12624254 | AB299: =IF((X301+AB301)>100,AB301*100/(X301+AB301),AB301) -> 17.06034659
C300: 2020 | D300: =IF((D302+H302)>100,D302*100/(D302+H302),D302) -> 54.08649924 | E300: =D300*AVERAGEIF(E305:E316,">0")/100 -> 41.88999366 | F300: =D300*(100-AVERAGEIF(E305:E316,">0"))/100 -> 12.19650558 | G300: =100-(E300+F300+H300) -> 17.16288515 | H300: =IF((D302+H302)>100,H302*100/(D302+H302),H302) -> 28.75061562 | I300: =IF((I302+M302)>100,I302*100/(I302+M302),I302) -> 68.39145387 | J300: =I300*AVERAGEIF(J305:J316,">0")/100 -> 59.24409691 | K300: =I300*(100-AVERAGEIF(J305:J316,">0"))/100 -> 9.147356955 | L300: =100-(J300+K300+M300) -> 14.71445247 | M300: =IF((I302+M302)>100,M302*100/(I302+M302),M302) -> 16.89409367 | N300: =IF((N302+R302)>100,N302*100/(N302+R302),N302) -> 66.01316608 | O300: =N300*AVERAGEIF(O305:O316,">0")/100 -> 58.66920136 | P300: =N300*(100-AVERAGEIF(O305:O316,">0"))/100 -> 7.343964727 | Q300: =100-(O300+P300+R300) -> 10.91437032 | R300: =IF((N302+R302)>100,R302*100/(N302+R302),R302) -> 23.0724636 | S300: =IF((S302+W302)>100,S302*100/(S302+W302),S302) -> 78.04192653 | T300: =S300*AVERAGEIF(T305:T316,">0")/100 -> 70.4328387 | U300: =S300*(100-AVERAGEIF(T305:T316,">0"))/100 -> 7.609087837 | V300: =100-(T300+U300+W300) -> 7.285374128 | W300: =IF((S302+W302)>100,W302*100/(S302+W302),W302) -> 14.67269934 | X300: =IF((X302+AB302)>100,X302*100/(X302+AB302),X302) -> 94.23207362 | Y300: =X300*AVERAGEIF(Y305:Y316,">0")/100 -> 89.85028219 | Z300: =X300*(100-AVERAGEIF(Y305:Y316,">0"))/100 -> 4.381791423 | AA300: =100-(Y300+Z300+AB300) -> 2.217168377 | AB300: =IF((X302+AB302)>100,AB302*100/(X302+AB302),AB302) -> 3.550758005
A301: Regression period: | C301: =MinRegYear(C299,C305:C316) -> 2000 | D301: =IF(MAX(C305:C316)-MIN(C305:C316)<5,AVERAGEIF(C305:C316,">0",D305:D316), IF(FORECAST($C301,D$305:D$316,$C$305:$C$316)<0,0, IF(FORECAST($C301,D$305:D$316,$C$305:$C$316)>100,100, FORECAST($C301,D$305:D$316,$C$305:$C$316)))) -> 27.85873984 | H301: =IF(MAX(C305:C316)-MIN(C305:C316)<5,AVERAGEIF(C305:C316,">0",H305:H316), IF(FORECAST($C301,H$305:H$316,$C$305:$C$316)<0,0, IF(FORECAST($C301,H$305:H$316,$C$305:$C$316)>100,100, FORECAST($C301,H$305:H$316,$C$305:$C$316)))) -> 51.01506953 | I301: =IF(MAX(C305:C316)-MIN(C305:C316)<5,AVERAGEIF(C305:C316,">0",I305:I316), IF(FORECAST($C301,I$305:I$316,$C$305:$C$316)<0,0, IF(FORECAST($C301,I$305:I$316,$C$305:$C$316)>100,100, FORECAST($C301,I$305:I$316,$C$305:$C$316)))) -> 35.1845891 | M301: =IF(MAX(C305:C316)-MIN(C305:C316)<5,AVERAGEIF(C305:C316,">0",M305:M316), IF(FORECAST($C301,M$305:M$316,$C$305:$C$316)<0,0, IF(FORECAST($C301,M$305:M$316,$C$305:$C$316)>100,100, FORECAST($C301,M$305:M$316,$C$305:$C$316)))) -> 48.12211462 | N301: =IF(MAX(C305:C316)-MIN(C305:C316)<5,AVERAGEIF(C305:C316,">0",N305:N316), IF(FORECAST($C301,N$305:N$316,$C$305:$C$316)<0,0, IF(FORECAST($C301,N$305:N$316,$C$305:$C$316)>100,100, FORECAST($C301,N$305:N$316,$C$305:$C$316)))) -> 41.85315369 | R301: =IF(MAX(C305:C316)-MIN(C305:C316)<5,AVERAGEIF(C305:C316,">0",R305:R316), IF(FORECAST($C301,R$305:R$316,$C$305:$C$316)<0,0, IF(FORECAST($C301,R$305:R$316,$C$305:$C$316)>100,100, FORECAST($C301,R$305:R$316,$C$305:$C$316)))) -> 37.8780895 | S301: =IF(MAX(C305:C316)-MIN(C305:C316)<5,AVERAGEIF(C305:C316,">0",S305:S316), IF(FORECAST($C301,S$305:S$316,$C$305:$C$316)<0,0, IF(FORECAST($C301,S$305:S$316,$C$305:$C$316)>100,100, FORECAST($C301,S$305:S$316,$C$305:$C$316)))) -> 45.03645869 | W301: =IF(MAX(C305:C316)-MIN(C305:C316)<5,AVERAGEIF(C305:C316,">0",W305:W316), IF(FORECAST($C301,W$305:W$316,$C$305:$C$316)<0,0, IF(FORECAST($C301,W$305:W$316,$C$305:$C$316)>100,100, FORECAST($C301,W$305:W$316,$C$305:$C$316)))) -> 34.45680398 | X301: =IF(MAX(C305:C316)-MIN(C305:C316)<5,AVERAGEIF(C305:C316,">0",X305:X316), IF(FORECAST($C301,X$305:X$316,$C$305:$C$316)<0,0, IF(FORECAST($C301,X$305:X$316,$C$305:$C$316)>100,100, FORECAST($C301,X$305:X$316,$C$305:$C$316)))) -> 68.81341088 | AB301: =IF(MAX(C305:C316)-MIN(C305:C316)<5,AVERAGEIF(C305:C316,">0",AB305:AB316), IF(FORECAST($C301,AB$305:AB$316,$C$305:$C$316)<0,0, IF(FORECAST($C301,AB$305:AB$316,$C$305:$C$316)>100,100, FORECAST($C301,AB$305:AB$316,$C$305:$C$316)))) -> 17.06034659
C302: =MaxRegYear(C300,C305:C316) -> 2016 | D302: =IF(MAX(C305:C316)-MIN(C305:C316)<5,AVERAGEIF(C305:C316,">0",D305:D316), IF(FORECAST($C302,D$305:D$316,$C$305:$C$316)<0,0, IF(FORECAST($C302,D$305:D$316,$C$305:$C$316)>100,100, FORECAST($C302,D$305:D$316,$C$305:$C$316)))) -> 54.08649924 | H302: =IF(MAX(C305:C316)-MIN(C305:C316)<5,AVERAGEIF(C305:C316,">0",H305:H316), IF(FORECAST($C302,H$305:H$316,$C$305:$C$316)<0,0, IF(FORECAST($C302,H$305:H$316,$C$305:$C$316)>100,100, FORECAST($C302,H$305:H$316,$C$305:$C$316)))) -> 28.75061562 | I302: =IF(MAX(C305:C316)-MIN(C305:C316)<5,AVERAGEIF(C305:C316,">0",I305:I316), IF(FORECAST($C302,I$305:I$316,$C$305:$C$316)<0,0, IF(FORECAST($C302,I$305:I$316,$C$305:$C$316)>100,100, FORECAST($C302,I$305:I$316,$C$305:$C$316)))) -> 68.39145387 | M302: =IF(MAX(C305:C316)-MIN(C305:C316)<5,AVERAGEIF(C305:C316,">0",M305:M316), IF(FORECAST($C302,M$305:M$316,$C$305:$C$316)<0,0, IF(FORECAST($C302,M$305:M$316,$C$305:$C$316)>100,100, FORECAST($C302,M$305:M$316,$C$305:$C$316)))) -> 16.89409367 | N302: =IF(MAX(C305:C316)-MIN(C305:C316)<5,AVERAGEIF(C305:C316,">0",N305:N316), IF(FORECAST($C302,N$305:N$316,$C$305:$C$316)<0,0, IF(FORECAST($C302,N$305:N$316,$C$305:$C$316)>100,100, FORECAST($C302,N$305:N$316,$C$305:$C$316)))) -> 66.01316608 | R302: =IF(MAX(C305:C316)-MIN(C305:C316)<5,AVERAGEIF(C305:C316,">0",R305:R316), IF(FORECAST($C302,R$305:R$316,$C$305:$C$316)<0,0, IF(FORECAST($C302,R$305:R$316,$C$305:$C$316)>100,100, FORECAST($C302,R$305:R$316,$C$305:$C$316)))) -> 23.0724636 | S302: =IF(MAX(C305:C316)-MIN(C305:C316)<5,AVERAGEIF(C305:C316,">0",S305:S316), IF(FORECAST($C302,S$305:S$316,$C$305:$C$316)<0,0, IF(FORECAST($C302,S$305:S$316,$C$305:$C$316)>100,100, FORECAST($C302,S$305:S$316,$C$305:$C$316)))) -> 78.04192653 | W302: =IF(MAX(C305:C316)-MIN(C305:C316)<5,AVERAGEIF(C305:C316,">0",W305:W316), IF(FORECAST($C302,W$305:W$316,$C$305:$C$316)<0,0, IF(FORECAST($C302,W$305:W$316,$C$305:$C$316)>100,100, FORECAST($C302,W$305:W$316,$C$305:$C$316)))) -> 14.67269934 | X302: =IF(MAX(C305:C316)-MIN(C305:C316)<5,AVERAGEIF(C305:C316,">0",X305:X316), IF(FORECAST($C302,X$305:X$316,$C$305:$C$316)<0,0, IF(FORECAST($C302,X$305:X$316,$C$305:$C$316)>100,100, FORECAST($C302,X$305:X$316,$C$305:$C$316)))) -> 94.23207362 | AB302: =IF(MAX(C305:C316)-MIN(C305:C316)<5,AVERAGEIF(C305:C316,">0",AB305:AB316), IF(FORECAST($C302,AB$305:AB$316,$C$305:$C$316)<0,0, IF(FORECAST($C302,AB$305:AB$316,$C$305:$C$316)>100,100, FORECAST($C302,AB$305:AB$316,$C$305:$C$316)))) -> 3.550758005
B304: Survey | C304: Year | D304: Improved | E304: % Improved < = 30min | H304: Surface water | I304: Improved | J304: % Improved < = 30min | M304: Surface water | N304: Improved | O304: % Improved < = 30min | R304: Surface water | S304: Improved | T304: % Improved < = 30min | W304: Surface water | X304: Improved | Y304: % Improved < = 30min | AB304: Surface water
B305: MICS00 | C305: 2000 | D305: =IF(ISERROR(INDIRECT(CONCATENATE($B305,"!M16"))),"",INDIRECT(CONCATENATE($B305,"!M16"))) -> 27.6889134 | E305: =IF(ISERROR(INDIRECT(CONCATENATE($B305,"!M23"))),"",INDIRECT(CONCATENATE($B305,"!M23"))) -> 78.1 | H305: =IF(ISERROR(INDIRECT(CONCATENATE($B305,"!M21"))),"",INDIRECT(CONCATENATE($B305,"!M21"))) -> 53.08162132 | I305: =IF(ISERROR(INDIRECT(CONCATENATE($B305,"!N16"))),"",INDIRECT(CONCATENATE($B305,"!N16"))) -> 33.99829011 | J305: =IF(ISERROR(INDIRECT(CONCATENATE($B305,"!N23"))),"",INDIRECT(CONCATENATE($B305,"!N23"))) -> 88.3 | M305: =IF(ISERROR(INDIRECT(CONCATENATE($B305,"!N21"))),"",INDIRECT(CONCATENATE($B305,"!N21"))) -> 50.71674312 | N305: =IF(ISERROR(INDIRECT(CONCATENATE($B305,"!O16"))),"",INDIRECT(CONCATENATE($B305,"!O16"))) -> 38.27853515 | O305: =IF(ISERROR(INDIRECT(CONCATENATE($B305,"!O23"))),"",INDIRECT(CONCATENATE($B305,"!O23"))) -> 87.8 | R305: =IF(ISERROR(INDIRECT(CONCATENATE($B305,"!O21"))),"",INDIRECT(CONCATENATE($B305,"!O21"))) -> 41.64215031 | S305: =IF(ISERROR(INDIRECT(CONCATENATE($B305,"!P16"))),"",INDIRECT(CONCATENATE($B305,"!P16"))) -> 43.47826087 | T305: =IF(ISERROR(INDIRECT(CONCATENATE($B305,"!P23"))),"",INDIRECT(CONCATENATE($B305,"!P23"))) -> 86.8 | W305: =IF(ISERROR(INDIRECT(CONCATENATE($B305,"!P21"))),"",INDIRECT(CONCATENATE($B305,"!P21"))) -> 36.84649611 | X305: =IF(ISERROR(INDIRECT(CONCATENATE($B305,"!Q16"))),"",INDIRECT(CONCATENATE($B305,"!Q16"))) -> 68.72928177 | Y305: =IF(ISERROR(INDIRECT(CONCATENATE($B305,"!Q23"))),"",INDIRECT(CONCATENATE($B305,"!Q23"))) -> 92.4 | AB305: =IF(ISERROR(INDIRECT(CONCATENATE($B305,"!Q221"))),"",INDIRECT(CONCATENATE($B305,"!Q21"))) -> 17.51381215
B306: DHS07 | C306: 2007 | D306: 38.51767433 | E306: 78.9 | H306: 36.16809398 | I306: 49.96139714 | J306: 86.1 | M306: 28.21964555 | N306: 57.74898685 | O306: 88.7 | R306: 23.50026062 | S306: 61.30057719 | T306: 92.1 | W306: 20.74411415 | X306: 81.10143664 | Y306: 95.1 | AB306: 8.856723012
B307: MICS10 | C307: 2010 | D307: 46.27297494 | E307: 80.4 | H307: 38.80283923 | I307: 59.6555178 | J307: 81.5 | M307: 30.44376908 | N307: 60.14412776 | O307: 87.2 | R307: 29.2760037 | S307: 67.92617238 | T307: 89.1 | W307: 22.57781825 | X307: 82.95164555 | Y307: 95.3 | AB307: 11.04278673
B308: MICS14 | C308: 2014 | D308: 49.77168053 | E308: 72.4 | H308: 32.87034412 | I308: 61.46145183 | J308: 90.6 | M308: 22.60401012 | N308: 58.050989 | O308: 91.8 | R308: 28.40804319 | S308: 71.38891825 | T308: 93 | W308: 19.32708469 | X308: 91.71993861 | Y308: 98.6 | AB308: 4.653236574
B318: =CONCATENATE("Rural use of drinking water sources, ",C299,"–",C300) -> Rural use of drinking water sources, 2000–2020 | S318: Data points used for regression

Sheet Sanitation
B4: Summary of trends in use of sanitation facilities by wealth quintile (%)
B5: =IF(ISERROR(INDIRECT(CONCATENATE($B105,"!A2"))),"",INDIRECT(CONCATENATE($B105,"!A2"))) -> Eswatini
B7: =B118 -> National use of sanitation facilities, 2000–2020 | J7: =B218 -> Urban use of sanitation facilities, 2000–2020 | R7: =B318 -> Rural use of sanitation facilities, 2000–2020
B31: =IF(ISERROR(INDIRECT(CONCATENATE($B105,"!A2"))),"",INDIRECT(CONCATENATE($B105,"!A2"))) -> Eswatini | F31: Poorest | J31: Poor | N31: Middle | R31: Rich | V31: Richest
F32: Basic | G32: Limited | H32: Unimproved | I32: Open defecation | J32: Basic | K32: Limited | L32: Unimproved | M32: Open defecation | N32: Basic | O32: Limited | P32: Unimproved | Q32: Open defecation | R32: Basic | S32: Limited | T32: Unimproved | U32: Open defecation | V32: Basic | W32: Limited | X32: Unimproved | Y32: Open defecation
B33: NATIONAL | D33: Estimate | E33: =C99 -> 2000 | F33: =E99 -> 22.89175661 | G33: =F99 -> 8.161738578 | H33: 11.232332 | I33: 57.71417281 | J33: =J99 -> 38.70624541 | K33: =K99 -> 16.49386165 | L33: 6.986412179 | M33: 37.81348076 | N33: =O99 -> 48.52515109 | O33: =P99 -> 21.22622024 | P33: 7.466913872 | Q33: 22.78171479 | R33: =T99 -> 47.94822903 | S33: =U99 -> 36.00961738 | T33: 5.268807683 | U33: 10.77334591 | V33: =Y99 -> 64.4394745 | W33: =Z99 -> 33.57176431 | X33: 1.294213318 | Y33: 0.6945478675
E34: =C100 -> 2020 | F34: =E100 -> 41.78975488 | G34: 14.89955797 | H34: 10.9463991 | I34: 32.36428805 | J34: =J100 -> 56.24001683 | K34: 23.96551375 | L34: 8.198864452 | M34: 11.59560497 | N34: =O100 -> 63.88316558 | O34: 27.94423329 | P34: 5.555202462 | Q34: 2.617398672 | R34: =T100 -> 54.92761088 | S34: 41.25120555 | T34: 3.821183567 | U34: 0 | V34: =Y100 -> 63.37350249 | W34: 33.01641278 | X34: 3.377353229 | Y34: 0.232731504
B36: URBAN | D36: Estimate | E36: =C199 -> 2000 | F36: =E199 -> 17.34851849 | G36: =F199 -> 61.07947309 | H36: 13.59466487 | I36: 7.977343549 | J36: =J199 -> 34.74008958 | K36: =K199 -> 55.35428414 | L36: 5.078910347 | M36: 4.826715935 | N36: =O199 -> 44.61761624 | O36: =P199 -> 54.97678748 | P36: 0 | Q36: 0.4055962845 | R36: =T199 -> 62.3278254 | S36: =U199 -> 36.39214437 | T36: 0.9627601064 | U36: 0.317270118 | V36: =Y199 -> 86.97180089 | W36: =Z199 -> 13.02819911 | X36: 0 | Y36: 0
E37: =C200 -> 2020 | F37: =E200 -> 18.77299558 | G37: 66.09467428 | H37: 13.45258188 | I37: 1.679748253 | J37: =J200 -> 37.5197018 | K37: 59.78327227 | L37: 2.697025931 | M37: 0 | N37: =O200 -> 41.67371 | O37: 51.34937479 | P37: 6.618572607 | Q37: 0.3583426007 | R37: =T200 -> 62.42937786 | S37: 36.4514391 | T37: 0.8988517085 | U37: 0.2203313293 | V37: =Y200 -> 85.16387021 | W37: 12.75737476 | X37: 2.078755025 | Y37: 0
B39: RURAL | D39: Estimate | E39: =C299 -> 2000 | F39: =E299 -> 21.72083889 | G39: =F299 -> 7.364120633 | H39: 11.57968961 | I39: 59.33535087 | J39: =J299 -> 35.9753685 | K39: =K299 -> 12.22564018 | L39: 7.277351916 | M39: 44.52163941 | N39: =O299 -> 46.4700108 | O39: =P299 -> 16.86779301 | P39: 6.764977408 | Q39: 29.89721878 | R39: =T299 -> 53.98832808 | S39: =U299 -> 17.88151615 | T39: 6.388648473 | U39: 21.7415073 | V39: =Y299 -> 60.02017755 | W39: =Z299 -> 30.52329919 | X39: 4.302104505 | Y39: 5.154418756
E40: =C300 -> 2020 | F40: =E300 -> 39.25840319 | G40: 13.30996553 | H40: 10.40874114 | I40: 37.02289014 | J40: =J300 -> 54.47096693 | K40: 18.51106659 | L40: 9.356193122 | M40: 17.66177335 | N40: =O300 -> 62.20978873 | O40: 22.58105434 | P40: 8.017646485 | Q40: 7.19151044 | R40: =T300 -> 72.20874062 | S40: 23.91631316 | T40: 3.759646349 | U40: 0.1152998757 | V40: =Y300 -> 63.74109772 | W40: 32.41557549 | X40: 3.646384999 | Y40: 0.1969417875
A97: NATIONAL | D97: Poorest | I97: Poor | N97: Middle | S97: Rich | X97: Richest
D98: Improved | E98: Basic | F98: Limited | G98: Unimproved | H98: Open defecation | I98: Improved | J98: Basic | K98: Limited | L98: Unimproved | M98: Open defecation | N98: Improved | O98: Basic | P98: Limited | Q98: Unimproved | R98: Open defecation | S98: Improved | T98: Basic | U98: Limited | V98: Unimproved | W98: Open defecation | X98: Improved | Y98: Basic | Z98: Limited | AA98: Unimproved | AB98: Open defecation
A99: Forecast period: | C99: 2000 | D99: =IF((D101+H101)>100,D101*100/(D101+H101),D101) -> 31.05349519 | E99: =D99*AVERAGEIF(E105:E116,">0")/100 -> 22.89175661 | F99: =D99*(100-AVERAGEIF(E105:E116,">0"))/100 -> 8.161738578 | G99: =100-(E99+F99+H99) -> 11.232332 | H99: =IF((D101+H101)>100,H101*100/(D101+H101),H101) -> 57.71417281 | I99: =IF((I101+M101)>100,I101*100/(I101+M101),I101) -> 55.20010706 | J99: =I99*AVERAGEIF(J105:J116,">0")/100 -> 38.70624541 | K99: =I99*(100-AVERAGEIF(J105:J116,">0"))/100 -> 16.49386165 | L99: =100-(J99+K99+M99) -> 6.986412179 | M99: =IF((I101+M101)>100,M101*100/(I101+M101),M101) -> 37.81348076 | N99: =IF((N101+R101)>100,N101*100/(N101+R101),N101) -> 69.75137134 | O99: =N99*AVERAGEIF(O105:O116,">0")/100 -> 48.52515109 | P99: =N99*(100-AVERAGEIF(O105:O116,">0"))/100 -> 21.22622024 | Q99: =100-(O99+P99+R99) -> 7.466913872 | R99: =IF((N101+R101)>100,R101*100/(N101+R101),R101) -> 22.78171479 | S99: =IF((S101+W101)>100,S101*100/(S101+W101),S101) -> 83.9578464 | T99: =S99*AVERAGEIF(T105:T116,">0")/100 -> 47.94822903 | U99: =S99*(100-AVERAGEIF(T105:T116,">0"))/100 -> 36.00961738 | V99: =100-(T99+U99+W99) -> 5.268807683 | W99: =IF((S101+W101)>100,W101*100/(S101+W101),W101) -> 10.77334591 | X99: =IF((X101+AB101)>100,X101*100/(X101+AB101),X101) -> 98.01123881 | Y99: =X99*AVERAGEIF(Y105:Y116,">0")/100 -> 64.4394745 | Z99: =X99*(100-AVERAGEIF(Y105:Y116,">0"))/100 -> 33.57176431 | AA99: =100-(Y99+Z99+AB99) -> 1.294213318 | AB99: =IF((X101+AB101)>100,AB101*100/(X101+AB101),AB101) -> 0.6945478675
C100: 2020 | D100: =IF((D102+H102)>100,D102*100/(D102+H102),D102) -> 56.68931285 | E100: =D100*AVERAGEIF(E105:E116,">0")/100 -> 41.78975488 | F100: =D100*(100-AVERAGEIF(E105:E116,">0"))/100 -> 14.89955797 | G100: =100-(E100+F100+H100) -> 10.9463991 | H100: =IF((D102+H102)>100,H102*100/(D102+H102),H102) -> 32.36428805 | I100: =IF((I102+M102)>100,I102*100/(I102+M102),I102) -> 80.20553058 | J100: =I100*AVERAGEIF(J105:J116,">0")/100 -> 56.24001683 | K100: =I100*(100-AVERAGEIF(J105:J116,">0"))/100 -> 23.96551375 | L100: =100-(J100+K100+M100) -> 8.198864452 | M100: =IF((I102+M102)>100,M102*100/(I102+M102),M102) -> 11.59560497 | N100: =IF((N102+R102)>100,N102*100/(N102+R102),N102) -> 91.82739887 | O100: =N100*AVERAGEIF(O105:O116,">0")/100 -> 63.88316558 | P100: =N100*(100-AVERAGEIF(O105:O116,">0"))/100 -> 27.94423329 | Q100: =100-(O100+P100+R100) -> 5.555202462 | R100: =IF((N102+R102)>100,R102*100/(N102+R102),R102) -> 2.617398672 | S100: =IF((S102+W102)>100,S102*100/(S102+W102),S102) -> 96.17881643 | T100: =S100*AVERAGEIF(T105:T116,">0")/100 -> 54.92761088 | U100: =S100*(100-AVERAGEIF(T105:T116,">0"))/100 -> 41.25120555 | V100: =100-(T100+U100+W100) -> 3.821183567 | W100: =IF((S102+W102)>100,W102*100/(S102+W102),W102) -> 0 | X100: =IF((X102+AB102)>100,X102*100/(X102+AB102),X102) -> 96.38991527 | Y100: =X100*AVERAGEIF(Y105:Y116,">0")/100 -> 63.37350249 | Z100: =X100*(100-AVERAGEIF(Y105:Y116,">0"))/100 -> 33.01641278 | AA100: =100-(Y100+Z100+AB100) -> 3.377353229 | AB100: =IF((X102+AB102)>100,AB102*100/(X102+AB102),AB102) -> 0.232731504
A101: Regression period: | C101: =MinRegYear(C99,C105:C116) -> 2000 | D101: =IF(MAX(C105:C116)-MIN(C105:C116)<5,AVERAGEIF(C105:C116,">0",D105:D116), IF(FORECAST($C101,D$105:D$116,$C$105:$C$116)<0,0, IF(FORECAST($C101,D$105:D$116,$C$105:$C$116)>100,100, FORECAST($C101,D$105:D$116,$C$105:$C$116)))) -> 31.05349519 | H101: =IF(MAX(C105:C116)-MIN(C105:C116)<5,AVERAGEIF(C105:C116,">0",H105:H116), IF(FORECAST($C101,H$105:H$116,$C$105:$C$116)<0,0, IF(FORECAST($C101,H$105:H$116,$C$105:$C$116)>100,100, FORECAST($C101,H$105:H$116,$C$105:$C$116)))) -> 57.71417281 | I101: =IF(MAX(C105:C116)-MIN(C105:C116)<5,AVERAGEIF(C105:C116,">0",I105:I116), IF(FORECAST($C101,I$105:I$116,$C$105:$C$116)<0,0, IF(FORECAST($C101,I$105:I$116,$C$105:$C$116)>100,100, FORECAST($C101,I$105:I$116,$C$105:$C$116)))) -> 55.20010706 | M101: =IF(MAX(C105:C116)-MIN(C105:C116)<5,AVERAGEIF(C105:C116,">0",M105:M116), IF(FORECAST($C101,M$105:M$116,$C$105:$C$116)<0,0, IF(FORECAST($C101,M$105:M$116,$C$105:$C$116)>100,100, FORECAST($C101,M$105:M$116,$C$105:$C$116)))) -> 37.81348076 | N101: =IF(MAX(C105:C116)-MIN(C105:C116)<5,AVERAGEIF(C105:C116,">0",N105:N116), IF(FORECAST($C101,N$105:N$116,$C$105:$C$116)<0,0, IF(FORECAST($C101,N$105:N$116,$C$105:$C$116)>100,100, FORECAST($C101,N$105:N$116,$C$105:$C$116)))) -> 69.75137134 | R101: =IF(MAX(C105:C116)-MIN(C105:C116)<5,AVERAGEIF(C105:C116,">0",R105:R116), IF(FORECAST($C101,R$105:R$116,$C$105:$C$116)<0,0, IF(FORECAST($C101,R$105:R$116,$C$105:$C$116)>100,100, FORECAST($C101,R$105:R$116,$C$105:$C$116)))) -> 22.78171479 | S101: =IF(MAX(C105:C116)-MIN(C105:C116)<5,AVERAGEIF(C105:C116,">0",S105:S116), IF(FORECAST($C101,S$105:S$116,$C$105:$C$116)<0,0, IF(FORECAST($C101,S$105:S$116,$C$105:$C$116)>100,100, FORECAST($C101,S$105:S$116,$C$105:$C$116)))) -> 83.9578464 | W101: =IF(MAX(C105:C116)-MIN(C105:C116)<5,AVERAGEIF(C105:C116,">0",W105:W116), IF(FORECAST($C101,W$105:W$116,$C$105:$C$116)<0,0, IF(FORECAST($C101,W$105:W$116,$C$105:$C$116)>100,100, FORECAST($C101,W$105:W$116,$C$105:$C$116)))) -> 10.77334591 | X101: =IF(MAX(C105:C116)-MIN(C105:C116)<5,AVERAGEIF(C105:C116,">0",X105:X116), IF(FORECAST($C101,X$105:X$116,$C$105:$C$116)<0,0, IF(FORECAST($C101,X$105:X$116,$C$105:$C$116)>100,100, FORECAST($C101,X$105:X$116,$C$105:$C$116)))) -> 98.01123881 | AB101: =IF(MAX(C105:C116)-MIN(C105:C116)<5,AVERAGEIF(C105:C116,">0",AB105:AB116), IF(FORECAST($C101,AB$105:AB$116,$C$105:$C$116)<0,0, IF(FORECAST($C101,AB$105:AB$116,$C$105:$C$116)>100,100, FORECAST($C101,AB$105:AB$116,$C$105:$C$116)))) -> 0.6945478675
C102: =MaxRegYear(C100,C105:C116) -> 2016 | D102: =IF(MAX(C105:C116)-MIN(C105:C116)<5,AVERAGEIF(C105:C116,">0",D105:D116), IF(FORECAST($C102,D$105:D$116,$C$105:$C$116)<0,0, IF(FORECAST($C102,D$105:D$116,$C$105:$C$116)>100,100, FORECAST($C102,D$105:D$116,$C$105:$C$116)))) -> 56.68931285 | H102: =IF(MAX(C105:C116)-MIN(C105:C116)<5,AVERAGEIF(C105:C116,">0",H105:H116), IF(FORECAST($C102,H$105:H$116,$C$105:$C$116)<0,0, IF(FORECAST($C102,H$105:H$116,$C$105:$C$116)>100,100, FORECAST($C102,H$105:H$116,$C$105:$C$116)))) -> 32.36428805 | I102: =IF(MAX(C105:C116)-MIN(C105:C116)<5,AVERAGEIF(C105:C116,">0",I105:I116), IF(FORECAST($C102,I$105:I$116,$C$105:$C$116)<0,0, IF(FORECAST($C102,I$105:I$116,$C$105:$C$116)>100,100, FORECAST($C102,I$105:I$116,$C$105:$C$116)))) -> 80.20553058 | M102: =IF(MAX(C105:C116)-MIN(C105:C116)<5,AVERAGEIF(C105:C116,">0",M105:M116), IF(FORECAST($C102,M$105:M$116,$C$105:$C$116)<0,0, IF(FORECAST($C102,M$105:M$116,$C$105:$C$116)>100,100, FORECAST($C102,M$105:M$116,$C$105:$C$116)))) -> 11.59560497 | N102: =IF(MAX(C105:C116)-MIN(C105:C116)<5,AVERAGEIF(C105:C116,">0",N105:N116), IF(FORECAST($C102,N$105:N$116,$C$105:$C$116)<0,0, IF(FORECAST($C102,N$105:N$116,$C$105:$C$116)>100,100, FORECAST($C102,N$105:N$116,$C$105:$C$116)))) -> 91.82739887 | R102: =IF(MAX(C105:C116)-MIN(C105:C116)<5,AVERAGEIF(C105:C116,">0",R105:R116), IF(FORECAST($C102,R$105:R$116,$C$105:$C$116)<0,0, IF(FORECAST($C102,R$105:R$116,$C$105:$C$116)>100,100, FORECAST($C102,R$105:R$116,$C$105:$C$116)))) -> 2.617398672 | S102: =IF(MAX(C105:C116)-MIN(C105:C116)<5,AVERAGEIF(C105:C116,">0",S105:S116), IF(FORECAST($C102,S$105:S$116,$C$105:$C$116)<0,0, IF(FORECAST($C102,S$105:S$116,$C$105:$C$116)>100,100, FORECAST($C102,S$105:S$116,$C$105:$C$116)))) -> 96.17881643 | W102: =IF(MAX(C105:C116)-MIN(C105:C116)<5,AVERAGEIF(C105:C116,">0",W105:W116), IF(FORECAST($C102,W$105:W$116,$C$105:$C$116)<0,0, IF(FORECAST($C102,W$105:W$116,$C$105:$C$116)>100,100, FORECAST($C102,W$105:W$116,$C$105:$C$116)))) -> 0 | X102: =IF(MAX(C105:C116)-MIN(C105:C116)<5,AVERAGEIF(C105:C116,">0",X105:X116), IF(FORECAST($C102,X$105:X$116,$C$105:$C$116)<0,0, IF(FORECAST($C102,X$105:X$116,$C$105:$C$116)>100,100, FORECAST($C102,X$105:X$116,$C$105:$C$116)))) -> 96.38991527 | AB102: =IF(MAX(C105:C116)-MIN(C105:C116)<5,AVERAGEIF(C105:C116,">0",AB105:AB116), IF(FORECAST($C102,AB$105:AB$116,$C$105:$C$116)<0,0, IF(FORECAST($C102,AB$105:AB$116,$C$105:$C$116)>100,100, FORECAST($C102,AB$105:AB$116,$C$105:$C$116)))) -> 0.232731504
B104: Survey | C104: Year | D104: Improved | E104: Not shared | H104: Open defecation | I104: Improved | J104: Not shared | M104: Open defecation | N104: Improved | O104: Not shared | R104: Open defecation | S104: Improved | T104: Not shared | W104: Open defecation | X104: Improved | Y104: Not shared | AB104: Open defecation
B105: MICS00 | C105: 2000 | D105: =IF(ISERROR(INDIRECT(CONCATENATE($B105,"!C122"))),"",INDIRECT(CONCATENATE($B105,"!C122"))) -> 33.49621973 | E105: =IF(ISERROR(INDIRECT(CONCATENATE($B105,"!C129"))),"",INDIRECT(CONCATENATE($B105,"!C129"))) -> N/A | H105: =IF(ISERROR(INDIRECT(CONCATENATE($B105,"!C127"))),"",INDIRECT(CONCATENATE($B105,"!C127"))) -> 54.84643868 | I105: =IF(ISERROR(INDIRECT(CONCATENATE($B105,"!D122"))),"",INDIRECT(CONCATENATE($B105,"!D122"))) -> 54.65491723 | J105: =IF(ISERROR(INDIRECT(CONCATENATE($B105,"!D129"))),"",INDIRECT(CONCATENATE($B105,"!D129"))) -> N/A | M105: =IF(ISERROR(INDIRECT(CONCATENATE($B105,"!D127"))),"",INDIRECT(CONCATENATE($B105,"!D127"))) -> 37.60683761 | N105: =IF(ISERROR(INDIRECT(CONCATENATE($B105,"!E122"))),"",INDIRECT(CONCATENATE($B105,"!E122"))) -> 69.94421973 | O105: =IF(ISERROR(INDIRECT(CONCATENATE($B105,"!E129"))),"",INDIRECT(CONCATENATE($B105,"!E129"))) -> N/A | R105: =IF(ISERROR(INDIRECT(CONCATENATE($B105,"!E127"))),"",INDIRECT(CONCATENATE($B105,"!E127"))) -> 22.4792667 | S105: =IF(ISERROR(INDIRECT(CONCATENATE($B105,"!F122"))),"",INDIRECT(CONCATENATE($B105,"!F122"))) -> 83.27169729 | T105: =IF(ISERROR(INDIRECT(CONCATENATE($B105,"!F129"))),"",INDIRECT(CONCATENATE($B105,"!F129"))) -> N/A | W105: =IF(ISERROR(INDIRECT(CONCATENATE($B105,"!F127"))),"",INDIRECT(CONCATENATE($B105,"!F127"))) -> 11.09412535 | X105: =IF(ISERROR(INDIRECT(CONCATENATE($B105,"!G122"))),"",INDIRECT(CONCATENATE($B105,"!G122"))) -> 97.23940025 | Y105: =IF(ISERROR(INDIRECT(CONCATENATE($B105,"!G129"))),"",INDIRECT(CONCATENATE($B105,"!G129"))) -> N/A | AB105: =IF(ISERROR(INDIRECT(CONCATENATE($B105,"!G2127"))),"",INDIRECT(CONCATENATE($B105,"!G127"))) -> 0.9154315606
B106: DHS07 | C106: 2007 | D106: 36.55552836 | E106: N/A | H106: 53.98369562 | I106: 67.95011742 | J106: N/A | M106: 25.42239547 | N106: 80.15299979 | O106: N/A | R106: 13.51397554 | S106: 89.71944194 | T106: N/A | W106: 5.794347104 | X106: 98.5234838 | Y106: N/A | AB106: 0.1298471553
B107: MICS10 | C107: 2010 | D107: 48.52521015 | E107: 74.58666213 | H107: 39.02739385 | I107: 69.56892041 | J107: 68.03792531 | M107: 23.76189756 | N107: 81.57302794 | O107: 62.24097585 | R107: 12.01782471 | S107: 93.27136256 | T107: 67.16139712 | W107: 2.07905653 | X107: 97.56159201 | Y107: 73.49523577 | AB107: 0.2674678076
B108: MICS14 | C108: 2014 | D108: 55.30641922 | E108: 72.84766996 | H108: 33.88376137 | I108: 77.07448125 | J108: 72.20182231 | M108: 13.66565807 | N108: 90.10754122 | O108: 76.89650679 | R108: 4.047429735 | S108: 93.24701326 | T108: 47.05837168 | W108: 1.436906944 | X108: 95.57916483 | Y108: 57.99881589 | AB108: 0.5706757422
B118: =CONCATENATE("National use of sanitation facilities, ",C99,"–",C100) -> National use of sanitation facilities, 2000–2020 | S118: Data points used for regression
A197: URBAN | D197: Poorest | I197: Poor | N197: Middle | S197: Rich | X197: Richest
D198: Improved | E198: Basic | F198: Limited | G198: Unimproved | H198: Open defecation | I198: Improved | J198: Basic | K198: Limited | L198: Unimproved | M198: Open defecation | N198: Improved | O198: Basic | P198: Limited | Q198: Unimproved | R198: Open defecation | S198: Improved | T198: Basic | U198: Limited | V198: Unimproved | W198: Open defecation | X198: Improved | Y198: Basic | Z198: Limited | AA198: Unimproved | AB198: Open defecation
A199: Forecast period: | C199: 2000 | D199: =IF((D201+H201)>100,D201*100/(D201+H201),D201) -> 78.42799158 | E199: =D199*AVERAGEIF(E205:E216,">0")/100 -> 17.34851849 | F199: =D199*(100-AVERAGEIF(E205:E216,">0"))/100 -> 61.07947309 | G199: =100-(E199+F199+H199) -> 13.59466487 | H199: =IF((D201+H201)>100,H201*100/(D201+H201),H201) -> 7.977343549 | I199: =IF((I201+M201)>100,I201*100/(I201+M201),I201) -> 90.09437372 | J199: =I199*AVERAGEIF(J205:J216,">0")/100 -> 34.74008958 | K199: =I199*(100-AVERAGEIF(J205:J216,">0"))/100 -> 55.35428414 | L199: =100-(J199+K199+M199) -> 5.078910347 | M199: =IF((I201+M201)>100,M201*100/(I201+M201),M201) -> 4.826715935 | N199: =IF((N201+R201)>100,N201*100/(N201+R201),N201) -> 99.59440372 | O199: =N199*AVERAGEIF(O205:O216,">0")/100 -> 44.61761624 | P199: =N199*(100-AVERAGEIF(O205:O216,">0"))/100 -> 54.97678748 | Q199: =100-(O199+P199+R199) -> 0 | R199: =IF((N201+R201)>100,R201*100/(N201+R201),R201) -> 0.4055962845 | S199: =IF((S201+W201)>100,S201*100/(S201+W201),S201) -> 98.71996978 | T199: =S199*AVERAGEIF(T205:T216,">0")/100 -> 62.3278254 | U199: =S199*(100-AVERAGEIF(T205:T216,">0"))/100 -> 36.39214437 | V199: =100-(T199+U199+W199) -> 0.9627601064 | W199: =IF((S201+W201)>100,W201*100/(S201+W201),W201) -> 0.317270118 | X199: =IF((X201+AB201)>100,X201*100/(X201+AB201),X201) -> 100 | Y199: =X199*AVERAGEIF(Y205:Y216,">0")/100 -> 86.97180089 | Z199: =X199*(100-AVERAGEIF(Y205:Y216,">0"))/100 -> 13.02819911 | AA199: =100-(Y199+Z199+AB199) -> 0 | AB199: =IF((X201+AB201)>100,AB201*100/(X201+AB201),AB201) -> 0
C200: 2020 | D200: =IF((D202+H202)>100,D202*100/(D202+H202),D202) -> 84.86766986 | E200: =D200*AVERAGEIF(E205:E216,">0")/100 -> 18.77299558 | F200: =D200*(100-AVERAGEIF(E205:E216,">0"))/100 -> 66.09467428 | G200: =100-(E200+F200+H200) -> 13.45258188 | H200: =IF((D202+H202)>100,H202*100/(D202+H202),H202) -> 1.679748253 | I200: =IF((I202+M202)>100,I202*100/(I202+M202),I202) -> 97.30297407 | J200: =I200*AVERAGEIF(J205:J216,">0")/100 -> 37.5197018 | K200: =I200*(100-AVERAGEIF(J205:J216,">0"))/100 -> 59.78327227 | L200: =100-(J200+K200+M200) -> 2.697025931 | M200: =IF((I202+M202)>100,M202*100/(I202+M202),M202) -> 0 | N200: =IF((N202+R202)>100,N202*100/(N202+R202),N202) -> 93.02308479 | O200: =N200*AVERAGEIF(O205:O216,">0")/100 -> 41.67371 | P200: =N200*(100-AVERAGEIF(O205:O216,">0"))/100 -> 51.34937479 | Q200: =100-(O200+P200+R200) -> 6.618572607 | R200: =IF((N202+R202)>100,R202*100/(N202+R202),R202) -> 0.3583426007 | S200: =IF((S202+W202)>100,S202*100/(S202+W202),S202) -> 98.88081696 | T200: =S200*AVERAGEIF(T205:T216,">0")/100 -> 62.42937786 | U200: =S200*(100-AVERAGEIF(T205:T216,">0"))/100 -> 36.4514391 | V200: =100-(T200+U200+W200) -> 0.8988517085 | W200: =IF((S202+W202)>100,W202*100/(S202+W202),W202) -> 0.2203313293 | X200: =IF((X202+AB202)>100,X202*100/(X202+AB202),X202) -> 97.92124497 | Y200: =X200*AVERAGEIF(Y205:Y216,">0")/100 -> 85.16387021 | Z200: =X200*(100-AVERAGEIF(Y205:Y216,">0"))/100 -> 12.75737476 | AA200: =100-(Y200+Z200+AB200) -> 2.078755025 | AB200: =IF((X202+AB202)>100,AB202*100/(X202+AB202),AB202) -> 0
A201: Regression period: | C201: =MinRegYear(C199,C205:C216) -> 2000 | D201: =IF(MAX(C205:C216)-MIN(C205:C216)<5,AVERAGEIF(C205:C216,">0",D205:D216), IF(FORECAST($C201,D$205:D$216,$C$205:$C$216)<0,0, IF(FORECAST($C201,D$205:D$216,$C$205:$C$216)>100,100, FORECAST($C201,D$205:D$216,$C$205:$C$216)))) -> 78.42799158 | H201: =IF(MAX(C205:C216)-MIN(C205:C216)<5,AVERAGEIF(C205:C216,">0",H205:H216), IF(FORECAST($C201,H$205:H$216,$C$205:$C$216)<0,0, IF(FORECAST($C201,H$205:H$216,$C$205:$C$216)>100,100, FORECAST($C201,H$205:H$216,$C$205:$C$216)))) -> 7.977343549 | I201: =IF(MAX(C205:C216)-MIN(C205:C216)<5,AVERAGEIF(C205:C216,">0",I205:I216), IF(FORECAST($C201,I$205:I$216,$C$205:$C$216)<0,0, IF(FORECAST($C201,I$205:I$216,$C$205:$C$216)>100,100, FORECAST($C201,I$205:I$216,$C$205:$C$216)))) -> 90.09437372 | M201: =IF(MAX(C205:C216)-MIN(C205:C216)<5,AVERAGEIF(C205:C216,">0",M205:M216), IF(FORECAST($C201,M$205:M$216,$C$205:$C$216)<0,0, IF(FORECAST($C201,M$205:M$216,$C$205:$C$216)>100,100, FORECAST($C201,M$205:M$216,$C$205:$C$216)))) -> 4.826715935 | N201: =IF(MAX(C205:C216)-MIN(C205:C216)<5,AVERAGEIF(C205:C216,">0",N205:N216), IF(FORECAST($C201,N$205:N$216,$C$205:$C$216)<0,0, IF(FORECAST($C201,N$205:N$216,$C$205:$C$216)>100,100, FORECAST($C201,N$205:N$216,$C$205:$C$216)))) -> 99.7261227 | R201: =IF(MAX(C205:C216)-MIN(C205:C216)<5,AVERAGEIF(C205:C216,">0",R205:R216), IF(FORECAST($C201,R$205:R$216,$C$205:$C$216)<0,0, IF(FORECAST($C201,R$205:R$216,$C$205:$C$216)>100,100, FORECAST($C201,R$205:R$216,$C$205:$C$216)))) -> 0.4061327075 | S201: =IF(MAX(C205:C216)-MIN(C205:C216)<5,AVERAGEIF(C205:C216,">0",S205:S216), IF(FORECAST($C201,S$205:S$216,$C$205:$C$216)<0,0, IF(FORECAST($C201,S$205:S$216,$C$205:$C$216)>100,100, FORECAST($C201,S$205:S$216,$C$205:$C$216)))) -> 98.71996978 | W201: =IF(MAX(C205:C216)-MIN(C205:C216)<5,AVERAGEIF(C205:C216,">0",W205:W216), IF(FORECAST($C201,W$205:W$216,$C$205:$C$216)<0,0, IF(FORECAST($C201,W$205:W$216,$C$205:$C$216)>100,100, FORECAST($C201,W$205:W$216,$C$205:$C$216)))) -> 0.317270118 | X201: =IF(MAX(C205:C216)-MIN(C205:C216)<5,AVERAGEIF(C205:C216,">0",X205:X216), IF(FORECAST($C201,X$205:X$216,$C$205:$C$216)<0,0, IF(FORECAST($C201,X$205:X$216,$C$205:$C$216)>100,100, FORECAST($C201,X$205:X$216,$C$205:$C$216)))) -> 100 | AB201: =IF(MAX(C205:C216)-MIN(C205:C216)<5,AVERAGEIF(C205:C216,">0",AB205:AB216), IF(FORECAST($C201,AB$205:AB$216,$C$205:$C$216)<0,0, IF(FORECAST($C201,AB$205:AB$216,$C$205:$C$216)>100,100, FORECAST($C201,AB$205:AB$216,$C$205:$C$216)))) -> 0
C202: =MaxRegYear(C200,C205:C216) -> 2016 | D202: =IF(MAX(C205:C216)-MIN(C205:C216)<5,AVERAGEIF(C205:C216,">0",D205:D216), IF(FORECAST($C202,D$205:D$216,$C$205:$C$216)<0,0, IF(FORECAST($C202,D$205:D$216,$C$205:$C$216)>100,100, FORECAST($C202,D$205:D$216,$C$205:$C$216)))) -> 84.86766986 | H202: =IF(MAX(C205:C216)-MIN(C205:C216)<5,AVERAGEIF(C205:C216,">0",H205:H216), IF(FORECAST($C202,H$205:H$216,$C$205:$C$216)<0,0, IF(FORECAST($C202,H$205:H$216,$C$205:$C$216)>100,100, FORECAST($C202,H$205:H$216,$C$205:$C$216)))) -> 1.679748253 | I202: =IF(MAX(C205:C216)-MIN(C205:C216)<5,AVERAGEIF(C205:C216,">0",I205:I216), IF(FORECAST($C202,I$205:I$216,$C$205:$C$216)<0,0, IF(FORECAST($C202,I$205:I$216,$C$205:$C$216)>100,100, FORECAST($C202,I$205:I$216,$C$205:$C$216)))) -> 97.30297407 | M202: =IF(MAX(C205:C216)-MIN(C205:C216)<5,AVERAGEIF(C205:C216,">0",M205:M216), IF(FORECAST($C202,M$205:M$216,$C$205:$C$216)<0,0, IF(FORECAST($C202,M$205:M$216,$C$205:$C$216)>100,100, FORECAST($C202,M$205:M$216,$C$205:$C$216)))) -> 0 | N202: =IF(MAX(C205:C216)-MIN(C205:C216)<5,AVERAGEIF(C205:C216,">0",N205:N216), IF(FORECAST($C202,N$205:N$216,$C$205:$C$216)<0,0, IF(FORECAST($C202,N$205:N$216,$C$205:$C$216)>100,100, FORECAST($C202,N$205:N$216,$C$205:$C$216)))) -> 93.02308479 | R202: =IF(MAX(C205:C216)-MIN(C205:C216)<5,AVERAGEIF(C205:C216,">0",R205:R216), IF(FORECAST($C202,R$205:R$216,$C$205:$C$216)<0,0, IF(FORECAST($C202,R$205:R$216,$C$205:$C$216)>100,100, FORECAST($C202,R$205:R$216,$C$205:$C$216)))) -> 0.3583426007 | S202: =IF(MAX(C205:C216)-MIN(C205:C216)<5,AVERAGEIF(C205:C216,">0",S205:S216), IF(FORECAST($C202,S$205:S$216,$C$205:$C$216)<0,0, IF(FORECAST($C202,S$205:S$216,$C$205:$C$216)>100,100, FORECAST($C202,S$205:S$216,$C$205:$C$216)))) -> 98.88081696 | W202: =IF(MAX(C205:C216)-MIN(C205:C216)<5,AVERAGEIF(C205:C216,">0",W205:W216), IF(FORECAST($C202,W$205:W$216,$C$205:$C$216)<0,0, IF(FORECAST($C202,W$205:W$216,$C$205:$C$216)>100,100, FORECAST($C202,W$205:W$216,$C$205:$C$216)))) -> 0.2203313293 | X202: =IF(MAX(C205:C216)-MIN(C205:C216)<5,AVERAGEIF(C205:C216,">0",X205:X216), IF(FORECAST($C202,X$205:X$216,$C$205:$C$216)<0,0, IF(FORECAST($C202,X$205:X$216,$C$205:$C$216)>100,100, FORECAST($C202,X$205:X$216,$C$205:$C$216)))) -> 97.92124497 | AB202: =IF(MAX(C205:C216)-MIN(C205:C216)<5,AVERAGEIF(C205:C216,">0",AB205:AB216), IF(FORECAST($C202,AB$205:AB$216,$C$205:$C$216)<0,0, IF(FORECAST($C202,AB$205:AB$216,$C$205:$C$216)>100,100, FORECAST($C202,AB$205:AB$216,$C$205:$C$216)))) -> 0
B204: Survey | C204: Year | D204: Improved | E204: Not shared | H204: Open defecation | I204: Improved | J204: Not shared | M204: Open defecation | N204: Improved | O204: Not shared | R204: Open defecation | S204: Improved | T204: Not shared | W204: Open defecation | X204: Improved | Y204: Not shared | AB204: Open defecation
B205: MICS00 | C205: 2000 | D205: =IF(ISERROR(INDIRECT(CONCATENATE($B205,"!H122"))),"",INDIRECT(CONCATENATE($B205,"!H122"))) -> 78.95615199 | E205: =IF(ISERROR(INDIRECT(CONCATENATE($B205,"!H129"))),"",INDIRECT(CONCATENATE($B205,"!H129"))) -> N/A | H205: =IF(ISERROR(INDIRECT(CONCATENATE($B205,"!H127"))),"",INDIRECT(CONCATENATE($B205,"!H127"))) -> 7.354443309 | I205: =IF(ISERROR(INDIRECT(CONCATENATE($B205,"!I122"))),"",INDIRECT(CONCATENATE($B205,"!I122"))) -> 90.23470119 | J205: =IF(ISERROR(INDIRECT(CONCATENATE($B205,"!I129"))),"",INDIRECT(CONCATENATE($B205,"!I129"))) -> N/A | M205: =IF(ISERROR(INDIRECT(CONCATENATE($B205,"!I127"))),"",INDIRECT(CONCATENATE($B205,"!I127"))) -> 4.902962206 | N205: =IF(ISERROR(INDIRECT(CONCATENATE($B205,"!J122"))),"",INDIRECT(CONCATENATE($B205,"!J122"))) -> 98.18039429 | O205: =IF(ISERROR(INDIRECT(CONCATENATE($B205,"!J129"))),"",INDIRECT(CONCATENATE($B205,"!J129"))) -> N/A | R205: =IF(ISERROR(INDIRECT(CONCATENATE($B205,"!J127"))),"",INDIRECT(CONCATENATE($B205,"!J127"))) -> 0.5076142132 | S205: =IF(ISERROR(INDIRECT(CONCATENATE($B205,"!K122"))),"",INDIRECT(CONCATENATE($B205,"!K122"))) -> 98.48389989 | T205: =IF(ISERROR(INDIRECT(CONCATENATE($B205,"!K129"))),"",INDIRECT(CONCATENATE($B205,"!K129"))) -> N/A | W205: =IF(ISERROR(INDIRECT(CONCATENATE($B205,"!K127"))),"",INDIRECT(CONCATENATE($B205,"!K127"))) -> 0.3067484663 | X205: =IF(ISERROR(INDIRECT(CONCATENATE($B205,"!L122"))),"",INDIRECT(CONCATENATE($B205,"!L122"))) -> 99.79508197 | Y205: =IF(ISERROR(INDIRECT(CONCATENATE($B205,"!L129"))),"",INDIRECT(CONCATENATE($B205,"!L129"))) -> N/A | AB205: =IF(ISERROR(INDIRECT(CONCATENATE($B205,"!L2127"))),"",INDIRECT(CONCATENATE($B205,"!L127"))) -> 0
B206: DHS07 | C206: 2007 | D206: 80.69844407 | E206: N/A | H206: 6.291186296 | I206: 93.51381977 | J206: N/A | M206: 2.186363824 | N206: 98.42816839 | O206: N/A | R206: 0.397269462 | S206: 99.58182812 | T206: N/A | W206: 0 | X206: 100 | Y206: N/A | AB206: 0
B207: MICS10 | C207: 2010 | D207: 81.56131587 | E207: 22.38642479 | H207: 4.350676122 | I207: 93.64365686 | J207: 40.53779766 | M207: 1.457641315 | N207: 98.0861801 | O207: 45.57194049 | R207: 0 | S207: 98.26164039 | T207: 66.3771341 | W207: 0.7745131028 | X207: 98.88370903 | Y207: 88.05946936 | AB207: 0
B208: MICS14 | C208: 2014 | D208: 84.97293105 | E208: 21.85420445 | H208: 1.711477583 | I208: 96.95198024 | J208: 36.58153433 | M208: 0 | N208: 91.22261208 | O208: 44.02670074 | R208: 0.6270538229 | S208: 98.86415213 | T208: 59.89483608 | W208: 0 | X208: 97.74236368 | Y208: 85.88413242 | AB208: 0
B218: =CONCATENATE("Urban use of sanitation facilities, ",C199,"–",C200) -> Urban use of sanitation facilities, 2000–2020 | S218: Data points used for regression
A297: RURAL | D297: Poorest | I297: Poor | N297: Middle | S297: Rich | X297: Richest
D298: Improved | E298: Basic | F298: Limited | G298: Unimproved | H298: Open defecation | I298: Improved | J298: Basic | K298: Limited | L298: Unimproved | M298: Open defecation | N298: Improved | O298: Basic | P298: Limited | Q298: Unimproved | R298: Open defecation | S298: Improved | T298: Basic | U298: Limited | V298: Unimproved | W298: Open defecation | X298: Improved | Y298: Basic | Z298: Limited | AA298: Unimproved | AB298: Open defecation
A299: Forecast period: | C299: 2000 | D299: =IF((D301+H301)>100,D301*100/(D301+H301),D301) -> 29.08495952 | E299: =D299*AVERAGEIF(E305:E316,">0")/100 -> 21.72083889 | F299: =D299*(100-AVERAGEIF(E305:E316,">0"))/100 -> 7.364120633 | G299: =100-(E299+F299+H299) -> 11.57968961 | H299: =IF((D301+H301)>100,H301*100/(D301+H301),H301) -> 59.33535087 | I299: =IF((I301+M301)>100,I301*100/(I301+M301),I301) -> 48.20100868 | J299: =I299*AVERAGEIF(J305:J316,">0")/100 -> 35.9753685 | K299: =I299*(100-AVERAGEIF(J305:J316,">0"))/100 -> 12.22564018 | L299: =100-(J299+K299+M299) -> 7.277351916 | M299: =IF((I301+M301)>100,M301*100/(I301+M301),M301) -> 44.52163941 | N299: =IF((N301+R301)>100,N301*100/(N301+R301),N301) -> 63.33780381 | O299: =N299*AVERAGEIF(O305:O316,">0")/100 -> 46.4700108 | P299: =N299*(100-AVERAGEIF(O305:O316,">0"))/100 -> 16.86779301 | Q299: =100-(O299+P299+R299) -> 6.764977408 | R299: =IF((N301+R301)>100,R301*100/(N301+R301),R301) -> 29.89721878 | S299: =IF((S301+W301)>100,S301*100/(S301+W301),S301) -> 71.86984423 | T299: =S299*AVERAGEIF(T305:T316,">0")/100 -> 53.98832808 | U299: =S299*(100-AVERAGEIF(T305:T316,">0"))/100 -> 17.88151615 | V299: =100-(T299+U299+W299) -> 6.388648473 | W299: =IF((S301+W301)>100,W301*100/(S301+W301),W301) -> 21.7415073 | X299: =IF((X301+AB301)>100,X301*100/(X301+AB301),X301) -> 90.54347674 | Y299: =X299*AVERAGEIF(Y305:Y316,">0")/100 -> 60.02017755 | Z299: =X299*(100-AVERAGEIF(Y305:Y316,">0"))/100 -> 30.52329919 | AA299: =100-(Y299+Z299+AB299) -> 4.302104505 | AB299: =IF((X301+AB301)>100,AB301*100/(X301+AB301),AB301) -> 5.154418756
C300: 2020 | D300: =IF((D302+H302)>100,D302*100/(D302+H302),D302) -> 52.56836872 | E300: =D300*AVERAGEIF(E305:E316,">0")/100 -> 39.25840319 | F300: =D300*(100-AVERAGEIF(E305:E316,">0"))/100 -> 13.30996553 | G300: =100-(E300+F300+H300) -> 10.40874114 | H300: =IF((D302+H302)>100,H302*100/(D302+H302),H302) -> 37.02289014 | I300: =IF((I302+M302)>100,I302*100/(I302+M302),I302) -> 72.98203352 | J300: =I300*AVERAGEIF(J305:J316,">0")/100 -> 54.47096693 | K300: =I300*(100-AVERAGEIF(J305:J316,">0"))/100 -> 18.51106659 | L300: =100-(J300+K300+M300) -> 9.356193122 | M300: =IF((I302+M302)>100,M302*100/(I302+M302),M302) -> 17.66177335 | N300: =IF((N302+R302)>100,N302*100/(N302+R302),N302) -> 84.79084308 | O300: =N300*AVERAGEIF(O305:O316,">0")/100 -> 62.20978873 | P300: =N300*(100-AVERAGEIF(O305:O316,">0"))/100 -> 22.58105434 | Q300: =100-(O300+P300+R300) -> 8.017646485 | R300: =IF((N302+R302)>100,R302*100/(N302+R302),R302) -> 7.19151044 | S300: =IF((S302+W302)>100,S302*100/(S302+W302),S302) -> 96.12505378 | T300: =S300*AVERAGEIF(T305:T316,">0")/100 -> 72.20874062 | U300: =S300*(100-AVERAGEIF(T305:T316,">0"))/100 -> 23.91631316 | V300: =100-(T300+U300+W300) -> 3.759646349 | W300: =IF((S302+W302)>100,W302*100/(S302+W302),W302) -> 0.1152998757 | X300: =IF((X302+AB302)>100,X302*100/(X302+AB302),X302) -> 96.15667321 | Y300: =X300*AVERAGEIF(Y305:Y316,">0")/100 -> 63.74109772 | Z300: =X300*(100-AVERAGEIF(Y305:Y316,">0"))/100 -> 32.41557549 | AA300: =100-(Y300+Z300+AB300) -> 3.646384999 | AB300: =IF((X302+AB302)>100,AB302*100/(X302+AB302),AB302) -> 0.1969417875
A301: Regression period: | C301: =MinRegYear(C299,C305:C316) -> 2000 | D301: =IF(MAX(C305:C316)-MIN(C305:C316)<5,AVERAGEIF(C305:C316,">0",D305:D316), IF(FORECAST($C301,D$305:D$316,$C$305:$C$316)<0,0, IF(FORECAST($C301,D$305:D$316,$C$305:$C$316)>100,100, FORECAST($C301,D$305:D$316,$C$305:$C$316)))) -> 29.08495952 | H301: =IF(MAX(C305:C316)-MIN(C305:C316)<5,AVERAGEIF(C305:C316,">0",H305:H316), IF(FORECAST($C301,H$305:H$316,$C$305:$C$316)<0,0, IF(FORECAST($C301,H$305:H$316,$C$305:$C$316)>100,100, FORECAST($C301,H$305:H$316,$C$305:$C$316)))) -> 59.33535087 | I301: =IF(MAX(C305:C316)-MIN(C305:C316)<5,AVERAGEIF(C305:C316,">0",I305:I316), IF(FORECAST($C301,I$305:I$316,$C$305:$C$316)<0,0, IF(FORECAST($C301,I$305:I$316,$C$305:$C$316)>100,100, FORECAST($C301,I$305:I$316,$C$305:$C$316)))) -> 48.20100868 | M301: =IF(MAX(C305:C316)-MIN(C305:C316)<5,AVERAGEIF(C305:C316,">0",M305:M316), IF(FORECAST($C301,M$305:M$316,$C$305:$C$316)<0,0, IF(FORECAST($C301,M$305:M$316,$C$305:$C$316)>100,100, FORECAST($C301,M$305:M$316,$C$305:$C$316)))) -> 44.52163941 | N301: =IF(MAX(C305:C316)-MIN(C305:C316)<5,AVERAGEIF(C305:C316,">0",N305:N316), IF(FORECAST($C301,N$305:N$316,$C$305:$C$316)<0,0, IF(FORECAST($C301,N$305:N$316,$C$305:$C$316)>100,100, FORECAST($C301,N$305:N$316,$C$305:$C$316)))) -> 63.33780381 | R301: =IF(MAX(C305:C316)-MIN(C305:C316)<5,AVERAGEIF(C305:C316,">0",R305:R316), IF(FORECAST($C301,R$305:R$316,$C$305:$C$316)<0,0, IF(FORECAST($C301,R$305:R$316,$C$305:$C$316)>100,100, FORECAST($C301,R$305:R$316,$C$305:$C$316)))) -> 29.89721878 | S301: =IF(MAX(C305:C316)-MIN(C305:C316)<5,AVERAGEIF(C305:C316,">0",S305:S316), IF(FORECAST($C301,S$305:S$316,$C$305:$C$316)<0,0, IF(FORECAST($C301,S$305:S$316,$C$305:$C$316)>100,100, FORECAST($C301,S$305:S$316,$C$305:$C$316)))) -> 71.86984423 | W301: =IF(MAX(C305:C316)-MIN(C305:C316)<5,AVERAGEIF(C305:C316,">0",W305:W316), IF(FORECAST($C301,W$305:W$316,$C$305:$C$316)<0,0, IF(FORECAST($C301,W$305:W$316,$C$305:$C$316)>100,100, FORECAST($C301,W$305:W$316,$C$305:$C$316)))) -> 21.7415073 | X301: =IF(MAX(C305:C316)-MIN(C305:C316)<5,AVERAGEIF(C305:C316,">0",X305:X316), IF(FORECAST($C301,X$305:X$316,$C$305:$C$316)<0,0, IF(FORECAST($C301,X$305:X$316,$C$305:$C$316)>100,100, FORECAST($C301,X$305:X$316,$C$305:$C$316)))) -> 90.54347674 | AB301: =IF(MAX(C305:C316)-MIN(C305:C316)<5,AVERAGEIF(C305:C316,">0",AB305:AB316), IF(FORECAST($C301,AB$305:AB$316,$C$305:$C$316)<0,0, IF(FORECAST($C301,AB$305:AB$316,$C$305:$C$316)>100,100, FORECAST($C301,AB$305:AB$316,$C$305:$C$316)))) -> 5.154418756
C302: =MaxRegYear(C300,C305:C316) -> 2016 | D302: =IF(MAX(C305:C316)-MIN(C305:C316)<5,AVERAGEIF(C305:C316,">0",D305:D316), IF(FORECAST($C302,D$305:D$316,$C$305:$C$316)<0,0, IF(FORECAST($C302,D$305:D$316,$C$305:$C$316)>100,100, FORECAST($C302,D$305:D$316,$C$305:$C$316)))) -> 52.56836872 | H302: =IF(MAX(C305:C316)-MIN(C305:C316)<5,AVERAGEIF(C305:C316,">0",H305:H316), IF(FORECAST($C302,H$305:H$316,$C$305:$C$316)<0,0, IF(FORECAST($C302,H$305:H$316,$C$305:$C$316)>100,100, FORECAST($C302,H$305:H$316,$C$305:$C$316)))) -> 37.02289014 | I302: =IF(MAX(C305:C316)-MIN(C305:C316)<5,AVERAGEIF(C305:C316,">0",I305:I316), IF(FORECAST($C302,I$305:I$316,$C$305:$C$316)<0,0, IF(FORECAST($C302,I$305:I$316,$C$305:$C$316)>100,100, FORECAST($C302,I$305:I$316,$C$305:$C$316)))) -> 72.98203352 | M302: =IF(MAX(C305:C316)-MIN(C305:C316)<5,AVERAGEIF(C305:C316,">0",M305:M316), IF(FORECAST($C302,M$305:M$316,$C$305:$C$316)<0,0, IF(FORECAST($C302,M$305:M$316,$C$305:$C$316)>100,100, FORECAST($C302,M$305:M$316,$C$305:$C$316)))) -> 17.66177335 | N302: =IF(MAX(C305:C316)-MIN(C305:C316)<5,AVERAGEIF(C305:C316,">0",N305:N316), IF(FORECAST($C302,N$305:N$316,$C$305:$C$316)<0,0, IF(FORECAST($C302,N$305:N$316,$C$305:$C$316)>100,100, FORECAST($C302,N$305:N$316,$C$305:$C$316)))) -> 84.79084308 | R302: =IF(MAX(C305:C316)-MIN(C305:C316)<5,AVERAGEIF(C305:C316,">0",R305:R316), IF(FORECAST($C302,R$305:R$316,$C$305:$C$316)<0,0, IF(FORECAST($C302,R$305:R$316,$C$305:$C$316)>100,100, FORECAST($C302,R$305:R$316,$C$305:$C$316)))) -> 7.19151044 | S302: =IF(MAX(C305:C316)-MIN(C305:C316)<5,AVERAGEIF(C305:C316,">0",S305:S316), IF(FORECAST($C302,S$305:S$316,$C$305:$C$316)<0,0, IF(FORECAST($C302,S$305:S$316,$C$305:$C$316)>100,100, FORECAST($C302,S$305:S$316,$C$305:$C$316)))) -> 96.12505378 | W302: =IF(MAX(C305:C316)-MIN(C305:C316)<5,AVERAGEIF(C305:C316,">0",W305:W316), IF(FORECAST($C302,W$305:W$316,$C$305:$C$316)<0,0, IF(FORECAST($C302,W$305:W$316,$C$305:$C$316)>100,100, FORECAST($C302,W$305:W$316,$C$305:$C$316)))) -> 0.1152998757 | X302: =IF(MAX(C305:C316)-MIN(C305:C316)<5,AVERAGEIF(C305:C316,">0",X305:X316), IF(FORECAST($C302,X$305:X$316,$C$305:$C$316)<0,0, IF(FORECAST($C302,X$305:X$316,$C$305:$C$316)>100,100, FORECAST($C302,X$305:X$316,$C$305:$C$316)))) -> 96.15667321 | AB302: =IF(MAX(C305:C316)-MIN(C305:C316)<5,AVERAGEIF(C305:C316,">0",AB305:AB316), IF(FORECAST($C302,AB$305:AB$316,$C$305:$C$316)<0,0, IF(FORECAST($C302,AB$305:AB$316,$C$305:$C$316)>100,100, FORECAST($C302,AB$305:AB$316,$C$305:$C$316)))) -> 0.1969417875
B304: Survey | C304: Year | D304: Improved | E304: Not shared | H304: Open defecation | I304: Improved | J304: Not shared | M304: Open defecation | N304: Improved | O304: Not shared | R304: Open defecation | S304: Improved | T304: Not shared | W304: Open defecation | X304: Improved | Y304: Not shared | AB304: Open defecation
B305: MICS00 | C305: 2000 | D305: =IF(ISERROR(INDIRECT(CONCATENATE($B305,"!M122"))),"",INDIRECT(CONCATENATE($B305,"!M122"))) -> 31.66226475 | E305: =IF(ISERROR(INDIRECT(CONCATENATE($B305,"!M129"))),"",INDIRECT(CONCATENATE($B305,"!M129"))) -> N/A | H305: =IF(ISERROR(INDIRECT(CONCATENATE($B305,"!M127"))),"",INDIRECT(CONCATENATE($B305,"!M127"))) -> 56.23620309 | I305: =IF(ISERROR(INDIRECT(CONCATENATE($B305,"!N122"))),"",INDIRECT(CONCATENATE($B305,"!N122"))) -> 47.78341063 | J305: =IF(ISERROR(INDIRECT(CONCATENATE($B305,"!N129"))),"",INDIRECT(CONCATENATE($B305,"!N129"))) -> N/A | M305: =IF(ISERROR(INDIRECT(CONCATENATE($B305,"!N127"))),"",INDIRECT(CONCATENATE($B305,"!N127"))) -> 44.16331225 | N305: =IF(ISERROR(INDIRECT(CONCATENATE($B305,"!O122"))),"",INDIRECT(CONCATENATE($B305,"!O122"))) -> 63.16939648 | O305: =IF(ISERROR(INDIRECT(CONCATENATE($B305,"!O129"))),"",INDIRECT(CONCATENATE($B305,"!O129"))) -> N/A | R305: =IF(ISERROR(INDIRECT(CONCATENATE($B305,"!O127"))),"",INDIRECT(CONCATENATE($B305,"!O127"))) -> 29.48787062 | S305: =IF(ISERROR(INDIRECT(CONCATENATE($B305,"!P122"))),"",INDIRECT(CONCATENATE($B305,"!P122"))) -> 70.92314326 | T305: =IF(ISERROR(INDIRECT(CONCATENATE($B305,"!P129"))),"",INDIRECT(CONCATENATE($B305,"!P129"))) -> N/A | W305: =IF(ISERROR(INDIRECT(CONCATENATE($B305,"!P127"))),"",INDIRECT(CONCATENATE($B305,"!P127"))) -> 22.62367982 | X305: =IF(ISERROR(INDIRECT(CONCATENATE($B305,"!Q122"))),"",INDIRECT(CONCATENATE($B305,"!Q122"))) -> 89.76898008 | Y305: =IF(ISERROR(INDIRECT(CONCATENATE($B305,"!Q129"))),"",INDIRECT(CONCATENATE($B305,"!Q129"))) -> N/A | AB305: =IF(ISERROR(INDIRECT(CONCATENATE($B305,"!Q2127"))),"",INDIRECT(CONCATENATE($B305,"!Q127"))) -> 5.672969967
B306: DHS07 | C306: 2007 | D306: 33.45525709 | E306: N/A | H306: 57.27886399 | I306: 59.68273192 | J306: N/A | M306: 32.96386261 | N306: 74.46200781 | O306: N/A | R306: 18.84368351 | S306: 84.10633514 | T306: N/A | W306: 11.06178409 | X306: 93.78013099 | Y306: N/A | AB306: 2.696380229
B307: MICS10 | C307: 2010 | D307: 45.07298637 | E307: 77.28223639 | H307: 42.75295445 | I307: 64.03069883 | J307: 76.08334381 | M307: 28.64989263 | N307: 74.29300521 | O307: 73.21721188 | R307: 19.0984984 | S307: 87.49933931 | T307: 71.3018729 | W307: 7.269474369 | X307: 95.39592143 | Y307: 76.46377216 | AB307: 0.7470655317
B308: MICS14 | C308: 2014 | D308: 51.6484352 | E308: 72.07907781 | H308: 37.84298929 | I308: 69.32042896 | J308: 73.18892034 | M308: 20.26849967 | N308: 82.99206932 | O308: 73.51983301 | R308: 8.166512677 | S308: 91.9450277 | T308: 78.93729531 | W308: 4.110314024 | X308: 94.10444262 | Y308: 56.11381313 | AB308: 1.89614767
B318: =CONCATENATE("Rural use of sanitation facilities, ",C299,"–",C300) -> Rural use of sanitation facilities, 2000–2020 | S318: Data points used for regression

Sheet Hygiene
B4: Access to hygiene facilities by wealth quintile (%)
B5: =IF(ISERROR(INDIRECT(CONCATENATE($E$32,"!A2"))),"",INDIRECT(CONCATENATE($E$32,"!A2"))) -> Eswatini
B7: =CONCATENATE("National ",IF(ISERROR(INDIRECT(CONCATENATE($E$32,"!A2"))),"",INDIRECT(CONCATENATE($E$32,"!A210")))) -> National Access to hygiene facilities | K7: =CONCATENATE("Urban ",IF(ISERROR(INDIRECT(CONCATENATE($E$32,"!A2"))),"",INDIRECT(CONCATENATE($E$32,"!A210")))) -> Urban Access to hygiene facilities | S7: =CONCATENATE("Rural ",IF(ISERROR(INDIRECT(CONCATENATE($E$32,"!A2"))),"",INDIRECT(CONCATENATE($E$32,"!A210")))) -> Rural Access to hygiene facilities
E32: =INDEX(B88:B100,A88) -> MICS14 | G32: =IF(ISERROR(INDIRECT(CONCATENATE($E$32,"!A2"))),"",INDIRECT(CONCATENATE($E$32,"!A2"))) -> Eswatini | K32: Poorest | N32: Poor | Q32: Middle | T32: Rich | W32: Richest
K33: Basic | L33: Limited | M33: No facility | N33: Basic | O33: Limited | P33: No facility | Q33: Basic | R33: Limited | S33: No facility | T33: Basic | U33: Limited | V33: No facility | W33: Basic | X33: Limited | Y33: No facility
B34: >>> Select Survey : | G34: NATIONAL | J34: =IF(ISERROR(INDIRECT(CONCATENATE(#REF!,"!A2"))),"",INDIRECT(CONCATENATE(#REF!,"!A210"))) ->  | K34: =IF(ISERROR(INDIRECT(CONCATENATE($E$32,"!C222"))),"",INDIRECT(CONCATENATE($E$32,"!C222"))) -> 2.768903088 | L34: =IF(ISERROR(INDIRECT(CONCATENATE($E$32,"!C223"))),"",INDIRECT(CONCATENATE($E$32,"!C223"))) -> 9.265175719 | M34: =IF(ISERROR(INDIRECT(CONCATENATE($E$32,"!C224"))),"",INDIRECT(CONCATENATE($E$32,"!C224"))) -> 87.96592119 | N34: =IF(ISERROR(INDIRECT(CONCATENATE($E$32,"!D222"))),"",INDIRECT(CONCATENATE($E$32,"!D222"))) -> 5.389908257 | O34: =IF(ISERROR(INDIRECT(CONCATENATE($E$32,"!D223"))),"",INDIRECT(CONCATENATE($E$32,"!D223"))) -> 14.56422018 | P34: =IF(ISERROR(INDIRECT(CONCATENATE($E$32,"!D224"))),"",INDIRECT(CONCATENATE($E$32,"!D224"))) -> 80.04587156 | Q34: =IF(ISERROR(INDIRECT(CONCATENATE($E$32,"!E222"))),"",INDIRECT(CONCATENATE($E$32,"!E222"))) -> 10.09879254 | R34: =IF(ISERROR(INDIRECT(CONCATENATE($E$32,"!E223"))),"",INDIRECT(CONCATENATE($E$32,"!E223"))) -> 17.34357849 | S34: =IF(ISERROR(INDIRECT(CONCATENATE($E$32,"!E224"))),"",INDIRECT(CONCATENATE($E$32,"!E224"))) -> 72.55762898 | T34: =IF(ISERROR(INDIRECT(CONCATENATE($E$32,"!F222"))),"",INDIRECT(CONCATENATE($E$32,"!F222"))) -> 21.15749526 | U34: =IF(ISERROR(INDIRECT(CONCATENATE($E$32,"!F223"))),"",INDIRECT(CONCATENATE($E$32,"!F223"))) -> 28.4629981 | V34: =IF(ISERROR(INDIRECT(CONCATENATE($E$32,"!F224"))),"",INDIRECT(CONCATENATE($E$32,"!F224"))) -> 50.37950664 | W34: =IF(ISERROR(INDIRECT(CONCATENATE($E$32,"!G222"))),"",INDIRECT(CONCATENATE($E$32,"!G222"))) -> 48.43137255 | X34: =IF(ISERROR(INDIRECT(CONCATENATE($E$32,"!G223"))),"",INDIRECT(CONCATENATE($E$32,"!G223"))) -> 25 | Y34: =IF(ISERROR(INDIRECT(CONCATENATE($E$32,"!G224"))),"",INDIRECT(CONCATENATE($E$32,"!G224"))) -> 26.56862745
G37: URBAN | J37: =IF(ISERROR(INDIRECT(CONCATENATE(#REF!,"!A2"))),"",INDIRECT(CONCATENATE(#REF!,"!A210"))) ->  | K37: =IF(ISERROR(INDIRECT(CONCATENATE($E$32,"!H222"))),"",INDIRECT(CONCATENATE($E$32,"!H222"))) -> 19.18604651 | L37: =IF(ISERROR(INDIRECT(CONCATENATE($E$32,"!H223"))),"",INDIRECT(CONCATENATE($E$32,"!H223"))) -> 31.97674419 | M37: =IF(ISERROR(INDIRECT(CONCATENATE($E$32,"!H224"))),"",INDIRECT(CONCATENATE($E$32,"!H224"))) -> 48.8372093 | N37: =IF(ISERROR(INDIRECT(CONCATENATE($E$32,"!I222"))),"",INDIRECT(CONCATENATE($E$32,"!I222"))) -> 30.56768559 | O37: =IF(ISERROR(INDIRECT(CONCATENATE($E$32,"!I223"))),"",INDIRECT(CONCATENATE($E$32,"!I223"))) -> 33.18777293 | P37: =IF(ISERROR(INDIRECT(CONCATENATE($E$32,"!I224"))),"",INDIRECT(CONCATENATE($E$32,"!I224"))) -> 36.24454148 | Q37: =IF(ISERROR(INDIRECT(CONCATENATE($E$32,"!J222"))),"",INDIRECT(CONCATENATE($E$32,"!J222"))) -> 42.97188755 | R37: =IF(ISERROR(INDIRECT(CONCATENATE($E$32,"!J223"))),"",INDIRECT(CONCATENATE($E$32,"!J223"))) -> 32.12851406 | S37: =IF(ISERROR(INDIRECT(CONCATENATE($E$32,"!J224"))),"",INDIRECT(CONCATENATE($E$32,"!J224"))) -> 24.89959839 | T37: =IF(ISERROR(INDIRECT(CONCATENATE($E$32,"!K222"))),"",INDIRECT(CONCATENATE($E$32,"!K222"))) -> 60.25641026 | U37: =IF(ISERROR(INDIRECT(CONCATENATE($E$32,"!K223"))),"",INDIRECT(CONCATENATE($E$32,"!K223"))) -> 23.07692308 | V37: =IF(ISERROR(INDIRECT(CONCATENATE($E$32,"!K224"))),"",INDIRECT(CONCATENATE($E$32,"!K224"))) -> 16.66666667 | W37: =IF(ISERROR(INDIRECT(CONCATENATE($E$32,"!L222"))),"",INDIRECT(CONCATENATE($E$32,"!L222"))) -> 71.42857143 | X37: =IF(ISERROR(INDIRECT(CONCATENATE($E$32,"!L223"))),"",INDIRECT(CONCATENATE($E$32,"!L223"))) -> 18.71921182 | Y37: =IF(ISERROR(INDIRECT(CONCATENATE($E$32,"!L224"))),"",INDIRECT(CONCATENATE($E$32,"!L224"))) -> 9.852216749
G40: RURAL | J40: =IF(ISERROR(INDIRECT(CONCATENATE(#REF!,"!A2"))),"",INDIRECT(CONCATENATE(#REF!,"!A210"))) ->  | K40: =IF(ISERROR(INDIRECT(CONCATENATE($E$32,"!M222"))),"",INDIRECT(CONCATENATE($E$32,"!M222"))) -> 2.064896755 | L40: =IF(ISERROR(INDIRECT(CONCATENATE($E$32,"!M223"))),"",INDIRECT(CONCATENATE($E$32,"!M223"))) -> 7.96460177 | M40: =IF(ISERROR(INDIRECT(CONCATENATE($E$32,"!M224"))),"",INDIRECT(CONCATENATE($E$32,"!M224"))) -> 89.97050147 | N40: =IF(ISERROR(INDIRECT(CONCATENATE($E$32,"!N222"))),"",INDIRECT(CONCATENATE($E$32,"!N222"))) -> 4.497751124 | O40: =IF(ISERROR(INDIRECT(CONCATENATE($E$32,"!N223"))),"",INDIRECT(CONCATENATE($E$32,"!N223"))) -> 14.09295352 | P40: =IF(ISERROR(INDIRECT(CONCATENATE($E$32,"!N224"))),"",INDIRECT(CONCATENATE($E$32,"!N224"))) -> 81.40929535 | Q40: =IF(ISERROR(INDIRECT(CONCATENATE($E$32,"!O222"))),"",INDIRECT(CONCATENATE($E$32,"!O222"))) -> 7.407407407 | R40: =IF(ISERROR(INDIRECT(CONCATENATE($E$32,"!O223"))),"",INDIRECT(CONCATENATE($E$32,"!O223"))) -> 12.96296296 | S40: =IF(ISERROR(INDIRECT(CONCATENATE($E$32,"!O224"))),"",INDIRECT(CONCATENATE($E$32,"!O224"))) -> 79.62962963 | T40: =IF(ISERROR(INDIRECT(CONCATENATE($E$32,"!P222"))),"",INDIRECT(CONCATENATE($E$32,"!P222"))) -> 9.345794393 | U40: =IF(ISERROR(INDIRECT(CONCATENATE($E$32,"!P223"))),"",INDIRECT(CONCATENATE($E$32,"!P223"))) -> 18.22429907 | V40: =IF(ISERROR(INDIRECT(CONCATENATE($E$32,"!P224"))),"",INDIRECT(CONCATENATE($E$32,"!P224"))) -> 72.42990654 | W40: =IF(ISERROR(INDIRECT(CONCATENATE($E$32,"!Q222"))),"",INDIRECT(CONCATENATE($E$32,"!Q222"))) -> 22.28381375 | X40: =IF(ISERROR(INDIRECT(CONCATENATE($E$32,"!Q223"))),"",INDIRECT(CONCATENATE($E$32,"!Q223"))) -> 24.3902439 | Y40: =IF(ISERROR(INDIRECT(CONCATENATE($E$32,"!Q224"))),"",INDIRECT(CONCATENATE($E$32,"!Q224"))) -> 53.32594235
A88: 4 | B88: MICS00
B89: DHS07
B90: MICS10
B91: MICS14
B92: Template

Sheet MICS00
A2: =A1026 -> Eswatini
A3: =A1034 -> 2000
A4: Use of drinking water sources
A5: by wealth quintile and sub-national region
A6: Notes:
A7: WHO/UNICEF JMP customised wealth index excludes water,
A8: sanitation and hygiene assets.
A9: Survey used for analysis: | B9: =A1025 -> MICS00
A10: =B1028 -> 
A11: =B1027 -> 
A14: Use of drinking water sources | C14: NATIONAL wealth index quintile | H14: URBAN wealth index quintile | M14: RURAL wealth index quintile | R14: SUB-REGIONS: | BA14: Raw numbers of respondents: | BB14: Use of drinking water sources | BC14: NATIONAL wealth index quintile | BH14: URBAN wealth index quintile | BM14: RURAL wealth index quintile | BR14: SUB-REGIONS:
A15: Weighted percentage (used in graphs) | C15: Poorest | D15: Poor | E15: Middle | F15: Rich | G15: Richest | H15: Poorest | I15: Poor | J15: Middle | K15: Rich | L15: Richest | M15: Poorest | N15: Poor | O15: Middle | P15: Rich | Q15: Richest | R15: Hhohho | S15: Lubombo | T15: Manzini | U15: Shiselweni | BA15: Water data, raw numbers (weighted) | BC15: Poorest | BD15: Poor | BE15: Middle | BF15: Rich | BG15: Richest | BH15: Poorest | BI15: Poor | BJ15: Middle | BK15: Rich | BL15: Richest | BM15: Poorest | BN15: Poor | BO15: Middle | BP15: Rich | BQ15: Richest | BR15: Hhohho | BS15: Lubombo | BT15: Manzini | BU15: Shiselweni
A16: Water | B16: Improved | C16: 29.04906644 | D16: 37.44847038 | E16: 46.56372336 | F16: 62.63592866 | G16: 86.88097307 | H16: 83.75893769 | I16: 82.05912334 | J16: 92.90060852 | K16: 94.69928644 | L16: 94.59734964 | M16: 27.6889134 | N16: 33.99829011 | O16: 38.27853515 | P16: 43.47826087 | Q16: 68.72928177 | R16: 57.04045874 | S16: 53.55271432 | T16: 51.29804206 | U16: 47.56458292 | BA16: Water | BB16: Improved | BC16: N/A | BD16: N/A | BE16: N/A | BF16: N/A | BG16: N/A | BH16: N/A | BI16: N/A | BJ16: N/A | BK16: N/A | BL16: N/A | BM16: N/A | BN16: N/A | BO16: N/A | BP16: N/A | BQ16: N/A | BR16: N/A | BS16: N/A | BT16: N/A | BU16: N/A
B17: Not Improved | C17: 70.95093356 | D17: 62.55152962 | E17: 53.43627664 | F17: 37.36407134 | G17: 13.11902693 | H17: 16.24106231 | I17: 17.94087666 | J17: 7.099391481 | K17: 5.300713558 | L17: 5.402650357 | M17: 72.3110866 | N17: 66.00170989 | O17: 61.72146485 | P17: 56.52173913 | Q17: 31.27071823 | R17: 42.95954126 | S17: 46.44728568 | T17: 48.70195794 | U17: 52.43541708 | BB17: Not Improved | BC17: N/A | BD17: N/A | BE17: N/A | BF17: N/A | BG17: N/A | BH17: N/A | BI17: N/A | BJ17: N/A | BK17: N/A | BL17: N/A | BM17: N/A | BN17: N/A | BO17: N/A | BP17: N/A | BQ17: N/A | BR17: N/A | BS17: N/A | BT17: N/A | BU17: N/A
A18: Water ladder | B18: Basic | C18: =C16*C23/100 -> 23.50069475 | D18: =D16*D23/100 -> 32.76741159 | E18: =E16*E23/100 -> 41.39515007 | F18: 58.06350587 | G18: 84.96959166 | H18: 79.48723187 | I18: 80.41794088 | J18: 90.94969574 | K18: 94.69928644 | L18: 94.59734964 | M18: 21.62504137 | N18: 30.02049017 | O18: 33.60855386 | P18: 37.73913043 | Q18: 63.50585635 | R18: 52.07793883 | S18: 45.73401803 | T18: 50.47727339 | U18: 42.28491422 | BA18: Water ladder | BB18: Basic | BC18: N/A | BD18: N/A | BE18: N/A | BF18: N/A | BG18: N/A | BH18: N/A | BI18: N/A | BJ18: N/A | BK18: N/A | BL18: N/A | BM18: N/A | BN18: N/A | BO18: N/A | BP18: N/A | BQ18: N/A | BR18: N/A | BS18: N/A | BT18: N/A | BU18: N/A
B19: Limited | C19: =C16*C22/100 -> 5.548371689 | D19: =D16*D22/100 -> 4.681058798 | E19: =E16*E22/100 -> 5.168573293 | F19: 4.572422793 | G19: 1.911381407 | H19: 4.271705822 | I19: 1.641182467 | J19: 1.950912779 | K19: 0 | L19: 0 | M19: 6.063872035 | N19: 3.977799943 | O19: 4.669981288 | P19: 5.739130435 | Q19: 5.223425414 | R19: 4.962519911 | S19: 7.81869629 | T19: 0.820768673 | U19: 5.279668704 | BB19: Limited | BC19: N/A | BD19: N/A | BE19: N/A | BF19: N/A | BG19: N/A | BH19: N/A | BI19: N/A | BJ19: N/A | BK19: N/A | BL19: N/A | BM19: N/A | BN19: N/A | BO19: N/A | BP19: N/A | BQ19: N/A | BR19: N/A | BS19: N/A | BT19: N/A | BU19: N/A
B20: Unimproved | C20: =100-C18-C19-C21 -> 17.38811839 | D20: =100-D18-D19-D21 -> 17.44413105 | E20: =100-E18-E19-E21 -> 18.54191811 | F20: 15.68101123 | G20: 5.878322432 | H20: 8.138498206 | I20: 6.315362253 | J20: 5.97808669 | K20: 3.261977574 | L20: 2.44648318 | M20: 19.22946528 | N20: 15.28496677 | O20: 20.07931454 | P20: 19.67524302 | Q20: 13.75690608 | R20: 18.07107727 | S20: 8.485690411 | T20: 10.91770138 | U20: 22.87019969 | BB20: Unimproved | BC20: N/A | BD20: N/A | BE20: N/A | BF20: N/A | BG20: N/A | BH20: N/A | BI20: N/A | BJ20: N/A | BK20: N/A | BL20: N/A | BM20: N/A | BN20: N/A | BO20: N/A | BP20: N/A | BQ20: N/A | BR20: N/A | BS20: N/A | BT20: N/A | BU20: N/A
B21: Surface water | C21: 53.56281517 | D21: 45.10739857 | E21: 34.89435853 | F21: 21.68306011 | G21: 7.240704501 | H21: 8.102564103 | I21: 11.6255144 | J21: 1.121304791 | K21: 2.038735984 | L21: 2.956167176 | M21: 53.08162132 | N21: 50.71674312 | O21: 41.64215031 | P21: 36.84649611 | Q21: 17.51381215 | R21: 24.88846399 | S21: 37.96159527 | T21: 37.78425656 | U21: 29.56521739 | BB21: Surface water | BC21: N/A | BD21: N/A | BE21: N/A | BF21: N/A | BG21: N/A | BH21: N/A | BI21: N/A | BJ21: N/A | BK21: N/A | BL21: N/A | BM21: N/A | BN21: N/A | BO21: N/A | BP21: N/A | BQ21: N/A | BR21: N/A | BS21: N/A | BT21: N/A | BU21: N/A
A22: Improved water point at more than 30 minutes | B22: Yes | C22: 19.1 | D22: 12.5 | E22: 11.1 | F22: 7.3 | G22: 2.2 | H22: 5.1 | I22: 2 | J22: 2.1 | K22: 0 | L22: 0 | M22: 21.9 | N22: 11.7 | O22: 12.2 | P22: 13.2 | Q22: 7.6 | R22: 8.7 | S22: 14.6 | T22: 1.6 | U22: 11.1 | BA22: Improved water point at more than 30 minutes | BB22: Yes | BC22: N/A | BD22: N/A | BE22: N/A | BF22: N/A | BG22: N/A | BH22: N/A | BI22: N/A | BJ22: N/A | BK22: N/A | BL22: N/A | BM22: N/A | BN22: N/A | BO22: N/A | BP22: N/A | BQ22: N/A | BR22: N/A | BS22: N/A | BT22: N/A | BU22: N/A
B23: No | C23: 80.9 | D23: 87.5 | E23: 88.9 | F23: 92.7 | G23: 97.8 | H23: 94.9 | I23: 98 | J23: 97.9 | K23: 100 | L23: 100 | M23: 78.1 | N23: 88.3 | O23: 87.8 | P23: 86.8 | Q23: 92.4 | R23: 91.3 | S23: 85.4 | T23: 98.4 | U23: 88.9 | BB23: No | BC23: N/A | BD23: N/A | BE23: N/A | BF23: N/A | BG23: N/A | BH23: N/A | BI23: N/A | BJ23: N/A | BK23: N/A | BL23: N/A | BM23: N/A | BN23: N/A | BO23: N/A | BP23: N/A | BQ23: N/A | BR23: N/A | BS23: N/A | BT23: N/A | BU23: N/A
A24: Manually calculated ratios | B24: Improved wells
B25: Improved sources
B26: Other
C27: NATIONAL wealth index quintile | H27: URBAN wealth index quintile | M27: RURAL wealth index quintile | R27: SUB-REGIONS: | BA27: Raw numbers of respondents: | BB27: Use of drinking water sources | BC27: NATIONAL wealth index quintile | BH27: URBAN wealth index quintile | BM27: RURAL wealth index quintile | BR27: SUB-REGIONS:
A28: Percentage based on weighted population | C28: Poorest | D28: Poor | E28: Middle | F28: Rich | G28: Richest | H28: Poorest | I28: Poor | J28: Middle | K28: Rich | L28: Richest | M28: Poorest | N28: Poor | O28: Middle | P28: Rich | Q28: Richest | R28: Hhohho | S28: Lubombo | T28: Manzini | U28: Shiselweni | BA28: Water data, raw numbers (weighted) | BC28: Poorest | BD28: Poor | BE28: Middle | BF28: Rich | BG28: Richest | BH28: Poorest | BI28: Poor | BJ28: Middle | BK28: Rich | BL28: Richest | BM28: Poorest | BN28: Poor | BO28: Middle | BP28: Rich | BQ28: Richest | BR28: Hhohho | BS28: Lubombo | BT28: Manzini | BU28: Shiselweni
A29: Piped water | B29: Yes | C29: 16.4 | D29: 24.6 | E29: 35.1 | F29: 50 | G29: 80.6 | H29: 71.8 | I29: 71.4 | J29: 87.6 | K29: 93.7 | L29: 93.7 | M29: 15.5 | N29: 21.1 | O29: 27.3 | P29: 29.9 | Q29: 55.3 | R29: 46.1 | S29: 40.5 | T29: 43.1 | U29: 33.7 | BA29: Piped water | BB29: Yes | BC29: N/A | BD29: N/A | BE29: N/A | BF29: N/A | BG29: N/A | BH29: N/A | BI29: N/A | BJ29: N/A | BK29: N/A | BL29: N/A | BM29: N/A | BN29: N/A | BO29: N/A | BP29: N/A | BQ29: N/A | BR29: N/A | BS29: N/A | BT29: N/A | BU29: N/A
B30: No | C30: 83.6 | D30: 75.4 | E30: 64.9 | F30: 50 | G30: 19.4 | H30: 28.2 | I30: 28.6 | J30: 12.4 | K30: 6.3 | L30: 6.3 | M30: 84.5 | N30: 78.9 | O30: 72.7 | P30: 70.1 | Q30: 44.7 | R30: 53.9 | S30: 59.5 | T30: 56.9 | U30: 66.3 | BB30: No | BC30: N/A | BD30: N/A | BE30: N/A | BF30: N/A | BG30: N/A | BH30: N/A | BI30: N/A | BJ30: N/A | BK30: N/A | BL30: N/A | BM30: N/A | BN30: N/A | BO30: N/A | BP30: N/A | BQ30: N/A | BR30: N/A | BS30: N/A | BT30: N/A | BU30: N/A
A31: Piped water on premises | B31: Yes | C31: 3.4 | D31: 7.5 | E31: 13.4 | F31: 27.3 | G31: 70.8 | H31: 33.2 | I31: 51 | J31: 74.8 | K31: 84.4 | L31: 91.4 | M31: 3.2 | N31: 5.9 | O31: 8.8 | P31: 9.5 | Q31: 37.3 | R31: 29.5 | S31: 24.2 | T31: 30.5 | U31: 10.2 | BA31: Piped water on premises | BB31: Yes | BC31: N/A | BD31: N/A | BE31: N/A | BF31: N/A | BG31: N/A | BH31: N/A | BI31: N/A | BJ31: N/A | BK31: N/A | BL31: N/A | BM31: N/A | BN31: N/A | BO31: N/A | BP31: N/A | BQ31: N/A | BR31: N/A | BS31: N/A | BT31: N/A | BU31: N/A
B32: No | C32: 96.6 | D32: 92.5 | E32: 86.6 | F32: 72.7 | G32: 29.2 | H32: 66.8 | I32: 49 | J32: 25.2 | K32: 15.6 | L32: 8.6 | M32: 96.8 | N32: 94.1 | O32: 91.2 | P32: 90.5 | Q32: 62.7 | R32: 70.5 | S32: 75.8 | T32: 69.5 | U32: 89.8 | BB32: No | BC32: N/A | BD32: N/A | BE32: N/A | BF32: N/A | BG32: N/A | BH32: N/A | BI32: N/A | BJ32: N/A | BK32: N/A | BL32: N/A | BM32: N/A | BN32: N/A | BO32: N/A | BP32: N/A | BQ32: N/A | BR32: N/A | BS32: N/A | BT32: N/A | BU32: N/A
A33: Piped water into dwelling | B33: Yes | C33: N/A | D33: N/A | E33: N/A | F33: N/A | G33: N/A | H33: N/A | I33: N/A | J33: N/A | K33: N/A | L33: N/A | M33: N/A | N33: N/A | O33: N/A | P33: N/A | Q33: N/A | R33: N/A | S33: N/A | T33: N/A | U33: N/A | BA33: Piped water into dwelling | BB33: Yes | BC33: N/A | BD33: N/A | BE33: N/A | BF33: N/A | BG33: N/A | BH33: N/A | BI33: N/A | BJ33: N/A | BK33: N/A | BL33: N/A | BM33: N/A | BN33: N/A | BO33: N/A | BP33: N/A | BQ33: N/A | BR33: N/A | BS33: N/A | BT33: N/A | BU33: N/A
B34: No | C34: N/A | D34: N/A | E34: N/A | F34: N/A | G34: N/A | H34: N/A | I34: N/A | J34: N/A | K34: N/A | L34: N/A | M34: N/A | N34: N/A | O34: N/A | P34: N/A | Q34: N/A | R34: N/A | S34: N/A | T34: N/A | U34: N/A | BB34: No | BC34: N/A | BD34: N/A | BE34: N/A | BF34: N/A | BG34: N/A | BH34: N/A | BI34: N/A | BJ34: N/A | BK34: N/A | BL34: N/A | BM34: N/A | BN34: N/A | BO34: N/A | BP34: N/A | BQ34: N/A | BR34: N/A | BS34: N/A | BT34: N/A | BU34: N/A
A35: Water source on premises | B35: Yes | C35: 4.4 | D35: 7.8 | E35: 15.4 | F35: 29.4 | G35: 73.6 | H35: 34.8 | I35: 53 | J35: 76.8 | K35: 84.9 | L35: 93 | M35: 4.2 | N35: 6.3 | O35: 10.1 | P35: 11.8 | Q35: 40.6 | R35: 30.8 | S35: 26.5 | T35: 32.2 | U35: 11.7 | BA35: Water source on premises | BB35: Yes | BC35: N/A | BD35: N/A | BE35: N/A | BF35: N/A | BG35: N/A | BH35: N/A | BI35: N/A | BJ35: N/A | BK35: N/A | BL35: N/A | BM35: N/A | BN35: N/A | BO35: N/A | BP35: N/A | BQ35: N/A | BR35: N/A | BS35: N/A | BT35: N/A | BU35: N/A
B36: No | C36: 95.6 | D36: 92.2 | E36: 84.6 | F36: 70.6 | G36: 26.4 | H36: 65.2 | I36: 47 | J36: 23.2 | K36: 15.1 | L36: 7 | M36: 95.8 | N36: 93.7 | O36: 89.9 | P36: 88.2 | Q36: 59.4 | R36: 69.2 | S36: 73.5 | T36: 67.8 | U36: 88.3 | BB36: No | BC36: N/A | BD36: N/A | BE36: N/A | BF36: N/A | BG36: N/A | BH36: N/A | BI36: N/A | BJ36: N/A | BK36: N/A | BL36: N/A | BM36: N/A | BN36: N/A | BO36: N/A | BP36: N/A | BQ36: N/A | BR36: N/A | BS36: N/A | BT36: N/A | BU36: N/A
A37: Improved Water source on premises | B37: Yes | C37: 4.1 | D37: 7.6 | E37: 14.7 | F37: 29 | G37: 73.2 | H37: 34.6 | I37: 52.2 | J37: 76.8 | K37: 84.9 | L37: 92.8 | M37: 3.8 | N37: 6.1 | O37: 9.5 | P37: 11.4 | Q37: 40 | R37: 30.4 | S37: 26.1 | T37: 31.8 | U37: 11.3 | BA37: Improved water source on premises | BB37: Yes | BC37: N/A | BD37: N/A | BE37: N/A | BF37: N/A | BG37: N/A | BH37: N/A | BI37: N/A | BJ37: N/A | BK37: N/A | BL37: N/A | BM37: N/A | BN37: N/A | BO37: N/A | BP37: N/A | BQ37: N/A | BR37: N/A | BS37: N/A | BT37: N/A | BU37: N/A
B38: No | C38: 95.9 | D38: 92.4 | E38: 85.3 | F38: 71 | G38: 26.8 | H38: 65.4 | I38: 47.8 | J38: 23.2 | K38: 15.1 | L38: 7.2 | M38: 96.2 | N38: 93.9 | O38: 90.5 | P38: 88.6 | Q38: 60 | R38: 69.6 | S38: 73.9 | T38: 68.2 | U38: 88.7 | BB38: No | BC38: N/A | BD38: N/A | BE38: N/A | BF38: N/A | BG38: N/A | BH38: N/A | BI38: N/A | BJ38: N/A | BK38: N/A | BL38: N/A | BM38: N/A | BN38: N/A | BO38: N/A | BP38: N/A | BQ38: N/A | BR38: N/A | BS38: N/A | BT38: N/A | BU38: N/A
A39: Piped water on premises available when needed | B39: Yes | C39: N/A | D39: N/A | E39: N/A | F39: N/A | G39: N/A | H39: N/A | I39: N/A | J39: N/A | K39: N/A | L39: N/A | M39: N/A | N39: N/A | O39: N/A | P39: N/A | Q39: N/A | R39: N/A | S39: N/A | T39: N/A | U39: N/A | BA39: Piped water on premises available when needed | BB39: Yes | BC39: N/A | BD39: N/A | BE39: N/A | BF39: N/A | BG39: N/A | BH39: N/A | BI39: N/A | BJ39: N/A | BK39: N/A | BL39: N/A | BM39: N/A | BN39: N/A | BO39: N/A | BP39: N/A | BQ39: N/A | BR39: N/A | BS39: N/A | BT39: N/A | BU39: N/A
B40: No | C40: N/A | D40: N/A | E40: N/A | F40: N/A | G40: N/A | H40: N/A | I40: N/A | J40: N/A | K40: N/A | L40: N/A | M40: N/A | N40: N/A | O40: N/A | P40: N/A | Q40: N/A | R40: N/A | S40: N/A | T40: N/A | U40: N/A | BB40: No | BC40: N/A | BD40: N/A | BE40: N/A | BF40: N/A | BG40: N/A | BH40: N/A | BI40: N/A | BJ40: N/A | BK40: N/A | BL40: N/A | BM40: N/A | BN40: N/A | BO40: N/A | BP40: N/A | BQ40: N/A | BR40: N/A | BS40: N/A | BT40: N/A | BU40: N/A
A41: Water point at more than 30 minutes | B41: Yes | C41: 30.2 | D41: 22.5 | E41: 19.6 | F41: 17.2 | G41: 3.9 | H41: 7.5 | I41: 5.2 | J41: 1.9 | K41: 0.3 | L41: 1.5 | M41: 31.2 | N41: 23.8 | O41: 20.6 | P41: 25.4 | Q41: 13.5 | R41: 14.8 | S41: 26.8 | T41: 13.4 | U41: 23 | BA41: Water point at more than 30 minutes | BB41: Yes | BC41: N/A | BD41: N/A | BE41: N/A | BF41: N/A | BG41: N/A | BH41: N/A | BI41: N/A | BJ41: N/A | BK41: N/A | BL41: N/A | BM41: N/A | BN41: N/A | BO41: N/A | BP41: N/A | BQ41: N/A | BR41: N/A | BS41: N/A | BT41: N/A | BU41: N/A
B42: No | C42: 69.8 | D42: 77.5 | E42: 80.4 | F42: 82.8 | G42: 96.1 | H42: 92.5 | I42: 94.8 | J42: 98.1 | K42: 99.7 | L42: 98.5 | M42: 68.8 | N42: 76.2 | O42: 79.4 | P42: 74.6 | Q42: 86.5 | R42: 85.2 | S42: 73.2 | T42: 86.6 | U42: 77 | BB42: No | BC42: N/A | BD42: N/A | BE42: N/A | BF42: N/A | BG42: N/A | BH42: N/A | BI42: N/A | BJ42: N/A | BK42: N/A | BL42: N/A | BM42: N/A | BN42: N/A | BO42: N/A | BP42: N/A | BQ42: N/A | BR42: N/A | BS42: N/A | BT42: N/A | BU42: N/A
A43: Water source available when needed | B43: Yes | C43: N/A | D43: N/A | E43: N/A | F43: N/A | G43: N/A | H43: N/A | I43: N/A | J43: N/A | K43: N/A | L43: N/A | M43: N/A | N43: N/A | O43: N/A | P43: N/A | Q43: N/A | R43: N/A | S43: N/A | T43: N/A | U43: N/A | BA43: Water source available when needed | BB43: Yes | BC43: N/A | BD43: N/A | BE43: N/A | BF43: N/A | BG43: N/A | BH43: N/A | BI43: N/A | BJ43: N/A | BK43: N/A | BL43: N/A | BM43: N/A | BN43: N/A | BO43: N/A | BP43: N/A | BQ43: N/A | BR43: N/A | BS43: N/A | BT43: N/A | BU43: N/A
B44: No | C44: N/A | D44: N/A | E44: N/A | F44: N/A | G44: N/A | H44: N/A | I44: N/A | J44: N/A | K44: N/A | L44: N/A | M44: N/A | N44: N/A | O44: N/A | P44: N/A | Q44: N/A | R44: N/A | S44: N/A | T44: N/A | U44: N/A | BB44: No | BC44: N/A | BD44: N/A | BE44: N/A | BF44: N/A | BG44: N/A | BH44: N/A | BI44: N/A | BJ44: N/A | BK44: N/A | BL44: N/A | BM44: N/A | BN44: N/A | BO44: N/A | BP44: N/A | BQ44: N/A | BR44: N/A | BS44: N/A | BT44: N/A | BU44: N/A
A45: Improved water source available when needed | B45: Yes | C45: N/A | D45: N/A | E45: N/A | F45: N/A | G45: N/A | H45: N/A | I45: N/A | J45: N/A | K45: N/A | L45: N/A | M45: N/A | N45: N/A | O45: N/A | P45: N/A | Q45: N/A | R45: N/A | S45: N/A | T45: N/A | U45: N/A | BA45: Improved water source available when needed | BB45: Yes | BC45: N/A | BD45: N/A | BE45: N/A | BF45: N/A | BG45: N/A | BH45: N/A | BI45: N/A | BJ45: N/A | BK45: N/A | BL45: N/A | BM45: N/A | BN45: N/A | BO45: N/A | BP45: N/A | BQ45: N/A | BR45: N/A | BS45: N/A | BT45: N/A | BU45: N/A
B46: No | C46: N/A | D46: N/A | E46: N/A | F46: N/A | G46: N/A | H46: N/A | I46: N/A | J46: N/A | K46: N/A | L46: N/A | M46: N/A | N46: N/A | O46: N/A | P46: N/A | Q46: N/A | R46: N/A | S46: N/A | T46: N/A | U46: N/A | BB46: No | BC46: N/A | BD46: N/A | BE46: N/A | BF46: N/A | BG46: N/A | BH46: N/A | BI46: N/A | BJ46: N/A | BK46: N/A | BL46: N/A | BM46: N/A | BN46: N/A | BO46: N/A | BP46: N/A | BQ46: N/A | BR46: N/A | BS46: N/A | BT46: N/A | BU46: N/A
A47: Microbiological quality at point of collection | B47: Not contaminated (No E. coli in 100 mL) | C47: N/A | D47: N/A | E47: N/A | F47: N/A | G47: N/A | H47: N/A | I47: N/A | J47: N/A | K47: N/A | L47: N/A | M47: N/A | N47: N/A | O47: N/A | P47: N/A | Q47: N/A | R47: N/A | S47: N/A | T47: N/A | U47: N/A | BA47: Microbiological quality at point of collection | BB47: Not contaminated (No E. coli in 100 mL) | BC47: N/A | BD47: N/A | BE47: N/A | BF47: N/A | BG47: N/A | BH47: N/A | BI47: N/A | BJ47: N/A | BK47: N/A | BL47: N/A | BM47: N/A | BN47: N/A | BO47: N/A | BP47: N/A | BQ47: N/A | BR47: N/A | BS47: N/A | BT47: N/A | BU47: N/A
B48: Contaminated (E. coli detected in 100 mL) | C48: N/A | D48: N/A | E48: N/A | F48: N/A | G48: N/A | H48: N/A | I48: N/A | J48: N/A | K48: N/A | L48: N/A | M48: N/A | N48: N/A | O48: N/A | P48: N/A | Q48: N/A | R48: N/A | S48: N/A | T48: N/A | U48: N/A | BB48: Contaminated (E. coli detected in 100 mL) | BC48: N/A | BD48: N/A | BE48: N/A | BF48: N/A | BG48: N/A | BH48: N/A | BI48: N/A | BJ48: N/A | BK48: N/A | BL48: N/A | BM48: N/A | BN48: N/A | BO48: N/A | BP48: N/A | BQ48: N/A | BR48: N/A | BS48: N/A | BT48: N/A | BU48: N/A
B49: Highly contaminated (>100 CFU/100 mL) | C49: N/A | D49: N/A | E49: N/A | F49: N/A | G49: N/A | H49: N/A | I49: N/A | J49: N/A | K49: N/A | L49: N/A | M49: N/A | N49: N/A | O49: N/A | P49: N/A | Q49: N/A | R49: N/A | S49: N/A | T49: N/A | U49: N/A | BB49: Highly contaminated (>100 CFU/100 mL) | BC49: N/A | BD49: N/A | BE49: N/A | BF49: N/A | BG49: N/A | BH49: N/A | BI49: N/A | BJ49: N/A | BK49: N/A | BL49: N/A | BM49: N/A | BN49: N/A | BO49: N/A | BP49: N/A | BQ49: N/A | BR49: N/A | BS49: N/A | BT49: N/A | BU49: N/A
A50: Microbiological quality of improved water sources at point of collection | B50: Not contaminated (No E. coli in 100 mL) | C50: N/A | D50: N/A | E50: N/A | F50: N/A | G50: N/A | H50: N/A | I50: N/A | J50: N/A | K50: N/A | L50: N/A | M50: N/A | N50: N/A | O50: N/A | P50: N/A | Q50: N/A | R50: N/A | S50: N/A | T50: N/A | U50: N/A | BA50: Microbiological quality of improved water sources at point of collection | BB50: Not contaminated (No E. coli in 100 mL) | BC50: N/A | BD50: N/A | BE50: N/A | BF50: N/A | BG50: N/A | BH50: N/A | BI50: N/A | BJ50: N/A | BK50: N/A | BL50: N/A | BM50: N/A | BN50: N/A | BO50: N/A | BP50: N/A | BQ50: N/A | BR50: N/A | BS50: N/A | BT50: N/A | BU50: N/A
B51: Contaminated (E. coli detected in 100 mL) | C51: N/A | D51: N/A | E51: N/A | F51: N/A | G51: N/A | H51: N/A | I51: N/A | J51: N/A | K51: N/A | L51: N/A | M51: N/A | N51: N/A | O51: N/A | P51: N/A | Q51: N/A | R51: N/A | S51: N/A | T51: N/A | U51: N/A | BB51: Contaminated (E. coli detected in 100 mL) | BC51: N/A | BD51: N/A | BE51: N/A | BF51: N/A | BG51: N/A | BH51: N/A | BI51: N/A | BJ51: N/A | BK51: N/A | BL51: N/A | BM51: N/A | BN51: N/A | BO51: N/A | BP51: N/A | BQ51: N/A | BR51: N/A | BS51: N/A | BT51: N/A | BU51: N/A
B52: Highly contaminated (>100 CFU/100 mL) | C52: N/A | D52: N/A | E52: N/A | F52: N/A | G52: N/A | H52: N/A | I52: N/A | J52: N/A | K52: N/A | L52: N/A | M52: N/A | N52: N/A | O52: N/A | P52: N/A | Q52: N/A | R52: N/A | S52: N/A | T52: N/A | U52: N/A | BB52: Highly contaminated (>100 CFU/100 mL) | BC52: N/A | BD52: N/A | BE52: N/A | BF52: N/A | BG52: N/A | BH52: N/A | BI52: N/A | BJ52: N/A | BK52: N/A | BL52: N/A | BM52: N/A | BN52: N/A | BO52: N/A | BP52: N/A | BQ52: N/A | BR52: N/A | BS52: N/A | BT52: N/A | BU52: N/A
A53: Microbiological quality of piped on premises at point of collection | B53: Not contaminated (No E. coli in 100 mL) | C53: N/A | D53: N/A | E53: N/A | F53: N/A | G53: N/A | H53: N/A | I53: N/A | J53: N/A | K53: N/A | L53: N/A | M53: N/A | N53: N/A | O53: N/A | P53: N/A | Q53: N/A | R53: N/A | S53: N/A | T53: N/A | U53: N/A | BA53: Microbiological quality of piped on premises at point of collection | BB53: Not contaminated (No E. coli in 100 mL) | BC53: N/A | BD53: N/A | BE53: N/A | BF53: N/A | BG53: N/A | BH53: N/A | BI53: N/A | BJ53: N/A | BK53: N/A | BL53: N/A | BM53: N/A | BN53: N/A | BO53: N/A | BP53: N/A | BQ53: N/A | BR53: N/A | BS53: N/A | BT53: N/A | BU53: N/A
B54: Contaminated (E. coli detected in 100 mL) | C54: N/A | D54: N/A | E54: N/A | F54: N/A | G54: N/A | H54: N/A | I54: N/A | J54: N/A | K54: N/A | L54: N/A | M54: N/A | N54: N/A | O54: N/A | P54: N/A | Q54: N/A | R54: N/A | S54: N/A | T54: N/A | U54: N/A | BB54: Contaminated (E. coli detected in 100 mL) | BC54: N/A | BD54: N/A | BE54: N/A | BF54: N/A | BG54: N/A | BH54: N/A | BI54: N/A | BJ54: N/A | BK54: N/A | BL54: N/A | BM54: N/A | BN54: N/A | BO54: N/A | BP54: N/A | BQ54: N/A | BR54: N/A | BS54: N/A | BT54: N/A | BU54: N/A
B55: Highly contaminated (>100 CFU/100 mL) | C55: N/A | D55: N/A | E55: N/A | F55: N/A | G55: N/A | H55: N/A | I55: N/A | J55: N/A | K55: N/A | L55: N/A | M55: N/A | N55: N/A | O55: N/A | P55: N/A | Q55: N/A | R55: N/A | S55: N/A | T55: N/A | U55: N/A | BB55: Highly contaminated (>100 CFU/100 mL) | BC55: N/A | BD55: N/A | BE55: N/A | BF55: N/A | BG55: N/A | BH55: N/A | BI55: N/A | BJ55: N/A | BK55: N/A | BL55: N/A | BM55: N/A | BN55: N/A | BO55: N/A | BP55: N/A | BQ55: N/A | BR55: N/A | BS55: N/A | BT55: N/A | BU55: N/A
C56: NATIONAL wealth index quintile | H56: URBAN wealth index quintile | M56: RURAL wealth index quintile | R56: SUB-REGIONS: | BA56: Raw numbers of respondents: | BB56: Use of drinking water sources | BC56: NATIONAL wealth index quintile | BH56: URBAN wealth index quintile | BM56: RURAL wealth index quintile | BR56: SUB-REGIONS:
A57: Percentage based on weighted population | C57: Poorest | D57: Poor | E57: Middle | F57: Rich | G57: Richest | H57: Poorest | I57: Poor | J57: Middle | K57: Rich | L57: Richest | M57: Poorest | N57: Poor | O57: Middle | P57: Rich | Q57: Richest | R57: Hhohho | S57: Lubombo | T57: Manzini | U57: Shiselweni | BA57: Water data, raw numbers (weighted) | BC57: Poorest | BD57: Poor | BE57: Middle | BF57: Rich | BG57: Richest | BH57: Poorest | BI57: Poor | BJ57: Middle | BK57: Rich | BL57: Richest | BM57: Poorest | BN57: Poor | BO57: Middle | BP57: Rich | BQ57: Richest | BR57: Hhohho | BS57: Lubombo | BT57: Manzini | BU57: Shiselweni
A58: Main source of water | B58: Piped into dwelling | C58: 0.5427702996 | D58: 1.323497505 | E58: 3.523270987 | F58: 8.67768595 | G58: 50.08688097 | H58: 7.252298264 | I58: 18.75637105 | J58: 39.85801217 | K58: 62.8950051 | L58: 84.91335372 | M58: 0.5239933811 | N58: 1.339412938 | O58: 1.603849238 | P58: 2.852395458 | Q58: 17.29281768 | R58: 16.6932144 | S58: 16.76797317 | T58: 12.16823785 | U58: 5.245513705
B59: Piped into yard or plot | C59: 2.887537994 | D59: 6.161857236 | E59: 9.830361027 | F59: 18.57329274 | G59: 20.72111208 | H59: 25.94484168 | I59: 32.21202854 | J59: 34.98985801 | K59: 21.50866463 | L59: 6.523955148 | M59: 2.647545505 | N59: 4.559703619 | O59: 7.16385993 | P59: 6.646358349 | Q59: 19.97237569 | R59: 12.80662631 | S59: 7.440788095 | T59: 18.34662799 | U59: 4.989154013
B60: Public tap | C60: 13.00477638 | D60: 17.1620742 | E60: 21.70508917 | F60: 22.70552414 | G60: 9.795829713 | H60: 38.61082737 | I60: 20.38735984 | J60: 12.77890467 | K60: 9.276248726 | L60: 2.242609582 | M60: 12.35521236 | N60: 15.21801083 | O60: 18.49772788 | P60: 20.43755192 | Q60: 18.06629834 | R60: 16.64542848 | S60: 16.28589394 | T60: 12.63234228 | U60: 23.46677184
B61: Tubewell/borehole with pump | C61: 6.817194963 | D61: 4.27424604 | E61: 3.849499783 | F61: 4.567203132 | G61: 2.389226759 | H61: 0 | I61: 1.732925586 | J61: 1.115618661 | K61: 0.1019367992 | L61: 0.8154943935 | M61: 6.784335356 | N61: 4.303220291 | O61: 4.918470997 | P61: 5.067848241 | Q61: 5.718232044 | R61: 4.571519592 | S61: 7.713267659 | T61: 3.074691806 | U61: 2.780516663
B62: Protected dug well/spring | C62: 5.102040816 | D62: 7.767411586 | E62: 5.611135276 | F62: 6.176598521 | G62: 2.780191138 | H62: 3.779366701 | I62: 6.014271152 | J62: 1.825557809 | K62: 0.8154943935 | L62: 0 | M62: 4.826254826 | N62: 7.979481334 | O62: 5.47981823 | P62: 7.477153143 | Q62: 5.828729282 | R62: 6.052883084 | S62: 2.955355271 | T62: 2.784626541 | U62: 10.84598698
B63: 6 | C63: 0 | D63: 0 | E63: 0 | F63: 0 | G63: 0.1954821894 | H63: 0 | I63: 0 | J63: 0 | K63: 0 | L63: 0 | M63: 0 | N63: 0 | O63: 0 | P63: 0 | Q63: 0.2486187845 | R63: 0 | S63: 0.1886396982 | T63: 0 | U63: 0
B64: Rainwater collection | C64: 0.4342162397 | D64: 0.108483402 | E64: 0.5219660722 | F64: 0.6959547629 | G64: 0.08688097307 | H64: 1.02145046 | I64: 0 | J64: 0 | K64: 0 | L64: 0 | M64: 0.5515719801 | N64: 0 | O64: 0.3742314889 | P64: 0.3323179175 | Q64: 0.8011049724 | R64: 0.09557183817 | S64: 1.299517921 | T64: 0.188542422 | U64: 0.07887990534
B65: Unprotected dug well/spring | C65: 15.24099001 | D65: 15.59991321 | E65: 17.81209221 | F65: 14.9630274 | G65: 5.060816681 | H65: 6.33299285 | I65: 5.504587156 | J65: 5.273833671 | K65: 2.854230377 | L65: 1.936799185 | M65: 16.6023166 | N65: 13.25163864 | O65: 19.37984496 | P65: 19.30213237 | Q65: 12.62430939 | R65: 17.21885951 | S65: 8.195346887 | T65: 10.25380711 | U65: 19.36501676
B66: Pond, river or stream | C66: 53.03951368 | D66: 45.10739857 | E66: 34.84123532 | F66: 21.57459765 | G66: 7.232841008 | H66: 8.069458631 | I66: 11.51885831 | J66: 1.115618661 | K66: 2.038735984 | L66: 2.956167176 | M66: 52.7302813 | N66: 50.41322314 | O66: 41.61988773 | P66: 36.69343672 | Q66: 17.51381215 | R66: 24.8805352 | S66: 37.70697967 | T66: 37.5924583 | U66: 29.5010846
B67: Tanker truck vendor | C67: 0.2605297438 | D67: 0.6509004122 | E67: 1.522401044 | F67: 1.239669421 | G67: 1.020851434 | H67: 7.150153218 | I67: 2.956167176 | J67: 2.332657201 | K67: 0.1019367992 | L67: 0.1019367992 | M67: 0 | N67: 0.5984611 | O67: 0.2405773857 | P67: 0.6646358349 | Q67: 1.049723757 | R67: 0.1752150366 | S67: 1.089918256 | T67: 2.102973169 | U67: 0.1577598107
B68: Other | C68: 1.215805471 | D68: 0.7159904535 | E68: 0.4784688995 | F68: 0.6742061766 | G68: 0.5212858384 | H68: 1.634320735 | I68: 0.9174311927 | J68: 0.7099391481 | K68: 0.1019367992 | L68: 0.3058103976 | M68: 1.37892995 | N68: 0.9974351667 | O68: 0.3475006683 | P68: 0.1938521185 | Q68: 0.6906077348 | R68: 0.6849315068 | S68: 0.2095996646 | T68: 0.5946337926 | U68: 1.419838296
B69: Don't know | C69: 1.454624403 | D69: 1.128227381 | E69: 0.3044802088 | F69: 0.1522401044 | G69: 0.1086012163 | H69: 0.2042900919 | I69: 0 | J69: 0 | K69: 0.3058103976 | L69: 0.2038735984 | M69: 1.599558742 | N69: 1.339412938 | O69: 0.3742314889 | P69: 0.3323179175 | Q69: 0.1933701657 | R69: 0.1752150366 | S69: 0.1467197652 | T69: 0.2610587382 | U69: 2.149477421
A108: =A1026 -> Eswatini
A109: =A1034 -> 2000
A110: Use of sanitation facilities
A111: by wealth quintile and sub-national region
A112: Notes:
A113: WHO/UNICEF JMP customised wealth index excludes water,
A114: sanitation and hygiene assets.
A115: Survey used for analysis: | B115: =A1025 -> MICS00
A116: =B1030 -> Ratio of Improved latrines based on:
A117: =B1029 -> 
A120: Use of sanitation facilities | C120: NATIONAL wealth index quintile | H120: URBAN wealth index quintile | M120: RURAL wealth index quintile | R120: SUB-REGIONS: | BA120: Raw numbers of respondents: | BB120: Use of sanitation facilities | BC120: NATIONAL wealth index quintile | BH120: URBAN wealth index quintile | BM120: RURAL wealth index quintile | BR120: SUB-REGIONS:
A121: Weighted percentage (used in graphs) | C121: Poorest | D121: Poor | E121: Middle | F121: Rich | G121: Richest | H121: Poorest | I121: Poor | J121: Middle | K121: Rich | L121: Richest | M121: Poorest | N121: Poor | O121: Middle | P121: Rich | Q121: Richest | R121: Hhohho | S121: Lubombo | T121: Manzini | U121: Shiselweni | BA121: Sanitation data, raw numbers (weighted) | BC121: Poorest | BD121: Poor | BE121: Middle | BF121: Rich | BG121: Richest | BH121: Poorest | BI121: Poor | BJ121: Middle | BK121: Rich | BL121: Richest | BM121: Poorest | BN121: Poor | BO121: Middle | BP121: Rich | BQ121: Richest | BR121: Hhohho | BS121: Lubombo | BT121: Manzini | BU121: Shiselweni
A122: Sanitation | B122: Improved | C122: =C153+C154+C155+C156*MICS10!C130/100 -> 33.49621973 | D122: =D153+D154+D155+D156*MICS10!D130/100 -> 54.65491723 | E122: =E153+E154+E155+E156*MICS10!E130/100 -> 69.94421973 | F122: =F153+F154+F155+F156*MICS10!F130/100 -> 83.27169729 | G122: =G153+G154+G155+G156*MICS10!G130/100 -> 97.23940025 | H122: =H153+H154+H155+H156*MICS10!H130/100 -> 78.95615199 | I122: =I153+I154+I155+I156*MICS10!I130/100 -> 90.23470119 | J122: =J153+J154+J155+J156*MICS10!J130/100 -> 98.18039429 | K122: =K153+K154+K155+K156*MICS10!K130/100 -> 98.48389989 | L122: =L153+L154+L155+L156*MICS10!L130/100 -> 99.79508197 | M122: =M153+M154+M155+M156*MICS10!M130/100 -> 31.66226475 | N122: =N153+N154+N155+N156*MICS10!N130/100 -> 47.78341063 | O122: =O153+O154+O155+O156*MICS10!O130/100 -> 63.16939648 | P122: =P153+P154+P155+P156*MICS10!P130/100 -> 70.92314326 | Q122: =Q153+Q154+Q155+Q156*MICS10!Q130/100 -> 89.76898008 | R122: =R153+R154+R155+R156*MICS10!R130/100 -> 68.68486696 | S122: =S153+S154+S155+S156*MICS10!S130/100 -> 55.67566381 | T122: =T153+T154+T155+T156*MICS10!T130/100 -> 77.31085041 | U122: =U153+U154+U155+U156*MICS10!U130/100 -> 62.6162236 | BA122: Sanitation | BB122: Improved | BC122: N/A | BD122: N/A | BE122: N/A | BF122: N/A | BG122: N/A | BH122: N/A | BI122: N/A | BJ122: N/A | BK122: N/A | BL122: N/A | BM122: N/A | BN122: N/A | BO122: N/A | BP122: N/A | BQ122: N/A | BR122: N/A | BS122: N/A | BT122: N/A | BU122: N/A
B123: Not Improved | C123: =100-C122 -> 66.50378027 | D123: =100-D122 -> 45.34508277 | E123: 30.05578027 | F123: 16.72830271 | G123: 2.760599749 | H123: 21.04384801 | I123: 9.765298815 | J123: 1.819605711 | K123: 1.51610011 | L123: 0.2049180328 | M123: 68.33773525 | N123: 52.21658937 | O123: 36.83060352 | P123: 29.07685674 | Q123: 10.23101992 | R123: 31.31513304 | S123: 44.32433619 | T123: 22.68914959 | U123: 37.3837764 | BB123: Not Improved | BC123: N/A | BD123: N/A | BE123: N/A | BF123: N/A | BG123: N/A | BH123: N/A | BI123: N/A | BJ123: N/A | BK123: N/A | BL123: N/A | BM123: N/A | BN123: N/A | BO123: N/A | BP123: N/A | BQ123: N/A | BR123: N/A | BS123: N/A | BT123: N/A | BU123: N/A
A124: Sanitation ladder | B124: Basic | C124: =C122*MICS10!C129/100 -> 24.98371224 | D124: =D122*MICS10!D129/100 -> 37.18607176 | E124: =E122*MICS10!E129/100 -> 43.53396491 | F124: =F122*MICS10!F129/100 -> 55.9264353 | G124: =G122*MICS10!G129/100 -> 71.46632648 | H124: =H122*MICS10!H129/100 -> 17.67545959 | I124: =I122*MICS10!I129/100 -> 36.57916058 | J124: =J122*MICS10!J129/100 -> 44.74271086 | K124: =K122*MICS10!K129/100 -> 65.3707903 | L124: =L122*MICS10!L129/100 -> 87.87901963 | M124: =M122*MICS10!M129/100 -> 24.46930629 | N124: =N122*MICS10!N129/100 -> 36.35521659 | O124: =O122*MICS10!O129/100 -> 46.25087086 | P124: =P122*MICS10!P129/100 -> 50.56952946 | Q124: =Q122*MICS10!Q129/100 -> 68.6407484 | R124: =R122*MICS10!R129/100 -> 46.88974072 | S124: =S122*MICS10!S129/100 -> 42.86398896 | T124: =T122*MICS10!T129/100 -> 46.84581951 | U124: =U122*MICS10!U129/100 -> 47.11826187 | BA124: Sanitation ladder | BB124: Basic | BC124: N/A | BD124: N/A | BE124: N/A | BF124: N/A | BG124: N/A | BH124: N/A | BI124: N/A | BJ124: N/A | BK124: N/A | BL124: N/A | BM124: N/A | BN124: N/A | BO124: N/A | BP124: N/A | BQ124: N/A | BR124: N/A | BS124: N/A | BT124: N/A | BU124: N/A
B125: Limited | C125: =C122*MICS10!C128/100 -> 8.512507494 | D125: =D122*MICS10!D128/100 -> 17.46884546 | E125: =E122*MICS10!E128/100 -> 26.41025482 | F125: =F122*MICS10!F128/100 -> 27.34526199 | G125: =G122*MICS10!G128/100 -> 25.77307378 | H125: =H122*MICS10!H128/100 -> 61.28069241 | I125: =I122*MICS10!I128/100 -> 53.6555406 | J125: =J122*MICS10!J128/100 -> 53.43768343 | K125: =K122*MICS10!K128/100 -> 33.11310959 | L125: =L122*MICS10!L128/100 -> 11.91606234 | M125: =M122*MICS10!M128/100 -> 7.19295846 | N125: =N122*MICS10!N128/100 -> 11.42819404 | O125: =O122*MICS10!O128/100 -> 16.91852562 | P125: =P122*MICS10!P128/100 -> 20.3536138 | Q125: =Q122*MICS10!Q128/100 -> 21.12823168 | R125: =R122*MICS10!R128/100 -> 21.79512624 | S125: =S122*MICS10!S128/100 -> 12.81167485 | T125: =T122*MICS10!T128/100 -> 30.4650309 | U125: =U122*MICS10!U128/100 -> 15.49796173 | BB125: Limited | BC125: N/A | BD125: N/A | BE125: N/A | BF125: N/A | BG125: N/A | BH125: N/A | BI125: N/A | BJ125: N/A | BK125: N/A | BL125: N/A | BM125: N/A | BN125: N/A | BO125: N/A | BP125: N/A | BQ125: N/A | BR125: N/A | BS125: N/A | BT125: N/A | BU125: N/A
B126: Unimproved | C126: =100-(C124+C125+C127) -> 11.65734158 | D126: =100-(D124+D125+D127) -> 7.738245165 | E126: 7.576513573 | F126: 5.634177354 | G126: 1.845168188 | H126: 13.6894047 | I126: 4.862336609 | J126: 1.311991498 | K126: 1.209351644 | L126: 0.2049180328 | M126: 12.10153216 | N126: 8.053277121 | O126: 7.342732905 | P126: 6.453176918 | Q126: 4.558049948 | R126: 5.070716955 | S126: 10.66744655 | T126: 6.721902915 | U126: 8.0778638 | BB126: Unimproved | BC126: N/A | BD126: N/A | BE126: N/A | BF126: N/A | BG126: N/A | BH126: N/A | BI126: N/A | BJ126: N/A | BK126: N/A | BL126: N/A | BM126: N/A | BN126: N/A | BO126: N/A | BP126: N/A | BQ126: N/A | BR126: N/A | BS126: N/A | BT126: N/A | BU126: N/A
B127: Open defecation | C127: =C158 -> 54.84643868 | D127: =D158 -> 37.60683761 | E127: 22.4792667 | F127: 11.09412535 | G127: 0.9154315606 | H127: 7.354443309 | I127: 4.902962206 | J127: 0.5076142132 | K127: 0.3067484663 | L127: 0 | M127: 56.23620309 | N127: 44.16331225 | O127: 29.48787062 | P127: 22.62367982 | Q127: 5.672969967 | R127: 26.24441608 | S127: 33.65688964 | T127: 15.96724667 | U127: 29.3059126 | BB127: Open defecation | BC127: N/A | BD127: N/A | BE127: N/A | BF127: N/A | BG127: N/A | BH127: N/A | BI127: N/A | BJ127: N/A | BK127: N/A | BL127: N/A | BM127: N/A | BN127: N/A | BO127: N/A | BP127: N/A | BQ127: N/A | BR127: N/A | BS127: N/A | BT127: N/A | BU127: N/A
A128: Shared among Improved Sanitation | B128: Yes | C128: N/A | D128: N/A | E128: N/A | F128: N/A | G128: N/A | H128: N/A | I128: N/A | J128: N/A | K128: N/A | L128: N/A | M128: N/A | N128: N/A | O128: N/A | P128: N/A | Q128: N/A | R128: N/A | S128: N/A | T128: N/A | U128: N/A | BA128: Shared among improved sanitation facilities | BB128: Yes | BC128: N/A | BD128: N/A | BE128: N/A | BF128: N/A | BG128: N/A | BH128: N/A | BI128: N/A | BJ128: N/A | BK128: N/A | BL128: N/A | BM128: N/A | BN128: N/A | BO128: N/A | BP128: N/A | BQ128: N/A | BR128: N/A | BS128: N/A | BT128: N/A | BU128: N/A
B129: No | C129: N/A | D129: N/A | E129: N/A | F129: N/A | G129: N/A | H129: N/A | I129: N/A | J129: N/A | K129: N/A | L129: N/A | M129: N/A | N129: N/A | O129: N/A | P129: N/A | Q129: N/A | R129: N/A | S129: N/A | T129: N/A | U129: N/A | BB129: No | BC129: N/A | BD129: N/A | BE129: N/A | BF129: N/A | BG129: N/A | BH129: N/A | BI129: N/A | BJ129: N/A | BK129: N/A | BL129: N/A | BM129: N/A | BN129: N/A | BO129: N/A | BP129: N/A | BQ129: N/A | BR129: N/A | BS129: N/A | BT129: N/A | BU129: N/A
A130: Manually calculated ratios | B130: Improved latrines
B131: Other
B132: Other
C133: NATIONAL wealth index quintile | H133: URBAN wealth index quintile | M133: RURAL wealth index quintile | R133: SUB-REGIONS: | BA133: Raw numbers of respondents: | BB133: Use of sanitation facilities | BC133: NATIONAL wealth index quintile | BH133: URBAN wealth index quintile | BM133: RURAL wealth index quintile | BR133: SUB-REGIONS:
A134: Percentage based on weighted population | C134: Poorest | D134: Poor | E134: Middle | F134: Rich | G134: Richest | H134: Poorest | I134: Poor | J134: Middle | K134: Rich | L134: Richest | M134: Poorest | N134: Poor | O134: Middle | P134: Rich | Q134: Richest | R134: Hhohho | S134: Lubombo | T134: Manzini | U134: Shiselweni | BA134: Sanitation data, raw numbers (weighted) | BC134: Poorest | BD134: Poor | BE134: Middle | BF134: Rich | BG134: Richest | BH134: Poorest | BI134: Poor | BJ134: Middle | BK134: Rich | BL134: Richest | BM134: Poorest | BN134: Poor | BO134: Middle | BP134: Rich | BQ134: Richest | BR134: Hhohho | BS134: Lubombo | BT134: Manzini | BU134: Shiselweni
A135: Sanitation type | B135: Sewer connection | C135: N/A | D135: N/A | E135: N/A | F135: N/A | G135: N/A | H135: N/A | I135: N/A | J135: N/A | K135: N/A | L135: N/A | M135: N/A | N135: N/A | O135: N/A | P135: N/A | Q135: N/A | R135: N/A | S135: N/A | T135: N/A | U135: N/A | BA135: Sanitation type | BB135: Sewer connection | BC135: N/A | BD135: N/A | BE135: N/A | BF135: N/A | BG135: N/A | BH135: N/A | BI135: N/A | BJ135: N/A | BK135: N/A | BL135: N/A | BM135: N/A | BN135: N/A | BO135: N/A | BP135: N/A | BQ135: N/A | BR135: N/A | BS135: N/A | BT135: N/A | BU135: N/A
B136: Septic tank connection | C136: N/A | D136: N/A | E136: N/A | F136: N/A | G136: N/A | H136: N/A | I136: N/A | J136: N/A | K136: N/A | L136: N/A | M136: N/A | N136: N/A | O136: N/A | P136: N/A | Q136: N/A | R136: N/A | S136: N/A | T136: N/A | U136: N/A | BB136: Septic tank connection | BC136: N/A | BD136: N/A | BE136: N/A | BF136: N/A | BG136: N/A | BH136: N/A | BI136: N/A | BJ136: N/A | BK136: N/A | BL136: N/A | BM136: N/A | BN136: N/A | BO136: N/A | BP136: N/A | BQ136: N/A | BR136: N/A | BS136: N/A | BT136: N/A | BU136: N/A
B137: Improved latrines | C137: N/A | D137: N/A | E137: N/A | F137: N/A | G137: N/A | H137: N/A | I137: N/A | J137: N/A | K137: N/A | L137: N/A | M137: N/A | N137: N/A | O137: N/A | P137: N/A | Q137: N/A | R137: N/A | S137: N/A | T137: N/A | U137: N/A | BB137: Improved latrines | BC137: N/A | BD137: N/A | BE137: N/A | BF137: N/A | BG137: N/A | BH137: N/A | BI137: N/A | BJ137: N/A | BK137: N/A | BL137: N/A | BM137: N/A | BN137: N/A | BO137: N/A | BP137: N/A | BQ137: N/A | BR137: N/A | BS137: N/A | BT137: N/A | BU137: N/A
B138: Unimproved facilities | C138: N/A | D138: N/A | E138: N/A | F138: N/A | G138: N/A | H138: N/A | I138: N/A | J138: N/A | K138: N/A | L138: N/A | M138: N/A | N138: N/A | O138: N/A | P138: N/A | Q138: N/A | R138: N/A | S138: N/A | T138: N/A | U138: N/A | BB138: Unimproved facilities | BC138: N/A | BD138: N/A | BE138: N/A | BF138: N/A | BG138: N/A | BH138: N/A | BI138: N/A | BJ138: N/A | BK138: N/A | BL138: N/A | BM138: N/A | BN138: N/A | BO138: N/A | BP138: N/A | BQ138: N/A | BR138: N/A | BS138: N/A | BT138: N/A | BU138: N/A
B139: Open defecation | C139: =C158 -> 54.84643868 | D139: =D158 -> 37.60683761 | E139: 22.4792667 | F139: 11.09412535 | G139: 0.9154315606 | H139: 7.354443309 | I139: 4.902962206 | J139: 0.5076142132 | K139: 0.3067484663 | L139: 0 | M139: 56.23620309 | N139: 44.16331225 | O139: 29.48787062 | P139: 22.62367982 | Q139: 5.672969967 | R139: 26.24441608 | S139: 33.65688964 | T139: 15.96724667 | U139: 29.3059126 | BB139: Open defecation | BC139: N/A | BD139: N/A | BE139: N/A | BF139: N/A | BG139: N/A | BH139: N/A | BI139: N/A | BJ139: N/A | BK139: N/A | BL139: N/A | BM139: N/A | BN139: N/A | BO139: N/A | BP139: N/A | BQ139: N/A | BR139: N/A | BS139: N/A | BT139: N/A | BU139: N/A
A140: Septic tank emptying practices | B140: Not emptied/treated and disposed in situ | C140: N/A | D140: N/A | E140: N/A | F140: N/A | G140: N/A | H140: N/A | I140: N/A | J140: N/A | K140: N/A | L140: N/A | M140: N/A | N140: N/A | O140: N/A | P140: N/A | Q140: N/A | R140: N/A | S140: N/A | T140: N/A | U140: N/A | BA140: Septic tank emptying practices | BB140: Not emptied/treated and disposed in situ | BC140: N/A | BD140: N/A | BE140: N/A | BF140: N/A | BG140: N/A | BH140: N/A | BI140: N/A | BJ140: N/A | BK140: N/A | BL140: N/A | BM140: N/A | BN140: N/A | BO140: N/A | BP140: N/A | BQ140: N/A | BR140: N/A | BS140: N/A | BT140: N/A | BU140: N/A
B141: Emptied and buried on site | C141: N/A | D141: N/A | E141: N/A | F141: N/A | G141: N/A | H141: N/A | I141: N/A | J141: N/A | K141: N/A | L141: N/A | M141: N/A | N141: N/A | O141: N/A | P141: N/A | Q141: N/A | R141: N/A | S141: N/A | T141: N/A | U141: N/A | BB141: Emptied and buried on site | BC141: N/A | BD141: N/A | BE141: N/A | BF141: N/A | BG141: N/A | BH141: N/A | BI141: N/A | BJ141: N/A | BK141: N/A | BL141: N/A | BM141: N/A | BN141: N/A | BO141: N/A | BP141: N/A | BQ141: N/A | BR141: N/A | BS141: N/A | BT141: N/A | BU141: N/A
B142: Emptied and discharged locally | C142: N/A | D142: N/A | E142: N/A | F142: N/A | G142: N/A | H142: N/A | I142: N/A | J142: N/A | K142: N/A | L142: N/A | M142: N/A | N142: N/A | O142: N/A | P142: N/A | Q142: N/A | R142: N/A | S142: N/A | T142: N/A | U142: N/A | BB142: Emptied and discharged locally | BC142: N/A | BD142: N/A | BE142: N/A | BF142: N/A | BG142: N/A | BH142: N/A | BI142: N/A | BJ142: N/A | BK142: N/A | BL142: N/A | BM142: N/A | BN142: N/A | BO142: N/A | BP142: N/A | BQ142: N/A | BR142: N/A | BS142: N/A | BT142: N/A | BU142: N/A
B143: Emptied and removed offsite | C143: N/A | D143: N/A | E143: N/A | F143: N/A | G143: N/A | H143: N/A | I143: N/A | J143: N/A | K143: N/A | L143: N/A | M143: N/A | N143: N/A | O143: N/A | P143: N/A | Q143: N/A | R143: N/A | S143: N/A | T143: N/A | U143: N/A | BB143: Emptied and removed offsite | BC143: N/A | BD143: N/A | BE143: N/A | BF143: N/A | BG143: N/A | BH143: N/A | BI143: N/A | BJ143: N/A | BK143: N/A | BL143: N/A | BM143: N/A | BN143: N/A | BO143: N/A | BP143: N/A | BQ143: N/A | BR143: N/A | BS143: N/A | BT143: N/A | BU143: N/A
A144: Latrine emptying practices | B144: Not emptied/treated and disposed in situ | C144: N/A | D144: N/A | E144: N/A | F144: N/A | G144: N/A | H144: N/A | I144: N/A | J144: N/A | K144: N/A | L144: N/A | M144: N/A | N144: N/A | O144: N/A | P144: N/A | Q144: N/A | R144: N/A | S144: N/A | T144: N/A | U144: N/A | BA144: Latrine emptying practices | BB144: Not emptied/treated and disposed in situ | BC144: N/A | BD144: N/A | BE144: N/A | BF144: N/A | BG144: N/A | BH144: N/A | BI144: N/A | BJ144: N/A | BK144: N/A | BL144: N/A | BM144: N/A | BN144: N/A | BO144: N/A | BP144: N/A | BQ144: N/A | BR144: N/A | BS144: N/A | BT144: N/A | BU144: N/A
B145: Emptied and buried on site | C145: N/A | D145: N/A | E145: N/A | F145: N/A | G145: N/A | H145: N/A | I145: N/A | J145: N/A | K145: N/A | L145: N/A | M145: N/A | N145: N/A | O145: N/A | P145: N/A | Q145: N/A | R145: N/A | S145: N/A | T145: N/A | U145: N/A | BB145: Emptied and buried on site | BC145: N/A | BD145: N/A | BE145: N/A | BF145: N/A | BG145: N/A | BH145: N/A | BI145: N/A | BJ145: N/A | BK145: N/A | BL145: N/A | BM145: N/A | BN145: N/A | BO145: N/A | BP145: N/A | BQ145: N/A | BR145: N/A | BS145: N/A | BT145: N/A | BU145: N/A
B146: Emptied and discharged locally | C146: N/A | D146: N/A | E146: N/A | F146: N/A | G146: N/A | H146: N/A | I146: N/A | J146: N/A | K146: N/A | L146: N/A | M146: N/A | N146: N/A | O146: N/A | P146: N/A | Q146: N/A | R146: N/A | S146: N/A | T146: N/A | U146: N/A | BB146: Emptied and discharged locally | BC146: N/A | BD146: N/A | BE146: N/A | BF146: N/A | BG146: N/A | BH146: N/A | BI146: N/A | BJ146: N/A | BK146: N/A | BL146: N/A | BM146: N/A | BN146: N/A | BO146: N/A | BP146: N/A | BQ146: N/A | BR146: N/A | BS146: N/A | BT146: N/A | BU146: N/A
B147: Emptied and removed offsite | C147: N/A | D147: N/A | E147: N/A | F147: N/A | G147: N/A | H147: N/A | I147: N/A | J147: N/A | K147: N/A | L147: N/A | M147: N/A | N147: N/A | O147: N/A | P147: N/A | Q147: N/A | R147: N/A | S147: N/A | T147: N/A | U147: N/A | BB147: Emptied and removed offsite | BC147: N/A | BD147: N/A | BE147: N/A | BF147: N/A | BG147: N/A | BH147: N/A | BI147: N/A | BJ147: N/A | BK147: N/A | BL147: N/A | BM147: N/A | BN147: N/A | BO147: N/A | BP147: N/A | BQ147: N/A | BR147: N/A | BS147: N/A | BT147: N/A | BU147: N/A
A148: Shared among improved sanitation facilities | B148: Yes | C148: N/A | D148: N/A | E148: N/A | F148: N/A | G148: N/A | H148: N/A | I148: N/A | J148: N/A | K148: N/A | L148: N/A | M148: N/A | N148: N/A | O148: N/A | P148: N/A | Q148: N/A | R148: N/A | S148: N/A | T148: N/A | U148: N/A | BA148: Shared among improved sanitation facilities | BB148: Yes | BC148: N/A | BD148: N/A | BE148: N/A | BF148: N/A | BG148: N/A | BH148: N/A | BI148: N/A | BJ148: N/A | BK148: N/A | BL148: N/A | BM148: N/A | BN148: N/A | BO148: N/A | BP148: N/A | BQ148: N/A | BR148: N/A | BS148: N/A | BT148: N/A | BU148: N/A
B149: No | C149: N/A | D149: N/A | E149: N/A | F149: N/A | G149: N/A | H149: N/A | I149: N/A | J149: N/A | K149: N/A | L149: N/A | M149: N/A | N149: N/A | O149: N/A | P149: N/A | Q149: N/A | R149: N/A | S149: N/A | T149: N/A | U149: N/A | BB149: No | BC149: N/A | BD149: N/A | BE149: N/A | BF149: N/A | BG149: N/A | BH149: N/A | BI149: N/A | BJ149: N/A | BK149: N/A | BL149: N/A | BM149: N/A | BN149: N/A | BO149: N/A | BP149: N/A | BQ149: N/A | BR149: N/A | BS149: N/A | BT149: N/A | BU149: N/A
B150: DK/missing | C150: N/A | D150: N/A | E150: N/A | F150: N/A | G150: N/A | H150: N/A | I150: N/A | J150: N/A | K150: N/A | L150: N/A | M150: N/A | N150: N/A | O150: N/A | P150: N/A | Q150: N/A | R150: N/A | S150: N/A | T150: N/A | U150: N/A | BB150: DK/missing | BC150: N/A | BD150: N/A | BE150: N/A | BF150: N/A | BG150: N/A | BH150: N/A | BI150: N/A | BJ150: N/A | BK150: N/A | BL150: N/A | BM150: N/A | BN150: N/A | BO150: N/A | BP150: N/A | BQ150: N/A | BR150: N/A | BS150: N/A | BT150: N/A | BU150: N/A
A151: Shared among all sanitation facilities | B151: Yes | C151: N/A | D151: N/A | E151: N/A | F151: N/A | G151: N/A | H151: N/A | I151: N/A | J151: N/A | K151: N/A | L151: N/A | M151: N/A | N151: N/A | O151: N/A | P151: N/A | Q151: N/A | R151: N/A | S151: N/A | T151: N/A | U151: N/A | BA151: Shared among all sanitation facilities | BB151: Yes | BC151: N/A | BD151: N/A | BE151: N/A | BF151: N/A | BG151: N/A | BH151: N/A | BI151: N/A | BJ151: N/A | BK151: N/A | BL151: N/A | BM151: N/A | BN151: N/A | BO151: N/A | BP151: N/A | BQ151: N/A | BR151: N/A | BS151: N/A | BT151: N/A | BU151: N/A
B152: No | C152: N/A | D152: N/A | E152: N/A | F152: N/A | G152: N/A | H152: N/A | I152: N/A | J152: N/A | K152: N/A | L152: N/A | M152: N/A | N152: N/A | O152: N/A | P152: N/A | Q152: N/A | R152: N/A | S152: N/A | T152: N/A | U152: N/A | BB152: No | BC152: N/A | BD152: N/A | BE152: N/A | BF152: N/A | BG152: N/A | BH152: N/A | BI152: N/A | BJ152: N/A | BK152: N/A | BL152: N/A | BM152: N/A | BN152: N/A | BO152: N/A | BP152: N/A | BQ152: N/A | BR152: N/A | BS152: N/A | BT152: N/A | BU152: N/A
A153: Type of toilet facility | B153: Flush to sewage system/septic tank | C153: 0.3049444565 | D153: 0 | E153: 1.745962462 | F153: 9.565407294 | G153: 53.18221447 | H153: 8.784473953 | I153: 26.76200204 | J153: 49.23857868 | K153: 68.60940695 | L153: 84.22131148 | M153: 0.3863134658 | N153: 0 | O153: 0.08086253369 | P153: 1.000555864 | Q153: 16.49054505 | R153: 15.52329292 | S153: 18.61152142 | T153: 13.89091973 | U153: 3.302353174 | BA153: Type of toilet facility | BB153: Flush to sewage system/septic tank | BC153: 14 | BD153: 0 | BE153: 80 | BF153: 438 | BG153: 2440 | BH153: 86 | BI153: 262 | BJ153: 485 | BK153: 671 | BL153: 822 | BM153: 14 | BN153: 0 | BO153: 3 | BP153: 36 | BQ153: 593 | BR153: 973 | BS153: 882 | BT153: 950 | BU153: 167
B154: Pour flush latrine | C154: 0.2613809628 | D154: 0.328731098 | E154: 0.4364906155 | F154: 1.004586154 | G154: 3.269398431 | H154: 1.940755873 | I154: 2.451481103 | J154: 2.335025381 | K154: 1.63599182 | L154: 1.229508197 | M154: 0.3311258278 | N154: 0.2300172513 | O154: 0.1347708895 | P154: 0.5002779322 | Q154: 2.947719689 | R154: 1.579451181 | S154: 1.097277907 | T154: 0.9065652873 | U154: 0.5932370971 | BB154: Pour flush latrine | BC154: 12 | BD154: 15 | BE154: 20 | BF154: 46 | BG154: 150 | BH154: 19 | BI154: 24 | BJ154: 23 | BK154: 16 | BL154: 12 | BM154: 12 | BN154: 8 | BO154: 5 | BP154: 18 | BQ154: 106 | BR154: 99 | BS154: 52 | BT154: 62 | BU154: 30
B155: Improved pit latrine | C155: 8.516663036 | D155: 13.80670611 | E155: 18.68179834 | F155: 21.77331295 | G155: 17.76373147 | H155: 9.397344229 | I155: 14.30030644 | J155: 11.06598985 | K155: 11.14519427 | L155: 5.737704918 | M155: 8.802428256 | N155: 11.84588844 | O155: 17.33153639 | P155: 22.5958866 | Q155: 27.6974416 | R155: 14.24696873 | S155: 8.925933741 | T155: 13.4522591 | U155: 28.73245007 | BB155: Improved pit latrine | BC155: 391 | BD155: 630 | BE155: 856 | BF155: 997 | BG155: 815 | BH155: 92 | BI155: 140 | BJ155: 109 | BK155: 109 | BL155: 56 | BM155: 319 | BN155: 412 | BO155: 643 | BP155: 813 | BQ155: 996 | BR155: 893 | BS155: 423 | BT155: 920 | BU155: 1453
B156: Traditional pit latrine | C156: 32.43302113 | D156: 45.75936884 | E156: 54.51767787 | F156: 55.3395938 | G156: 24.3679163 | H156: 70.78651685 | I156: 50.45965271 | J156: 36.85279188 | K156: 17.48466258 | L156: 8.606557377 | M156: 29.71854305 | N156: 41.43185739 | O156: 51.32075472 | P156: 51.08393552 | Q156: 46.21802002 | R156: 42.00701978 | S156: 36.65330238 | T156: 54.04298874 | U156: 32.84556061 | BB156: Traditional pit latrine | BC156: 1489 | BD156: 2088 | BE156: 2498 | BF156: 2534 | BG156: 1118 | BH156: 693 | BI156: 494 | BJ156: 363 | BK156: 171 | BL156: 84 | BM156: 1077 | BN156: 1441 | BO156: 1904 | BP156: 1838 | BQ156: 1662 | BR156: 2633 | BS156: 1737 | BT156: 3696 | BU156: 1661
B157: Other | C157: 3.637551732 | D157: 2.498356345 | E157: 1.920558708 | F157: 1.201135619 | G157: 0.5013077594 | H157: 0.7150153218 | I157: 1.123595506 | J157: 0 | K157: 0.81799591 | L157: 0.2049180328 | M157: 4.525386313 | N157: 2.328924669 | O157: 1.644204852 | P157: 2.195664258 | Q157: 0.9454949944 | R157: 0.3828972559 | S157: 1.05507491 | T157: 1.593800263 | U157: 5.220486454 | BB157: Other | BC157: 167 | BD157: 114 | BE157: 88 | BF157: 55 | BG157: 23 | BH157: 7 | BI157: 11 | BJ157: 0 | BK157: 8 | BL157: 2 | BM157: 164 | BN157: 81 | BO157: 61 | BP157: 79 | BQ157: 34 | BR157: 24 | BS157: 50 | BT157: 109 | BU157: 264
B158: No facilities/bush/field | C158: 54.84643868 | D158: 37.60683761 | E158: 22.4792667 | F158: 11.09412535 | G158: 0.9154315606 | H158: 7.354443309 | I158: 4.902962206 | J158: 0.5076142132 | K158: 0.3067484663 | L158: 0 | M158: 56.23620309 | N158: 44.16331225 | O158: 29.48787062 | P158: 22.62367982 | Q158: 5.672969967 | R158: 26.24441608 | S158: 33.65688964 | T158: 15.96724667 | U158: 29.3059126 | BB158: No facilities/bush/field | BC158: 2518 | BD158: 1716 | BE158: 1030 | BF158: 508 | BG158: 42 | BH158: 72 | BI158: 48 | BJ158: 5 | BK158: 3 | BL158: 0 | BM158: 2038 | BN158: 1536 | BO158: 1094 | BP158: 814 | BQ158: 204 | BR158: 1645 | BS158: 1595 | BT158: 1092 | BU158: 1482
B159: 7 | C159: 0 | D159: 0 | E159: 0.2182453077 | F159: 0.02183882944 | G159: 0 | H159: 1.02145046 | I159: 0 | J159: 0 | K159: 0 | L159: 0 | M159: 0 | N159: 0 | O159: 0 | P159: 0 | Q159: 0.02780867631 | R159: 0.01595405233 | S159: 0 | T159: 0.1462202076 | U159: 0 | BB159: 7 | BC159: 0 | BD159: 0 | BE159: 10 | BF159: 1 | BG159: 0 | BH159: 10 | BI159: 0 | BJ159: 0 | BK159: 0 | BL159: 0 | BM159: 0 | BN159: 0 | BO159: 0 | BP159: 0 | BQ159: 1 | BR159: 1 | BS159: 0 | BT159: 10 | BU159: 0
BB160: Total | BC160: 4591 | BD160: 4563 | BE160: 4582 | BF160: 4579 | BG160: 4588 | BH160: 979 | BI160: 979 | BJ160: 985 | BK160: 978 | BL160: 976 | BM160: 3624 | BN160: 3478 | BO160: 3710 | BP160: 3598 | BQ160: 3596 | BR160: 6268 | BS160: 4739 | BT160: 6839 | BU160: 5057
A208: =A1026 -> Eswatini
A209: =A1034 -> 2000
A210: Access to hygiene facilities
A211: by wealth quintile and sub-national region
A212: Notes:
A213: WHO/UNICEF JMP customised wealth index excludes water,
A214: sanitation and hygiene assets.
A215: Survey used for analysis: | B215: =A1025 -> MICS00
A220: Access to handwashing | C220: NATIONAL wealth index quintile | H220: URBAN wealth index quintile | M220: RURAL wealth index quintile | R220: SUB-REGIONS: | BA220: Raw numbers of respondents: | BB220: Access to handwashing | BC220: NATIONAL wealth index quintile | BH220: URBAN wealth index quintile | BM220: RURAL wealth index quintile | BR220: SUB-REGIONS:
A221: Weighted percentage (used in graphs) | C221: Poorest | D221: Poor | E221: Middle | F221: Rich | G221: Richest | H221: Poorest | I221: Poor | J221: Middle | K221: Rich | L221: Richest | M221: Poorest | N221: Poor | O221: Middle | P221: Rich | Q221: Richest | R221: Hhohho | S221: Lubombo | T221: Manzini | U221: Shiselweni | BA221: Hygiene data, raw numbers (weighted) | BC221: Poorest | BD221: Poor | BE221: Middle | BF221: Rich | BG221: Richest | BH221: Poorest | BI221: Poor | BJ221: Middle | BK221: Rich | BL221: Richest | BM221: Poorest | BN221: Poor | BO221: Middle | BP221: Rich | BQ221: Richest | BR221: Hhohho | BS221: Lubombo | BT221: Manzini | BU221: Shiselweni
A222: Hygiene ladder | B222: Basic | C222: N/A | D222: N/A | E222: N/A | F222: N/A | G222: N/A | H222: N/A | I222: N/A | J222: N/A | K222: N/A | L222: N/A | M222: N/A | N222: N/A | O222: N/A | P222: N/A | Q222: N/A | R222: N/A | S222: N/A | T222: N/A | U222: N/A | BA222: Hygiene ladder | BB222: Basic | BC222: N/A | BD222: N/A | BE222: N/A | BF222: N/A | BG222: N/A | BH222: N/A | BI222: N/A | BJ222: N/A | BK222: N/A | BL222: N/A | BM222: N/A | BN222: N/A | BO222: N/A | BP222: N/A | BQ222: N/A | BR222: N/A | BS222: N/A | BT222: N/A | BU222: N/A
B223: Limited | C223: N/A | D223: N/A | E223: N/A | F223: N/A | G223: N/A | H223: N/A | I223: N/A | J223: N/A | K223: N/A | L223: N/A | M223: N/A | N223: N/A | O223: N/A | P223: N/A | Q223: N/A | R223: N/A | S223: N/A | T223: N/A | U223: N/A | BB223: Limited | BC223: N/A | BD223: N/A | BE223: N/A | BF223: N/A | BG223: N/A | BH223: N/A | BI223: N/A | BJ223: N/A | BK223: N/A | BL223: N/A | BM223: N/A | BN223: N/A | BO223: N/A | BP223: N/A | BQ223: N/A | BR223: N/A | BS223: N/A | BT223: N/A | BU223: N/A
B224: No facility | C224: N/A | D224: N/A | E224: N/A | F224: N/A | G224: N/A | H224: N/A | I224: N/A | J224: N/A | K224: N/A | L224: N/A | M224: N/A | N224: N/A | O224: N/A | P224: N/A | Q224: N/A | R224: N/A | S224: N/A | T224: N/A | U224: N/A | BB224: No facility | BC224: N/A | BD224: N/A | BE224: N/A | BF224: N/A | BG224: N/A | BH224: N/A | BI224: N/A | BJ224: N/A | BK224: N/A | BL224: N/A | BM224: N/A | BN224: N/A | BO224: N/A | BP224: N/A | BQ224: N/A | BR224: N/A | BS224: N/A | BT224: N/A | BU224: N/A
BA225: Observed handwashing place | BB225: Fixed | BC225: N/A | BD225: N/A | BE225: N/A | BF225: N/A | BG225: N/A | BH225: N/A | BI225: N/A | BJ225: N/A | BK225: N/A | BL225: N/A | BM225: N/A | BN225: N/A | BO225: N/A | BP225: N/A | BQ225: N/A | BR225: N/A | BS225: N/A | BT225: N/A | BU225: N/A
BB226: Mobile | BC226: N/A | BD226: N/A | BE226: N/A | BF226: N/A | BG226: N/A | BH226: N/A | BI226: N/A | BJ226: N/A | BK226: N/A | BL226: N/A | BM226: N/A | BN226: N/A | BO226: N/A | BP226: N/A | BQ226: N/A | BR226: N/A | BS226: N/A | BT226: N/A | BU226: N/A
BA227: Water / Soap | BB227: Water and soap | BC227: N/A | BD227: N/A | BE227: N/A | BF227: N/A | BG227: N/A | BH227: N/A | BI227: N/A | BJ227: N/A | BK227: N/A | BL227: N/A | BM227: N/A | BN227: N/A | BO227: N/A | BP227: N/A | BQ227: N/A | BR227: N/A | BS227: N/A | BT227: N/A | BU227: N/A
BB228: Water only | BC228: N/A | BD228: N/A | BE228: N/A | BF228: N/A | BG228: N/A | BH228: N/A | BI228: N/A | BJ228: N/A | BK228: N/A | BL228: N/A | BM228: N/A | BN228: N/A | BO228: N/A | BP228: N/A | BQ228: N/A | BR228: N/A | BS228: N/A | BT228: N/A | BU228: N/A
BB229: Soap only | BC229: N/A | BD229: N/A | BE229: N/A | BF229: N/A | BG229: N/A | BH229: N/A | BI229: N/A | BJ229: N/A | BK229: N/A | BL229: N/A | BM229: N/A | BN229: N/A | BO229: N/A | BP229: N/A | BQ229: N/A | BR229: N/A | BS229: N/A | BT229: N/A | BU229: N/A
BB230: Neither | BC230: N/A | BD230: N/A | BE230: N/A | BF230: N/A | BG230: N/A | BH230: N/A | BI230: N/A | BJ230: N/A | BK230: N/A | BL230: N/A | BM230: N/A | BN230: N/A | BO230: N/A | BP230: N/A | BQ230: N/A | BR230: N/A | BS230: N/A | BT230: N/A | BU230: N/A
BA259: Raw numbers of respondents: | BB259: Menstrual health and hygiene | BC259: NATIONAL wealth index quintile | BH259: URBAN wealth index quintile | BM259: RURAL wealth index quintile | BR259: SUB-REGIONS:
BA260: MHH data, raw numbers (weighted) | BC260: Poorest | BD260: Poor | BE260: Middle | BF260: Rich | BG260: Richest | BH260: Poorest | BI260: Poor | BJ260: Middle | BK260: Rich | BL260: Richest | BM260: Poorest | BN260: Poor | BO260: Middle | BP260: Rich | BQ260: Richest | BR260: Hhohho | BS260: Lubombo | BT260: Manzini | BU260: Shiselweni
BA261: Private place to wash and change | BB261: Yes | BC261: N/A | BD261: N/A | BE261: N/A | BF261: N/A | BG261: N/A | BH261: N/A | BI261: N/A | BJ261: N/A | BK261: N/A | BL261: N/A | BM261: N/A | BN261: N/A | BO261: N/A | BP261: N/A | BQ261: N/A | BR261: N/A | BS261: N/A | BT261: N/A | BU261: N/A
BB262: No | BC262: N/A | BD262: N/A | BE262: N/A | BF262: N/A | BG262: N/A | BH262: N/A | BI262: N/A | BJ262: N/A | BK262: N/A | BL262: N/A | BM262: N/A | BN262: N/A | BO262: N/A | BP262: N/A | BQ262: N/A | BR262: N/A | BS262: N/A | BT262: N/A | BU262: N/A
BB263: DK/not sure/missing | BC263: N/A | BD263: N/A | BE263: N/A | BF263: N/A | BG263: N/A | BH263: N/A | BI263: N/A | BJ263: N/A | BK263: N/A | BL263: N/A | BM263: N/A | BN263: N/A | BO263: N/A | BP263: N/A | BQ263: N/A | BR263: N/A | BS263: N/A | BT263: N/A | BU263: N/A
BA264: Use of menstrual materials | BB264: Materials reusable | BC264: N/A | BD264: N/A | BE264: N/A | BF264: N/A | BG264: N/A | BH264: N/A | BI264: N/A | BJ264: N/A | BK264: N/A | BL264: N/A | BM264: N/A | BN264: N/A | BO264: N/A | BP264: N/A | BQ264: N/A | BR264: N/A | BS264: N/A | BT264: N/A | BU264: N/A
BB265: Materials not reusable | BC265: N/A | BD265: N/A | BE265: N/A | BF265: N/A | BG265: N/A | BH265: N/A | BI265: N/A | BJ265: N/A | BK265: N/A | BL265: N/A | BM265: N/A | BN265: N/A | BO265: N/A | BP265: N/A | BQ265: N/A | BR265: N/A | BS265: N/A | BT265: N/A | BU265: N/A
BB266: No materials used | BC266: N/A | BD266: N/A | BE266: N/A | BF266: N/A | BG266: N/A | BH266: N/A | BI266: N/A | BJ266: N/A | BK266: N/A | BL266: N/A | BM266: N/A | BN266: N/A | BO266: N/A | BP266: N/A | BQ266: N/A | BR266: N/A | BS266: N/A | BT266: N/A | BU266: N/A
BB267: DK/not sure/missing | BC267: N/A | BD267: N/A | BE267: N/A | BF267: N/A | BG267: N/A | BH267: N/A | BI267: N/A | BJ267: N/A | BK267: N/A | BL267: N/A | BM267: N/A | BN267: N/A | BO267: N/A | BP267: N/A | BQ267: N/A | BR267: N/A | BS267: N/A | BT267: N/A | BU267: N/A
BA268: Use of menstrual materials with private place to wash and change | BB268: Materials reusable | BC268: N/A | BD268: N/A | BE268: N/A | BF268: N/A | BG268: N/A | BH268: N/A | BI268: N/A | BJ268: N/A | BK268: N/A | BL268: N/A | BM268: N/A | BN268: N/A | BO268: N/A | BP268: N/A | BQ268: N/A | BR268: N/A | BS268: N/A | BT268: N/A | BU268: N/A
BB269: Materials not reusable | BC269: N/A | BD269: N/A | BE269: N/A | BF269: N/A | BG269: N/A | BH269: N/A | BI269: N/A | BJ269: N/A | BK269: N/A | BL269: N/A | BM269: N/A | BN269: N/A | BO269: N/A | BP269: N/A | BQ269: N/A | BR269: N/A | BS269: N/A | BT269: N/A | BU269: N/A
BB270: No materials used | BC270: N/A | BD270: N/A | BE270: N/A | BF270: N/A | BG270: N/A | BH270: N/A | BI270: N/A | BJ270: N/A | BK270: N/A | BL270: N/A | BM270: N/A | BN270: N/A | BO270: N/A | BP270: N/A | BQ270: N/A | BR270: N/A | BS270: N/A | BT270: N/A | BU270: N/A
BA271: Awareness of menstruation before menarche | BB271: Yes | BC271: N/A | BD271: N/A | BE271: N/A | BF271: N/A | BG271: N/A | BH271: N/A | BI271: N/A | BJ271: N/A | BK271: N/A | BL271: N/A | BM271: N/A | BN271: N/A | BO271: N/A | BP271: N/A | BQ271: N/A | BR271: N/A | BS271: N/A | BT271: N/A | BU271: N/A
BB272: No | BC272: N/A | BD272: N/A | BE272: N/A | BF272: N/A | BG272: N/A | BH272: N/A | BI272: N/A | BJ272: N/A | BK272: N/A | BL272: N/A | BM272: N/A | BN272: N/A | BO272: N/A | BP272: N/A | BQ272: N/A | BR272: N/A | BS272: N/A | BT272: N/A | BU272: N/A
BB273: DK/not sure/missing | BC273: N/A | BD273: N/A | BE273: N/A | BF273: N/A | BG273: N/A | BH273: N/A | BI273: N/A | BJ273: N/A | BK273: N/A | BL273: N/A | BM273: N/A | BN273: N/A | BO273: N/A | BP273: N/A | BQ273: N/A | BR273: N/A | BS273: N/A | BT273: N/A | BU273: N/A
BA274: Participation in (all) activities during menstruation | BB274: Yes | BC274: N/A | BD274: N/A | BE274: N/A | BF274: N/A | BG274: N/A | BH274: N/A | BI274: N/A | BJ274: N/A | BK274: N/A | BL274: N/A | BM274: N/A | BN274: N/A | BO274: N/A | BP274: N/A | BQ274: N/A | BR274: N/A | BS274: N/A | BT274: N/A | BU274: N/A
BB275: No | BC275: N/A | BD275: N/A | BE275: N/A | BF275: N/A | BG275: N/A | BH275: N/A | BI275: N/A | BJ275: N/A | BK275: N/A | BL275: N/A | BM275: N/A | BN275: N/A | BO275: N/A | BP275: N/A | BQ275: N/A | BR275: N/A | BS275: N/A | BT275: N/A | BU275: N/A
BB276: DK/not sure/missing/no such activity | BC276: N/A | BD276: N/A | BE276: N/A | BF276: N/A | BG276: N/A | BH276: N/A | BI276: N/A | BJ276: N/A | BK276: N/A | BL276: N/A | BM276: N/A | BN276: N/A | BO276: N/A | BP276: N/A | BQ276: N/A | BR276: N/A | BS276: N/A | BT276: N/A | BU276: N/A
BA277: Participation in specific activities during menstruation | BB277: Did not go to school (amongst those usually attending school) | BC277: N/A | BD277: N/A | BE277: N/A | BF277: N/A | BG277: N/A | BH277: N/A | BI277: N/A | BJ277: N/A | BK277: N/A | BL277: N/A | BM277: N/A | BN277: N/A | BO277: N/A | BP277: N/A | BQ277: N/A | BR277: N/A | BS277: N/A | BT277: N/A | BU277: N/A
BB278: Did not go to work (amongst those who usually work) | BC278: N/A | BD278: N/A | BE278: N/A | BF278: N/A | BG278: N/A | BH278: N/A | BI278: N/A | BJ278: N/A | BK278: N/A | BL278: N/A | BM278: N/A | BN278: N/A | BO278: N/A | BP278: N/A | BQ278: N/A | BR278: N/A | BS278: N/A | BT278: N/A | BU278: N/A
BB279: Did not participate in social activities | BC279: N/A | BD279: N/A | BE279: N/A | BF279: N/A | BG279: N/A | BH279: N/A | BI279: N/A | BJ279: N/A | BK279: N/A | BL279: N/A | BM279: N/A | BN279: N/A | BO279: N/A | BP279: N/A | BQ279: N/A | BR279: N/A | BS279: N/A | BT279: N/A | BU279: N/A
BB280: Did not cook food | BC280: N/A | BD280: N/A | BE280: N/A | BF280: N/A | BG280: N/A | BH280: N/A | BI280: N/A | BJ280: N/A | BK280: N/A | BL280: N/A | BM280: N/A | BN280: N/A | BO280: N/A | BP280: N/A | BQ280: N/A | BR280: N/A | BS280: N/A | BT280: N/A | BU280: N/A
BB281: Did not eat with others | BC281: N/A | BD281: N/A | BE281: N/A | BF281: N/A | BG281: N/A | BH281: N/A | BI281: N/A | BJ281: N/A | BK281: N/A | BL281: N/A | BM281: N/A | BN281: N/A | BO281: N/A | BP281: N/A | BQ281: N/A | BR281: N/A | BS281: N/A | BT281: N/A | BU281: N/A
BB282: Did not bathe in regular place | BC282: N/A | BD282: N/A | BE282: N/A | BF282: N/A | BG282: N/A | BH282: N/A | BI282: N/A | BJ282: N/A | BK282: N/A | BL282: N/A | BM282: N/A | BN282: N/A | BO282: N/A | BP282: N/A | BQ282: N/A | BR282: N/A | BS282: N/A | BT282: N/A | BU282: N/A
BB283: Did not participate in other activities | BC283: N/A | BD283: N/A | BE283: N/A | BF283: N/A | BG283: N/A | BH283: N/A | BI283: N/A | BJ283: N/A | BK283: N/A | BL283: N/A | BM283: N/A | BN283: N/A | BO283: N/A | BP283: N/A | BQ283: N/A | BR283: N/A | BS283: N/A | BT283: N/A | BU283: N/A
BB284: DK/not sure/missing/no such activity | BC284: N/A | BD284: N/A | BE284: N/A | BF284: N/A | BG284: N/A | BH284: N/A | BI284: N/A | BJ284: N/A | BK284: N/A | BL284: N/A | BM284: N/A | BN284: N/A | BO284: N/A | BP284: N/A | BQ284: N/A | BR284: N/A | BS284: N/A | BT284: N/A | BU284: N/A
BA339: Raw numbers of respondents: | BB339: Basic water, sanitation and hygiene | BC339: NATIONAL wealth index quintile | BH339: URBAN wealth index quintile | BM339: RURAL wealth index quintile | BR339: SUB-REGIONS:
BA340: WatSan data, raw numbers (weighted) | BC340: Poorest | BD340: Poor | BE340: Middle | BF340: Rich | BG340: Richest | BH340: Poorest | BI340: Poor | BJ340: Middle | BK340: Rich | BL340: Richest | BM340: Poorest | BN340: Poor | BO340: Middle | BP340: Rich | BQ340: Richest | BR340: Hhohho | BS340: Lubombo | BT340: Manzini | BU340: Shiselweni
BA341: Use of Basic Water Sanitation and Hygiene | BB341: Yes | BC341: N/A | BD341: N/A | BE341: N/A | BF341: N/A | BG341: N/A | BH341: N/A | BI341: N/A | BJ341: N/A | BK341: N/A | BL341: N/A | BM341: N/A | BN341: N/A | BO341: N/A | BP341: N/A | BQ341: N/A | BR341: N/A | BS341: N/A | BT341: N/A | BU341: N/A
BB342: No | BC342: N/A | BD342: N/A | BE342: N/A | BF342: N/A | BG342: N/A | BH342: N/A | BI342: N/A | BJ342: N/A | BK342: N/A | BL342: N/A | BM342: N/A | BN342: N/A | BO342: N/A | BP342: N/A | BQ342: N/A | BR342: N/A | BS342: N/A | BT342: N/A | BU342: N/A
BA343: Use of Basic Water and Sanitation | BB343: Yes | BC343: N/A | BD343: N/A | BE343: N/A | BF343: N/A | BG343: N/A | BH343: N/A | BI343: N/A | BJ343: N/A | BK343: N/A | BL343: N/A | BM343: N/A | BN343: N/A | BO343: N/A | BP343: N/A | BQ343: N/A | BR343: N/A | BS343: N/A | BT343: N/A | BU343: N/A
BB344: No | BC344: N/A | BD344: N/A | BE344: N/A | BF344: N/A | BG344: N/A | BH344: N/A | BI344: N/A | BJ344: N/A | BK344: N/A | BL344: N/A | BM344: N/A | BN344: N/A | BO344: N/A | BP344: N/A | BQ344: N/A | BR344: N/A | BS344: N/A | BT344: N/A | BU344: N/A
BA345: Use of Basic Water and Hygiene | BB345: Yes | BC345: N/A | BD345: N/A | BE345: N/A | BF345: N/A | BG345: N/A | BH345: N/A | BI345: N/A | BJ345: N/A | BK345: N/A | BL345: N/A | BM345: N/A | BN345: N/A | BO345: N/A | BP345: N/A | BQ345: N/A | BR345: N/A | BS345: N/A | BT345: N/A | BU345: N/A
BB346: No | BC346: N/A | BD346: N/A | BE346: N/A | BF346: N/A | BG346: N/A | BH346: N/A | BI346: N/A | BJ346: N/A | BK346: N/A | BL346: N/A | BM346: N/A | BN346: N/A | BO346: N/A | BP346: N/A | BQ346: N/A | BR346: N/A | BS346: N/A | BT346: N/A | BU346: N/A
BA347: Use of Basic Sanitation and Hygiene | BB347: Yes | BC347: N/A | BD347: N/A | BE347: N/A | BF347: N/A | BG347: N/A | BH347: N/A | BI347: N/A | BJ347: N/A | BK347: N/A | BL347: N/A | BM347: N/A | BN347: N/A | BO347: N/A | BP347: N/A | BQ347: N/A | BR347: N/A | BS347: N/A | BT347: N/A | BU347: N/A
BB348: No | BC348: N/A | BD348: N/A | BE348: N/A | BF348: N/A | BG348: N/A | BH348: N/A | BI348: N/A | BJ348: N/A | BK348: N/A | BL348: N/A | BM348: N/A | BN348: N/A | BO348: N/A | BP348: N/A | BQ348: N/A | BR348: N/A | BS348: N/A | BT348: N/A | BU348: N/A
BA349: Use of Basic Water | BB349: Yes | BC349: N/A | BD349: N/A | BE349: N/A | BF349: N/A | BG349: N/A | BH349: N/A | BI349: N/A | BJ349: N/A | BK349: N/A | BL349: N/A | BM349: N/A | BN349: N/A | BO349: N/A | BP349: N/A | BQ349: N/A | BR349: N/A | BS349: N/A | BT349: N/A | BU349: N/A
BB350: No | BC350: N/A | BD350: N/A | BE350: N/A | BF350: N/A | BG350: N/A | BH350: N/A | BI350: N/A | BJ350: N/A | BK350: N/A | BL350: N/A | BM350: N/A | BN350: N/A | BO350: N/A | BP350: N/A | BQ350: N/A | BR350: N/A | BS350: N/A | BT350: N/A | BU350: N/A
BA351: Use of Basic Sanitation | BB351: Yes | BC351: N/A | BD351: N/A | BE351: N/A | BF351: N/A | BG351: N/A | BH351: N/A | BI351: N/A | BJ351: N/A | BK351: N/A | BL351: N/A | BM351: N/A | BN351: N/A | BO351: N/A | BP351: N/A | BQ351: N/A | BR351: N/A | BS351: N/A | BT351: N/A | BU351: N/A
BB352: No | BC352: N/A | BD352: N/A | BE352: N/A | BF352: N/A | BG352: N/A | BH352: N/A | BI352: N/A | BJ352: N/A | BK352: N/A | BL352: N/A | BM352: N/A | BN352: N/A | BO352: N/A | BP352: N/A | BQ352: N/A | BR352: N/A | BS352: N/A | BT352: N/A | BU352: N/A
BA353: Access to Basic Hygiene | BB353: Yes | BC353: N/A | BD353: N/A | BE353: N/A | BF353: N/A | BG353: N/A | BH353: N/A | BI353: N/A | BJ353: N/A | BK353: N/A | BL353: N/A | BM353: N/A | BN353: N/A | BO353: N/A | BP353: N/A | BQ353: N/A | BR353: N/A | BS353: N/A | BT353: N/A | BU353: N/A
BB354: No | BC354: N/A | BD354: N/A | BE354: N/A | BF354: N/A | BG354: N/A | BH354: N/A | BI354: N/A | BJ354: N/A | BK354: N/A | BL354: N/A | BM354: N/A | BN354: N/A | BO354: N/A | BP354: N/A | BQ354: N/A | BR354: N/A | BS354: N/A | BT354: N/A | BU354: N/A
C399: INITIAL (national) Wealth Index | H399: URBAN Wealth Index | M399: RURAL Wealth Index
C400: Component Matrix | H400: Component Matrix | M400: Component Matrix
E401: Component | J401: Component | O401: Component
B402: Note: The INITIAL (national) Wealth Index is based on the first component of the Principal Component Analysis (PCA) which has been obtained at national level. The final national-level (NATIONAL) Wealth Index is based on the URBAN and RURAL specific wealth indexes. Regression procedures are used to establish the relationships between the two sets of scores (urban and rural) and the initial (national) wealth factors. This allows best use of the available information for each area and a better precision of the FINAL (NATIONAL) Wealth Index. For dependency reasons, all WASH variables (contained in the generic MICS and DHS scripts) have been excluded from the sets of asset variables used in the PCAs. The PCA can extracts as many components as there are asset variables in the input. Only the first of the components is used to represent the Wealth Index. The scores represent the weights of the asset variables on the Wealth Index (correlations between the variables and the component). The communalities are the proportion of each variable's variance that can be explained by the component. Proportion of explained variance is the part of the model's total variance that is explained by the component. For more information on the procedure used: The DHS Wealth Index, DHS Comparative Reports No. 6, Shea Oscar Rutstein, Kiersten Johnson, ORC Macro International Inc., 2004. The DHS Wealth Index: Approaches for Rural and Urban Areas, Shea O. Rutstein, ORC Macro International Inc., 2008. MICS Methodological Paper No. 4, Review of options for reporting water, sanitation and hygiene coverage by wealth quintile, UNICEF, 2016. | E402: 1 | J402: 1 | O402: 1
C403: Have electricity | E403: 0.7930298475 | H403: Have refrigerator | J403: 0.8227273161 | M403: Fuel - firewood | O403: -0.7429015825
C404: Have refrigerator | E404: 0.7692624024 | H404: Have television | J404: 0.7683837144 | M404: Have electricity | O404: 0.7410593441
C405: Have television | E405: 0.728109346 | H405: Have electricity | J405: 0.7496098539 | M405: Have refrigerator | O405: 0.7160007437
C406: Fuel - firewood | E406: -0.6942886724 | H406: Fuel - electricity | J406: 0.7183400559 | M406: Have television | O406: 0.6729109971
C407: Fuel - electricity | E407: 0.689448163 | H407: Have car or truck | J407: 0.6206138112 | M407: Fuel - electricity | O407: 0.6171250365
C408: Dwelling floor - Dirt/Cow-dung | E408: -0.5365109512 | H408: Fuel - paraffin | J408: -0.5611488962 | M408: Dwelling floor - Dirt/Cow-dung | O408: -0.5627278917
C409: Have car or truck | E409: 0.4939434928 | H409: Dwelling floor - Tiles/wood/carpet | J409: 0.4008116545 | M409: Dwelling floor - Concrete | O409: 0.4983383964
C410: Dwelling floor - Concrete | E410: 0.3569212621 | H410: Dwelling floor - Concrete | J410: -0.3185668542 | M410: Have car or truck | O410: 0.4682851916
C411: Fuel - gas | E411: 0.2833062668 | H411: Persons per sleeping rooms | J411: -0.3162514245 | M411: Fuel - gas | O411: 0.3928475685
C412: Dwelling floor - Tiles/wood/carpet | E412: 0.2802598222 | H412: Have radio | J412: 0.2674413918 | M412: Have radio | O412: 0.2486533138
C413: Persons per sleeping rooms | E413: -0.2800933876 | H413: Fuel - firewood | J413: -0.1886969868 | M413: Persons per sleeping rooms | O413: -0.2263789604
C414: Have radio | E414: 0.2508534447 | H414: Have bicycle | J414: 0.1329901566 | M414: Dwelling floor - Tiles/wood/carpet | O414: 0.1930352826
C415: Have motorcycle or scooter | E415: 0.09348467842 | H415: Fuel - coal/other | J415: -0.1007973159 | M415: Have motorcycle or scooter | O415: 0.1499160958
C416: Fuel - coal/other | E416: 0.05057381213 | H416: Have motorcycle or scooter | J416: 0.08652831325 | M416: Fuel - paraffin | O416: 0.14885357
C417: Have bicycle | E417: 0.03367043906 | H417: Dwelling floor - Dirt/Cow-dung | J417: -0.07501480097 | M417: Fuel - coal/other | O417: 0.09935633379
C418: Fuel - paraffin | E418: -0.02368321703 | H418: Fuel - gas | J418: -0.02110246875 | M418: Have bicycle | O418: 0.06699618108
C422: Communalities | H422: Communalities | M422: Communalities
E423: Extraction | J423: Extraction | O423: Extraction
... 88 more rows

Sheet DHS07
A2: =A1026 -> Eswatini
A3: =A1034 -> 2007
A4: Use of drinking water sources
A5: by wealth quintile and sub-national region
A6: Notes:
A7: WHO/UNICEF JMP customised wealth index excludes water,
A8: sanitation and hygiene assets.
A9: Survey used for analysis: | B9: =A1025 -> DHS07
A10: =B1028 -> 
A11: =B1027 -> 
A14: Use of drinking water sources | C14: NATIONAL wealth index quintile | H14: URBAN wealth index quintile | M14: RURAL wealth index quintile | R14: SUB-REGIONS: | BA14: Raw numbers of respondents: | BB14: Use of drinking water sources | BC14: NATIONAL wealth index quintile | BH14: URBAN wealth index quintile | BM14: RURAL wealth index quintile | BR14: SUB-REGIONS:
A15: Weighted percentage (used in graphs) | C15: Poorest | D15: Poor | E15: Middle | F15: Rich | G15: Richest | H15: Poorest | I15: Poor | J15: Middle | K15: Rich | L15: Richest | M15: Poorest | N15: Poor | O15: Middle | P15: Rich | Q15: Richest | R15: Hhohho | S15: Lubombo | T15: Manzini | U15: Shiselweni | BA15: Water data, raw numbers (weighted) | BC15: Poorest | BD15: Poor | BE15: Middle | BF15: Rich | BG15: Richest | BH15: Poorest | BI15: Poor | BJ15: Middle | BK15: Rich | BL15: Richest | BM15: Poorest | BN15: Poor | BO15: Middle | BP15: Rich | BQ15: Richest | BR15: Hhohho | BS15: Lubombo | BT15: Manzini | BU15: Shiselweni
A16: Water | B16: Improved | C16: 41.08481244 | D16: 52.05141655 | E16: 65.46537155 | F16: 74.72701357 | G16: 92.78256382 | H16: 79.69214593 | I16: 90.13014622 | J16: 98.54063701 | K16: 98.21701944 | L16: 100 | M16: 38.51767433 | N16: 49.96139714 | O16: 57.74898685 | P16: 61.30057719 | Q16: 81.10143664 | R16: 76.93770242 | S16: 57.80628547 | T16: 70.16288321 | U16: 51.70069044 | BA16: Water | BB16: Improved | BC16: N/A | BD16: N/A | BE16: N/A | BF16: N/A | BG16: N/A | BH16: N/A | BI16: N/A | BJ16: N/A | BK16: N/A | BL16: N/A | BM16: N/A | BN16: N/A | BO16: N/A | BP16: N/A | BQ16: N/A | BR16: N/A | BS16: N/A | BT16: N/A | BU16: N/A
B17: Not Improved | C17: 58.91518756 | D17: 47.94858345 | E17: 34.53462845 | F17: 25.27298643 | G17: 7.217436181 | H17: 20.30785407 | I17: 9.869853784 | J17: 1.459362991 | K17: 1.782980557 | L17: 0 | M17: 61.48232567 | N17: 50.03860286 | O17: 42.25101315 | P17: 38.69942281 | Q17: 18.89856336 | R17: 23.06229758 | S17: 42.19371453 | T17: 29.83711679 | U17: 48.29930956 | BB17: Not Improved | BC17: N/A | BD17: N/A | BE17: N/A | BF17: N/A | BG17: N/A | BH17: N/A | BI17: N/A | BJ17: N/A | BK17: N/A | BL17: N/A | BM17: N/A | BN17: N/A | BO17: N/A | BP17: N/A | BQ17: N/A | BR17: N/A | BS17: N/A | BT17: N/A | BU17: N/A
A18: Water ladder | B18: Basic | C18: =C16*C23/100 -> 32.12832333 | D18: =D16*D23/100 -> 46.69012064 | E18: =E16*E23/100 -> 60.16267646 | F18: 71.73793303 | G18: 90.64856485 | H18: 78.41707159 | I18: 88.68806388 | J18: 98.34355573 | K18: 97.92236839 | L18: 100 | M18: 30.39044505 | N18: 43.01676294 | O18: 51.22335134 | P18: 56.4578316 | Q18: 77.12746625 | R18: 72.47531568 | S18: 50.46488722 | T18: 67.35636789 | U18: 45.39320621 | BA18: Water ladder | BB18: Basic | BC18: N/A | BD18: N/A | BE18: N/A | BF18: N/A | BG18: N/A | BH18: N/A | BI18: N/A | BJ18: N/A | BK18: N/A | BL18: N/A | BM18: N/A | BN18: N/A | BO18: N/A | BP18: N/A | BQ18: N/A | BR18: N/A | BS18: N/A | BT18: N/A | BU18: N/A
B19: Limited | C19: =C16*C22/100 -> 8.956489111 | D19: =D16*D22/100 -> 5.361295904 | E19: =E16*E22/100 -> 5.302695096 | F19: 2.989080543 | G19: 2.133998968 | H19: 1.275074335 | I19: 1.442082339 | J19: 0.197081274 | K19: 0.2946510583 | L19: 0 | M19: 8.127229284 | N19: 6.944634203 | O19: 6.525635514 | P19: 4.842745598 | Q19: 3.973970396 | R19: 4.46238674 | S19: 7.341398255 | T19: 2.806515329 | U19: 6.307484234 | BB19: Limited | BC19: N/A | BD19: N/A | BE19: N/A | BF19: N/A | BG19: N/A | BH19: N/A | BI19: N/A | BJ19: N/A | BK19: N/A | BL19: N/A | BM19: N/A | BN19: N/A | BO19: N/A | BP19: N/A | BQ19: N/A | BR19: N/A | BS19: N/A | BT19: N/A | BU19: N/A
B20: Unimproved | C20: =100-C18-C19-C21 -> 23.70113957 | D20: =100-D18-D19-D21 -> 22.06482409 | E20: =100-E18-E19-E21 -> 16.36762654 | F20: 13.82265027 | G20: 2.766444941 | H20: 13.30619253 | I20: 7.25096251 | J20: 0.9661134409 | K20: 0.5415200486 | L20: 0 | M20: 25.31423169 | N20: 21.81895731 | O20: 18.75075253 | P20: 17.95530866 | Q20: 10.04184034 | R20: 11.55078624 | S20: 16.82788192 | T20: 12.18321083 | U20: 24.28580073 | BB20: Unimproved | BC20: N/A | BD20: N/A | BE20: N/A | BF20: N/A | BG20: N/A | BH20: N/A | BI20: N/A | BJ20: N/A | BK20: N/A | BL20: N/A | BM20: N/A | BN20: N/A | BO20: N/A | BP20: N/A | BQ20: N/A | BR20: N/A | BS20: N/A | BT20: N/A | BU20: N/A
B21: Surface water | C21: 35.21404799 | D21: 25.88375936 | E21: 18.16700191 | F21: 11.45033616 | G21: 4.45099124 | H21: 7.001661542 | I21: 2.618891274 | J21: 0.4932495501 | K21: 1.241460508 | L21: 0 | M21: 36.16809398 | N21: 28.21964555 | O21: 23.50026062 | P21: 20.74411415 | Q21: 8.856723012 | R21: 11.51151134 | S21: 25.36583261 | T21: 17.65390596 | U21: 24.01350882 | BB21: Surface water | BC21: N/A | BD21: N/A | BE21: N/A | BF21: N/A | BG21: N/A | BH21: N/A | BI21: N/A | BJ21: N/A | BK21: N/A | BL21: N/A | BM21: N/A | BN21: N/A | BO21: N/A | BP21: N/A | BQ21: N/A | BR21: N/A | BS21: N/A | BT21: N/A | BU21: N/A
A22: Improved water point at more than 30 minutes | B22: Yes | C22: 21.8 | D22: 10.3 | E22: 8.1 | F22: 4 | G22: 2.3 | H22: 1.6 | I22: 1.6 | J22: 0.2 | K22: 0.3 | L22: 0 | M22: 21.1 | N22: 13.9 | O22: 11.3 | P22: 7.9 | Q22: 4.9 | R22: 5.8 | S22: 12.7 | T22: 4 | U22: 12.2 | BA22: Improved water point at more than 30 minutes | BB22: Yes | BC22: N/A | BD22: N/A | BE22: N/A | BF22: N/A | BG22: N/A | BH22: N/A | BI22: N/A | BJ22: N/A | BK22: N/A | BL22: N/A | BM22: N/A | BN22: N/A | BO22: N/A | BP22: N/A | BQ22: N/A | BR22: N/A | BS22: N/A | BT22: N/A | BU22: N/A
B23: No | C23: 78.2 | D23: 89.7 | E23: 91.9 | F23: 96 | G23: 97.7 | H23: 98.4 | I23: 98.4 | J23: 99.8 | K23: 99.7 | L23: 100 | M23: 78.9 | N23: 86.1 | O23: 88.7 | P23: 92.1 | Q23: 95.1 | R23: 94.2 | S23: 87.3 | T23: 96 | U23: 87.8 | BB23: No | BC23: N/A | BD23: N/A | BE23: N/A | BF23: N/A | BG23: N/A | BH23: N/A | BI23: N/A | BJ23: N/A | BK23: N/A | BL23: N/A | BM23: N/A | BN23: N/A | BO23: N/A | BP23: N/A | BQ23: N/A | BR23: N/A | BS23: N/A | BT23: N/A | BU23: N/A
A24: Manually calculated ratios | B24: Improved wells
B25: Improved sources
B26: Other
C27: NATIONAL wealth index quintile | H27: URBAN wealth index quintile | M27: RURAL wealth index quintile | R27: SUB-REGIONS: | BA27: Raw numbers of respondents: | BB27: Use of drinking water sources | BC27: NATIONAL wealth index quintile | BH27: URBAN wealth index quintile | BM27: RURAL wealth index quintile | BR27: SUB-REGIONS:
A28: Percentage based on weighted population | C28: Poorest | D28: Poor | E28: Middle | F28: Rich | G28: Richest | H28: Poorest | I28: Poor | J28: Middle | K28: Rich | L28: Richest | M28: Poorest | N28: Poor | O28: Middle | P28: Rich | Q28: Richest | R28: Hhohho | S28: Lubombo | T28: Manzini | U28: Shiselweni | BA28: Water data, raw numbers (weighted) | BC28: Poorest | BD28: Poor | BE28: Middle | BF28: Rich | BG28: Richest | BH28: Poorest | BI28: Poor | BJ28: Middle | BK28: Rich | BL28: Richest | BM28: Poorest | BN28: Poor | BO28: Middle | BP28: Rich | BQ28: Richest | BR28: Hhohho | BS28: Lubombo | BT28: Manzini | BU28: Shiselweni
A29: Piped water | B29: Yes | C29: 21.9 | D29: 33.5 | E29: 48.1 | F29: 58.3 | G29: 80.9 | H29: 66.7 | I29: 81.6 | J29: 93.2 | K29: 95.4 | L29: 96.3 | M29: 19.4 | N29: 31.8 | O29: 39.2 | P29: 40.9 | Q29: 60.3 | R29: 63.3 | S29: 38.9 | T29: 55.3 | U29: 31 | BA29: Piped water | BB29: Yes | BC29: N/A | BD29: N/A | BE29: N/A | BF29: N/A | BG29: N/A | BH29: N/A | BI29: N/A | BJ29: N/A | BK29: N/A | BL29: N/A | BM29: N/A | BN29: N/A | BO29: N/A | BP29: N/A | BQ29: N/A | BR29: N/A | BS29: N/A | BT29: N/A | BU29: N/A
B30: No | C30: 78.1 | D30: 66.5 | E30: 51.9 | F30: 41.7 | G30: 19.1 | H30: 33.3 | I30: 18.4 | J30: 6.8 | K30: 4.6 | L30: 3.7 | M30: 80.6 | N30: 68.2 | O30: 60.8 | P30: 59.1 | Q30: 39.7 | R30: 36.7 | S30: 61.1 | T30: 44.7 | U30: 69 | BB30: No | BC30: N/A | BD30: N/A | BE30: N/A | BF30: N/A | BG30: N/A | BH30: N/A | BI30: N/A | BJ30: N/A | BK30: N/A | BL30: N/A | BM30: N/A | BN30: N/A | BO30: N/A | BP30: N/A | BQ30: N/A | BR30: N/A | BS30: N/A | BT30: N/A | BU30: N/A
A31: Piped water on premises | B31: Yes | C31: 6.2 | D31: 13.8 | E31: 20.8 | F31: 40.7 | G31: 73.3 | H31: 32.9 | I31: 64.9 | J31: 79.3 | K31: 89.8 | L31: 96.3 | M31: 4.7 | N31: 13.9 | O31: 13.2 | P31: 21.1 | Q31: 46.3 | R31: 43.6 | S31: 26.9 | T31: 36.2 | U31: 13.1 | BA31: Piped water on premises | BB31: Yes | BC31: N/A | BD31: N/A | BE31: N/A | BF31: N/A | BG31: N/A | BH31: N/A | BI31: N/A | BJ31: N/A | BK31: N/A | BL31: N/A | BM31: N/A | BN31: N/A | BO31: N/A | BP31: N/A | BQ31: N/A | BR31: N/A | BS31: N/A | BT31: N/A | BU31: N/A
B32: No | C32: 93.8 | D32: 86.2 | E32: 79.2 | F32: 59.3 | G32: 26.7 | H32: 67.1 | I32: 35.1 | J32: 20.7 | K32: 10.2 | L32: 3.7 | M32: 95.3 | N32: 86.1 | O32: 86.8 | P32: 78.9 | Q32: 53.7 | R32: 56.4 | S32: 73.1 | T32: 63.8 | U32: 86.9 | BB32: No | BC32: N/A | BD32: N/A | BE32: N/A | BF32: N/A | BG32: N/A | BH32: N/A | BI32: N/A | BJ32: N/A | BK32: N/A | BL32: N/A | BM32: N/A | BN32: N/A | BO32: N/A | BP32: N/A | BQ32: N/A | BR32: N/A | BS32: N/A | BT32: N/A | BU32: N/A
A33: Piped water into dwelling | B33: Yes | C33: N/A | D33: N/A | E33: N/A | F33: N/A | G33: N/A | H33: N/A | I33: N/A | J33: N/A | K33: N/A | L33: N/A | M33: N/A | N33: N/A | O33: N/A | P33: N/A | Q33: N/A | R33: N/A | S33: N/A | T33: N/A | U33: N/A | BA33: Piped water into dwelling | BB33: Yes | BC33: N/A | BD33: N/A | BE33: N/A | BF33: N/A | BG33: N/A | BH33: N/A | BI33: N/A | BJ33: N/A | BK33: N/A | BL33: N/A | BM33: N/A | BN33: N/A | BO33: N/A | BP33: N/A | BQ33: N/A | BR33: N/A | BS33: N/A | BT33: N/A | BU33: N/A
B34: No | C34: N/A | D34: N/A | E34: N/A | F34: N/A | G34: N/A | H34: N/A | I34: N/A | J34: N/A | K34: N/A | L34: N/A | M34: N/A | N34: N/A | O34: N/A | P34: N/A | Q34: N/A | R34: N/A | S34: N/A | T34: N/A | U34: N/A | BB34: No | BC34: N/A | BD34: N/A | BE34: N/A | BF34: N/A | BG34: N/A | BH34: N/A | BI34: N/A | BJ34: N/A | BK34: N/A | BL34: N/A | BM34: N/A | BN34: N/A | BO34: N/A | BP34: N/A | BQ34: N/A | BR34: N/A | BS34: N/A | BT34: N/A | BU34: N/A
A35: Water source on premises | B35: Yes | C35: 7.8 | D35: 16 | E35: 25.1 | F35: 45.3 | G35: 80.3 | H35: 36.6 | I35: 67.8 | J35: 82.5 | K35: 91.4 | L35: 99.5 | M35: 6 | N35: 16 | O35: 16.4 | P35: 25.4 | Q35: 56.3 | R35: 47.2 | S35: 29.8 | T35: 42.3 | U35: 15.4 | BA35: Water source on premises | BB35: Yes | BC35: N/A | BD35: N/A | BE35: N/A | BF35: N/A | BG35: N/A | BH35: N/A | BI35: N/A | BJ35: N/A | BK35: N/A | BL35: N/A | BM35: N/A | BN35: N/A | BO35: N/A | BP35: N/A | BQ35: N/A | BR35: N/A | BS35: N/A | BT35: N/A | BU35: N/A
B36: No | C36: 92.2 | D36: 84 | E36: 74.9 | F36: 54.7 | G36: 19.7 | H36: 63.4 | I36: 32.2 | J36: 17.5 | K36: 8.6 | L36: 0.5 | M36: 94 | N36: 84 | O36: 83.6 | P36: 74.6 | Q36: 43.7 | R36: 52.8 | S36: 70.2 | T36: 57.7 | U36: 84.6 | BB36: No | BC36: N/A | BD36: N/A | BE36: N/A | BF36: N/A | BG36: N/A | BH36: N/A | BI36: N/A | BJ36: N/A | BK36: N/A | BL36: N/A | BM36: N/A | BN36: N/A | BO36: N/A | BP36: N/A | BQ36: N/A | BR36: N/A | BS36: N/A | BT36: N/A | BU36: N/A
A37: Improved Water source on premises | B37: Yes | C37: 7.4 | D37: 15.6 | E37: 24.4 | F37: 44.6 | G37: 80 | H37: 35.1 | I37: 67.4 | J37: 82.3 | K37: 91.4 | L37: 99.5 | M37: 5.8 | N37: 15.5 | O37: 15.8 | P37: 24.4 | Q37: 56.1 | R37: 46.5 | S37: 29.3 | T37: 41.8 | U37: 15.2 | BA37: Improved water source on premises | BB37: Yes | BC37: N/A | BD37: N/A | BE37: N/A | BF37: N/A | BG37: N/A | BH37: N/A | BI37: N/A | BJ37: N/A | BK37: N/A | BL37: N/A | BM37: N/A | BN37: N/A | BO37: N/A | BP37: N/A | BQ37: N/A | BR37: N/A | BS37: N/A | BT37: N/A | BU37: N/A
B38: No | C38: 92.6 | D38: 84.4 | E38: 75.6 | F38: 55.4 | G38: 20 | H38: 64.9 | I38: 32.6 | J38: 17.7 | K38: 8.6 | L38: 0.5 | M38: 94.2 | N38: 84.5 | O38: 84.2 | P38: 75.6 | Q38: 43.9 | R38: 53.5 | S38: 70.7 | T38: 58.2 | U38: 84.8 | BB38: No | BC38: N/A | BD38: N/A | BE38: N/A | BF38: N/A | BG38: N/A | BH38: N/A | BI38: N/A | BJ38: N/A | BK38: N/A | BL38: N/A | BM38: N/A | BN38: N/A | BO38: N/A | BP38: N/A | BQ38: N/A | BR38: N/A | BS38: N/A | BT38: N/A | BU38: N/A
A39: Piped water on premises available when needed | B39: Yes | C39: N/A | D39: N/A | E39: N/A | F39: N/A | G39: N/A | H39: N/A | I39: N/A | J39: N/A | K39: N/A | L39: N/A | M39: N/A | N39: N/A | O39: N/A | P39: N/A | Q39: N/A | R39: N/A | S39: N/A | T39: N/A | U39: N/A | BA39: Piped water on premises available when needed | BB39: Yes | BC39: N/A | BD39: N/A | BE39: N/A | BF39: N/A | BG39: N/A | BH39: N/A | BI39: N/A | BJ39: N/A | BK39: N/A | BL39: N/A | BM39: N/A | BN39: N/A | BO39: N/A | BP39: N/A | BQ39: N/A | BR39: N/A | BS39: N/A | BT39: N/A | BU39: N/A
B40: No | C40: N/A | D40: N/A | E40: N/A | F40: N/A | G40: N/A | H40: N/A | I40: N/A | J40: N/A | K40: N/A | L40: N/A | M40: N/A | N40: N/A | O40: N/A | P40: N/A | Q40: N/A | R40: N/A | S40: N/A | T40: N/A | U40: N/A | BB40: No | BC40: N/A | BD40: N/A | BE40: N/A | BF40: N/A | BG40: N/A | BH40: N/A | BI40: N/A | BJ40: N/A | BK40: N/A | BL40: N/A | BM40: N/A | BN40: N/A | BO40: N/A | BP40: N/A | BQ40: N/A | BR40: N/A | BS40: N/A | BT40: N/A | BU40: N/A
A41: Water point at more than 30 minutes | B41: Yes | C41: 32 | D41: 20.1 | E41: 14.6 | F41: 9.5 | G41: 4.3 | H41: 3.2 | I41: 1.7 | J41: 0.2 | K41: 1.4 | L41: 0 | M41: 33 | N41: 24.5 | O41: 18.5 | P41: 14.5 | Q41: 9.7 | R41: 10.2 | S41: 26.8 | T41: 9.9 | U41: 21.7 | BA41: Water point at more than 30 minutes | BB41: Yes | BC41: N/A | BD41: N/A | BE41: N/A | BF41: N/A | BG41: N/A | BH41: N/A | BI41: N/A | BJ41: N/A | BK41: N/A | BL41: N/A | BM41: N/A | BN41: N/A | BO41: N/A | BP41: N/A | BQ41: N/A | BR41: N/A | BS41: N/A | BT41: N/A | BU41: N/A
B42: No | C42: 68 | D42: 79.9 | E42: 85.4 | F42: 90.5 | G42: 95.7 | H42: 96.8 | I42: 98.3 | J42: 99.8 | K42: 98.6 | L42: 100 | M42: 67 | N42: 75.5 | O42: 81.5 | P42: 85.5 | Q42: 90.3 | R42: 89.8 | S42: 73.2 | T42: 90.1 | U42: 78.3 | BB42: No | BC42: N/A | BD42: N/A | BE42: N/A | BF42: N/A | BG42: N/A | BH42: N/A | BI42: N/A | BJ42: N/A | BK42: N/A | BL42: N/A | BM42: N/A | BN42: N/A | BO42: N/A | BP42: N/A | BQ42: N/A | BR42: N/A | BS42: N/A | BT42: N/A | BU42: N/A
A43: Water source available when needed | B43: Yes | C43: N/A | D43: N/A | E43: N/A | F43: N/A | G43: N/A | H43: N/A | I43: N/A | J43: N/A | K43: N/A | L43: N/A | M43: N/A | N43: N/A | O43: N/A | P43: N/A | Q43: N/A | R43: N/A | S43: N/A | T43: N/A | U43: N/A | BA43: Water source available when needed | BB43: Yes | BC43: N/A | BD43: N/A | BE43: N/A | BF43: N/A | BG43: N/A | BH43: N/A | BI43: N/A | BJ43: N/A | BK43: N/A | BL43: N/A | BM43: N/A | BN43: N/A | BO43: N/A | BP43: N/A | BQ43: N/A | BR43: N/A | BS43: N/A | BT43: N/A | BU43: N/A
B44: No | C44: N/A | D44: N/A | E44: N/A | F44: N/A | G44: N/A | H44: N/A | I44: N/A | J44: N/A | K44: N/A | L44: N/A | M44: N/A | N44: N/A | O44: N/A | P44: N/A | Q44: N/A | R44: N/A | S44: N/A | T44: N/A | U44: N/A | BB44: No | BC44: N/A | BD44: N/A | BE44: N/A | BF44: N/A | BG44: N/A | BH44: N/A | BI44: N/A | BJ44: N/A | BK44: N/A | BL44: N/A | BM44: N/A | BN44: N/A | BO44: N/A | BP44: N/A | BQ44: N/A | BR44: N/A | BS44: N/A | BT44: N/A | BU44: N/A
A45: Improved water source available when needed | B45: Yes | C45: N/A | D45: N/A | E45: N/A | F45: N/A | G45: N/A | H45: N/A | I45: N/A | J45: N/A | K45: N/A | L45: N/A | M45: N/A | N45: N/A | O45: N/A | P45: N/A | Q45: N/A | R45: N/A | S45: N/A | T45: N/A | U45: N/A | BA45: Improved water source available when needed | BB45: Yes | BC45: N/A | BD45: N/A | BE45: N/A | BF45: N/A | BG45: N/A | BH45: N/A | BI45: N/A | BJ45: N/A | BK45: N/A | BL45: N/A | BM45: N/A | BN45: N/A | BO45: N/A | BP45: N/A | BQ45: N/A | BR45: N/A | BS45: N/A | BT45: N/A | BU45: N/A
B46: No | C46: N/A | D46: N/A | E46: N/A | F46: N/A | G46: N/A | H46: N/A | I46: N/A | J46: N/A | K46: N/A | L46: N/A | M46: N/A | N46: N/A | O46: N/A | P46: N/A | Q46: N/A | R46: N/A | S46: N/A | T46: N/A | U46: N/A | BB46: No | BC46: N/A | BD46: N/A | BE46: N/A | BF46: N/A | BG46: N/A | BH46: N/A | BI46: N/A | BJ46: N/A | BK46: N/A | BL46: N/A | BM46: N/A | BN46: N/A | BO46: N/A | BP46: N/A | BQ46: N/A | BR46: N/A | BS46: N/A | BT46: N/A | BU46: N/A
A47: Microbiological quality at point of collection | B47: Not contaminated (No E. coli in 100 mL) | C47: N/A | D47: N/A | E47: N/A | F47: N/A | G47: N/A | H47: N/A | I47: N/A | J47: N/A | K47: N/A | L47: N/A | M47: N/A | N47: N/A | O47: N/A | P47: N/A | Q47: N/A | R47: N/A | S47: N/A | T47: N/A | U47: N/A | BA47: Microbiological quality at point of collection | BB47: Not contaminated (No E. coli in 100 mL) | BC47: N/A | BD47: N/A | BE47: N/A | BF47: N/A | BG47: N/A | BH47: N/A | BI47: N/A | BJ47: N/A | BK47: N/A | BL47: N/A | BM47: N/A | BN47: N/A | BO47: N/A | BP47: N/A | BQ47: N/A | BR47: N/A | BS47: N/A | BT47: N/A | BU47: N/A
B48: Contaminated (E. coli detected in 100 mL) | C48: N/A | D48: N/A | E48: N/A | F48: N/A | G48: N/A | H48: N/A | I48: N/A | J48: N/A | K48: N/A | L48: N/A | M48: N/A | N48: N/A | O48: N/A | P48: N/A | Q48: N/A | R48: N/A | S48: N/A | T48: N/A | U48: N/A | BB48: Contaminated (E. coli detected in 100 mL) | BC48: N/A | BD48: N/A | BE48: N/A | BF48: N/A | BG48: N/A | BH48: N/A | BI48: N/A | BJ48: N/A | BK48: N/A | BL48: N/A | BM48: N/A | BN48: N/A | BO48: N/A | BP48: N/A | BQ48: N/A | BR48: N/A | BS48: N/A | BT48: N/A | BU48: N/A
B49: Highly contaminated (>100 CFU/100 mL) | C49: N/A | D49: N/A | E49: N/A | F49: N/A | G49: N/A | H49: N/A | I49: N/A | J49: N/A | K49: N/A | L49: N/A | M49: N/A | N49: N/A | O49: N/A | P49: N/A | Q49: N/A | R49: N/A | S49: N/A | T49: N/A | U49: N/A | BB49: Highly contaminated (>100 CFU/100 mL) | BC49: N/A | BD49: N/A | BE49: N/A | BF49: N/A | BG49: N/A | BH49: N/A | BI49: N/A | BJ49: N/A | BK49: N/A | BL49: N/A | BM49: N/A | BN49: N/A | BO49: N/A | BP49: N/A | BQ49: N/A | BR49: N/A | BS49: N/A | BT49: N/A | BU49: N/A
A50: Microbiological quality of improved water sources at point of collection | B50: Not contaminated (No E. coli in 100 mL) | C50: N/A | D50: N/A | E50: N/A | F50: N/A | G50: N/A | H50: N/A | I50: N/A | J50: N/A | K50: N/A | L50: N/A | M50: N/A | N50: N/A | O50: N/A | P50: N/A | Q50: N/A | R50: N/A | S50: N/A | T50: N/A | U50: N/A | BA50: Microbiological quality of improved water sources at point of collection | BB50: Not contaminated (No E. coli in 100 mL) | BC50: N/A | BD50: N/A | BE50: N/A | BF50: N/A | BG50: N/A | BH50: N/A | BI50: N/A | BJ50: N/A | BK50: N/A | BL50: N/A | BM50: N/A | BN50: N/A | BO50: N/A | BP50: N/A | BQ50: N/A | BR50: N/A | BS50: N/A | BT50: N/A | BU50: N/A
B51: Contaminated (E. coli detected in 100 mL) | C51: N/A | D51: N/A | E51: N/A | F51: N/A | G51: N/A | H51: N/A | I51: N/A | J51: N/A | K51: N/A | L51: N/A | M51: N/A | N51: N/A | O51: N/A | P51: N/A | Q51: N/A | R51: N/A | S51: N/A | T51: N/A | U51: N/A | BB51: Contaminated (E. coli detected in 100 mL) | BC51: N/A | BD51: N/A | BE51: N/A | BF51: N/A | BG51: N/A | BH51: N/A | BI51: N/A | BJ51: N/A | BK51: N/A | BL51: N/A | BM51: N/A | BN51: N/A | BO51: N/A | BP51: N/A | BQ51: N/A | BR51: N/A | BS51: N/A | BT51: N/A | BU51: N/A
B52: Highly contaminated (>100 CFU/100 mL) | C52: N/A | D52: N/A | E52: N/A | F52: N/A | G52: N/A | H52: N/A | I52: N/A | J52: N/A | K52: N/A | L52: N/A | M52: N/A | N52: N/A | O52: N/A | P52: N/A | Q52: N/A | R52: N/A | S52: N/A | T52: N/A | U52: N/A | BB52: Highly contaminated (>100 CFU/100 mL) | BC52: N/A | BD52: N/A | BE52: N/A | BF52: N/A | BG52: N/A | BH52: N/A | BI52: N/A | BJ52: N/A | BK52: N/A | BL52: N/A | BM52: N/A | BN52: N/A | BO52: N/A | BP52: N/A | BQ52: N/A | BR52: N/A | BS52: N/A | BT52: N/A | BU52: N/A
A53: Microbiological quality of piped on premises at point of collection | B53: Not contaminated (No E. coli in 100 mL) | C53: N/A | D53: N/A | E53: N/A | F53: N/A | G53: N/A | H53: N/A | I53: N/A | J53: N/A | K53: N/A | L53: N/A | M53: N/A | N53: N/A | O53: N/A | P53: N/A | Q53: N/A | R53: N/A | S53: N/A | T53: N/A | U53: N/A | BA53: Microbiological quality of piped on premises at point of collection | BB53: Not contaminated (No E. coli in 100 mL) | BC53: N/A | BD53: N/A | BE53: N/A | BF53: N/A | BG53: N/A | BH53: N/A | BI53: N/A | BJ53: N/A | BK53: N/A | BL53: N/A | BM53: N/A | BN53: N/A | BO53: N/A | BP53: N/A | BQ53: N/A | BR53: N/A | BS53: N/A | BT53: N/A | BU53: N/A
B54: Contaminated (E. coli detected in 100 mL) | C54: N/A | D54: N/A | E54: N/A | F54: N/A | G54: N/A | H54: N/A | I54: N/A | J54: N/A | K54: N/A | L54: N/A | M54: N/A | N54: N/A | O54: N/A | P54: N/A | Q54: N/A | R54: N/A | S54: N/A | T54: N/A | U54: N/A | BB54: Contaminated (E. coli detected in 100 mL) | BC54: N/A | BD54: N/A | BE54: N/A | BF54: N/A | BG54: N/A | BH54: N/A | BI54: N/A | BJ54: N/A | BK54: N/A | BL54: N/A | BM54: N/A | BN54: N/A | BO54: N/A | BP54: N/A | BQ54: N/A | BR54: N/A | BS54: N/A | BT54: N/A | BU54: N/A
B55: Highly contaminated (>100 CFU/100 mL) | C55: N/A | D55: N/A | E55: N/A | F55: N/A | G55: N/A | H55: N/A | I55: N/A | J55: N/A | K55: N/A | L55: N/A | M55: N/A | N55: N/A | O55: N/A | P55: N/A | Q55: N/A | R55: N/A | S55: N/A | T55: N/A | U55: N/A | BB55: Highly contaminated (>100 CFU/100 mL) | BC55: N/A | BD55: N/A | BE55: N/A | BF55: N/A | BG55: N/A | BH55: N/A | BI55: N/A | BJ55: N/A | BK55: N/A | BL55: N/A | BM55: N/A | BN55: N/A | BO55: N/A | BP55: N/A | BQ55: N/A | BR55: N/A | BS55: N/A | BT55: N/A | BU55: N/A
C56: NATIONAL wealth index quintile | H56: URBAN wealth index quintile | M56: RURAL wealth index quintile | R56: SUB-REGIONS: | BA56: Raw numbers of respondents: | BB56: Use of drinking water sources | BC56: NATIONAL wealth index quintile | BH56: URBAN wealth index quintile | BM56: RURAL wealth index quintile | BR56: SUB-REGIONS:
A57: Percentage based on weighted population | C57: Poorest | D57: Poor | E57: Middle | F57: Rich | G57: Richest | H57: Poorest | I57: Poor | J57: Middle | K57: Rich | L57: Richest | M57: Poorest | N57: Poor | O57: Middle | P57: Rich | Q57: Richest | R57: Hhohho | S57: Lubombo | T57: Manzini | U57: Shiselweni | BA57: Water data, raw numbers (weighted) | BC57: Poorest | BD57: Poor | BE57: Middle | BF57: Rich | BG57: Richest | BH57: Poorest | BI57: Poor | BJ57: Middle | BK57: Rich | BL57: Richest | BM57: Poorest | BN57: Poor | BO57: Middle | BP57: Rich | BQ57: Richest | BR57: Hhohho | BS57: Lubombo | BT57: Manzini | BU57: Shiselweni
A58: Source of drinking water | B58: Piped into dwelling | C58: 2.390855911 | D58: 3.477984326 | E58: 4.247155016 | F58: 11.81738267 | G58: 46.9357624 | H58: 6.87343387 | I58: 18.72087544 | J58: 38.95542856 | K58: 57.50142313 | L58: 79.65043172 | M58: 1.92913555 | N58: 3.654964714 | O58: 3.124645096 | P58: 4.296950897 | Q58: 20.38661347 | R58: 18.2868482 | S58: 15.32506823 | T58: 15.48763302 | U58: 4.921536862
B59: Piped to yard/plot | C59: 3.834714849 | D59: 10.33475104 | E59: 16.57223222 | F59: 28.84329257 | G59: 26.3128865 | H59: 26.02704567 | I59: 46.20385202 | J59: 40.34729534 | K59: 32.33310052 | L59: 16.20388059 | M59: 2.723972286 | N59: 10.2823035 | O59: 10.05763295 | P59: 16.81215898 | Q59: 25.93923502 | R59: 25.20229042 | S59: 11.61340435 | T59: 20.70386867 | U59: 8.1741334
B60: Public tap/standpipe | C60: 15.64771433 | D60: 19.64429686 | E60: 27.25276913 | F60: 17.61193594 | G60: 7.588495334 | H60: 33.84162051 | I60: 16.70808969 | J60: 13.89211515 | K60: 5.609668231 | L60: 0 | M60: 14.77171315 | N60: 17.89965989 | O60: 26.03451626 | P60: 19.7867971 | Q60: 14.01690361 | R60: 19.7439368 | S60: 11.93368744 | T60: 19.09812616 | U60: 17.89622802
B61: Tube well or borehole | C61: 8.268270053 | D61: 8.285960749 | E61: 6.74231276 | F61: 6.716541889 | G61: 6.941021412 | H61: 5.230544389 | I61: 4.608206547 | J61: 1.220771142 | K61: 1.12056921 | L61: 2.744275858 | M61: 7.30257704 | N61: 9.622140219 | O61: 6.924760322 | P61: 7.458218385 | Q61: 11.5202279 | R61: 4.792516696 | S61: 9.458010966 | T61: 8.033051957 | U61: 7.66707732
B62: Protected well | C62: 7.675761108 | D62: 6.915841984 | E62: 6.059309958 | F62: 5.473972248 | G62: 1.306355416 | H62: 2.673027589 | I62: 1.923798415 | J62: 1.206442799 | K62: 0.6519326855 | L62: 0 | M62: 7.892878418 | N62: 6.110661344 | O62: 7.879952942 | P62: 7.849853338 | Q62: 3.299272348 | R62: 4.872083406 | S62: 5.572076558 | T62: 3.439590068 | U62: 8.87743625
B63: Unprotected well | C63: 18.15182328 | D63: 14.40164717 | E63: 11.06965008 | F63: 10.61692713 | G63: 1.734687648 | H63: 10.55187099 | I63: 3.454039251 | J63: 0.1766766468 | K63: 0.3449074001 | L63: 0 | M63: 19.63877195 | N63: 14.26309669 | O63: 11.91683465 | P63: 13.11031094 | Q63: 8.110061291 | R63: 8.701119761 | S63: 14.09790949 | T63: 6.417915727 | U63: 17.95320315
B64: Protected spring | C64: 2.386323485 | D64: 2.370557064 | E64: 2.996757917 | F64: 1.563981757 | G64: 0.6635013102 | H64: 3.793025877 | I64: 0.5176222428 | J64: 0.2112468487 | K64: 0 | L64: 0 | M64: 2.856998368 | N64: 1.922417453 | O64: 2.255255788 | P64: 3.47954929 | Q64: 0.9240935163 | R64: 2.929358675 | S64: 1.923240958 | T64: 0.6169898161 | U64: 2.865725488
B65: Unprotected spring | C65: 5.383188707 | D65: 7.421412867 | E65: 5.202482398 | F65: 2.801185201 | G65: 1.011557092 | H65: 1.969637393 | I65: 3.126412605 | J65: 0.7930744291 | K65: 0.1966126484 | L65: 0 | M65: 5.465263094 | N65: 7.341957093 | O65: 6.843258433 | P65: 4.439837354 | Q65: 1.927398516 | R65: 2.568333785 | S65: 2.781212928 | T65: 5.64831098 | U65: 6.050589097
B66: River/dam/lake/ponds/stream/canal/irrigation channel | C66: 35.20695173 | D66: 25.79058486 | E66: 18.09459013 | F66: 11.42962207 | G66: 4.423887442 | H66: 6.913013362 | I66: 2.615697111 | J66: 0.4896119152 | K66: 1.241460508 | L66: 0 | M66: 36.15886134 | N66: 28.18074533 | O66: 23.39344783 | P66: 20.73747765 | Q66: 8.801241392 | R66: 11.49960842 | S66: 25.16716916 | T66: 17.57993472 | U66: 24.01350882
B67: Rainwater | C67: 0.3470858998 | D67: 0.307816615 | E67: 0.591991742 | F67: 0.9705428026 | G67: 0.474536364 | H67: 0.0989661467 | I67: 0.7505369792 | J67: 0 | K67: 0 | L67: 0 | M67: 0.4396670127 | N67: 0.02418695569 | O67: 0.3394055249 | P67: 1.010899044 | Q67: 1.369637823 | R67: 0.4063632891 | S67: 0.5050055239 | T67: 0.5144136739 | U67: 0.750528955
B68: Tanker truck | C68: 0.5340868014 | D68: 0.6168386011 | E68: 1.002842801 | F68: 1.729363695 | G68: 2.369127125 | H68: 1.154481872 | I68: 0.6971648806 | J68: 2.707337178 | K68: 1.00032567 | L68: 0.9696145147 | M68: 0.6007325051 | N68: 0.4450630574 | O68: 1.009422847 | P68: 0.6061501551 | Q68: 3.519041476 | R68: 0.6345715402 | S68: 1.279111152 | T68: 2.269209843 | U68: 0.5480241482
B69: Bottled water | C69: 0 | D69: 0.09736931621 | E69: 0 | F69: 0 | G69: 0.1908779651 | H69: 0 | I69: 0 | J69: 0 | K69: 0 | L69: 0.4317973247 | M69: 0 | N69: 0 | O69: 0.1233951197 | P69: 0 | Q69: 0.1264114769 | R69: 0.0697333919 | S69: 0.1966803015 | T69: 0 | U69: 0
B70: Other | C70: 0.1732238481 | D70: 0.3349385589 | E70: 0.1679058405 | F70: 0.4252520255 | G70: 0.04730399908 | H70: 0.8733323255 | I70: 0.6737048172 | J70: 0 | K70: 0 | L70: 0 | M70: 0.2194292879 | N70: 0.2528037492 | O70: 0.09747223565 | P70: 0.4117968613 | Q70: 0.05986215793 | R70: 0.2932356109 | S70: 0.1474229531 | T70: 0.1909553649 | U70: 0.2820084903
A108: =A1026 -> Eswatini
A109: =A1034 -> 2007
A110: Use of sanitation facilities
A111: by wealth quintile and sub-national region
A112: Notes:
A113: WHO/UNICEF JMP customised wealth index excludes water,
A114: sanitation and hygiene assets.
A115: Survey used for analysis: | B115: =A1025 -> DHS07
A116: =B1030 -> Ratio of Improved latrines based on: | B116: MICS10
A117: =B1029 -> Ratio of Shared improved based on: | B117: MICS10
A120: Use of sanitation facilities | C120: NATIONAL wealth index quintile | H120: URBAN wealth index quintile | M120: RURAL wealth index quintile | R120: SUB-REGIONS: | BA120: Raw numbers of respondents: | BB120: Use of sanitation facilities | BC120: NATIONAL wealth index quintile | BH120: URBAN wealth index quintile | BM120: RURAL wealth index quintile | BR120: SUB-REGIONS:
A121: Weighted percentage (used in graphs) | C121: Poorest | D121: Poor | E121: Middle | F121: Rich | G121: Richest | H121: Poorest | I121: Poor | J121: Middle | K121: Rich | L121: Richest | M121: Poorest | N121: Poor | O121: Middle | P121: Rich | Q121: Richest | R121: Hhohho | S121: Lubombo | T121: Manzini | U121: Shiselweni | BA121: Sanitation data, raw numbers (weighted) | BC121: Poorest | BD121: Poor | BE121: Middle | BF121: Rich | BG121: Richest | BH121: Poorest | BI121: Poor | BJ121: Middle | BK121: Rich | BL121: Richest | BM121: Poorest | BN121: Poor | BO121: Middle | BP121: Rich | BQ121: Richest | BR121: Hhohho | BS121: Lubombo | BT121: Manzini | BU121: Shiselweni
A122: Sanitation | B122: Improved | C122: =C153+C155+C154*MICS10!C130/100 -> 36.55552836 | D122: =D153+D155+D154*MICS10!D130/100 -> 67.95011742 | E122: =E153+E155+E154*MICS10!E130/100 -> 80.15299979 | F122: =F153+F155+F154*MICS10!F130/100 -> 89.71944194 | G122: =G153+G155+G154*MICS10!G130/100 -> 98.5234838 | H122: =H153+H155+H154*MICS10!H130/100 -> 80.69844407 | I122: =I153+I155+I154*MICS10!I130/100 -> 93.51381977 | J122: =J153+J155+J154*MICS10!J130/100 -> 98.42816839 | K122: =K153+K155+K154*MICS10!K130/100 -> 99.58182812 | L122: =L153+L155+L154*MICS10!L130/100 -> 100 | M122: =M153+M155+M154*MICS10!M130/100 -> 33.45525709 | N122: =N153+N155+N154*MICS10!N130/100 -> 59.68273192 | O122: =O153+O155+O154*MICS10!O130/100 -> 74.46200781 | P122: =P153+P155+P154*MICS10!P130/100 -> 84.10633514 | Q122: =Q153+Q155+Q154*MICS10!Q130/100 -> 93.78013099 | R122: =R153+R155+R154*MICS10!R130/100 -> 77.9992731 | S122: =S153+S155+S154*MICS10!S130/100 -> 53.81216743 | T122: =T153+T155+T154*MICS10!T130/100 -> 84.13559681 | U122: =U153+U155+U154*MICS10!U130/100 -> 75.57412808 | BA122: Sanitation | BB122: Improved | BC122: N/A | BD122: N/A | BE122: N/A | BF122: N/A | BG122: N/A | BH122: N/A | BI122: N/A | BJ122: N/A | BK122: N/A | BL122: N/A | BM122: N/A | BN122: N/A | BO122: N/A | BP122: N/A | BQ122: N/A | BR122: N/A | BS122: N/A | BT122: N/A | BU122: N/A
B123: Not Improved | C123: =100-C122 -> 63.44447164 | D123: =100-D122 -> 32.04988258 | E123: 19.84700021 | F123: 10.28055806 | G123: 1.476516202 | H123: 19.30155593 | I123: 6.486180232 | J123: 1.571831611 | K123: 0.4181718785 | L123: 0 | M123: 66.54474291 | N123: 40.31726808 | O123: 25.53799219 | P123: 15.89366486 | Q123: 6.219869008 | R123: 22.0007269 | S123: 46.18783257 | T123: 15.86440319 | U123: 24.42587192 | BB123: Not Improved | BC123: N/A | BD123: N/A | BE123: N/A | BF123: N/A | BG123: N/A | BH123: N/A | BI123: N/A | BJ123: N/A | BK123: N/A | BL123: N/A | BM123: N/A | BN123: N/A | BO123: N/A | BP123: N/A | BQ123: N/A | BR123: N/A | BS123: N/A | BT123: N/A | BU123: N/A
A124: Sanitation ladder | B124: Basic | C124: =C122*MICS10!C129/100 -> 27.26554843 | D124: =D122*MICS10!D129/100 -> 46.23185014 | E124: =E122*MICS10!E129/100 -> 49.88800925 | F124: =F122*MICS10!F129/100 -> 60.25683069 | G124: =G122*MICS10!G129/100 -> 72.41006671 | H124: =H122*MICS10!H129/100 -> 18.06549649 | I124: =I122*MICS10!I129/100 -> 37.90844304 | J124: =J122*MICS10!J129/100 -> 44.85562633 | K124: =K122*MICS10!K129/100 -> 66.0995636 | L124: =L122*MICS10!L129/100 -> 88.05946936 | M124: =M122*MICS10!M129/100 -> 25.85497087 | N124: =N122*MICS10!N129/100 -> 45.40861813 | O124: =O122*MICS10!O129/100 -> 54.51900603 | P124: =P122*MICS10!P129/100 -> 59.96939218 | Q124: =Q122*MICS10!Q129/100 -> 71.70782569 | R124: =R122*MICS10!R129/100 -> 53.2484935 | S124: =S122*MICS10!S129/100 -> 41.42930668 | T124: =T122*MICS10!T129/100 -> 50.98121365 | U124: =U122*MICS10!U129/100 -> 56.86899261 | BA124: Sanitation ladder | BB124: Basic | BC124: N/A | BD124: N/A | BE124: N/A | BF124: N/A | BG124: N/A | BH124: N/A | BI124: N/A | BJ124: N/A | BK124: N/A | BL124: N/A | BM124: N/A | BN124: N/A | BO124: N/A | BP124: N/A | BQ124: N/A | BR124: N/A | BS124: N/A | BT124: N/A | BU124: N/A
B125: Limited | C125: =C122*MICS10!C128/100 -> 9.289979933 | D125: =D122*MICS10!D128/100 -> 21.71826728 | E125: =E122*MICS10!E128/100 -> 30.26499055 | F125: =F122*MICS10!F128/100 -> 29.46261125 | G125: =G122*MICS10!G128/100 -> 26.11341709 | H125: =H122*MICS10!H128/100 -> 62.63294758 | I125: =I122*MICS10!I128/100 -> 55.60537673 | J125: =J122*MICS10!J128/100 -> 53.57254206 | K125: =K122*MICS10!K128/100 -> 33.48226453 | L125: =L122*MICS10!L128/100 -> 11.94053064 | M125: =M122*MICS10!M128/100 -> 7.600286221 | N125: =N122*MICS10!N128/100 -> 14.2741138 | O125: =O122*MICS10!O128/100 -> 19.94300178 | P125: =P122*MICS10!P128/100 -> 24.13694296 | Q125: =Q122*MICS10!Q128/100 -> 22.0723053 | R125: =R122*MICS10!R128/100 -> 24.7507796 | S125: =S122*MICS10!S128/100 -> 12.38286075 | T125: =T122*MICS10!T128/100 -> 33.15438316 | U125: =U122*MICS10!U128/100 -> 18.70513547 | BB125: Limited | BC125: N/A | BD125: N/A | BE125: N/A | BF125: N/A | BG125: N/A | BH125: N/A | BI125: N/A | BJ125: N/A | BK125: N/A | BL125: N/A | BM125: N/A | BN125: N/A | BO125: N/A | BP125: N/A | BQ125: N/A | BR125: N/A | BS125: N/A | BT125: N/A | BU125: N/A
B126: Unimproved | C126: =100-(C124+C125+C127) -> 9.460776017 | D126: =100-(D124+D125+D127) -> 6.627487119 | E126: 6.333024667 | F126: 4.486210957 | G126: 1.346669047 | H126: 13.01036963 | I126: 4.299816408 | J126: 1.174562148 | K126: 0.4181718785 | L126: 0 | M126: 9.265878911 | N126: 7.353405465 | O126: 6.694308677 | P126: 4.83188077 | Q126: 3.523488779 | R126: 5.174571159 | S126: 8.851335129 | T126: 4.747044185 | U126: 4.950319777 | BB126: Unimproved | BC126: N/A | BD126: N/A | BE126: N/A | BF126: N/A | BG126: N/A | BH126: N/A | BI126: N/A | BJ126: N/A | BK126: N/A | BL126: N/A | BM126: N/A | BN126: N/A | BO126: N/A | BP126: N/A | BQ126: N/A | BR126: N/A | BS126: N/A | BT126: N/A | BU126: N/A
B127: Open defecation | C127: =C156 -> 53.98369562 | D127: =D156 -> 25.42239547 | E127: 13.51397554 | F127: 5.794347104 | G127: 0.1298471553 | H127: 6.291186296 | I127: 2.186363824 | J127: 0.397269462 | K127: 0 | L127: 0 | M127: 57.27886399 | N127: 32.96386261 | O127: 18.84368351 | P127: 11.06178409 | Q127: 2.696380229 | R127: 16.82615574 | S127: 37.33649744 | T127: 11.11735901 | U127: 19.47555214 | BB127: Open defecation | BC127: N/A | BD127: N/A | BE127: N/A | BF127: N/A | BG127: N/A | BH127: N/A | BI127: N/A | BJ127: N/A | BK127: N/A | BL127: N/A | BM127: N/A | BN127: N/A | BO127: N/A | BP127: N/A | BQ127: N/A | BR127: N/A | BS127: N/A | BT127: N/A | BU127: N/A
A128: Shared among Improved Sanitation | B128: Yes | C128: N/A | D128: N/A | E128: N/A | F128: N/A | G128: N/A | H128: N/A | I128: N/A | J128: N/A | K128: N/A | L128: N/A | M128: N/A | N128: N/A | O128: N/A | P128: N/A | Q128: N/A | R128: N/A | S128: N/A | T128: N/A | U128: N/A | BA128: Shared among improved sanitation facilities | BB128: Yes | BC128: N/A | BD128: N/A | BE128: N/A | BF128: N/A | BG128: N/A | BH128: N/A | BI128: N/A | BJ128: N/A | BK128: N/A | BL128: N/A | BM128: N/A | BN128: N/A | BO128: N/A | BP128: N/A | BQ128: N/A | BR128: N/A | BS128: N/A | BT128: N/A | BU128: N/A
B129: No | C129: N/A | D129: N/A | E129: N/A | F129: N/A | G129: N/A | H129: N/A | I129: N/A | J129: N/A | K129: N/A | L129: N/A | M129: N/A | N129: N/A | O129: N/A | P129: N/A | Q129: N/A | R129: N/A | S129: N/A | T129: N/A | U129: N/A | BB129: No | BC129: N/A | BD129: N/A | BE129: N/A | BF129: N/A | BG129: N/A | BH129: N/A | BI129: N/A | BJ129: N/A | BK129: N/A | BL129: N/A | BM129: N/A | BN129: N/A | BO129: N/A | BP129: N/A | BQ129: N/A | BR129: N/A | BS129: N/A | BT129: N/A | BU129: N/A
A130: Manually calculated ratios | B130: Improved latrines
B131: Other
B132: Other
C133: NATIONAL wealth index quintile | H133: URBAN wealth index quintile | M133: RURAL wealth index quintile | R133: SUB-REGIONS: | BA133: Raw numbers of respondents: | BB133: Use of sanitation facilities | BC133: NATIONAL wealth index quintile | BH133: URBAN wealth index quintile | BM133: RURAL wealth index quintile | BR133: SUB-REGIONS:
A134: Percentage based on weighted population | C134: Poorest | D134: Poor | E134: Middle | F134: Rich | G134: Richest | H134: Poorest | I134: Poor | J134: Middle | K134: Rich | L134: Richest | M134: Poorest | N134: Poor | O134: Middle | P134: Rich | Q134: Richest | R134: Hhohho | S134: Lubombo | T134: Manzini | U134: Shiselweni | BA134: Sanitation data, raw numbers (weighted) | BC134: Poorest | BD134: Poor | BE134: Middle | BF134: Rich | BG134: Richest | BH134: Poorest | BI134: Poor | BJ134: Middle | BK134: Rich | BL134: Richest | BM134: Poorest | BN134: Poor | BO134: Middle | BP134: Rich | BQ134: Richest | BR134: Hhohho | BS134: Lubombo | BT134: Manzini | BU134: Shiselweni
A135: Sanitation type | B135: Sewer connection | C135: N/A | D135: N/A | E135: N/A | F135: N/A | G135: N/A | H135: N/A | I135: N/A | J135: N/A | K135: N/A | L135: N/A | M135: N/A | N135: N/A | O135: N/A | P135: N/A | Q135: N/A | R135: N/A | S135: N/A | T135: N/A | U135: N/A | BA135: Sanitation type | BB135: Sewer connection | BC135: N/A | BD135: N/A | BE135: N/A | BF135: N/A | BG135: N/A | BH135: N/A | BI135: N/A | BJ135: N/A | BK135: N/A | BL135: N/A | BM135: N/A | BN135: N/A | BO135: N/A | BP135: N/A | BQ135: N/A | BR135: N/A | BS135: N/A | BT135: N/A | BU135: N/A
B136: Septic tank connection | C136: N/A | D136: N/A | E136: N/A | F136: N/A | G136: N/A | H136: N/A | I136: N/A | J136: N/A | K136: N/A | L136: N/A | M136: N/A | N136: N/A | O136: N/A | P136: N/A | Q136: N/A | R136: N/A | S136: N/A | T136: N/A | U136: N/A | BB136: Septic tank connection | BC136: N/A | BD136: N/A | BE136: N/A | BF136: N/A | BG136: N/A | BH136: N/A | BI136: N/A | BJ136: N/A | BK136: N/A | BL136: N/A | BM136: N/A | BN136: N/A | BO136: N/A | BP136: N/A | BQ136: N/A | BR136: N/A | BS136: N/A | BT136: N/A | BU136: N/A
B137: Improved latrines | C137: N/A | D137: N/A | E137: N/A | F137: N/A | G137: N/A | H137: N/A | I137: N/A | J137: N/A | K137: N/A | L137: N/A | M137: N/A | N137: N/A | O137: N/A | P137: N/A | Q137: N/A | R137: N/A | S137: N/A | T137: N/A | U137: N/A | BB137: Improved latrines | BC137: N/A | BD137: N/A | BE137: N/A | BF137: N/A | BG137: N/A | BH137: N/A | BI137: N/A | BJ137: N/A | BK137: N/A | BL137: N/A | BM137: N/A | BN137: N/A | BO137: N/A | BP137: N/A | BQ137: N/A | BR137: N/A | BS137: N/A | BT137: N/A | BU137: N/A
B138: Unimproved facilities | C138: N/A | D138: N/A | E138: N/A | F138: N/A | G138: N/A | H138: N/A | I138: N/A | J138: N/A | K138: N/A | L138: N/A | M138: N/A | N138: N/A | O138: N/A | P138: N/A | Q138: N/A | R138: N/A | S138: N/A | T138: N/A | U138: N/A | BB138: Unimproved facilities | BC138: N/A | BD138: N/A | BE138: N/A | BF138: N/A | BG138: N/A | BH138: N/A | BI138: N/A | BJ138: N/A | BK138: N/A | BL138: N/A | BM138: N/A | BN138: N/A | BO138: N/A | BP138: N/A | BQ138: N/A | BR138: N/A | BS138: N/A | BT138: N/A | BU138: N/A
B139: Open defecation | C139: 53.98369562 | D139: 25.40154676 | E139: 13.51397554 | F139: 5.790704484 | G139: 0.1297569384 | H139: 6.291186296 | I139: 2.186363824 | J139: 0.3960823885 | K139: 0 | L139: 0 | M139: 57.27886399 | N139: 32.92968782 | O139: 18.84368351 | P139: 11.06178409 | Q139: 2.696380229 | R139: 16.82615574 | S139: 37.33649744 | T139: 11.10198779 | U139: 19.47555214 | BB139: Open defecation | BC139: N/A | BD139: N/A | BE139: N/A | BF139: N/A | BG139: N/A | BH139: N/A | BI139: N/A | BJ139: N/A | BK139: N/A | BL139: N/A | BM139: N/A | BN139: N/A | BO139: N/A | BP139: N/A | BQ139: N/A | BR139: N/A | BS139: N/A | BT139: N/A | BU139: N/A
A140: Septic tank emptying practices | B140: Not emptied/treated and disposed in situ | C140: N/A | D140: N/A | E140: N/A | F140: N/A | G140: N/A | H140: N/A | I140: N/A | J140: N/A | K140: N/A | L140: N/A | M140: N/A | N140: N/A | O140: N/A | P140: N/A | Q140: N/A | R140: N/A | S140: N/A | T140: N/A | U140: N/A | BA140: Septic tank emptying practices | BB140: Not emptied/treated and disposed in situ | BC140: N/A | BD140: N/A | BE140: N/A | BF140: N/A | BG140: N/A | BH140: N/A | BI140: N/A | BJ140: N/A | BK140: N/A | BL140: N/A | BM140: N/A | BN140: N/A | BO140: N/A | BP140: N/A | BQ140: N/A | BR140: N/A | BS140: N/A | BT140: N/A | BU140: N/A
B141: Emptied and buried on site | C141: N/A | D141: N/A | E141: N/A | F141: N/A | G141: N/A | H141: N/A | I141: N/A | J141: N/A | K141: N/A | L141: N/A | M141: N/A | N141: N/A | O141: N/A | P141: N/A | Q141: N/A | R141: N/A | S141: N/A | T141: N/A | U141: N/A | BB141: Emptied and buried on site | BC141: N/A | BD141: N/A | BE141: N/A | BF141: N/A | BG141: N/A | BH141: N/A | BI141: N/A | BJ141: N/A | BK141: N/A | BL141: N/A | BM141: N/A | BN141: N/A | BO141: N/A | BP141: N/A | BQ141: N/A | BR141: N/A | BS141: N/A | BT141: N/A | BU141: N/A
B142: Emptied and discharged locally | C142: N/A | D142: N/A | E142: N/A | F142: N/A | G142: N/A | H142: N/A | I142: N/A | J142: N/A | K142: N/A | L142: N/A | M142: N/A | N142: N/A | O142: N/A | P142: N/A | Q142: N/A | R142: N/A | S142: N/A | T142: N/A | U142: N/A | BB142: Emptied and discharged locally | BC142: N/A | BD142: N/A | BE142: N/A | BF142: N/A | BG142: N/A | BH142: N/A | BI142: N/A | BJ142: N/A | BK142: N/A | BL142: N/A | BM142: N/A | BN142: N/A | BO142: N/A | BP142: N/A | BQ142: N/A | BR142: N/A | BS142: N/A | BT142: N/A | BU142: N/A
B143: Emptied and removed offsite | C143: N/A | D143: N/A | E143: N/A | F143: N/A | G143: N/A | H143: N/A | I143: N/A | J143: N/A | K143: N/A | L143: N/A | M143: N/A | N143: N/A | O143: N/A | P143: N/A | Q143: N/A | R143: N/A | S143: N/A | T143: N/A | U143: N/A | BB143: Emptied and removed offsite | BC143: N/A | BD143: N/A | BE143: N/A | BF143: N/A | BG143: N/A | BH143: N/A | BI143: N/A | BJ143: N/A | BK143: N/A | BL143: N/A | BM143: N/A | BN143: N/A | BO143: N/A | BP143: N/A | BQ143: N/A | BR143: N/A | BS143: N/A | BT143: N/A | BU143: N/A
A144: Latrine emptying practices | B144: Not emptied/treated and disposed in situ | C144: N/A | D144: N/A | E144: N/A | F144: N/A | G144: N/A | H144: N/A | I144: N/A | J144: N/A | K144: N/A | L144: N/A | M144: N/A | N144: N/A | O144: N/A | P144: N/A | Q144: N/A | R144: N/A | S144: N/A | T144: N/A | U144: N/A | BA144: Latrine emptying practices | BB144: Not emptied/treated and disposed in situ | BC144: N/A | BD144: N/A | BE144: N/A | BF144: N/A | BG144: N/A | BH144: N/A | BI144: N/A | BJ144: N/A | BK144: N/A | BL144: N/A | BM144: N/A | BN144: N/A | BO144: N/A | BP144: N/A | BQ144: N/A | BR144: N/A | BS144: N/A | BT144: N/A | BU144: N/A
B145: Emptied and buried on site | C145: N/A | D145: N/A | E145: N/A | F145: N/A | G145: N/A | H145: N/A | I145: N/A | J145: N/A | K145: N/A | L145: N/A | M145: N/A | N145: N/A | O145: N/A | P145: N/A | Q145: N/A | R145: N/A | S145: N/A | T145: N/A | U145: N/A | BB145: Emptied and buried on site | BC145: N/A | BD145: N/A | BE145: N/A | BF145: N/A | BG145: N/A | BH145: N/A | BI145: N/A | BJ145: N/A | BK145: N/A | BL145: N/A | BM145: N/A | BN145: N/A | BO145: N/A | BP145: N/A | BQ145: N/A | BR145: N/A | BS145: N/A | BT145: N/A | BU145: N/A
B146: Emptied and discharged locally | C146: N/A | D146: N/A | E146: N/A | F146: N/A | G146: N/A | H146: N/A | I146: N/A | J146: N/A | K146: N/A | L146: N/A | M146: N/A | N146: N/A | O146: N/A | P146: N/A | Q146: N/A | R146: N/A | S146: N/A | T146: N/A | U146: N/A | BB146: Emptied and discharged locally | BC146: N/A | BD146: N/A | BE146: N/A | BF146: N/A | BG146: N/A | BH146: N/A | BI146: N/A | BJ146: N/A | BK146: N/A | BL146: N/A | BM146: N/A | BN146: N/A | BO146: N/A | BP146: N/A | BQ146: N/A | BR146: N/A | BS146: N/A | BT146: N/A | BU146: N/A
B147: Emptied and removed offsite | C147: N/A | D147: N/A | E147: N/A | F147: N/A | G147: N/A | H147: N/A | I147: N/A | J147: N/A | K147: N/A | L147: N/A | M147: N/A | N147: N/A | O147: N/A | P147: N/A | Q147: N/A | R147: N/A | S147: N/A | T147: N/A | U147: N/A | BB147: Emptied and removed offsite | BC147: N/A | BD147: N/A | BE147: N/A | BF147: N/A | BG147: N/A | BH147: N/A | BI147: N/A | BJ147: N/A | BK147: N/A | BL147: N/A | BM147: N/A | BN147: N/A | BO147: N/A | BP147: N/A | BQ147: N/A | BR147: N/A | BS147: N/A | BT147: N/A | BU147: N/A
A148: Shared among improved sanitation facilities | B148: Yes | C148: N/A | D148: N/A | E148: N/A | F148: N/A | G148: N/A | H148: N/A | I148: N/A | J148: N/A | K148: N/A | L148: N/A | M148: N/A | N148: N/A | O148: N/A | P148: N/A | Q148: N/A | R148: N/A | S148: N/A | T148: N/A | U148: N/A | BA148: Shared among improved sanitation facilities | BB148: Yes | BC148: N/A | BD148: N/A | BE148: N/A | BF148: N/A | BG148: N/A | BH148: N/A | BI148: N/A | BJ148: N/A | BK148: N/A | BL148: N/A | BM148: N/A | BN148: N/A | BO148: N/A | BP148: N/A | BQ148: N/A | BR148: N/A | BS148: N/A | BT148: N/A | BU148: N/A
B149: No | C149: N/A | D149: N/A | E149: N/A | F149: N/A | G149: N/A | H149: N/A | I149: N/A | J149: N/A | K149: N/A | L149: N/A | M149: N/A | N149: N/A | O149: N/A | P149: N/A | Q149: N/A | R149: N/A | S149: N/A | T149: N/A | U149: N/A | BB149: No | BC149: N/A | BD149: N/A | BE149: N/A | BF149: N/A | BG149: N/A | BH149: N/A | BI149: N/A | BJ149: N/A | BK149: N/A | BL149: N/A | BM149: N/A | BN149: N/A | BO149: N/A | BP149: N/A | BQ149: N/A | BR149: N/A | BS149: N/A | BT149: N/A | BU149: N/A
B150: DK/missing | C150: N/A | D150: N/A | E150: N/A | F150: N/A | G150: N/A | H150: N/A | I150: N/A | J150: N/A | K150: N/A | L150: N/A | M150: N/A | N150: N/A | O150: N/A | P150: N/A | Q150: N/A | R150: N/A | S150: N/A | T150: N/A | U150: N/A | BB150: DK/missing | BC150: N/A | BD150: N/A | BE150: N/A | BF150: N/A | BG150: N/A | BH150: N/A | BI150: N/A | BJ150: N/A | BK150: N/A | BL150: N/A | BM150: N/A | BN150: N/A | BO150: N/A | BP150: N/A | BQ150: N/A | BR150: N/A | BS150: N/A | BT150: N/A | BU150: N/A
A151: Shared among all sanitation facilities | B151: Yes | C151: 26.20227251 | D151: 26.99773753 | E151: 34.36195083 | F151: 34.78597939 | G151: 22.36699435 | H151: 72.70805219 | I151: 62.99585917 | J151: 51.9768513 | K151: 27.37779487 | L151: 2.999259256 | M151: 25.02098205 | N151: 25.95216583 | O151: 26.39213887 | P151: 24.15235771 | Q151: 21.29480147 | R151: 29.67194472 | S151: 25.77245351 | T151: 31.93194347 | U151: 26.80609124 | BA151: Shared among all sanitation facilities | BB151: Yes | BC151: N/A | BD151: N/A | BE151: N/A | BF151: N/A | BG151: N/A | BH151: N/A | BI151: N/A | BJ151: N/A | BK151: N/A | BL151: N/A | BM151: N/A | BN151: N/A | BO151: N/A | BP151: N/A | BQ151: N/A | BR151: N/A | BS151: N/A | BT151: N/A | BU151: N/A
B152: No | C152: 73.79772749 | D152: 72.76036277 | E152: 65.56951464 | F152: 64.82019108 | G152: 77.44288364 | H152: 26.84048864 | I152: 36.6278646 | J152: 47.75274395 | K152: 72.62220513 | L152: 97.00074074 | M152: 74.97901795 | N152: 73.76370323 | O152: 73.60786113 | P152: 75.58274557 | Q152: 78.39233888 | R152: 70.10043729 | S152: 74.16169837 | T152: 67.94038146 | U152: 72.82943221 | BB152: No | BC152: N/A | BD152: N/A | BE152: N/A | BF152: N/A | BG152: N/A | BH152: N/A | BI152: N/A | BJ152: N/A | BK152: N/A | BL152: N/A | BM152: N/A | BN152: N/A | BO152: N/A | BP152: N/A | BQ152: N/A | BR152: N/A | BS152: N/A | BT152: N/A | BU152: N/A
A153: Type of toilet facility | B153: Flush or pour flush toilet | C153: 0.2797165815 | D153: 0.5771378524 | E153: 1.784807479 | F153: 11.67863503 | G153: 55.62132412 | H153: 6.976650408 | I153: 26.27325809 | J153: 50.35370311 | K153: 67.87289763 | L153: 94.8013098 | M153: 0.354327715 | N153: 0.4434105964 | O153: 0.6226635264 | P153: 0.4836601404 | Q153: 21.00553321 | R153: 17.87748966 | S153: 16.97970136 | T153: 16.70476358 | U153: 3.209086358 | BA153: Type of toilet facility | BB153: Flush or pour flush toilet | BC153: 1282.385 | BD153: 2638.2532 | BE153: 8194.0967 | BF153: 53539.1824 | BG153: 254190.1795 | BH153: 6728.9759 | BI153: 25442.6587 | BJ153: 48450.8558 | BK153: 65372.9301 | BL153: 91052.589 | BM153: 1282.385 | BN153: 1603.0376 | BO153: 2247.8679 | BP153: 1752.8838 | BQ153: 75909.913 | BR153: 106673.8657 | BS153: 77896.3153 | BT153: 118397.0308 | BU153: 16876.885
B154: Ordinary pit latrine | C154: 38.1166508 | D154: 56.53998753 | E154: 62.83261902 | F154: 55.84034721 | G154: 24.41884433 | H154: 77.04872883 | I154: 55.79003435 | J154: 32.99251137 | K154: 18.68273176 | L154: 3.877886982 | M154: 36.16996493 | N154: 51.82138986 | O154: 59.53321739 | P154: 57.9755142 | Q154: 45.42822903 | R154: 46.52708992 | S154: 32.91788057 | T154: 51.2492583 | U154: 56.54738678 | BB154: Ordinary pit latrine | BC154: 174749.1013 | BD154: 258459.5732 | BE154: 288466.1579 | BF154: 255992.8045 | BG154: 111594.4383 | BH154: 74313.4612 | BI154: 54026.2954 | BJ154: 31745.7369 | BK154: 17994.5893 | BL154: 3724.544 | BM154: 130906.5549 | BN154: 187346.9807 | BO154: 214919.941 | BP154: 210115.1845 | BQ154: 164168.7873 | BR154: 277624.2435 | BS154: 151014.529 | BT154: 363235.3121 | BU154: 297387.9906
B155: Ventilated improved privy | C155: 7.584355383 | D155: 17.30736562 | E155: 21.80263283 | F155: 26.65157841 | G155: 19.82998439 | H155: 9.683434469 | I155: 15.58421599 | J155: 16.25651606 | K155: 13.44437061 | L155: 1.320803219 | M155: 6.151770765 | N155: 14.57773358 | O155: 20.91654623 | P155: 30.47904157 | Q155: 30.86985753 | R155: 18.76926469 | S155: 12.54733837 | T155: 20.90592097 | U155: 20.73695663 | BB155: Ventilated improved privy | BC155: 34771.137 | BD155: 79116.6487 | BE155: 100096.4439 | BF155: 122180.6927 | BG155: 90623.2883 | BH155: 9339.6678 | BI155: 15091.5386 | BJ155: 15642.1885 | BK155: 12949.1731 | BL155: 1268.5748 | BM155: 22264.5258 | BN155: 52702.0672 | BO155: 75510.4978 | BP155: 110462.3138 | BQ155: 111557.6632 | BR155: 111995.0317 | BS155: 57562.3449 | BT155: 148173.2415 | BU155: 109057.5925
B156: No facility | C156: 53.98369562 | D156: 25.42239547 | E156: 13.51397554 | F156: 5.794347104 | G156: 0.1298471553 | H156: 6.291186296 | I156: 2.186363824 | J156: 0.397269462 | K156: 0 | L156: 0 | M156: 57.27886399 | N156: 32.96386261 | O156: 18.84368351 | P156: 11.06178409 | Q156: 2.696380229 | R156: 16.82615574 | S156: 37.33649744 | T156: 11.11735901 | U156: 19.47555214 | BB156: No facility | BC156: 247492.9485 | BD156: 116212.6447 | BE156: 62043.0067 | BF156: 26563.4302 | BG156: 593.4032 | BH156: 6067.8461 | BI156: 2117.2444 | BJ156: 382.2568 | BK156: 0 | BL156: 0 | BM156: 207304.0095 | BN156: 119172.4141 | BO156: 68027.2884 | BP156: 40090.1801 | BQ156: 9744.1939 | BR156: 100400.6218 | BS156: 171285.4375 | BT156: 78795.6256 | BU156: 102423.7484
B157: OTHER | C157: 0.03558161301 | D157: 0.1531135404 | E157: 0.06596513092 | F157: 0.03509223842 | G157: 0 | H157: 0 | I157: 0.166127741 | J157: 0 | K157: 0 | L157: 0 | M157: 0.045072593 | N157: 0.1936033517 | O157: 0.08388934002 | P157: 0 | Q157: 0 | R157: 0 | S157: 0.2185822532 | T157: 0.02269813852 | U157: 0.03101808363 | BB157: OTHER | BC157: 163.127 | BD157: 699.9234 | BE157: 302.8476 | BF157: 160.8758 | BG157: 0 | BH157: 0 | BI157: 160.8758 | BJ157: 0 | BK157: 0 | BL157: 0 | BM157: 163.127 | BN157: 699.9234 | BO157: 302.8476 | BP157: 0 | BQ157: 0 | BR157: 0 | BS157: 1002.771 | BT157: 160.8758 | BU157: 163.127
BB158: Total | BC158: 458458.6988 | BD158: 457127.0432 | BE158: 459102.5528 | BF158: 458436.9856 | BG158: 457001.3093 | BH158: 96449.951 | BI158: 96838.6129 | BJ158: 96221.038 | BK158: 96316.6925 | BL158: 96045.7078 | BM158: 361920.6022 | BN158: 361524.423 | BO158: 361008.4427 | BP158: 362420.5622 | BQ158: 361380.5574 | BR158: 596693.7627 | BS158: 458761.3977 | BT158: 708762.0858 | BU158: 525909.3435
A208: =A1026 -> Eswatini
A209: =A1034 -> 2007
A210: Access to hygiene facilities
A211: by wealth quintile and sub-national region
A212: Notes:
A213: WHO/UNICEF JMP customised wealth index excludes water,
A214: sanitation and hygiene assets.
A215: Survey used for analysis: | B215: =A1025 -> DHS07
A220: Access to handwashing | C220: NATIONAL wealth index quintile | H220: URBAN wealth index quintile | M220: RURAL wealth index quintile | R220: SUB-REGIONS: | BA220: Raw numbers of respondents: | BB220: Access to handwashing | BC220: NATIONAL wealth index quintile | BH220: URBAN wealth index quintile | BM220: RURAL wealth index quintile | BR220: SUB-REGIONS:
A221: Weighted percentage (used in graphs) | C221: Poorest | D221: Poor | E221: Middle | F221: Rich | G221: Richest | H221: Poorest | I221: Poor | J221: Middle | K221: Rich | L221: Richest | M221: Poorest | N221: Poor | O221: Middle | P221: Rich | Q221: Richest | R221: Hhohho | S221: Lubombo | T221: Manzini | U221: Shiselweni | BA221: Hygiene data, raw numbers (weighted) | BC221: Poorest | BD221: Poor | BE221: Middle | BF221: Rich | BG221: Richest | BH221: Poorest | BI221: Poor | BJ221: Middle | BK221: Rich | BL221: Richest | BM221: Poorest | BN221: Poor | BO221: Middle | BP221: Rich | BQ221: Richest | BR221: Hhohho | BS221: Lubombo | BT221: Manzini | BU221: Shiselweni
A222: Hygiene ladder | B222: Basic | C222: N/A | D222: N/A | E222: N/A | F222: N/A | G222: N/A | H222: N/A | I222: N/A | J222: N/A | K222: N/A | L222: N/A | M222: N/A | N222: N/A | O222: N/A | P222: N/A | Q222: N/A | R222: N/A | S222: N/A | T222: N/A | U222: N/A | BA222: Hygiene ladder | BB222: Basic | BC222: N/A | BD222: N/A | BE222: N/A | BF222: N/A | BG222: N/A | BH222: N/A | BI222: N/A | BJ222: N/A | BK222: N/A | BL222: N/A | BM222: N/A | BN222: N/A | BO222: N/A | BP222: N/A | BQ222: N/A | BR222: N/A | BS222: N/A | BT222: N/A | BU222: N/A
B223: Limited | C223: N/A | D223: N/A | E223: N/A | F223: N/A | G223: N/A | H223: N/A | I223: N/A | J223: N/A | K223: N/A | L223: N/A | M223: N/A | N223: N/A | O223: N/A | P223: N/A | Q223: N/A | R223: N/A | S223: N/A | T223: N/A | U223: N/A | BB223: Limited | BC223: N/A | BD223: N/A | BE223: N/A | BF223: N/A | BG223: N/A | BH223: N/A | BI223: N/A | BJ223: N/A | BK223: N/A | BL223: N/A | BM223: N/A | BN223: N/A | BO223: N/A | BP223: N/A | BQ223: N/A | BR223: N/A | BS223: N/A | BT223: N/A | BU223: N/A
B224: No facility | C224: N/A | D224: N/A | E224: N/A | F224: N/A | G224: N/A | H224: N/A | I224: N/A | J224: N/A | K224: N/A | L224: N/A | M224: N/A | N224: N/A | O224: N/A | P224: N/A | Q224: N/A | R224: N/A | S224: N/A | T224: N/A | U224: N/A | BB224: No facility | BC224: N/A | BD224: N/A | BE224: N/A | BF224: N/A | BG224: N/A | BH224: N/A | BI224: N/A | BJ224: N/A | BK224: N/A | BL224: N/A | BM224: N/A | BN224: N/A | BO224: N/A | BP224: N/A | BQ224: N/A | BR224: N/A | BS224: N/A | BT224: N/A | BU224: N/A
BA225: Observed handwashing place | BB225: Fixed | BC225: N/A | BD225: N/A | BE225: N/A | BF225: N/A | BG225: N/A | BH225: N/A | BI225: N/A | BJ225: N/A | BK225: N/A | BL225: N/A | BM225: N/A | BN225: N/A | BO225: N/A | BP225: N/A | BQ225: N/A | BR225: N/A | BS225: N/A | BT225: N/A | BU225: N/A
BB226: Mobile | BC226: N/A | BD226: N/A | BE226: N/A | BF226: N/A | BG226: N/A | BH226: N/A | BI226: N/A | BJ226: N/A | BK226: N/A | BL226: N/A | BM226: N/A | BN226: N/A | BO226: N/A | BP226: N/A | BQ226: N/A | BR226: N/A | BS226: N/A | BT226: N/A | BU226: N/A
BA227: Water / Soap | BB227: Water and soap | BC227: N/A | BD227: N/A | BE227: N/A | BF227: N/A | BG227: N/A | BH227: N/A | BI227: N/A | BJ227: N/A | BK227: N/A | BL227: N/A | BM227: N/A | BN227: N/A | BO227: N/A | BP227: N/A | BQ227: N/A | BR227: N/A | BS227: N/A | BT227: N/A | BU227: N/A
BB228: Water only | BC228: N/A | BD228: N/A | BE228: N/A | BF228: N/A | BG228: N/A | BH228: N/A | BI228: N/A | BJ228: N/A | BK228: N/A | BL228: N/A | BM228: N/A | BN228: N/A | BO228: N/A | BP228: N/A | BQ228: N/A | BR228: N/A | BS228: N/A | BT228: N/A | BU228: N/A
BB229: Soap only | BC229: N/A | BD229: N/A | BE229: N/A | BF229: N/A | BG229: N/A | BH229: N/A | BI229: N/A | BJ229: N/A | BK229: N/A | BL229: N/A | BM229: N/A | BN229: N/A | BO229: N/A | BP229: N/A | BQ229: N/A | BR229: N/A | BS229: N/A | BT229: N/A | BU229: N/A
BB230: Neither | BC230: N/A | BD230: N/A | BE230: N/A | BF230: N/A | BG230: N/A | BH230: N/A | BI230: N/A | BJ230: N/A | BK230: N/A | BL230: N/A | BM230: N/A | BN230: N/A | BO230: N/A | BP230: N/A | BQ230: N/A | BR230: N/A | BS230: N/A | BT230: N/A | BU230: N/A
BA259: Raw numbers of respondents: | BB259: Menstrual health and hygiene | BC259: NATIONAL wealth index quintile | BH259: URBAN wealth index quintile | BM259: RURAL wealth index quintile | BR259: SUB-REGIONS:
BA260: MHH data, raw numbers (weighted) | BC260: Poorest | BD260: Poor | BE260: Middle | BF260: Rich | BG260: Richest | BH260: Poorest | BI260: Poor | BJ260: Middle | BK260: Rich | BL260: Richest | BM260: Poorest | BN260: Poor | BO260: Middle | BP260: Rich | BQ260: Richest | BR260: Hhohho | BS260: Lubombo | BT260: Manzini | BU260: Shiselweni
BA261: Private place to wash and change | BB261: Yes | BC261: N/A | BD261: N/A | BE261: N/A | BF261: N/A | BG261: N/A | BH261: N/A | BI261: N/A | BJ261: N/A | BK261: N/A | BL261: N/A | BM261: N/A | BN261: N/A | BO261: N/A | BP261: N/A | BQ261: N/A | BR261: N/A | BS261: N/A | BT261: N/A | BU261: N/A
BB262: No | BC262: N/A | BD262: N/A | BE262: N/A | BF262: N/A | BG262: N/A | BH262: N/A | BI262: N/A | BJ262: N/A | BK262: N/A | BL262: N/A | BM262: N/A | BN262: N/A | BO262: N/A | BP262: N/A | BQ262: N/A | BR262: N/A | BS262: N/A | BT262: N/A | BU262: N/A
BB263: DK/not sure/missing | BC263: N/A | BD263: N/A | BE263: N/A | BF263: N/A | BG263: N/A | BH263: N/A | BI263: N/A | BJ263: N/A | BK263: N/A | BL263: N/A | BM263: N/A | BN263: N/A | BO263: N/A | BP263: N/A | BQ263: N/A | BR263: N/A | BS263: N/A | BT263: N/A | BU263: N/A
BA264: Use of menstrual materials | BB264: Materials reusable | BC264: N/A | BD264: N/A | BE264: N/A | BF264: N/A | BG264: N/A | BH264: N/A | BI264: N/A | BJ264: N/A | BK264: N/A | BL264: N/A | BM264: N/A | BN264: N/A | BO264: N/A | BP264: N/A | BQ264: N/A | BR264: N/A | BS264: N/A | BT264: N/A | BU264: N/A
BB265: Materials not reusable | BC265: N/A | BD265: N/A | BE265: N/A | BF265: N/A | BG265: N/A | BH265: N/A | BI265: N/A | BJ265: N/A | BK265: N/A | BL265: N/A | BM265: N/A | BN265: N/A | BO265: N/A | BP265: N/A | BQ265: N/A | BR265: N/A | BS265: N/A | BT265: N/A | BU265: N/A
BB266: No materials used | BC266: N/A | BD266: N/A | BE266: N/A | BF266: N/A | BG266: N/A | BH266: N/A | BI266: N/A | BJ266: N/A | BK266: N/A | BL266: N/A | BM266: N/A | BN266: N/A | BO266: N/A | BP266: N/A | BQ266: N/A | BR266: N/A | BS266: N/A | BT266: N/A | BU266: N/A
BB267: DK/not sure/missing | BC267: N/A | BD267: N/A | BE267: N/A | BF267: N/A | BG267: N/A | BH267: N/A | BI267: N/A | BJ267: N/A | BK267: N/A | BL267: N/A | BM267: N/A | BN267: N/A | BO267: N/A | BP267: N/A | BQ267: N/A | BR267: N/A | BS267: N/A | BT267: N/A | BU267: N/A
BA268: Use of menstrual materials with private place to wash and change | BB268: Materials reusable | BC268: N/A | BD268: N/A | BE268: N/A | BF268: N/A | BG268: N/A | BH268: N/A | BI268: N/A | BJ268: N/A | BK268: N/A | BL268: N/A | BM268: N/A | BN268: N/A | BO268: N/A | BP268: N/A | BQ268: N/A | BR268: N/A | BS268: N/A | BT268: N/A | BU268: N/A
BB269: Materials not reusable | BC269: N/A | BD269: N/A | BE269: N/A | BF269: N/A | BG269: N/A | BH269: N/A | BI269: N/A | BJ269: N/A | BK269: N/A | BL269: N/A | BM269: N/A | BN269: N/A | BO269: N/A | BP269: N/A | BQ269: N/A | BR269: N/A | BS269: N/A | BT269: N/A | BU269: N/A
BB270: No materials used | BC270: N/A | BD270: N/A | BE270: N/A | BF270: N/A | BG270: N/A | BH270: N/A | BI270: N/A | BJ270: N/A | BK270: N/A | BL270: N/A | BM270: N/A | BN270: N/A | BO270: N/A | BP270: N/A | BQ270: N/A | BR270: N/A | BS270: N/A | BT270: N/A | BU270: N/A
BA271: Awareness of menstruation before menarche | BB271: Yes | BC271: N/A | BD271: N/A | BE271: N/A | BF271: N/A | BG271: N/A | BH271: N/A | BI271: N/A | BJ271: N/A | BK271: N/A | BL271: N/A | BM271: N/A | BN271: N/A | BO271: N/A | BP271: N/A | BQ271: N/A | BR271: N/A | BS271: N/A | BT271: N/A | BU271: N/A
BB272: No | BC272: N/A | BD272: N/A | BE272: N/A | BF272: N/A | BG272: N/A | BH272: N/A | BI272: N/A | BJ272: N/A | BK272: N/A | BL272: N/A | BM272: N/A | BN272: N/A | BO272: N/A | BP272: N/A | BQ272: N/A | BR272: N/A | BS272: N/A | BT272: N/A | BU272: N/A
BB273: DK/not sure/missing | BC273: N/A | BD273: N/A | BE273: N/A | BF273: N/A | BG273: N/A | BH273: N/A | BI273: N/A | BJ273: N/A | BK273: N/A | BL273: N/A | BM273: N/A | BN273: N/A | BO273: N/A | BP273: N/A | BQ273: N/A | BR273: N/A | BS273: N/A | BT273: N/A | BU273: N/A
BA274: Participation in (all) activities during menstruation | BB274: Yes | BC274: N/A | BD274: N/A | BE274: N/A | BF274: N/A | BG274: N/A | BH274: N/A | BI274: N/A | BJ274: N/A | BK274: N/A | BL274: N/A | BM274: N/A | BN274: N/A | BO274: N/A | BP274: N/A | BQ274: N/A | BR274: N/A | BS274: N/A | BT274: N/A | BU274: N/A
BB275: No | BC275: N/A | BD275: N/A | BE275: N/A | BF275: N/A | BG275: N/A | BH275: N/A | BI275: N/A | BJ275: N/A | BK275: N/A | BL275: N/A | BM275: N/A | BN275: N/A | BO275: N/A | BP275: N/A | BQ275: N/A | BR275: N/A | BS275: N/A | BT275: N/A | BU275: N/A
BB276: DK/not sure/missing/no such activity | BC276: N/A | BD276: N/A | BE276: N/A | BF276: N/A | BG276: N/A | BH276: N/A | BI276: N/A | BJ276: N/A | BK276: N/A | BL276: N/A | BM276: N/A | BN276: N/A | BO276: N/A | BP276: N/A | BQ276: N/A | BR276: N/A | BS276: N/A | BT276: N/A | BU276: N/A
BA277: Participation in specific activities during menstruation | BB277: Did not go to school (amongst those usually attending school) | BC277: N/A | BD277: N/A | BE277: N/A | BF277: N/A | BG277: N/A | BH277: N/A | BI277: N/A | BJ277: N/A | BK277: N/A | BL277: N/A | BM277: N/A | BN277: N/A | BO277: N/A | BP277: N/A | BQ277: N/A | BR277: N/A | BS277: N/A | BT277: N/A | BU277: N/A
BB278: Did not go to work (amongst those who usually work) | BC278: N/A | BD278: N/A | BE278: N/A | BF278: N/A | BG278: N/A | BH278: N/A | BI278: N/A | BJ278: N/A | BK278: N/A | BL278: N/A | BM278: N/A | BN278: N/A | BO278: N/A | BP278: N/A | BQ278: N/A | BR278: N/A | BS278: N/A | BT278: N/A | BU278: N/A
BB279: Did not participate in social activities | BC279: N/A | BD279: N/A | BE279: N/A | BF279: N/A | BG279: N/A | BH279: N/A | BI279: N/A | BJ279: N/A | BK279: N/A | BL279: N/A | BM279: N/A | BN279: N/A | BO279: N/A | BP279: N/A | BQ279: N/A | BR279: N/A | BS279: N/A | BT279: N/A | BU279: N/A
BB280: Did not cook food | BC280: N/A | BD280: N/A | BE280: N/A | BF280: N/A | BG280: N/A | BH280: N/A | BI280: N/A | BJ280: N/A | BK280: N/A | BL280: N/A | BM280: N/A | BN280: N/A | BO280: N/A | BP280: N/A | BQ280: N/A | BR280: N/A | BS280: N/A | BT280: N/A | BU280: N/A
BB281: Did not eat with others | BC281: N/A | BD281: N/A | BE281: N/A | BF281: N/A | BG281: N/A | BH281: N/A | BI281: N/A | BJ281: N/A | BK281: N/A | BL281: N/A | BM281: N/A | BN281: N/A | BO281: N/A | BP281: N/A | BQ281: N/A | BR281: N/A | BS281: N/A | BT281: N/A | BU281: N/A
BB282: Did not bathe in regular place | BC282: N/A | BD282: N/A | BE282: N/A | BF282: N/A | BG282: N/A | BH282: N/A | BI282: N/A | BJ282: N/A | BK282: N/A | BL282: N/A | BM282: N/A | BN282: N/A | BO282: N/A | BP282: N/A | BQ282: N/A | BR282: N/A | BS282: N/A | BT282: N/A | BU282: N/A
BB283: Did not participate in other activities | BC283: N/A | BD283: N/A | BE283: N/A | BF283: N/A | BG283: N/A | BH283: N/A | BI283: N/A | BJ283: N/A | BK283: N/A | BL283: N/A | BM283: N/A | BN283: N/A | BO283: N/A | BP283: N/A | BQ283: N/A | BR283: N/A | BS283: N/A | BT283: N/A | BU283: N/A
BB284: DK/not sure/missing/no such activity | BC284: N/A | BD284: N/A | BE284: N/A | BF284: N/A | BG284: N/A | BH284: N/A | BI284: N/A | BJ284: N/A | BK284: N/A | BL284: N/A | BM284: N/A | BN284: N/A | BO284: N/A | BP284: N/A | BQ284: N/A | BR284: N/A | BS284: N/A | BT284: N/A | BU284: N/A
BA339: Raw numbers of respondents: | BB339: Basic water, sanitation and hygiene | BC339: NATIONAL wealth index quintile | BH339: URBAN wealth index quintile | BM339: RURAL wealth index quintile | BR339: SUB-REGIONS:
BA340: WatSan data, raw numbers (weighted) | BC340: Poorest | BD340: Poor | BE340: Middle | BF340: Rich | BG340: Richest | BH340: Poorest | BI340: Poor | BJ340: Middle | BK340: Rich | BL340: Richest | BM340: Poorest | BN340: Poor | BO340: Middle | BP340: Rich | BQ340: Richest | BR340: Hhohho | BS340: Lubombo | BT340: Manzini | BU340: Shiselweni
BA341: Use of Basic Water Sanitation and Hygiene | BB341: Yes | BC341: N/A | BD341: N/A | BE341: N/A | BF341: N/A | BG341: N/A | BH341: N/A | BI341: N/A | BJ341: N/A | BK341: N/A | BL341: N/A | BM341: N/A | BN341: N/A | BO341: N/A | BP341: N/A | BQ341: N/A | BR341: N/A | BS341: N/A | BT341: N/A | BU341: N/A
BB342: No | BC342: N/A | BD342: N/A | BE342: N/A | BF342: N/A | BG342: N/A | BH342: N/A | BI342: N/A | BJ342: N/A | BK342: N/A | BL342: N/A | BM342: N/A | BN342: N/A | BO342: N/A | BP342: N/A | BQ342: N/A | BR342: N/A | BS342: N/A | BT342: N/A | BU342: N/A
BA343: Use of Basic Water and Sanitation | BB343: Yes | BC343: N/A | BD343: N/A | BE343: N/A | BF343: N/A | BG343: N/A | BH343: N/A | BI343: N/A | BJ343: N/A | BK343: N/A | BL343: N/A | BM343: N/A | BN343: N/A | BO343: N/A | BP343: N/A | BQ343: N/A | BR343: N/A | BS343: N/A | BT343: N/A | BU343: N/A
BB344: No | BC344: N/A | BD344: N/A | BE344: N/A | BF344: N/A | BG344: N/A | BH344: N/A | BI344: N/A | BJ344: N/A | BK344: N/A | BL344: N/A | BM344: N/A | BN344: N/A | BO344: N/A | BP344: N/A | BQ344: N/A | BR344: N/A | BS344: N/A | BT344: N/A | BU344: N/A
BA345: Use of Basic Water and Hygiene | BB345: Yes | BC345: N/A | BD345: N/A | BE345: N/A | BF345: N/A | BG345: N/A | BH345: N/A | BI345: N/A | BJ345: N/A | BK345: N/A | BL345: N/A | BM345: N/A | BN345: N/A | BO345: N/A | BP345: N/A | BQ345: N/A | BR345: N/A | BS345: N/A | BT345: N/A | BU345: N/A
BB346: No | BC346: N/A | BD346: N/A | BE346: N/A | BF346: N/A | BG346: N/A | BH346: N/A | BI346: N/A | BJ346: N/A | BK346: N/A | BL346: N/A | BM346: N/A | BN346: N/A | BO346: N/A | BP346: N/A | BQ346: N/A | BR346: N/A | BS346: N/A | BT346: N/A | BU346: N/A
BA347: Use of Basic Sanitation and Hygiene | BB347: Yes | BC347: N/A | BD347: N/A | BE347: N/A | BF347: N/A | BG347: N/A | BH347: N/A | BI347: N/A | BJ347: N/A | BK347: N/A | BL347: N/A | BM347: N/A | BN347: N/A | BO347: N/A | BP347: N/A | BQ347: N/A | BR347: N/A | BS347: N/A | BT347: N/A | BU347: N/A
BB348: No | BC348: N/A | BD348: N/A | BE348: N/A | BF348: N/A | BG348: N/A | BH348: N/A | BI348: N/A | BJ348: N/A | BK348: N/A | BL348: N/A | BM348: N/A | BN348: N/A | BO348: N/A | BP348: N/A | BQ348: N/A | BR348: N/A | BS348: N/A | BT348: N/A | BU348: N/A
BA349: Use of Basic Water | BB349: Yes | BC349: N/A | BD349: N/A | BE349: N/A | BF349: N/A | BG349: N/A | BH349: N/A | BI349: N/A | BJ349: N/A | BK349: N/A | BL349: N/A | BM349: N/A | BN349: N/A | BO349: N/A | BP349: N/A | BQ349: N/A | BR349: N/A | BS349: N/A | BT349: N/A | BU349: N/A
BB350: No | BC350: N/A | BD350: N/A | BE350: N/A | BF350: N/A | BG350: N/A | BH350: N/A | BI350: N/A | BJ350: N/A | BK350: N/A | BL350: N/A | BM350: N/A | BN350: N/A | BO350: N/A | BP350: N/A | BQ350: N/A | BR350: N/A | BS350: N/A | BT350: N/A | BU350: N/A
BA351: Use of Basic Sanitation | BB351: Yes | BC351: N/A | BD351: N/A | BE351: N/A | BF351: N/A | BG351: N/A | BH351: N/A | BI351: N/A | BJ351: N/A | BK351: N/A | BL351: N/A | BM351: N/A | BN351: N/A | BO351: N/A | BP351: N/A | BQ351: N/A | BR351: N/A | BS351: N/A | BT351: N/A | BU351: N/A
BB352: No | BC352: N/A | BD352: N/A | BE352: N/A | BF352: N/A | BG352: N/A | BH352: N/A | BI352: N/A | BJ352: N/A | BK352: N/A | BL352: N/A | BM352: N/A | BN352: N/A | BO352: N/A | BP352: N/A | BQ352: N/A | BR352: N/A | BS352: N/A | BT352: N/A | BU352: N/A
BA353: Access to Basic Hygiene | BB353: Yes | BC353: N/A | BD353: N/A | BE353: N/A | BF353: N/A | BG353: N/A | BH353: N/A | BI353: N/A | BJ353: N/A | BK353: N/A | BL353: N/A | BM353: N/A | BN353: N/A | BO353: N/A | BP353: N/A | BQ353: N/A | BR353: N/A | BS353: N/A | BT353: N/A | BU353: N/A
BB354: No | BC354: N/A | BD354: N/A | BE354: N/A | BF354: N/A | BG354: N/A | BH354: N/A | BI354: N/A | BJ354: N/A | BK354: N/A | BL354: N/A | BM354: N/A | BN354: N/A | BO354: N/A | BP354: N/A | BQ354: N/A | BR354: N/A | BS354: N/A | BT354: N/A | BU354: N/A
C399: INITIAL (national) Wealth Index | H399: URBAN Wealth Index | M399: RURAL Wealth Index
C400: Component Matrix | H400: Component Matrix | M400: Component Matrix
E401: Component | J401: Component | O401: Component
B402: Note: The INITIAL (national) Wealth Index is based on the first component of the Principal Component Analysis (PCA) which has been obtained at national level. The final national-level (NATIONAL) Wealth Index is based on the URBAN and RURAL specific wealth indexes. Regression procedures are used to establish the relationships between the two sets of scores (urban and rural) and the initial (national) wealth factors. This allows best use of the available information for each area and a better precision of the FINAL (NATIONAL) Wealth Index. For dependency reasons, all WASH variables (contained in the generic MICS and DHS scripts) have been excluded from the sets of asset variables used in the PCAs. The PCA can extracts as many components as there are asset variables in the input. Only the first of the components is used to represent the Wealth Index. The scores represent the weights of the asset variables on the Wealth Index (correlations between the variables and the component). The communalities are the proportion of each variable's variance that can be explained by the component. Proportion of explained variance is the part of the model's total variance that is explained by the component. For more information on the procedure used: The DHS Wealth Index, DHS Comparative Reports No. 6, Shea Oscar Rutstein, Kiersten Johnson, ORC Macro International Inc., 2004. The DHS Wealth Index: Approaches for Rural and Urban Areas, Shea O. Rutstein, ORC Macro International Inc., 2008. MICS Methodological Paper No. 4, Review of options for reporting water, sanitation and hygiene coverage by wealth quintile, UNICEF, 2016. | E402: 1 | J402: 1 | O402: 1
C403: Has electricity | E403: 0.8053211763 | H403: Has refrigerator | J403: 0.7678328154 | M403: Has electricity | O403: 0.7428334789
C404: Has refrigerator | E404: 0.7421865019 | H404: Has electricity | J404: 0.7491409967 | M404: Has refrigerator | O404: 0.7359205689
C405: if uses wood for cooking fuel | E405: -0.7220321451 | H405: Has television | J405: 0.7063638207 | M405: Has television | O405: 0.6888136716
C406: Has television | E406: 0.7078136982 | H406: Has car/truck | J406: 0.6339029604 | M406: Stove | O406: 0.6594803789
C407: Stove | E407: 0.6773172075 | H407: if uses electricity for cooking fuel | J407: 0.6275953847 | M407: if uses wood for cooking fuel | O407: -0.6296087679
C408: if uses electricity for cooking fuel | E408: 0.6457358594 | H408: Owns a bank account | J408: 0.5775035621 | M408: Owns a bank account | O408: 0.6204473916
C409: Owns a bank account | E409: 0.6430264351 | H409: Has telephone | J409: 0.5631373654 | M409: Has a mobile telephone | O409: 0.5435724517
C410: if has separate room for kitchen in hh | E410: 0.5430300065 | H410: if floors are made of cement (+9 wood planks) | J410: -0.5203980372 | M410: if roof is made of grass (+2 wood planks) | O410: -0.5435540424
C411: Has a mobile telephone | E411: 0.5427104333 | H411: if has separate room for kitchen in hh | J411: 0.4897853643 | M411: if uses electricity for cooking fuel | O411: 0.52802803
C412: Has car/truck | E412: 0.5083935231 | H412: if floors are made of ceramic/wood tile | J412: 0.4847294086 | M412: if has separate room for kitchen in hh | O412: 0.5207686057
C413: if roof is made of grass (+2 wood planks) | E413: -0.4948818367 | H413: if uses paraffin for cooking | J413: -0.4765365408 | M413: Has car/truck | O413: 0.5106774064
C414: Square meters for agricultural land | E414: -0.4883449313 | H414: Has a mobile telephone | J414: 0.4566508249 | M414: Has telephone | O414: 0.431450958
C415: Has telephone | E415: 0.4785448987 | H415: Stove | J415: 0.4381552075 | M415: if roof is made of metal (corrugate iron) | O415: 0.4268150098
C416: if floors are made of dung | E416: -0.4294472891 | H416: Has radio | J416: 0.4202489631 | M416: if walls are made of cement | O416: 0.4001962829
C417: if walls are made of cement | E417: 0.4251130704 | H417: if roof is made of tile | J417: 0.4099032005 | M417: Has radio | O417: 0.3986099929
C418: if floors are made of ceramic/wood tile | E418: 0.3953412825 | H418: if uses wood for cooking fuel | J418: -0.3188328069 | M418: Has a watch | O418: 0.3882647016
C419: Has radio | E419: 0.3884419882 | H419: Has a watch | J419: 0.3057365309 | M419: if uses natural gas for cooking fuel | O419: 0.3594144559
C420: Has a watch | E420: 0.3620743138 | H420: if walls are made of stone/mud | J420: -0.2948063997 | M420: if walls are made of earth (+11 cases cane/palm/trunks) | O420: -0.3417987673
C421: if walls are made of earth (+11 cases cane/palm/trunks) | E421: -0.3358984004 | H421: if walls are made of cement | J421: 0.2817316854 | M421: if floors are made of ceramic/wood tile | O421: 0.3228068471
... 191 more rows

Sheet MICS10
A2: =A1026 -> Eswatini
A3: =A1034 -> 2010
A4: Use of drinking water sources
A5: by wealth quintile and sub-national region
A6: Notes:
A7: WHO/UNICEF JMP customised wealth index excludes water,
A8: sanitation and hygiene assets.
A9: Survey used for analysis: | B9: =A1025 -> MICS10
A10: =B1028 -> 
A11: =B1027 -> 
A14: Use of drinking water sources | C14: NATIONAL wealth index quintile | H14: URBAN wealth index quintile | M14: RURAL wealth index quintile | R14: SUB-REGIONS: | BA14: Raw numbers of respondents: | BB14: Use of drinking water sources | BC14: NATIONAL wealth index quintile | BH14: URBAN wealth index quintile | BM14: RURAL wealth index quintile | BR14: SUB-REGIONS:
A15: Weighted percentage (used in graphs) | C15: Poorest | D15: Poor | E15: Middle | F15: Rich | G15: Richest | H15: Poorest | I15: Poor | J15: Middle | K15: Rich | L15: Richest | M15: Poorest | N15: Poor | O15: Middle | P15: Rich | Q15: Richest | R15: Hhohho | S15: Lubombo | T15: Manzini | U15: Shiselweni | BA15: Water data, raw numbers (weighted) | BC15: Poorest | BD15: Poor | BE15: Middle | BF15: Rich | BG15: Richest | BH15: Poorest | BI15: Poor | BJ15: Middle | BK15: Rich | BL15: Richest | BM15: Poorest | BN15: Poor | BO15: Middle | BP15: Rich | BQ15: Richest | BR15: Hhohho | BS15: Lubombo | BT15: Manzini | BU15: Shiselweni
A16: Water | B16: Improved | C16: 48.62135991 | D16: 63.25846723 | E16: 67.30399549 | F16: 76.53750754 | G16: 94.60991018 | H16: 79.57629203 | I16: 89.55933545 | J16: 96.2950727 | K16: 97.62651889 | L16: 97.57517752 | M16: 46.27297494 | N16: 59.6555178 | O16: 60.14412776 | P16: 67.92617238 | Q16: 82.95164555 | R16: 80.2971808 | S16: 65.95879366 | T16: 78.08885161 | U16: 52.26128714 | BA16: Water | BB16: Improved | BC16: N/A | BD16: N/A | BE16: N/A | BF16: N/A | BG16: N/A | BH16: N/A | BI16: N/A | BJ16: N/A | BK16: N/A | BL16: N/A | BM16: N/A | BN16: N/A | BO16: N/A | BP16: N/A | BQ16: N/A | BR16: N/A | BS16: N/A | BT16: N/A | BU16: N/A
B17: Not Improved | C17: 51.37864009 | D17: 36.74153277 | E17: 32.69600451 | F17: 23.46249246 | G17: 5.390089816 | H17: 20.42370797 | I17: 10.44066455 | J17: 3.704927301 | K17: 2.373481111 | L17: 2.424822484 | M17: 53.72702506 | N17: 40.3444822 | O17: 39.85587224 | P17: 32.07382762 | Q17: 17.04835445 | R17: 19.7028192 | S17: 34.04120634 | T17: 21.91114839 | U17: 47.73871286 | BB17: Not Improved | BC17: N/A | BD17: N/A | BE17: N/A | BF17: N/A | BG17: N/A | BH17: N/A | BI17: N/A | BJ17: N/A | BK17: N/A | BL17: N/A | BM17: N/A | BN17: N/A | BO17: N/A | BP17: N/A | BQ17: N/A | BR17: N/A | BS17: N/A | BT17: N/A | BU17: N/A
A18: Water ladder | B18: Basic | C18: =C16*C23/100 -> 39.43192289 | D18: =D16*D23/100 -> 53.45340481 | E18: =E16*E23/100 -> 60.91011592 | F18: 71.17988202 | G18: 93.56920117 | H18: 76.79112181 | I18: 87.49947073 | J18: 96.2950727 | K18: 97.33363933 | L18: 97.47760234 | M18: 37.20347185 | N18: 48.619247 | O18: 52.44567941 | P18: 60.52221959 | Q18: 79.05291821 | R18: 77.72767102 | S18: 55.40538667 | T18: 73.87205362 | U18: 43.0633006 | BA18: Water ladder | BB18: Basic | BC18: N/A | BD18: N/A | BE18: N/A | BF18: N/A | BG18: N/A | BH18: N/A | BI18: N/A | BJ18: N/A | BK18: N/A | BL18: N/A | BM18: N/A | BN18: N/A | BO18: N/A | BP18: N/A | BQ18: N/A | BR18: N/A | BS18: N/A | BT18: N/A | BU18: N/A
B19: Limited | C19: =C16*C22/100 -> 9.189437023 | D19: =D16*D22/100 -> 9.805062421 | E19: =E16*E22/100 -> 6.393879572 | F19: 5.357625528 | G19: 1.040709012 | H19: 2.785170221 | I19: 2.059864715 | J19: 0 | K19: 0.2928795567 | L19: 0.09757517752 | M19: 9.069503089 | N19: 11.03627079 | O19: 7.698448354 | P19: 7.40395279 | Q19: 3.898727341 | R19: 2.569509786 | S19: 10.55340698 | T19: 4.216797987 | U19: 9.197986536 | BB19: Limited | BC19: N/A | BD19: N/A | BE19: N/A | BF19: N/A | BG19: N/A | BH19: N/A | BI19: N/A | BJ19: N/A | BK19: N/A | BL19: N/A | BM19: N/A | BN19: N/A | BO19: N/A | BP19: N/A | BQ19: N/A | BR19: N/A | BS19: N/A | BT19: N/A | BU19: N/A
B20: Unimproved | C20: =100-C18-C19-C21 -> 14.6221075 | D20: =100-D18-D19-D21 -> 8.503275468 | E20: =100-E18-E19-E21 -> 9.491429075 | F20: 6.155458795 | G20: 1.841071591 | H20: 2.921376492 | I20: 4.109895351 | J20: 1.022981014 | K20: 0.1962864026 | L20: 1.695761764 | M20: 14.92418583 | N20: 9.900713123 | O20: 10.57986853 | P20: 9.496009373 | Q20: 6.005567726 | R20: 6.831377964 | S20: 8.318975539 | T20: 6.302207054 | U20: 12.26871616 | BB20: Unimproved | BC20: N/A | BD20: N/A | BE20: N/A | BF20: N/A | BG20: N/A | BH20: N/A | BI20: N/A | BJ20: N/A | BK20: N/A | BL20: N/A | BM20: N/A | BN20: N/A | BO20: N/A | BP20: N/A | BQ20: N/A | BR20: N/A | BS20: N/A | BT20: N/A | BU20: N/A
B21: Surface water | C21: 36.75653259 | D21: 28.2382573 | E21: 23.20457543 | F21: 17.30703366 | G21: 3.549018225 | H21: 17.50233148 | I21: 6.330769199 | J21: 2.681946287 | K21: 2.177194708 | L21: 0.7290607199 | M21: 38.80283923 | N21: 30.44376908 | O21: 29.2760037 | P21: 22.57781825 | Q21: 11.04278673 | R21: 12.87144123 | S21: 25.72223081 | T21: 15.60894134 | U21: 35.4699967 | BB21: Surface water | BC21: N/A | BD21: N/A | BE21: N/A | BF21: N/A | BG21: N/A | BH21: N/A | BI21: N/A | BJ21: N/A | BK21: N/A | BL21: N/A | BM21: N/A | BN21: N/A | BO21: N/A | BP21: N/A | BQ21: N/A | BR21: N/A | BS21: N/A | BT21: N/A | BU21: N/A
A22: Improved water point at more than 30 minutes | B22: Yes | C22: 18.9 | D22: 15.5 | E22: 9.5 | F22: 7 | G22: 1.1 | H22: 3.5 | I22: 2.3 | J22: 0 | K22: 0.3 | L22: 0.1 | M22: 19.6 | N22: 18.5 | O22: 12.8 | P22: 10.9 | Q22: 4.7 | R22: 3.2 | S22: 16 | T22: 5.4 | U22: 17.6 | BA22: Improved water point at more than 30 minutes | BB22: Yes | BC22: N/A | BD22: N/A | BE22: N/A | BF22: N/A | BG22: N/A | BH22: N/A | BI22: N/A | BJ22: N/A | BK22: N/A | BL22: N/A | BM22: N/A | BN22: N/A | BO22: N/A | BP22: N/A | BQ22: N/A | BR22: N/A | BS22: N/A | BT22: N/A | BU22: N/A
B23: No | C23: 81.1 | D23: 84.5 | E23: 90.5 | F23: 93 | G23: 98.9 | H23: 96.5 | I23: 97.7 | J23: 100 | K23: 99.7 | L23: 99.9 | M23: 80.4 | N23: 81.5 | O23: 87.2 | P23: 89.1 | Q23: 95.3 | R23: 96.8 | S23: 84 | T23: 94.6 | U23: 82.4 | BB23: No | BC23: N/A | BD23: N/A | BE23: N/A | BF23: N/A | BG23: N/A | BH23: N/A | BI23: N/A | BJ23: N/A | BK23: N/A | BL23: N/A | BM23: N/A | BN23: N/A | BO23: N/A | BP23: N/A | BQ23: N/A | BR23: N/A | BS23: N/A | BT23: N/A | BU23: N/A
A24: Manually calculated ratios | B24: Improved wells
B25: Improved sources
B26: Other
C27: NATIONAL wealth index quintile | H27: URBAN wealth index quintile | M27: RURAL wealth index quintile | R27: SUB-REGIONS: | BA27: Raw numbers of respondents: | BB27: Use of drinking water sources | BC27: NATIONAL wealth index quintile | BH27: URBAN wealth index quintile | BM27: RURAL wealth index quintile | BR27: SUB-REGIONS:
A28: Percentage based on weighted population | C28: Poorest | D28: Poor | E28: Middle | F28: Rich | G28: Richest | H28: Poorest | I28: Poor | J28: Middle | K28: Rich | L28: Richest | M28: Poorest | N28: Poor | O28: Middle | P28: Rich | Q28: Richest | R28: Hhohho | S28: Lubombo | T28: Manzini | U28: Shiselweni | BA28: Water data, raw numbers (weighted) | BC28: Poorest | BD28: Poor | BE28: Middle | BF28: Rich | BG28: Richest | BH28: Poorest | BI28: Poor | BJ28: Middle | BK28: Rich | BL28: Richest | BM28: Poorest | BN28: Poor | BO28: Middle | BP28: Rich | BQ28: Richest | BR28: Hhohho | BS28: Lubombo | BT28: Manzini | BU28: Shiselweni
A29: Piped water | B29: Yes | C29: 33.3 | D29: 48.1 | E29: 53.4 | F29: 60.8 | G29: 85 | H29: 71.6 | I29: 84.3 | J29: 92.3 | K29: 96.3 | L29: 94.1 | M29: 31.8 | N29: 41.8 | O29: 44.5 | P29: 51.4 | Q29: 63.2 | R29: 74 | S29: 43.7 | T29: 67.6 | U29: 32.4 | BA29: Piped water | BB29: Yes | BC29: N/A | BD29: N/A | BE29: N/A | BF29: N/A | BG29: N/A | BH29: N/A | BI29: N/A | BJ29: N/A | BK29: N/A | BL29: N/A | BM29: N/A | BN29: N/A | BO29: N/A | BP29: N/A | BQ29: N/A | BR29: N/A | BS29: N/A | BT29: N/A | BU29: N/A
B30: No | C30: 66.7 | D30: 51.9 | E30: 46.6 | F30: 39.2 | G30: 15 | H30: 28.4 | I30: 15.7 | J30: 7.7 | K30: 3.7 | L30: 5.9 | M30: 68.2 | N30: 58.2 | O30: 55.5 | P30: 48.6 | Q30: 36.8 | R30: 26 | S30: 56.3 | T30: 32.4 | U30: 67.6 | BB30: No | BC30: N/A | BD30: N/A | BE30: N/A | BF30: N/A | BG30: N/A | BH30: N/A | BI30: N/A | BJ30: N/A | BK30: N/A | BL30: N/A | BM30: N/A | BN30: N/A | BO30: N/A | BP30: N/A | BQ30: N/A | BR30: N/A | BS30: N/A | BT30: N/A | BU30: N/A
A31: Piped water on premises | B31: Yes | C31: 12.7 | D31: 20.1 | E31: 30.4 | F31: 42.9 | G31: 78.1 | H31: 43.4 | I31: 65.4 | J31: 82 | K31: 92.2 | L31: 92.6 | M31: 12.4 | N31: 15.7 | O31: 18.2 | P31: 29.3 | Q31: 50.5 | R31: 50 | S31: 26.1 | T31: 47.1 | U31: 18.4 | BA31: Piped water on premises | BB31: Yes | BC31: N/A | BD31: N/A | BE31: N/A | BF31: N/A | BG31: N/A | BH31: N/A | BI31: N/A | BJ31: N/A | BK31: N/A | BL31: N/A | BM31: N/A | BN31: N/A | BO31: N/A | BP31: N/A | BQ31: N/A | BR31: N/A | BS31: N/A | BT31: N/A | BU31: N/A
B32: No | C32: 87.3 | D32: 79.9 | E32: 69.6 | F32: 57.1 | G32: 21.9 | H32: 56.6 | I32: 34.6 | J32: 18 | K32: 7.8 | L32: 7.4 | M32: 87.6 | N32: 84.3 | O32: 81.8 | P32: 70.7 | Q32: 49.5 | R32: 50 | S32: 73.9 | T32: 52.9 | U32: 81.6 | BB32: No | BC32: N/A | BD32: N/A | BE32: N/A | BF32: N/A | BG32: N/A | BH32: N/A | BI32: N/A | BJ32: N/A | BK32: N/A | BL32: N/A | BM32: N/A | BN32: N/A | BO32: N/A | BP32: N/A | BQ32: N/A | BR32: N/A | BS32: N/A | BT32: N/A | BU32: N/A
A33: Piped water into dwelling | B33: Yes | C33: N/A | D33: N/A | E33: N/A | F33: N/A | G33: N/A | H33: N/A | I33: N/A | J33: N/A | K33: N/A | L33: N/A | M33: N/A | N33: N/A | O33: N/A | P33: N/A | Q33: N/A | R33: N/A | S33: N/A | T33: N/A | U33: N/A | BA33: Piped water into dwelling | BB33: Yes | BC33: N/A | BD33: N/A | BE33: N/A | BF33: N/A | BG33: N/A | BH33: N/A | BI33: N/A | BJ33: N/A | BK33: N/A | BL33: N/A | BM33: N/A | BN33: N/A | BO33: N/A | BP33: N/A | BQ33: N/A | BR33: N/A | BS33: N/A | BT33: N/A | BU33: N/A
B34: No | C34: N/A | D34: N/A | E34: N/A | F34: N/A | G34: N/A | H34: N/A | I34: N/A | J34: N/A | K34: N/A | L34: N/A | M34: N/A | N34: N/A | O34: N/A | P34: N/A | Q34: N/A | R34: N/A | S34: N/A | T34: N/A | U34: N/A | BB34: No | BC34: N/A | BD34: N/A | BE34: N/A | BF34: N/A | BG34: N/A | BH34: N/A | BI34: N/A | BJ34: N/A | BK34: N/A | BL34: N/A | BM34: N/A | BN34: N/A | BO34: N/A | BP34: N/A | BQ34: N/A | BR34: N/A | BS34: N/A | BT34: N/A | BU34: N/A
A35: Water source on premises | B35: Yes | C35: 14.6 | D35: 22 | E35: 33.5 | F35: 50 | G35: 85.2 | H35: 45.9 | I35: 70.2 | J35: 86.2 | K35: 93.3 | L35: 96.5 | M35: 14.1 | N35: 17.9 | O35: 21.1 | P35: 34.2 | Q35: 61.6 | R35: 51.8 | S35: 32.9 | T35: 51.1 | U35: 23.5 | BA35: Water source on premises | BB35: Yes | BC35: N/A | BD35: N/A | BE35: N/A | BF35: N/A | BG35: N/A | BH35: N/A | BI35: N/A | BJ35: N/A | BK35: N/A | BL35: N/A | BM35: N/A | BN35: N/A | BO35: N/A | BP35: N/A | BQ35: N/A | BR35: N/A | BS35: N/A | BT35: N/A | BU35: N/A
B36: No | C36: 85.4 | D36: 78 | E36: 66.5 | F36: 50 | G36: 14.8 | H36: 54.1 | I36: 29.8 | J36: 13.8 | K36: 6.7 | L36: 3.5 | M36: 85.9 | N36: 82.1 | O36: 78.9 | P36: 65.8 | Q36: 38.4 | R36: 48.2 | S36: 67.1 | T36: 48.9 | U36: 76.5 | BB36: No | BC36: N/A | BD36: N/A | BE36: N/A | BF36: N/A | BG36: N/A | BH36: N/A | BI36: N/A | BJ36: N/A | BK36: N/A | BL36: N/A | BM36: N/A | BN36: N/A | BO36: N/A | BP36: N/A | BQ36: N/A | BR36: N/A | BS36: N/A | BT36: N/A | BU36: N/A
A37: Improved Water source on premises | B37: Yes | C37: 13.8 | D37: 21.5 | E37: 33.3 | F37: 48.2 | G37: 85 | H37: 44.3 | I37: 67.1 | J37: 84.3 | K37: 93.1 | L37: 96 | M37: 13.3 | N37: 17.5 | O37: 20.9 | P37: 33.7 | Q37: 60.9 | R37: 51.6 | S37: 31.2 | T37: 50.8 | U37: 22.6 | BA37: Improved water source on premises | BB37: Yes | BC37: N/A | BD37: N/A | BE37: N/A | BF37: N/A | BG37: N/A | BH37: N/A | BI37: N/A | BJ37: N/A | BK37: N/A | BL37: N/A | BM37: N/A | BN37: N/A | BO37: N/A | BP37: N/A | BQ37: N/A | BR37: N/A | BS37: N/A | BT37: N/A | BU37: N/A
B38: No | C38: 86.2 | D38: 78.5 | E38: 66.7 | F38: 51.8 | G38: 15 | H38: 55.7 | I38: 32.9 | J38: 15.7 | K38: 6.9 | L38: 4 | M38: 86.7 | N38: 82.5 | O38: 79.1 | P38: 66.3 | Q38: 39.1 | R38: 48.4 | S38: 68.8 | T38: 49.2 | U38: 77.4 | BB38: No | BC38: N/A | BD38: N/A | BE38: N/A | BF38: N/A | BG38: N/A | BH38: N/A | BI38: N/A | BJ38: N/A | BK38: N/A | BL38: N/A | BM38: N/A | BN38: N/A | BO38: N/A | BP38: N/A | BQ38: N/A | BR38: N/A | BS38: N/A | BT38: N/A | BU38: N/A
A39: Piped water on premises available when needed | B39: Yes | C39: N/A | D39: N/A | E39: N/A | F39: N/A | G39: N/A | H39: N/A | I39: N/A | J39: N/A | K39: N/A | L39: N/A | M39: N/A | N39: N/A | O39: N/A | P39: N/A | Q39: N/A | R39: N/A | S39: N/A | T39: N/A | U39: N/A | BA39: Piped water on premises available when needed | BB39: Yes | BC39: N/A | BD39: N/A | BE39: N/A | BF39: N/A | BG39: N/A | BH39: N/A | BI39: N/A | BJ39: N/A | BK39: N/A | BL39: N/A | BM39: N/A | BN39: N/A | BO39: N/A | BP39: N/A | BQ39: N/A | BR39: N/A | BS39: N/A | BT39: N/A | BU39: N/A
B40: No | C40: N/A | D40: N/A | E40: N/A | F40: N/A | G40: N/A | H40: N/A | I40: N/A | J40: N/A | K40: N/A | L40: N/A | M40: N/A | N40: N/A | O40: N/A | P40: N/A | Q40: N/A | R40: N/A | S40: N/A | T40: N/A | U40: N/A | BB40: No | BC40: N/A | BD40: N/A | BE40: N/A | BF40: N/A | BG40: N/A | BH40: N/A | BI40: N/A | BJ40: N/A | BK40: N/A | BL40: N/A | BM40: N/A | BN40: N/A | BO40: N/A | BP40: N/A | BQ40: N/A | BR40: N/A | BS40: N/A | BT40: N/A | BU40: N/A
A41: Water point at more than 30 minutes | B41: Yes | C41: 28.8 | D41: 23.2 | E41: 18.8 | F41: 12.6 | G41: 3 | H41: 8.3 | I41: 4.5 | J41: 0.8 | K41: 1.6 | L41: 0.7 | M41: 29.7 | N41: 23.5 | O41: 26.5 | P41: 18 | Q41: 8.7 | R41: 9.1 | S41: 25.2 | T41: 11.7 | U41: 26 | BA41: Water point at more than 30 minutes | BB41: Yes | BC41: N/A | BD41: N/A | BE41: N/A | BF41: N/A | BG41: N/A | BH41: N/A | BI41: N/A | BJ41: N/A | BK41: N/A | BL41: N/A | BM41: N/A | BN41: N/A | BO41: N/A | BP41: N/A | BQ41: N/A | BR41: N/A | BS41: N/A | BT41: N/A | BU41: N/A
B42: No | C42: 71.2 | D42: 76.8 | E42: 81.2 | F42: 87.4 | G42: 97 | H42: 91.7 | I42: 95.5 | J42: 99.2 | K42: 98.4 | L42: 99.3 | M42: 70.3 | N42: 76.5 | O42: 73.5 | P42: 82 | Q42: 91.3 | R42: 90.9 | S42: 74.8 | T42: 88.3 | U42: 74 | BB42: No | BC42: N/A | BD42: N/A | BE42: N/A | BF42: N/A | BG42: N/A | BH42: N/A | BI42: N/A | BJ42: N/A | BK42: N/A | BL42: N/A | BM42: N/A | BN42: N/A | BO42: N/A | BP42: N/A | BQ42: N/A | BR42: N/A | BS42: N/A | BT42: N/A | BU42: N/A
A43: Water source available when needed | B43: Yes | C43: N/A | D43: N/A | E43: N/A | F43: N/A | G43: N/A | H43: N/A | I43: N/A | J43: N/A | K43: N/A | L43: N/A | M43: N/A | N43: N/A | O43: N/A | P43: N/A | Q43: N/A | R43: N/A | S43: N/A | T43: N/A | U43: N/A | BA43: Water source available when needed | BB43: Yes | BC43: N/A | BD43: N/A | BE43: N/A | BF43: N/A | BG43: N/A | BH43: N/A | BI43: N/A | BJ43: N/A | BK43: N/A | BL43: N/A | BM43: N/A | BN43: N/A | BO43: N/A | BP43: N/A | BQ43: N/A | BR43: N/A | BS43: N/A | BT43: N/A | BU43: N/A
B44: No | C44: N/A | D44: N/A | E44: N/A | F44: N/A | G44: N/A | H44: N/A | I44: N/A | J44: N/A | K44: N/A | L44: N/A | M44: N/A | N44: N/A | O44: N/A | P44: N/A | Q44: N/A | R44: N/A | S44: N/A | T44: N/A | U44: N/A | BB44: No | BC44: N/A | BD44: N/A | BE44: N/A | BF44: N/A | BG44: N/A | BH44: N/A | BI44: N/A | BJ44: N/A | BK44: N/A | BL44: N/A | BM44: N/A | BN44: N/A | BO44: N/A | BP44: N/A | BQ44: N/A | BR44: N/A | BS44: N/A | BT44: N/A | BU44: N/A
A45: Improved water source available when needed | B45: Yes | C45: N/A | D45: N/A | E45: N/A | F45: N/A | G45: N/A | H45: N/A | I45: N/A | J45: N/A | K45: N/A | L45: N/A | M45: N/A | N45: N/A | O45: N/A | P45: N/A | Q45: N/A | R45: N/A | S45: N/A | T45: N/A | U45: N/A | BA45: Improved water source available when needed | BB45: Yes | BC45: N/A | BD45: N/A | BE45: N/A | BF45: N/A | BG45: N/A | BH45: N/A | BI45: N/A | BJ45: N/A | BK45: N/A | BL45: N/A | BM45: N/A | BN45: N/A | BO45: N/A | BP45: N/A | BQ45: N/A | BR45: N/A | BS45: N/A | BT45: N/A | BU45: N/A
B46: No | C46: N/A | D46: N/A | E46: N/A | F46: N/A | G46: N/A | H46: N/A | I46: N/A | J46: N/A | K46: N/A | L46: N/A | M46: N/A | N46: N/A | O46: N/A | P46: N/A | Q46: N/A | R46: N/A | S46: N/A | T46: N/A | U46: N/A | BB46: No | BC46: N/A | BD46: N/A | BE46: N/A | BF46: N/A | BG46: N/A | BH46: N/A | BI46: N/A | BJ46: N/A | BK46: N/A | BL46: N/A | BM46: N/A | BN46: N/A | BO46: N/A | BP46: N/A | BQ46: N/A | BR46: N/A | BS46: N/A | BT46: N/A | BU46: N/A
A47: Microbiological quality at point of collection | B47: Not contaminated (No E. coli in 100 mL) | C47: N/A | D47: N/A | E47: N/A | F47: N/A | G47: N/A | H47: N/A | I47: N/A | J47: N/A | K47: N/A | L47: N/A | M47: N/A | N47: N/A | O47: N/A | P47: N/A | Q47: N/A | R47: N/A | S47: N/A | T47: N/A | U47: N/A | BA47: Microbiological quality at point of collection | BB47: Not contaminated (No E. coli in 100 mL) | BC47: N/A | BD47: N/A | BE47: N/A | BF47: N/A | BG47: N/A | BH47: N/A | BI47: N/A | BJ47: N/A | BK47: N/A | BL47: N/A | BM47: N/A | BN47: N/A | BO47: N/A | BP47: N/A | BQ47: N/A | BR47: N/A | BS47: N/A | BT47: N/A | BU47: N/A
B48: Contaminated (E. coli detected in 100 mL) | C48: N/A | D48: N/A | E48: N/A | F48: N/A | G48: N/A | H48: N/A | I48: N/A | J48: N/A | K48: N/A | L48: N/A | M48: N/A | N48: N/A | O48: N/A | P48: N/A | Q48: N/A | R48: N/A | S48: N/A | T48: N/A | U48: N/A | BB48: Contaminated (E. coli detected in 100 mL) | BC48: N/A | BD48: N/A | BE48: N/A | BF48: N/A | BG48: N/A | BH48: N/A | BI48: N/A | BJ48: N/A | BK48: N/A | BL48: N/A | BM48: N/A | BN48: N/A | BO48: N/A | BP48: N/A | BQ48: N/A | BR48: N/A | BS48: N/A | BT48: N/A | BU48: N/A
B49: Highly contaminated (>100 CFU/100 mL) | C49: N/A | D49: N/A | E49: N/A | F49: N/A | G49: N/A | H49: N/A | I49: N/A | J49: N/A | K49: N/A | L49: N/A | M49: N/A | N49: N/A | O49: N/A | P49: N/A | Q49: N/A | R49: N/A | S49: N/A | T49: N/A | U49: N/A | BB49: Highly contaminated (>100 CFU/100 mL) | BC49: N/A | BD49: N/A | BE49: N/A | BF49: N/A | BG49: N/A | BH49: N/A | BI49: N/A | BJ49: N/A | BK49: N/A | BL49: N/A | BM49: N/A | BN49: N/A | BO49: N/A | BP49: N/A | BQ49: N/A | BR49: N/A | BS49: N/A | BT49: N/A | BU49: N/A
A50: Microbiological quality of improved water sources at point of collection | B50: Not contaminated (No E. coli in 100 mL) | C50: N/A | D50: N/A | E50: N/A | F50: N/A | G50: N/A | H50: N/A | I50: N/A | J50: N/A | K50: N/A | L50: N/A | M50: N/A | N50: N/A | O50: N/A | P50: N/A | Q50: N/A | R50: N/A | S50: N/A | T50: N/A | U50: N/A | BA50: Microbiological quality of improved water sources at point of collection | BB50: Not contaminated (No E. coli in 100 mL) | BC50: N/A | BD50: N/A | BE50: N/A | BF50: N/A | BG50: N/A | BH50: N/A | BI50: N/A | BJ50: N/A | BK50: N/A | BL50: N/A | BM50: N/A | BN50: N/A | BO50: N/A | BP50: N/A | BQ50: N/A | BR50: N/A | BS50: N/A | BT50: N/A | BU50: N/A
B51: Contaminated (E. coli detected in 100 mL) | C51: N/A | D51: N/A | E51: N/A | F51: N/A | G51: N/A | H51: N/A | I51: N/A | J51: N/A | K51: N/A | L51: N/A | M51: N/A | N51: N/A | O51: N/A | P51: N/A | Q51: N/A | R51: N/A | S51: N/A | T51: N/A | U51: N/A | BB51: Contaminated (E. coli detected in 100 mL) | BC51: N/A | BD51: N/A | BE51: N/A | BF51: N/A | BG51: N/A | BH51: N/A | BI51: N/A | BJ51: N/A | BK51: N/A | BL51: N/A | BM51: N/A | BN51: N/A | BO51: N/A | BP51: N/A | BQ51: N/A | BR51: N/A | BS51: N/A | BT51: N/A | BU51: N/A
B52: Highly contaminated (>100 CFU/100 mL) | C52: N/A | D52: N/A | E52: N/A | F52: N/A | G52: N/A | H52: N/A | I52: N/A | J52: N/A | K52: N/A | L52: N/A | M52: N/A | N52: N/A | O52: N/A | P52: N/A | Q52: N/A | R52: N/A | S52: N/A | T52: N/A | U52: N/A | BB52: Highly contaminated (>100 CFU/100 mL) | BC52: N/A | BD52: N/A | BE52: N/A | BF52: N/A | BG52: N/A | BH52: N/A | BI52: N/A | BJ52: N/A | BK52: N/A | BL52: N/A | BM52: N/A | BN52: N/A | BO52: N/A | BP52: N/A | BQ52: N/A | BR52: N/A | BS52: N/A | BT52: N/A | BU52: N/A
A53: Microbiological quality of piped on premises at point of collection | B53: Not contaminated (No E. coli in 100 mL) | C53: N/A | D53: N/A | E53: N/A | F53: N/A | G53: N/A | H53: N/A | I53: N/A | J53: N/A | K53: N/A | L53: N/A | M53: N/A | N53: N/A | O53: N/A | P53: N/A | Q53: N/A | R53: N/A | S53: N/A | T53: N/A | U53: N/A | BA53: Microbiological quality of piped on premises at point of collection | BB53: Not contaminated (No E. coli in 100 mL) | BC53: N/A | BD53: N/A | BE53: N/A | BF53: N/A | BG53: N/A | BH53: N/A | BI53: N/A | BJ53: N/A | BK53: N/A | BL53: N/A | BM53: N/A | BN53: N/A | BO53: N/A | BP53: N/A | BQ53: N/A | BR53: N/A | BS53: N/A | BT53: N/A | BU53: N/A
B54: Contaminated (E. coli detected in 100 mL) | C54: N/A | D54: N/A | E54: N/A | F54: N/A | G54: N/A | H54: N/A | I54: N/A | J54: N/A | K54: N/A | L54: N/A | M54: N/A | N54: N/A | O54: N/A | P54: N/A | Q54: N/A | R54: N/A | S54: N/A | T54: N/A | U54: N/A | BB54: Contaminated (E. coli detected in 100 mL) | BC54: N/A | BD54: N/A | BE54: N/A | BF54: N/A | BG54: N/A | BH54: N/A | BI54: N/A | BJ54: N/A | BK54: N/A | BL54: N/A | BM54: N/A | BN54: N/A | BO54: N/A | BP54: N/A | BQ54: N/A | BR54: N/A | BS54: N/A | BT54: N/A | BU54: N/A
B55: Highly contaminated (>100 CFU/100 mL) | C55: N/A | D55: N/A | E55: N/A | F55: N/A | G55: N/A | H55: N/A | I55: N/A | J55: N/A | K55: N/A | L55: N/A | M55: N/A | N55: N/A | O55: N/A | P55: N/A | Q55: N/A | R55: N/A | S55: N/A | T55: N/A | U55: N/A | BB55: Highly contaminated (>100 CFU/100 mL) | BC55: N/A | BD55: N/A | BE55: N/A | BF55: N/A | BG55: N/A | BH55: N/A | BI55: N/A | BJ55: N/A | BK55: N/A | BL55: N/A | BM55: N/A | BN55: N/A | BO55: N/A | BP55: N/A | BQ55: N/A | BR55: N/A | BS55: N/A | BT55: N/A | BU55: N/A
C56: NATIONAL wealth index quintile | H56: URBAN wealth index quintile | M56: RURAL wealth index quintile | R56: SUB-REGIONS: | BA56: Raw numbers of respondents: | BB56: Use of drinking water sources | BC56: NATIONAL wealth index quintile | BH56: URBAN wealth index quintile | BM56: RURAL wealth index quintile | BR56: SUB-REGIONS:
A57: Percentage based on weighted population | C57: Poorest | D57: Poor | E57: Middle | F57: Rich | G57: Richest | H57: Poorest | I57: Poor | J57: Middle | K57: Rich | L57: Richest | M57: Poorest | N57: Poor | O57: Middle | P57: Rich | Q57: Richest | R57: Hhohho | S57: Lubombo | T57: Manzini | U57: Shiselweni | BA57: Water data, raw numbers (weighted) | BC57: Poorest | BD57: Poor | BE57: Middle | BF57: Rich | BG57: Richest | BH57: Poorest | BI57: Poor | BJ57: Middle | BK57: Rich | BL57: Richest | BM57: Poorest | BN57: Poor | BO57: Middle | BP57: Rich | BQ57: Richest | BR57: Hhohho | BS57: Lubombo | BT57: Manzini | BU57: Shiselweni
A58: Main source of drinking water | B58: Piped into dwelling | C58: 1.608150766 | D58: 1.69155268 | E58: 2.997994583 | F58: 10.17232483 | G58: 49.995778 | H58: 2.017320832 | I58: 13.81016933 | J58: 32.00653392 | K58: 60.5735384 | L58: 84.35534138 | M58: 1.945683911 | N58: 1.192798001 | O58: 1.057023265 | P58: 3.828801765 | Q58: 20.27044897 | R58: 17.07175061 | S58: 14.1335507 | T58: 16.8890857 | U58: 4.002043688
B59: Piped into compound, yard or plot | C59: 11.06652978 | D59: 18.40507787 | E59: 27.40757529 | F59: 32.69631012 | G59: 27.95144973 | H59: 41.42901264 | I59: 51.586356 | J59: 50.0131811 | K59: 31.65012386 | L59: 7.999813092 | M59: 10.49265298 | N59: 14.53033126 | O59: 17.17971296 | P59: 25.48635479 | Q59: 30.13333858 | R59: 32.86156344 | S59: 12.00888887 | T59: 30.1478861 | U59: 14.37823512
B60: Piped to neighbour | C60: 2.470378782 | D60: 4.966619404 | E60: 4.983858284 | F60: 2.448543554 | G60: 2.02640491 | H60: 18.54535542 | I60: 11.42563651 | J60: 7.558642592 | K60: 2.242402833 | L60: 0.6649704323 | M60: 1.623409582 | N60: 4.031858682 | O60: 1.561420249 | P60: 2.088005358 | Q60: 0.472233456 | R60: 3.606919572 | S60: 0.5853045633 | T60: 5.743853386 | U60: 2.478752201
B61: Public tap / standpipe | C61: 18.11958956 | D61: 23.03724974 | E61: 17.98288036 | F61: 15.44453997 | G61: 4.92684079 | H61: 9.581772316 | I61: 7.489299375 | J61: 2.7085308 | K61: 1.86867651 | L61: 0.8656964861 | M61: 17.73544136 | N61: 21.9961772 | O61: 24.7330574 | P61: 20.03778825 | Q61: 12.22802225 | R61: 20.3833117 | S61: 16.95188941 | T61: 14.80198697 | U61: 11.49671554
B62: Tube well, Borehole | C62: 7.333875151 | D62: 6.459402511 | E62: 4.281569977 | F62: 7.093766675 | G62: 2.901883842 | H62: 2.444350139 | I62: 1.384539498 | J62: 1.531008652 | K62: 1.070487823 | L62: 1.133220469 | M62: 6.95791328 | N62: 7.513246111 | O62: 6.296222741 | P62: 6.912803288 | Q62: 6.584515155 | R62: 2.887164789 | S62: 8.868730251 | T62: 3.998168543 | U62: 7.961370182
B63: Protected well | C63: 2.099886957 | D63: 3.13934007 | E63: 1.867191969 | F63: 1.777096936 | G63: 0.1178696826 | H63: 0.7477190295 | I63: 0.7138213396 | J63: 0 | K63: 0 | L63: 0 | M63: 1.966821316 | N63: 3.342768573 | O63: 2.553084713 | P63: 2.641393776 | Q63: 0.7723316628 | R63: 0.4631287726 | S63: 3.255375432 | T63: 1.078219651 | U63: 2.977343587
B64: Unprotected well | C64: 5.071316074 | D64: 4.42077859 | E64: 2.469659448 | F64: 1.820152196 | G64: 0.7186985596 | H64: 1.541102083 | I64: 1.534913361 | J64: 0.5638033102 | K64: 0 | L64: 0 | M64: 4.604993041 | N64: 4.25346763 | O64: 5.021687855 | P64: 2.067189436 | Q64: 1.839418434 | R64: 2.259835803 | S64: 4.041309611 | T64: 1.896684597 | U64: 3.915032939
B65: Protected spring | C65: 4.38181293 | D65: 4.034601145 | E65: 3.221236984 | F65: 2.957285376 | G65: 0.8143892646 | H65: 2.908388399 | I65: 1.940853516 | J65: 1.203443679 | K65: 0 | L65: 0 | M65: 4.088205127 | N65: 5.052659876 | O65: 3.076757329 | P65: 2.523850792 | Q65: 3.492065125 | R65: 1.736471034 | S65: 4.4594184 | T65: 1.702776875 | U65: 5.142247026
B66: Unprotected spring | C66: 10.49343043 | D66: 5.484983644 | E66: 8.111400864 | F66: 4.221530827 | G66: 1.07967803 | H66: 4.294326842 | I66: 2.501436756 | J66: 0.6618964381 | K66: 0.2451078784 | L66: 1.157546119 | M66: 10.99682125 | N66: 6.87469524 | O66: 6.023643347 | P66: 7.906659624 | Q66: 3.803981794 | R66: 4.82053187 | S66: 4.445425247 | T66: 5.260736949 | U66: 8.967884385
B67: Rainwater collection | C67: 0.4944177351 | D67: 0.5342266097 | E67: 1.02685034 | F67: 1.125148043 | G67: 0.3571791955 | H67: 0.8433233551 | I67: 0.5067208936 | J67: 0.2210396519 | K67: 0 | L67: 0.09820590846 | M67: 0.2563269341 | N67: 0.8707533729 | O67: 0.7460719745 | P67: 0.9920033515 | Q67: 1.235997334 | R67: 0.2370805792 | S67: 2.104364215 | T67: 0.2118356864 | U67: 0.7024738396
B68: Tanker-truck | C68: 0.4942643536 | D68: 0.6326803618 | E68: 1.550472815 | F68: 2.302361136 | G68: 5.083169389 | H68: 0.9484441789 | I68: 0.7019389813 | J68: 1.052692303 | K68: 0.2212894579 | L68: 2.216568108 | M68: 0.6144751614 | N68: 0.565612869 | O68: 1.112580622 | P68: 2.150818492 | Q68: 7.098308929 | R68: 0.592701448 | S68: 2.186555015 | T68: 2.544516479 | U68: 2.770869034
B69: Cart with small tank / drum | C69: 0.5524538954 | D69: 0.3577168364 | E69: 1.984364896 | F69: 0.5201309103 | G69: 0.3129333396 | H69: 0.1106057159 | I69: 0 | J69: 0 | K69: 0 | L69: 0 | M69: 0.5920452853 | N69: 0.5593118501 | O69: 1.828196515 | P69: 1.264352529 | Q69: 0.5785090432 | R69: 0.4148910136 | S69: 1.404716796 | T69: 0.9261835377 | U69: 0.3512369198
B70: Surface water (river, stream, dam, lake, pond, canal, irrigation channel) | C70: 35.81389359 | D70: 26.83577053 | E70: 22.03795855 | F70: 16.8832634 | G70: 3.465835876 | H70: 14.2564619 | I70: 5.607438522 | J70: 2.479227553 | K70: 2.128373232 | L70: 0.7242126816 | M70: 38.12521076 | N70: 29.21631933 | O70: 28.81054103 | P70: 22.09997856 | Q70: 10.94507918 | R70: 12.38810639 | S70: 25.55447149 | T70: 14.70200543 | U70: 34.56309811
B71: Bottled water | C71: 0 | D71: 0 | E71: 0 | F71: 0 | G71: 0.1220120374 | H71: 0 | I71: 0 | J71: 0 | K71: 0 | L71: 0.2413616369 | M71: 0 | N71: 0 | O71: 0 | P71: 0 | Q71: 0.08587503454 | R71: 0.04219783884 | S71: 0 | T71: 0.04433868619 | U71: 0
B72: Other | C72: 0 | D72: 0 | E72: 0.07698564745 | F72: 0.4398352735 | G72: 0.1258773508 | H72: 0.3318171478 | I72: 0.3747361975 | J72: 0 | K72: 0 | L72: 0.543063683 | M72: 0 | N72: 0 | O72: 0 | P72: 0 | Q72: 0.4598750408 | R72: 0.1604989103 | S72: 0 | T72: 0.05172141249 | U72: 0.2926974332
B73: Missing | C73: 0 | D73: 0 | E73: 0 | F73: 0.0977107549 | G73: 0 | H73: 0 | I73: 0.4221397139 | J73: 0 | K73: 0 | L73: 0 | M73: 0 | N73: 0 | O73: 0 | P73: 0 | Q73: 0 | R73: 0.07384621797 | S73: 0 | T73: 0 | U73: 0
A108: =A1026 -> Eswatini
A109: =A1034 -> 2010
A110: Use of sanitation facilities
A111: by wealth quintile and sub-national region
A112: Notes:
A113: WHO/UNICEF JMP customised wealth index excludes water,
A114: sanitation and hygiene assets.
A115: Survey used for analysis: | B115: =A1025 -> MICS10
A116: =B1030 -> 
A117: =B1029 -> 
A120: Use of sanitation facilities | C120: NATIONAL wealth index quintile | H120: URBAN wealth index quintile | M120: RURAL wealth index quintile | R120: SUB-REGIONS: | BA120: Raw numbers of respondents: | BB120: Use of sanitation facilities | BC120: NATIONAL wealth index quintile | BH120: URBAN wealth index quintile | BM120: RURAL wealth index quintile | BR120: SUB-REGIONS:
A121: Weighted percentage (used in graphs) | C121: Poorest | D121: Poor | E121: Middle | F121: Rich | G121: Richest | H121: Poorest | I121: Poor | J121: Middle | K121: Rich | L121: Richest | M121: Poorest | N121: Poor | O121: Middle | P121: Rich | Q121: Richest | R121: Hhohho | S121: Lubombo | T121: Manzini | U121: Shiselweni | BA121: Sanitation data, raw numbers (weighted) | BC121: Poorest | BD121: Poor | BE121: Middle | BF121: Rich | BG121: Richest | BH121: Poorest | BI121: Poor | BJ121: Middle | BK121: Rich | BL121: Richest | BM121: Poorest | BN121: Poor | BO121: Middle | BP121: Rich | BQ121: Richest | BR121: Hhohho | BS121: Lubombo | BT121: Manzini | BU121: Shiselweni
A122: Sanitation | B122: Improved | C122: 48.52521015 | D122: 69.56892041 | E122: 81.57302794 | F122: 93.27136256 | G122: 97.56159201 | H122: 81.56131587 | I122: 93.64365686 | J122: 98.0861801 | K122: 98.26164039 | L122: 98.88370903 | M122: 45.07298637 | N122: 64.03069883 | O122: 74.29300521 | P122: 87.49933931 | Q122: 95.39592143 | R122: 80.2915478 | S122: 62.50657164 | T122: 86.36356417 | U122: 78.13862263 | BA122: Sanitation | BB122: Improved | BC122: 2001.037316 | BD122: 2863.464935 | BE122: 3361.093065 | BF122: 3846.658442 | BG122: 4015.627564 | BH122: 779.702845 | BI122: 893.922413 | BJ122: 938.40453 | BK122: 939.021956 | BL122: 943.40056 | BM122: 1423.850039 | BN122: 2031.497624 | BO122: 2346.009501 | BP122: 2771.292204 | BQ122: 3020.77965 | BR122: 4381.463973 | BS122: 2522.185966 | BT122: 5296.682019 | BU122: 3887.549364
B123: Not Improved | C123: 51.47478985 | D123: 30.43107959 | E123: 18.42697206 | F123: 6.728637437 | G123: 2.438407994 | H123: 18.43868413 | I123: 6.35634314 | J123: 1.913819898 | K123: 1.738359611 | L123: 1.116290967 | M123: 54.92701363 | N123: 35.96930117 | O123: 25.70699479 | P123: 12.50066069 | Q123: 4.604078569 | R123: 19.7084522 | S123: 37.49342836 | T123: 13.63643583 | U123: 21.86137737 | BB123: Not Improved | BC123: 2122.66933 | BD123: 1252.54681 | BE123: 759.255474 | BF123: 277.499645 | BG123: 100.364684 | BH123: 176.268545 | BI123: 60.677656 | BJ123: 18.309789 | BK123: 16.612361 | BL123: 10.64998 | BM123: 1735.137536 | BN123: 1141.19557 | BO123: 811.770285 | BP123: 395.922801 | BQ123: 145.79142 | BR123: 1075.478997 | BS123: 1512.887307 | BT123: 836.32334 | BU123: 1087.646299
A124: Sanitation ladder | B124: Basic | C124: =C122*C129/100 -> 36.19333454 | D124: =D122*D129/100 -> 47.33325011 | E124: =E122*E129/100 -> 50.77184862 | F124: 62.64235021 | G124: 71.70312207 | H124: 18.25866264 | I124: 37.96107614 | J124: 44.69977563 | K124: 65.22326081 | L124: 87.07646946 | M124: 34.83341187 | N124: 48.71669674 | O124: 54.39526704 | P124: 62.38866771 | Q124: 72.94332001 | R124: 54.81338212 | S124: 48.12301845 | T124: 52.33123058 | U124: 58.79875647 | BA124: Sanitation ladder | BB124: Basic | BC124: 1492.506942 | BD124: 1947.017854 | BE124: 2091.977123 | BF124: 2583.469552 | BG124: 2948.924892 | BH124: 174.547591 | BI124: 362.376459 | BJ124: 427.649154 | BK124: 623.295863 | BL124: 827.91381 | BM124: 1100.383153 | BN124: 1544.262272 | BO124: 1717.682747 | BP124: 1975.983245 | BQ124: 2309.802069 | BR124: 2991.135002 | BS124: 1937.931003 | BT124: 3209.477176 | BU124: 2925.353182
B125: Limited | C125: =C122*C128/100 -> 12.33187561 | D125: =D122*D128/100 -> 22.2356703 | E125: =E122*E128/100 -> 30.80117932 | F125: 30.62901235 | G125: 25.85846994 | H125: 63.30265323 | I125: 55.68258072 | J125: 53.38640447 | K125: 33.03837958 | L125: 11.80723957 | M125: 10.23957449 | N125: 15.3140021 | O125: 19.89773818 | P125: 25.11067161 | Q125: 22.45260142 | R125: 25.47816568 | S125: 14.38355319 | T125: 34.03233359 | U125: 19.33986615 | BB125: Limited | BC125: 508.530374 | BD125: 914.647673 | BE125: 1269.115942 | BF125: 1263.18889 | BG125: 1063.4779 | BH125: 605.155254 | BI125: 531.545954 | BJ125: 510.755376 | BK125: 315.726093 | BL125: 112.261978 | BM125: 323.466886 | BN125: 485.435944 | BO125: 628.326754 | BP125: 795.308959 | BQ125: 710.977581 | BR125: 1390.328971 | BS125: 579.230783 | BT125: 2087.204843 | BU125: 962.196182
B126: Unimproved | C126: =100-C124-C125-C127 -> 12.447396 | D126: =100-D124-D125-D127 -> 6.669182027 | E126: =100-E124-E125-E127 -> 6.409147345 | F126: 4.649580907 | G126: 2.170940186 | H126: 14.08800801 | I126: 4.898701825 | J126: 1.913819898 | K126: 0.9638465087 | L126: 1.116290967 | M126: 12.17405918 | N126: 7.319408538 | O126: 6.608496385 | P126: 5.231186318 | Q126: 3.857013037 | R126: 6.483156686 | S126: 10.40056414 | T126: 5.228992757 | U126: 4.782072608 | BB126: Unimproved | BC126: 513.294096 | BD126: 274.931889 | BE126: 264.079209 | BF126: 191.756067 | BG126: 89.364355 | BH126: 134.677326 | BI126: 46.763011 | BJ126: 18.309789 | BK126: 9.210848 | BL126: 10.64998 | BM126: 384.577017 | BN126: 232.737905 | BO126: 208.681763 | BP126: 165.682918 | BQ126: 122.135059 | BR126: 353.782163 | BS126: 421.031578 | BT126: 320.694406 | BU126: 237.917469
B127: Open defecation | C127: 39.02739385 | D127: 23.76189756 | E127: 12.01782471 | F127: 2.07905653 | G127: 0.2674678076 | H127: 4.350676122 | I127: 1.457641315 | J127: 0 | K127: 0.7745131028 | L127: 0 | M127: 42.75295445 | N127: 28.64989263 | O127: 19.0984984 | P127: 7.269474369 | Q127: 0.7470655317 | R127: 13.22529552 | S127: 27.09286423 | T127: 8.407443069 | U127: 17.07930477 | BB127: Open defecation | BC127: 1609.375234 | BD127: 977.614921 | BE127: 495.176265 | BF127: 85.743578 | BG127: 11.000329 | BH127: 41.591219 | BI127: 13.914645 | BJ127: 0 | BK127: 7.401513 | BL127: 0 | BM127: 1350.560519 | BN127: 908.457665 | BO127: 603.088522 | BP127: 230.239883 | BQ127: 23.656361 | BR127: 721.696834 | BS127: 1091.855729 | BT127: 515.628934 | BU127: 849.72883
A128: Shared among Improved Sanitation | B128: Yes | C128: 25.41333787 | D128: 31.96207469 | E128: 37.75902415 | F128: 32.83860288 | G128: 26.50476423 | H128: 77.61357521 | I128: 59.46220234 | J128: 54.42805951 | K128: 33.6228659 | L128: 11.94053064 | M128: 22.71776361 | N128: 23.91665619 | O128: 26.78278812 | P128: 28.6981271 | Q128: 23.53622784 | R128: 31.73206443 | S128: 23.01126555 | T128: 39.40589289 | U128: 24.7507129 | BA128: Shared among improved sanitation facilities | BB128: Yes | BC128: N/A | BD128: N/A | BE128: N/A | BF128: N/A | BG128: N/A | BH128: N/A | BI128: N/A | BJ128: N/A | BK128: N/A | BL128: N/A | BM128: N/A | BN128: N/A | BO128: N/A | BP128: N/A | BQ128: N/A | BR128: N/A | BS128: N/A | BT128: N/A | BU128: N/A
B129: No | C129: 74.58666213 | D129: 68.03792531 | E129: 62.24097585 | F129: 67.16139712 | G129: 73.49523577 | H129: 22.38642479 | I129: 40.53779766 | J129: 45.57194049 | K129: 66.3771341 | L129: 88.05946936 | M129: 77.28223639 | N129: 76.08334381 | O129: 73.21721188 | P129: 71.3018729 | Q129: 76.46377216 | R129: 68.26793557 | S129: 76.98873445 | T129: 60.59410711 | U129: 75.2492871 | BB129: No | BC129: N/A | BD129: N/A | BE129: N/A | BF129: N/A | BG129: N/A | BH129: N/A | BI129: N/A | BJ129: N/A | BK129: N/A | BL129: N/A | BM129: N/A | BN129: N/A | BO129: N/A | BP129: N/A | BQ129: N/A | BR129: N/A | BS129: N/A | BT129: N/A | BU129: N/A
A130: Manually calculated ratios | B130: Improved latrines | C130: =C159/(C159+C160)*100 -> 75.27276346 | D130: =D159/(D159+D160)*100 -> 88.54903607 | E130: 90.02578655 | F130: 92.02884842 | G130: 94.48512375 | H130: 83.11410217 | I130: 92.59063251 | J130: 96.43991288 | K130: 97.76171984 | L130: 100 | M130: 74.50700786 | N130: 86.18369339 | O130: 88.89625049 | P130: 91.66565258 | Q130: 92.24383417 | R130: 88.87836921 | S130: 73.77488245 | T130: 90.7816304 | U130: 91.30056759
B131: Other
B132: Other
C133: NATIONAL wealth index quintile | H133: URBAN wealth index quintile | M133: RURAL wealth index quintile | R133: SUB-REGIONS: | BA133: Raw numbers of respondents: | BB133: Use of sanitation facilities | BC133: NATIONAL wealth index quintile | BH133: URBAN wealth index quintile | BM133: RURAL wealth index quintile | BR133: SUB-REGIONS:
A134: Percentage based on weighted population | C134: Poorest | D134: Poor | E134: Middle | F134: Rich | G134: Richest | H134: Poorest | I134: Poor | J134: Middle | K134: Rich | L134: Richest | M134: Poorest | N134: Poor | O134: Middle | P134: Rich | Q134: Richest | R134: Hhohho | S134: Lubombo | T134: Manzini | U134: Shiselweni | BA134: Sanitation data, raw numbers (weighted) | BC134: Poorest | BD134: Poor | BE134: Middle | BF134: Rich | BG134: Richest | BH134: Poorest | BI134: Poor | BJ134: Middle | BK134: Rich | BL134: Richest | BM134: Poorest | BN134: Poor | BO134: Middle | BP134: Rich | BQ134: Richest | BR134: Hhohho | BS134: Lubombo | BT134: Manzini | BU134: Shiselweni
A135: Sanitation type | B135: Sewer connection | C135: 0 | D135: 0.8723763251 | E135: 2.569744355 | F135: 9.064822568 | G135: 39.1290734 | H135: 5.002792291 | I135: 20.55407425 | J135: 30.75512242 | K135: 55.92920393 | L135: 68.11286968 | M135: 0 | N135: 0.06119835362 | O135: 0.5632315806 | P135: 1.402117821 | Q135: 10.72037979 | R135: 10.37785293 | S135: 13.99164503 | T135: 13.99966986 | U135: 2.747623174 | BA135: Sanitation type | BB135: Sewer connection | BC135: N/A | BD135: N/A | BE135: N/A | BF135: N/A | BG135: N/A | BH135: N/A | BI135: N/A | BJ135: N/A | BK135: N/A | BL135: N/A | BM135: N/A | BN135: N/A | BO135: N/A | BP135: N/A | BQ135: N/A | BR135: N/A | BS135: N/A | BT135: N/A | BU135: N/A
B136: Septic tank connection | C136: 0 | D136: 0.3255303393 | E136: 0.5980025177 | F136: 2.681395564 | G136: 17.04094385 | H136: 2.19171988 | I136: 5.767920283 | J136: 9.036584933 | K136: 10.38029477 | L136: 18.27987677 | M136: 0 | N136: 0.05097149019 | O136: 0.1126995941 | P136: 0.6356290295 | Q136: 12.27371325 | R136: 5.576156938 | S136: 1.474038536 | T136: 6.999726706 | U136: 1.145034806 | BB136: Septic tank connection | BC136: N/A | BD136: N/A | BE136: N/A | BF136: N/A | BG136: N/A | BH136: N/A | BI136: N/A | BJ136: N/A | BK136: N/A | BL136: N/A | BM136: N/A | BN136: N/A | BO136: N/A | BP136: N/A | BQ136: N/A | BR136: N/A | BS136: N/A | BT136: N/A | BU136: N/A
B137: Improved latrines | C137: 48.52521015 | D137: 68.37101375 | E137: 78.40528107 | F137: 81.52514443 | G137: 41.39157475 | H137: 74.3668037 | I137: 67.32166232 | J137: 58.29447275 | K137: 31.95214169 | L137: 12.49096259 | M137: 45.07298637 | N137: 63.91852899 | O137: 73.61707404 | P137: 85.46159246 | Q137: 72.40182839 | R137: 64.33753793 | S137: 47.04088807 | T137: 65.3641676 | U137: 74.24596465 | BB137: Improved latrines | BC137: N/A | BD137: N/A | BE137: N/A | BF137: N/A | BG137: N/A | BH137: N/A | BI137: N/A | BJ137: N/A | BK137: N/A | BL137: N/A | BM137: N/A | BN137: N/A | BO137: N/A | BP137: N/A | BQ137: N/A | BR137: N/A | BS137: N/A | BT137: N/A | BU137: N/A
B138: Unimproved facilities | C138: 12.447396 | D138: 6.67957008 | E138: 6.409147345 | F138: 4.649580907 | G138: 2.17114974 | H138: 14.08800801 | I138: 4.898701825 | J138: 1.913819898 | K138: 0.9638465087 | L138: 1.116290967 | M138: 12.17405918 | N138: 7.335657461 | O138: 6.608496385 | P138: 5.231186318 | Q138: 3.857013037 | R138: 6.483156686 | S138: 10.4342982 | T138: 5.228992757 | U138: 4.782072608 | BB138: Unimproved facilities | BC138: N/A | BD138: N/A | BE138: N/A | BF138: N/A | BG138: N/A | BH138: N/A | BI138: N/A | BJ138: N/A | BK138: N/A | BL138: N/A | BM138: N/A | BN138: N/A | BO138: N/A | BP138: N/A | BQ138: N/A | BR138: N/A | BS138: N/A | BT138: N/A | BU138: N/A
B139: Open defecation | C139: 39.02739385 | D139: 23.75150951 | E139: 12.01782471 | F139: 2.07905653 | G139: 0.2672582536 | H139: 4.350676122 | I139: 1.457641315 | J139: 0 | K139: 0.7745131028 | L139: 0 | M139: 42.75295445 | N139: 28.6336437 | O139: 19.0984984 | P139: 7.269474369 | Q139: 0.7470655317 | R139: 13.22529552 | S139: 27.05913016 | T139: 8.407443069 | U139: 17.07930477 | BB139: Open defecation | BC139: N/A | BD139: N/A | BE139: N/A | BF139: N/A | BG139: N/A | BH139: N/A | BI139: N/A | BJ139: N/A | BK139: N/A | BL139: N/A | BM139: N/A | BN139: N/A | BO139: N/A | BP139: N/A | BQ139: N/A | BR139: N/A | BS139: N/A | BT139: N/A | BU139: N/A
A140: Septic tank emptying practices | B140: Not emptied/treated and disposed in situ | C140: N/A | D140: N/A | E140: N/A | F140: N/A | G140: N/A | H140: N/A | I140: N/A | J140: N/A | K140: N/A | L140: N/A | M140: N/A | N140: N/A | O140: N/A | P140: N/A | Q140: N/A | R140: N/A | S140: N/A | T140: N/A | U140: N/A | BA140: Septic tank emptying practices | BB140: Not emptied/treated and disposed in situ | BC140: N/A | BD140: N/A | BE140: N/A | BF140: N/A | BG140: N/A | BH140: N/A | BI140: N/A | BJ140: N/A | BK140: N/A | BL140: N/A | BM140: N/A | BN140: N/A | BO140: N/A | BP140: N/A | BQ140: N/A | BR140: N/A | BS140: N/A | BT140: N/A | BU140: N/A
B141: Emptied and buried on site | C141: N/A | D141: N/A | E141: N/A | F141: N/A | G141: N/A | H141: N/A | I141: N/A | J141: N/A | K141: N/A | L141: N/A | M141: N/A | N141: N/A | O141: N/A | P141: N/A | Q141: N/A | R141: N/A | S141: N/A | T141: N/A | U141: N/A | BB141: Emptied and buried on site | BC141: N/A | BD141: N/A | BE141: N/A | BF141: N/A | BG141: N/A | BH141: N/A | BI141: N/A | BJ141: N/A | BK141: N/A | BL141: N/A | BM141: N/A | BN141: N/A | BO141: N/A | BP141: N/A | BQ141: N/A | BR141: N/A | BS141: N/A | BT141: N/A | BU141: N/A
B142: Emptied and discharged locally | C142: N/A | D142: N/A | E142: N/A | F142: N/A | G142: N/A | H142: N/A | I142: N/A | J142: N/A | K142: N/A | L142: N/A | M142: N/A | N142: N/A | O142: N/A | P142: N/A | Q142: N/A | R142: N/A | S142: N/A | T142: N/A | U142: N/A | BB142: Emptied and discharged locally | BC142: N/A | BD142: N/A | BE142: N/A | BF142: N/A | BG142: N/A | BH142: N/A | BI142: N/A | BJ142: N/A | BK142: N/A | BL142: N/A | BM142: N/A | BN142: N/A | BO142: N/A | BP142: N/A | BQ142: N/A | BR142: N/A | BS142: N/A | BT142: N/A | BU142: N/A
B143: Emptied and removed offsite | C143: N/A | D143: N/A | E143: N/A | F143: N/A | G143: N/A | H143: N/A | I143: N/A | J143: N/A | K143: N/A | L143: N/A | M143: N/A | N143: N/A | O143: N/A | P143: N/A | Q143: N/A | R143: N/A | S143: N/A | T143: N/A | U143: N/A | BB143: Emptied and removed offsite | BC143: N/A | BD143: N/A | BE143: N/A | BF143: N/A | BG143: N/A | BH143: N/A | BI143: N/A | BJ143: N/A | BK143: N/A | BL143: N/A | BM143: N/A | BN143: N/A | BO143: N/A | BP143: N/A | BQ143: N/A | BR143: N/A | BS143: N/A | BT143: N/A | BU143: N/A
A144: Latrine emptying practices | B144: Not emptied/treated and disposed in situ | C144: N/A | D144: N/A | E144: N/A | F144: N/A | G144: N/A | H144: N/A | I144: N/A | J144: N/A | K144: N/A | L144: N/A | M144: N/A | N144: N/A | O144: N/A | P144: N/A | Q144: N/A | R144: N/A | S144: N/A | T144: N/A | U144: N/A | BA144: Latrine emptying practices | BB144: Not emptied/treated and disposed in situ | BC144: N/A | BD144: N/A | BE144: N/A | BF144: N/A | BG144: N/A | BH144: N/A | BI144: N/A | BJ144: N/A | BK144: N/A | BL144: N/A | BM144: N/A | BN144: N/A | BO144: N/A | BP144: N/A | BQ144: N/A | BR144: N/A | BS144: N/A | BT144: N/A | BU144: N/A
B145: Emptied and buried on site | C145: N/A | D145: N/A | E145: N/A | F145: N/A | G145: N/A | H145: N/A | I145: N/A | J145: N/A | K145: N/A | L145: N/A | M145: N/A | N145: N/A | O145: N/A | P145: N/A | Q145: N/A | R145: N/A | S145: N/A | T145: N/A | U145: N/A | BB145: Emptied and buried on site | BC145: N/A | BD145: N/A | BE145: N/A | BF145: N/A | BG145: N/A | BH145: N/A | BI145: N/A | BJ145: N/A | BK145: N/A | BL145: N/A | BM145: N/A | BN145: N/A | BO145: N/A | BP145: N/A | BQ145: N/A | BR145: N/A | BS145: N/A | BT145: N/A | BU145: N/A
B146: Emptied and discharged locally | C146: N/A | D146: N/A | E146: N/A | F146: N/A | G146: N/A | H146: N/A | I146: N/A | J146: N/A | K146: N/A | L146: N/A | M146: N/A | N146: N/A | O146: N/A | P146: N/A | Q146: N/A | R146: N/A | S146: N/A | T146: N/A | U146: N/A | BB146: Emptied and discharged locally | BC146: N/A | BD146: N/A | BE146: N/A | BF146: N/A | BG146: N/A | BH146: N/A | BI146: N/A | BJ146: N/A | BK146: N/A | BL146: N/A | BM146: N/A | BN146: N/A | BO146: N/A | BP146: N/A | BQ146: N/A | BR146: N/A | BS146: N/A | BT146: N/A | BU146: N/A
B147: Emptied and removed offsite | C147: N/A | D147: N/A | E147: N/A | F147: N/A | G147: N/A | H147: N/A | I147: N/A | J147: N/A | K147: N/A | L147: N/A | M147: N/A | N147: N/A | O147: N/A | P147: N/A | Q147: N/A | R147: N/A | S147: N/A | T147: N/A | U147: N/A | BB147: Emptied and removed offsite | BC147: N/A | BD147: N/A | BE147: N/A | BF147: N/A | BG147: N/A | BH147: N/A | BI147: N/A | BJ147: N/A | BK147: N/A | BL147: N/A | BM147: N/A | BN147: N/A | BO147: N/A | BP147: N/A | BQ147: N/A | BR147: N/A | BS147: N/A | BT147: N/A | BU147: N/A
A148: Shared among improved sanitation facilities | B148: Yes | C148: 12.33187561 | D148: 22.22169735 | E148: 30.80117932 | F148: 30.62901235 | G148: 25.83770415 | H148: 63.30265323 | I148: 55.68258072 | J148: 53.38640447 | K148: 33.03837958 | L148: 11.76687956 | M148: 10.23957449 | N148: 15.30043765 | O148: 19.89773818 | P148: 25.11067161 | Q148: 22.45260142 | R148: 25.47816568 | S148: 14.35490123 | T148: 34.03233359 | U148: 19.33986615 | BA148: Shared among improved sanitation facilities | BB148: Yes | BC148: N/A | BD148: N/A | BE148: N/A | BF148: N/A | BG148: N/A | BH148: N/A | BI148: N/A | BJ148: N/A | BK148: N/A | BL148: N/A | BM148: N/A | BN148: N/A | BO148: N/A | BP148: N/A | BQ148: N/A | BR148: N/A | BS148: N/A | BT148: N/A | BU148: N/A
B149: No | C149: 36.19333454 | D149: 47.30350579 | E149: 50.77184862 | F149: 62.64235021 | G149: 71.64554048 | H149: 18.25866264 | I149: 37.96107614 | J149: 44.69977563 | K149: 65.22326081 | L149: 86.77882096 | M149: 34.83341187 | N149: 48.67354571 | O149: 54.39526704 | P149: 62.38866771 | Q149: 72.94332001 | R149: 54.81338212 | S149: 48.02715767 | T149: 52.33123058 | U149: 58.79875647 | BB149: No | BC149: N/A | BD149: N/A | BE149: N/A | BF149: N/A | BG149: N/A | BH149: N/A | BI149: N/A | BJ149: N/A | BK149: N/A | BL149: N/A | BM149: N/A | BN149: N/A | BO149: N/A | BP149: N/A | BQ149: N/A | BR149: N/A | BS149: N/A | BT149: N/A | BU149: N/A
B150: DK/missing | C150: 51.47478985 | D150: 30.47479686 | E150: 18.42697206 | F150: 6.728637437 | G150: 2.516755372 | H150: 18.43868413 | I150: 6.35634314 | J150: 1.913819898 | K150: 1.738359611 | L150: 1.454299476 | M150: 54.92701363 | N150: 36.02601664 | O150: 25.70699479 | P150: 12.50066069 | Q150: 4.604078569 | R150: 19.7084522 | S150: 37.6179411 | T150: 13.63643583 | U150: 21.86137737 | BB150: DK/missing | BC150: N/A | BD150: N/A | BE150: N/A | BF150: N/A | BG150: N/A | BH150: N/A | BI150: N/A | BJ150: N/A | BK150: N/A | BL150: N/A | BM150: N/A | BN150: N/A | BO150: N/A | BP150: N/A | BQ150: N/A | BR150: N/A | BS150: N/A | BT150: N/A | BU150: N/A
A151: Shared among all sanitation facilities | B151: Yes | C151: 24.04018783 | D151: 31.86430038 | E151: 37.3409202 | F151: 31.87723767 | G151: 26.92565164 | H151: 75.09056723 | I151: 59.47966926 | J151: 54.96315698 | K151: 33.2962635 | L151: 11.76687956 | M151: 21.39425484 | N151: 23.17527644 | O151: 26.85845878 | P151: 27.41479442 | Q151: 23.79525782 | R151: 30.90395775 | S151: 22.20653615 | T151: 39.71211447 | U151: 24.31331138 | BA151: Shared among all sanitation facilities | BB151: Yes | BC151: N/A | BD151: N/A | BE151: N/A | BF151: N/A | BG151: N/A | BH151: N/A | BI151: N/A | BJ151: N/A | BK151: N/A | BL151: N/A | BM151: N/A | BN151: N/A | BO151: N/A | BP151: N/A | BQ151: N/A | BR151: N/A | BS151: N/A | BT151: N/A | BU151: N/A
B152: No | C152: 75.63822191 | D152: 68.07836436 | E152: 62.6590798 | F152: 68.02297698 | G152: 72.99579103 | H152: 24.90943277 | I152: 40.09194672 | J152: 45.03684302 | K152: 66.7037365 | L152: 87.89511193 | M152: 78.15862483 | N152: 76.74525268 | O152: 73.14154122 | P152: 72.58520558 | Q152: 76.20474218 | R152: 68.84018246 | S152: 77.62276019 | T152: 60.28788553 | U152: 75.68668862 | BB152: No | BC152: N/A | BD152: N/A | BE152: N/A | BF152: N/A | BG152: N/A | BH152: N/A | BI152: N/A | BJ152: N/A | BK152: N/A | BL152: N/A | BM152: N/A | BN152: N/A | BO152: N/A | BP152: N/A | BQ152: N/A | BR152: N/A | BS152: N/A | BT152: N/A | BU152: N/A
A153: Type of toilet facility | B153: Flush to piped sewer system | C153: 0 | D153: 0.8723763251 | E153: 2.569744355 | F153: 9.064822568 | G153: 39.1290734 | H153: 5.002792291 | I153: 20.55407425 | J153: 30.75512242 | K153: 55.92920393 | L153: 68.11286968 | M153: 0 | N153: 0.06119835362 | O153: 0.5632315806 | P153: 1.402117821 | Q153: 10.72037979 | R153: 10.37785293 | S153: 13.99164503 | T153: 13.99966986 | U153: 2.747623174 | BA153: Type of toilet facility | BB153: Flush to piped sewer system | BC153: 0 | BD153: 35.907112 | BE153: 105.882424 | BF153: 373.847613 | BG153: 1610.549628 | BH153: 47.825263 | BI153: 196.209207 | BJ153: 294.23866 | BK153: 534.478666 | BL153: 649.831201 | BM153: 0 | BN153: 1.941636 | BO153: 17.785613 | BP153: 44.408086 | BQ153: 339.468445 | BR153: 566.313516 | BS153: 564.573129 | BT153: 858.600503 | BU153: 136.699629
B154: Flush to septic tank | C154: 0 | D154: 0.3255303393 | E154: 0.5980025177 | F154: 2.681395564 | G154: 17.04094385 | H154: 2.19171988 | I154: 5.767920283 | J154: 9.036584933 | K154: 10.38029477 | L154: 18.27987677 | M154: 0 | N154: 0.05097149019 | O154: 0.1126995941 | P154: 0.6356290295 | Q154: 12.27371325 | R154: 5.576156938 | S154: 1.474038536 | T154: 6.999726706 | U154: 1.145034806 | BB154: Flush to septic tank | BC154: 0 | BD154: 13.398867 | BE154: 24.639788 | BF154: 110.584992 | BG154: 701.403928 | BH154: 20.952215 | BI154: 55.060571 | BJ154: 86.454302 | BK154: 99.197659 | BL154: 174.399263 | BM154: 0 | BN154: 1.617169 | BO154: 3.558805 | BP154: 20.131738 | BQ154: 388.655853 | BR154: 304.287704 | BS154: 59.478535 | BT154: 429.293614 | BU154: 56.967722
B155: Flush to pit (latrine) | C155: 0 | D155: 0.06993153029 | E155: 0.1319933969 | F155: 0.0218154586 | G155: 0 | H155: 0.3010958309 | I155: 0 | J155: 0 | K155: 0 | L155: 0 | M155: 0 | N155: 0 | O155: 0 | P155: 0.1717151501 | Q155: 0.02841256299 | R155: 0.05274729855 | S155: 0.022297092 | T155: 0.08867737238 | U155: 0 | BB155: Flush to pit (latrine) | BC155: 0 | BD155: 2.87839 | BE155: 5.438588 | BF155: 0.899704 | BG155: 0 | BH155: 2.87839 | BI155: 0 | BJ155: 0 | BK155: 0 | BL155: 0 | BM155: 0 | BN155: 0 | BO155: 0 | BP155: 5.438588 | BQ155: 0.899704 | BR155: 2.87839 | BS155: 0.899704 | BT155: 5.438588 | BU155: 0
B156: Flush to somewhere else | C156: 0 | D156: 0 | E156: 0 | F156: 0 | G156: 0.1888144956 | H156: 0 | I156: 0 | J156: 0 | K156: 0 | L156: 0.814588921 | M156: 0 | N156: 0 | O156: 0 | P156: 0 | Q156: 0 | R156: 0 | S156: 0 | T156: 0.1267174826 | U156: 0 | BB156: Flush to somewhere else | BC156: 0 | BD156: 0 | BE156: 0 | BF156: 0 | BG156: 7.77159 | BH156: 0 | BI156: 0 | BJ156: 0 | BK156: 0 | BL156: 7.77159 | BM156: 0 | BN156: 0 | BO156: 0 | BP156: 0 | BQ156: 0 | BR156: 0 | BS156: 0 | BT156: 7.77159 | BU156: 0
B157: Flush to unknown place / Not sure / DK where | C157: 0 | D157: 0 | E157: 0 | F157: 0.1759030049 | G157: 0.8825771481 | H157: 0 | I157: 0.3256761759 | J157: 0.7703851457 | K157: 2.137368095 | L157: 1.328714934 | M157: 0 | N157: 0 | O157: 0 | P157: 0 | Q157: 0 | R157: 0.2742859525 | S157: 0.4994909296 | T157: 0.1379237667 | U157: 0 | BB157: Flush to unknown place / Not sure / DK where | BC157: 0 | BD157: 0 | BE157: 0 | BF157: 7.254518 | BG157: 36.326807 | BH157: 0 | BI157: 3.108905 | BJ157: 7.370385 | BK157: 20.425423 | BL157: 12.676612 | BM157: 0 | BN157: 0 | BO157: 0 | BP157: 0 | BQ157: 0 | BR157: 14.967628 | BS157: 20.154825 | BT157: 8.458872 | BU157: 0
